Workbook

Sheet Page 1
A1: AVISTA UTILITIES | S1: This worksheet pulls data from 'Pres & Prop Rev' tab.
A2: WASHINGTON ELECTRIC
A3: PROPOSED INCREASE BY SERVICE SCHEDULE
A4: 12 MONTHS ENDED SEPTEMBER 30, 2014
A5: (000s of Dollars)
D8: Base Tariff | F8: Base Tariff | G8: Base | H8: Total Billed | L8: Percent | P8: Percent | T8: Percent | U8: Total Billed
D9: Revenue | E9: Total | F9: Revenue | G9: Tariff | H9: Revenue | I9: Total | J9: Total | K9: Total | L9: Increase | M9: Sch. 98 | N9: Sch. 93 | O9: Proposed | P9: Increase | T9: Increase | U9: Revenue
B10: Type of | C10: Schedule | D10: Under Present | E10: General | F10: Under Proposed | G10: Percent | H10: at Present | I10: General | J10: LIRAP | K10: PCRA | L10: on Billed | M10: REC Revenue | N10: ERM | O10: General | P10: on Billed | T10: on Base | U10: at Proposed
A11: No. | B11: Service | C11: Number | D11: Rates(1) | E11: Decrease | F11: Rates(1) | G11: Decrease | H11: Rates (2) | I11: Decrease | J11: Increase | K11: Increase | L11: Revenue | M11: Decrease | N11: Increase | O11: Increase | P11: Revenue | T11: Revenue | U11: Rates (2)
B12: (a) | C12: (b) | D12: (c) | E12: (d) | F12: (e) | G12: (f) | H12: (g) | I12: (h) | J12: (i) | K12: (j) | L12: (k) | M12: (j) | N12: (k) | O12: (j) | P12: (k) | R12: ="col (m) source" -> col (m) source
D13: =IF(Base1_Billing2<>1,"ERROR","") -> 
A14: 1 | B14: Residential | C14: 1 | D14: ='Pres & Prop Rev'!$D$152/1000 -> 211363.0273 | E14: ='Pres & Prop Rev'!$D$207/1000 -> 0 | F14: =D14+E14 -> 211363.0273 | G14: =E14/D14 -> 0 | H14: 224111.6696 | I14: =E14 -> 0 | J14: =#REF!/1000 ->  | K14: ='[1]Power Cost Rate Adjustment'!E13/1000 -> 6550.334177 | L14: =(I14+K14)/H14 -> 0.02922799241 | M14: ='Adder Schedule'!H11/1000 ->  | N14: =('Pres & Prop Rev'!D23*(0))/1000 -> 0 | O14: =E14+N14 -> 0 | P14: =(O14)/H14 -> 0 | R14: from Pres & Prop Rev tab | T14: =(E14+N14)/D14 -> 0 | U14: =E14+H14+N14 -> 224111.6696 | W14: =J14/H14 ->  | X14: =K14/H14 -> 0.02922799241
A16: 2 | B16: General Service | C16: 11/12 | D16: ='Pres & Prop Rev'!$E$152/1000-0.2 -> 70145.36279 | E16: ='Pres & Prop Rev'!$E$207/1000 -> 0 | F16: =D16+E16-0.2 -> 70145.16279 | G16: =E16/D16 -> 0 | H16: =72051.78279-29.561 -> 72022.22179 | I16: =E16 -> 0 | J16: =#REF!/1000 ->  | K16: ='[1]Power Cost Rate Adjustment'!E15/1000 -> 2105.064952 | L16: =(I16+K16)/H16 -> 0.02922799241 | M16: ='Adder Schedule'!H13/1000 ->  | N16: =('Pres & Prop Rev'!E23*(0))/1000 -> 0 | O16: =E16+N16 -> 0 | P16: =(O16)/H16 -> 0 | R16: from below | T16: =(E16+N16)/D16 -> 0 | U16: =E16+H16+N16 -> 72022.22179 | W16: =J16/H16 ->  | X16: =K16/H16 -> 0.02922799241
A18: 3 | B18: Large General Service | C18: 21/22 | D18: ='Pres & Prop Rev'!$F$152/1000 -> 128033.9117 | E18: ='Pres & Prop Rev'!$F$207/1000 -> 0 | F18: =D18+E18 -> 128033.9117 | G18: =E18/D18 -> 0 | H18: =130815.59915-18.848 -> 130796.7511 | I18: 0 | J18: =#REF!/1000 ->  | K18: ='[1]Power Cost Rate Adjustment'!E17/1000 -> 3822.92645 | L18: 0.02922799241 | M18: ='Adder Schedule'!H15/1000 ->  | N18: =('Pres & Prop Rev'!F23*(0))/1000 -> 0 | O18: =E18+N18 -> 0 | P18: =(O18)/H18 -> 0 | R18: from below | T18: =(E18+N18)/D18 -> 0 | U18: =E18+H18+N18 -> 130796.7511 | X18: 0.02922799241
A20: 4 | B20: Extra Large General Service | C20: 25 | D20: ='Pres & Prop Rev'!$G$152/1000 -> 64138.20311 | E20: ='Pres & Prop Rev'!$G$207/1000 -> 0 | F20: =D20+E20 -> 64138.20311 | G20: =E20/D20 -> 0 | H20: 66101.94675 | I20: 0 | J20: =#REF!/1000 ->  | K20: ='[1]Power Cost Rate Adjustment'!E19/1000 -> 1932.027198 | L20: 0.02922799241 | M20: ='Adder Schedule'!H17/1000 ->  | N20: =('Pres & Prop Rev'!G23*(0))/1000 -> 0 | O20: =E20+N20 -> 0 | P20: =(O20)/H20 -> 0 | R20: from Pres & Prop Rev tab | T20: =(E20+N20)/D20 -> 0 | U20: =E20+H20+N20 -> 66101.94675 | X20: 0.02922799241
A22: 5 | B22: Pumping Service | C22: 30/31/32 | D22: ='Pres & Prop Rev'!$H$152/1000 -> 11283.96024 | E22: ='Pres & Prop Rev'!$H$207/1000 -> 0 | F22: =D22+E22 -> 11283.96024 | G22: =E22/D22 -> 0 | H22: =11510.38487-4.411 -> 11505.97387 | I22: 0 | J22: =#REF!/1000 ->  | K22: ='[1]Power Cost Rate Adjustment'!E21/1000 -> 336.2965169 | L22: 0.02922799241 | M22: ='Adder Schedule'!H19/1000 ->  | N22: =('Pres & Prop Rev'!H23*(0))/1000 -> 0 | O22: =E22+N22 -> 0 | P22: =(O22)/H22 -> 0 | R22: from below | T22: =(E22+N22)/D22 -> 0 | U22: =E22+H22+N22 -> 11505.97387 | X22: 0.02922799241
A24: 6 | B24: Street & Area Lights | C24: 41-48 | D24: ='Pres & Prop Rev'!$I$152/1000+0.2 -> 6907.63016 | E24: ='Pres & Prop Rev'!$I$207/1000 -> 3.34800221e-07 | F24: =D24+E24 -> 6907.630161 | G24: =E24/D24 -> 4.846817407e-11 | H24: =6991.21006520441+205.682 -> 7196.892065 | I24: 3.34800221e-07 | J24: =#REF!/1000 ->  | K24: ='[1]Power Cost Rate Adjustment'!E23/1000 -> 210.3507066 | L24: 0.02922799245 | M24: ='Adder Schedule'!H21/1000 ->  | N24: =('Pres & Prop Rev'!I23*(0))/1000 -> 0 | O24: =E24+N24 -> 3.34800221e-07 | P24: =(O24)/H24 -> 4.652011146e-11 | R24: from Pres & Prop Rev tab | T24: =(E24+N24)/D24 -> 4.846817407e-11 | U24: =E24+H24+N24 -> 7196.892066 | X24: 0.02922799241
A26: 7 | B26: Total | D26: =SUM(D14:D24) -> 491872.0954 | E26: =SUM(E14:E24) -> 3.34800221e-07 | F26: =SUM(F14:F24)+0.1 -> 491871.9954 | G26: =E26/D26 -> 6.806652058e-13 | H26: =SUM(H14:H24) -> 511735.4552 | I26: =E26 -> 3.34800221e-07 | J26: =SUM(J14:J24) ->  | K26: =SUM(K14:K24) -> 14957 | L26: 0.02922799241 | M26: =SUM(M14:M25) ->  | N26: =SUM(N14:N24) -> 0 | O26: =E26+N26 -> 3.34800221e-07 | P26: =(O26)/H26 -> 6.542447228e-13 | R26: from below | T26: =(E26+N26)/D26 -> 6.806652058e-13 | U26: =E26+H26+N26 -> 511735.4552 | X26: 0.02922799241
E27: =ROUND(E26-'Pres & Prop Rev'!C207/1000,0) -> 0
D28: =IF(Base1_Billing2=2,"Exhibit won't work until Base1_Billing2 range set to '1'","") -> 
A31: (1) Excludes all present rate adjustments: Schedule 59 (BPA Residential Exchange), Schedule 91 (DSM),
A32: Schedule 92 (LIRAP), Schedule 93 (ERM), and Schedule 98 (REC Revenue).
A34: (2) Includes all present rate adjustments: Schedule 59 (BPA Residential Exchange), Schedule 91 (DSM),
A35: Schedule 92 (LIRAP), Schedule 93 (ERM), and Schedule 98 (REC Revenue).
B38: reduce billed revenue for BPA ResEx (already accounted for in Schs 1 & 48)
F39: Billing | I39: Billed Revenue
F40: Determinants | H40: Sch 59 Rate | I40: Impact
B41: Schedule 12 only | F41: ='Rev Runs 12MESEPT2014'!P49+'Rev Runs 12MESEPT2014'!P81+'Rev Runs 12MESEPT2014'!P90 -> 57963673 | H41: -0.00051 | I41: =F41*H41 -> -29561.47323
B42: Schedule 22 only | F42: ='Rev Runs 12MESEPT2014'!P51+'Rev Runs 12MESEPT2014'!P83+'Rev Runs 12MESEPT2014'!P92 -> 36956089 | H42: -0.00051 | I42: =F42*H42 -> -18847.60539
B43: Schedule 32 only | F43: ='Rev Runs 12MESEPT2014'!P55+'Rev Runs 12MESEPT2014'!P86+'Rev Runs 12MESEPT2014'!P95 -> 8649684 | H43: -0.00051 | I43: =F43*H43 -> -4411.33884
B44: Schedule 48 only | F44: ='Rev Runs 12MESEPT2014'!P63 -> 3179921 | H44: -0.00051 | I44: =F44*H44 -> -1621.75971
B45: Total | F45: =SUM(F41:F44) -> 106749367 | I45: =SUM(I41:I44) -> -54442.17717 | L45: Manually deducted in Column H
B48: Schedule 98 (REC Revenue Rebate) | H48: Sch 98 Rate | L48: ERM Reduction Calc | N48: 0 | O48: 1 | P48: =-D14*$N$49 -> 0 | R48: =0/'Pres & Prop Rev'!D23 -> 0 | S48: =(D14/$D$26)*$P$54 -> 0
B49: Schedule 41-48 only | F49: ='Rev Runs 12MESEPT2014'!P106 -> 25127765 | H49: -0.00037 | I49: =F49*H49 -> -9297.27305 | N49: =N48/D26 -> 0 | O49: 11 | P49: =-D16*N49 -> 0 | S49: =(D16/$D$26)*$P$54 -> 0
O50: 21 | P50: =-D18*N49 -> 0 | S50: =(D18/$D$26)*$P$54 -> 0
B51: Schedule 91 (DSM) | H51: Sch 91 Rate | O51: 25 | P51: =-D20*N49 -> 0 | S51: =(D20/$D$26)*$P$54 -> 0
B52: Schedule 41-48 only | F52: ='Rev Runs 12MESEPT2014'!P106 -> 25127765 | H52: 0.00862 | I52: =F52*H52 -> 216601.3343 | O52: 31 | P52: =-D22*N49 -> 0 | S52: =(D22/$D$26)*$P$54 -> 0
O53: 41-48 | P53: =-D24*N49 -> 0 | S53: =(D24/$D$26)*$P$54 -> 0
P54: =SUM(P48:P53) -> 0 | S54: =SUM(S48:S53) -> 0
B56: Schedule 41-48 only Total | I56: =I44+I49+I52 -> 205682.3015

Sheet Page 2
A1: AVISTA UTILITIES | Q1: This worksheet uses Base & Billing rates from 'Rate Design' tab.
A2: WASHINGTON ELECTRIC
A3: PRESENT AND PROPOSED RATE COMPONENTS BY SCHEDULE
H7: General | I7: Sch. 92 | J7: Sch. 93 | K7: Proposed | L7: Proposed | M7: Sch. 98 | N7: Sch. 93/94 | O7: Proposed Billing
D8: Base Tariff | E8: Present | F8: Present | H8: Rate | I8: LIRAP Revenue | J8: PCRA | K8: Billing | L8: Base Tariff | M8: REC Revenue | N8: ERM/BPA | O8: Rate With
A9: Type of Service | D9: Sch. Rate | E9: Other Adj.(1) | F9: Billing Rate | H9: Inc/Dec | I9: Increase | J9: Increase | K9: Rate | L9: Rate | M9: Decrease | N9: Increase | O9: ERM Decrease (2) | P9: non-printing | S9: Present | T9: Proposed | U9: Proposed
A10: Total Proforma kWh's | B10: (a) | D10: (b) | E10: (c) | F10: (d) | H10: (e) | I10: (f) | J10: (g) | K10: (h) | L10: (i) | M10: (h) | N10: (i) | O10: (j) | P10: Base | Q10: Billing | S10: Billing | T10: Base | U10: Billing
A11: Residential Service - Schedule 1
A12: Basic Charge | D12: ='Rate Design'!D4 -> 8.5 | E12: =F12-D12 -> 0 | F12: ='Rate Design'!D14 -> 8.5 | H12: =IF(ROUND(K12-F12,5)<>ROUND(L12-D12,5),#VALUE!,L12-D12) -> 0 | K12: ='Rate Design'!D36 -> 8.5 | L12: ='Rate Design'!D26 -> 8.5 | O12: =L12 -> 8.5 | P12: =H12/D12 -> 0 | Q12: =H12/F12 -> 0
A13: Energy Charge:
A14: ="First "&TEXT('Rate Design'!N5,"#,##0")&" kWhs" -> First 800 kWhs | D14: ='Rate Design'!D5/100 -> 0.0739 | E14: =F14-D14 -> 0.00536 | F14: ='Rate Design'!D15/100 -> 0.07926 | H14: =L14-D14 -> 0 | I14: =#REF! ->  | J14: ='[1]Power Cost Rate Adjustment'!I13 -> 0.002754002388 | K14: ='Rate Design'!D37/100+J14 -> 0.08201400239 | L14: ='Rate Design'!D27/100 -> 0.0739 | M14: ='Adder Schedule'!D35 ->  | N14: =0.00164+0.00083 -> 0.00247 | O14: =K14+M14+N14 ->  | P14: =H14/D14 -> 0 | Q14: =H14/F14 -> 0 | S14: =D14+E14-F14 -> 0 | T14: =D14+H14-L14 -> 0 | U14: =F14+H14+I14+J14-K14 -> 
A15: =TEXT('Rate Design'!N5,"#,##0")&" - "&TEXT('Rate Design'!N6,"#,##0")&" kWhs" -> 800 - 1,500 kWhs | D15: ='Rate Design'!D6/100 -> 0.08598 | E15: =F15-D15 -> 0.00536 | F15: ='Rate Design'!D16/100 -> 0.09134 | H15: =L15-D15 -> 0 | I15: =I14 ->  | J15: =J14 -> 0.002754002388 | K15: ='Rate Design'!D38/100+J15 -> 0.09409400239 | L15: ='Rate Design'!D28/100 -> 0.08598 | M15: =M14 ->  | N15: =N14 -> 0.00247 | O15: =K15+M15 ->  | P15: =H15/D15 -> 0 | Q15: =H15/F15 -> 0 | S15: =D15+E15-F15 -> 0 | T15: =D15+H15-L15 -> 0 | U15: =F15+H15+I15+J15-K15 -> 
A16: ="All over "&TEXT('Rate Design'!N6,"#,##0")&" kWhs" -> All over 1,500 kWhs | D16: ='Rate Design'!D7/100 -> 0.1008 | E16: =F16-D16 -> 0.00536 | F16: ='Rate Design'!D17/100 -> 0.10616 | H16: 0 | I16: =I14 ->  | J16: =J14 -> 0.002754002388 | K16: ='Rate Design'!D39/100+J16 -> 0.1089140024 | L16: ='Rate Design'!D29/100 -> 0.1008 | M16: =M14 ->  | N16: =N14 -> 0.00247 | O16: =K16+M16 ->  | P16: =H16/D16 -> 0 | Q16: =H16/F16 -> 0 | S16: 0 | T16: 0
A18: General Services - Schedule 11
A19: Basic Charge | D19: ='Rate Design'!E4 -> 18 | E19: =F19-D19 -> 0 | F19: ='Rate Design'!E14 -> 18 | H19: =IF(ROUND(K19-F19,5)<>ROUND(L19-D19,5),#VALUE!,L19-D19) -> 0 | K19: ='Rate Design'!E36 -> 18 | L19: ='Rate Design'!E26 -> 18 | O19: =L19 -> 18 | P19: =H19/D19 -> 0 | Q19: =H19/F19 -> 0
A20: Energy Charge:
A21: ="First "&TEXT('Rate Design'!O5,"#,##0")&" kWhs" -> First 3,650 kWhs | D21: ='Rate Design'!E5/100 -> 0.11293 | E21: =F21-D21 -> 0.00324 | F21: ='Rate Design'!E15/100 -> 0.11617 | H21: =L21-D21 -> 0 | I21: =#REF! ->  | J21: ='[1]Power Cost Rate Adjustment'!I15 -> 0.003577601172 | K21: ='Rate Design'!E37/100+J21 -> 0.1197476012 | L21: ='Rate Design'!E27/100 -> 0.11293 | M21: =M14 ->  | N21: =N14 -> 0.00247 | O21: =K21+M21 ->  | P21: =H21/D21 -> 0 | Q21: =H21/F21 -> 0 | S21: 0 | T21: 0
A22: ="All over "&TEXT('Rate Design'!O5,"#,##0")&" kWhs" -> All over 3,650 kWhs | D22: ='Rate Design'!E6/100 -> 0.08298 | E22: =F22-D22 -> 0.00324 | F22: ='Rate Design'!E16/100 -> 0.08622 | H22: =L22-D22 -> 0 | I22: =I21 ->  | J22: =J21 -> 0.003577601172 | K22: ='Rate Design'!E38/100+J22 -> 0.08979760117 | L22: ='Rate Design'!E28/100 -> 0.08298 | M22: =M21 ->  | N22: =N21 -> 0.00247 | O22: =K22+M22 ->  | P22: =H22/D22 -> 0 | Q22: =H22/F22 -> 0 | S22: 0 | T22: 0
A23: Demand Charge:
A24: =TEXT('Rate Design'!O10,"#,##0")&" kW or less" -> 20 kW or less | D24: no charge | F24: no charge | H24: no charge | L24: no charge | O24: no charge
A25: ="Over "&TEXT('Rate Design'!O10,"#,##0")&" kW" -> Over 20 kW | D25: ='Rate Design'!E10 -> 6 | E25: =F25-D25 -> 0 | F25: ='Rate Design'!E20 -> 6 | H25: =IF(ROUND(K25-F25,5)<>ROUND(L25-D25,5),#VALUE!,L25-D25) -> 0 | K25: ='Rate Design'!E42 -> 6 | L25: ='Rate Design'!E32 -> 6 | O25: ='Rate Design'!E32 -> 6 | P25: =H25/D25 -> 0 | Q25: =H25/F25 -> 0
A26: Minimums: | D26: $15.00 Single Phase Service | K26: $15.00 Single Phase Service
D27: $25.35 Three Phase Service | K27: $25.35 Three Phase Service
A29: Large General Service - Schedule 21
A30: Energy Charge:
A31: ="First "&TEXT('Rate Design'!P5,"#,##0")&" kWhs" -> First 250,000 kWhs | D31: ='Rate Design'!F5/100 -> 0.07089 | E31: =F31-D31 -> 0.00196 | F31: ='Rate Design'!F15/100 -> 0.07285 | H31: =L31-D31 -> 0 | I31: =#REF! ->  | J31: ='[1]Power Cost Rate Adjustment'!I17 -> 0.002693665655 | K31: ='Rate Design'!F37/100+J31 -> 0.07554366565 | L31: ='Rate Design'!F27/100 -> 0.07089 | M31: =M14 ->  | N31: =N14 -> 0.00247 | O31: =K31+M31 ->  | P31: =H31/D31 -> 0 | Q31: =H31/F31 -> 0 | S31: 0 | T31: 0
A32: ="All over "&TEXT('Rate Design'!P5,"#,##0")&" kWhs" -> All over 250,000 kWhs | D32: ='Rate Design'!F6/100 -> 0.0634 | E32: =F32-D32 -> 0.00196 | F32: ='Rate Design'!F16/100 -> 0.06536 | H32: =L32-D32 -> 0 | I32: =I31 ->  | J32: =J31 -> 0.002693665655 | K32: ='Rate Design'!F38/100+J32 -> 0.06805366565 | L32: ='Rate Design'!F28/100 -> 0.0634 | M32: =M31 ->  | N32: =N31 -> 0.00247 | O32: =K32+M32 ->  | P32: =H32/D32 -> 0 | Q32: =H32/F32 -> 0 | S32: 0 | T32: 0
A33: Demand Charge:
A34: =TEXT('Rate Design'!P10,"#,##0")&" kW or less" -> 50 kW or less | D34: ='Rate Design'!F9 -> 500 | E34: =F34-D34 -> 0 | F34: ='Rate Design'!F19 -> 500 | H34: =IF(ROUND(K34-F34,5)<>ROUND(L34-D34,5),#VALUE!,L34-D34) -> 0 | K34: ='Rate Design'!F41 -> 500 | L34: ='Rate Design'!F31 -> 500 | O34: =L34 -> 500 | P34: =H34/D34 -> 0 | Q34: =H34/F34 -> 0
A35: ="Over "&TEXT('Rate Design'!P10,"#,##0")&" kW" -> Over 50 kW | D35: ='Rate Design'!F10 -> 6 | E35: =F35-D35 -> 0 | F35: ='Rate Design'!F20 -> 6 | H35: =IF(ROUND(K35-F35,5)<>ROUND(L35-D35,5),#VALUE!,L35-D35) -> 0 | K35: ='Rate Design'!F42 -> 6 | L35: ='Rate Design'!F32 -> 6 | O35: ='Rate Design'!F32 -> 6 | P35: =H35/D35 -> 0 | Q35: =H35/F35 -> 0
A36: Primary Voltage Discount | D36: 0.2 | E36: =F36-D36 -> 0 | F36: 0.2 | H36: =IF(ROUND(K36-F36,5)<>ROUND(L36-D36,5),#VALUE!,L36-D36) -> 0 | K36: 0.2 | L36: 0.2 | O36: 0.2 | P36: =H36/D36 -> 0 | Q36: =H36/F36 -> 0
A38: Extra Large General Service - Schedule 25
A39: Energy Charge:
A40: ="First "&TEXT('Rate Design'!Q5,"#,##0")&" kWhs" -> First 500,000 kWhs | D40: ='Rate Design'!G5/100 -> 0.05505 | E40: =F40-D40 -> 0.00202 | F40: ='Rate Design'!G15/100 -> 0.05707 | H40: =L40-D40 -> 0 | I40: =#REF! ->  | J40: ='[1]Power Cost Rate Adjustment'!I19 -> 0.001747852271 | K40: ='Rate Design'!G37/100+J40 -> 0.05881785227 | L40: ='Rate Design'!G27/100 -> 0.05505 | M40: =M14 ->  | N40: =N14 -> 0.00247 | O40: =K40+M40 ->  | P40: =H40/D40 -> 0 | Q40: =H40/F40 -> 0 | S40: 0 | T40: 0
A41: =TEXT('Rate Design'!Q27,"#,##0")&" - "&TEXT('Rate Design'!Q28,"#,##0")&" kWhs" -> 500,000 - 6,000,000 kWhs | D41: ='Rate Design'!G6/100 -> 0.04953 | E41: =F41-D41 -> 0.00202 | F41: ='Rate Design'!G16/100 -> 0.05155 | H41: =L41-D41 -> 0 | I41: =I40 ->  | J41: =J40 -> 0.001747852271 | K41: ='Rate Design'!G38/100+J41 -> 0.05329785227 | L41: ='Rate Design'!G28/100 -> 0.04953 | M41: =M40 ->  | N41: =N40 -> 0.00247 | O41: =K41+M41 ->  | P41: =H41/D41 -> 0 | Q41: =H41/F41 -> 0 | S41: 0 | T41: 0
A42: ="All over "&TEXT('Rate Design'!Q28,"#,##0")&" kWhs" -> All over 6,000,000 kWhs | D42: ='Rate Design'!G7/100 -> 0.04235 | E42: =F42-D42 -> 0.00138 | F42: ='Rate Design'!G17/100 -> 0.04373 | H42: 0 | I42: 0 | J42: =J41 -> 0.001747852271 | K42: ='Rate Design'!G39/100+J42 -> 0.04547785227 | L42: ='Rate Design'!G29/100 -> 0.04235 | M42: =M40 ->  | N42: =N40 -> 0.00247 | P42: =H42/D42 -> 0 | Q42: =H42/F42 -> 0 | S42: 0 | T42: 0 | U42: 0
A43: Demand Charge:
A44: =TEXT('Rate Design'!Q10,"#,##0")&" kva or less" -> 3,000 kva or less | D44: ='Rate Design'!G9 -> 21000 | E44: =F44-D44 -> 0 | F44: ='Rate Design'!G19 -> 21000 | H44: =IF(ROUND(K44-F44,5)<>ROUND(L44-D44,5),#VALUE!,L44-D44) -> 0 | K44: ='Rate Design'!G41 -> 21000 | L44: ='Rate Design'!G31 -> 21000 | O44: ='Rate Design'!G31 -> 21000 | P44: =H44/D44 -> 0 | Q44: =H44/F44 -> 0
A45: ="Over "&TEXT('Rate Design'!Q10,"#,##0")&" kva" -> Over 3,000 kva | D45: ='Rate Design'!G10 -> 6 | E45: =F45-D45 -> 0 | F45: ='Rate Design'!G20 -> 6 | H45: =IF(ROUND(K45-F45,5)<>ROUND(L45-D45,5),#VALUE!,L45-D45) -> 0 | K45: ='Rate Design'!G42 -> 6 | L45: ='Rate Design'!G32 -> 6 | O45: ='Rate Design'!G32 -> 6 | P45: =H45/D45 -> 0 | Q45: =H45/F45 -> 0
A46: Primary Volt. Discount
A47: 11 - 60 kv | D47: 0.2 | E47: =F47-D47 -> 0 | F47: 0.2 | H47: =IF(ROUND(K47-F47,5)<>ROUND(L47-D47,5),#VALUE!,L47-D47) -> 0 | K47: 0.2 | L47: 0.2 | O47: =L47 -> 0.2 | P47: =H47/D47 -> 0 | Q47: =H47/F47 -> 0
A48: 60 - 115 kv | D48: 1.1 | E48: =F48-D48 -> 0 | F48: 1.1 | H48: =IF(ROUND(K48-F48,5)<>ROUND(L48-D48,5),#VALUE!,L48-D48) -> 0 | K48: 1.1 | L48: 1.1 | O48: =L48 -> 1.1 | P48: =H48/D48 -> 0 | Q48: =H48/F48 -> 0
A49: 115 or higher kv | D49: 1.4 | E49: =F49-D49 -> 0 | F49: 1.4 | H49: =IF(ROUND(K49-F49,5)<>ROUND(L49-D49,5),#VALUE!,L49-D49) -> 0 | K49: 1.4 | L49: 1.4 | O49: 1.4 | P49: =H49/D49 -> 0 | Q49: =H49/F49 -> 0
A50: Annual Minimum | D50: Present: | E50: =6000000*D40+5000000*D41+12*F44 -> 829950 | J50: Proposed: | K50: =6000000*L40+5000000*L41+12*L44 -> 829950 | O50: =K50 -> 829950 | P50: =K50/E50-1 -> 0
A52: Pumping Service - Schedule 31
A53: Basic Charge | D53: ='Rate Design'!H4 -> 18 | E53: =F53-D53 -> 0 | F53: ='Rate Design'!H14 -> 18 | H53: =IF(ROUND(K53-F53,5)<>ROUND(L53-D53,5),#VALUE!,L53-D53) -> 0 | K53: ='Rate Design'!H36 -> 18 | L53: ='Rate Design'!H26 -> 18 | O53: =L53 -> 18 | P53: =H53/D53 -> 0 | Q53: =H53/F53 -> 0
A54: Energy Charge:
A55: First 165 kW/kWh | D55: ='Rate Design'!H5/100 -> 0.09546 | E55: =F55-D55 -> 0.00165 | F55: ='Rate Design'!H15/100 -> 0.09711 | H55: =L55-D55 -> 0 | I55: =#REF! ->  | J55: ='[1]Power Cost Rate Adjustment'!I21 -> 0.002450657736 | K55: ='Rate Design'!H37/100+J55 -> 0.09956065774 | L55: ='Rate Design'!H27/100 -> 0.09546 | M55: =M14 ->  | N55: =N14 -> 0.00247 | O55: =K55+M55 ->  | P55: =H55/D55 -> 0 | Q55: =H55/F55 -> 0 | S55: 0 | T55: 0
A56: All additional kWhs | D56: ='Rate Design'!H6/100 -> 0.06818 | E56: =F56-D56 -> 0.00165 | F56: ='Rate Design'!H16/100 -> 0.06983 | H56: =L56-D56 -> 0 | I56: =I55 ->  | J56: =J55 -> 0.002450657736 | K56: ='Rate Design'!H38/100+J56 -> 0.07228065774 | L56: ='Rate Design'!H28/100 -> 0.06818 | M56: =M55 ->  | N56: =N55 -> 0.00247 | O56: =K56+M56 ->  | P56: =H56/D56 -> 0 | Q56: =H56/F56 -> 0 | S56: 0 | T56: 0
A60: (1) Includes all present rate adjustments: Schedule 59 (BPA Residential Exchange), Schedule 91 (DSM),
A61: Schedule 92 (LIRAP), Schedule 93 (ERM), and Schedule 98 (REC Revenue).

Sheet Pres & Prop Rev
B2: =IF(Base1_Billing2=2,"BILLED","") -> 
A4: WORK PAPER | D4: RESIDENTIAL | E4: GENERAL SVC. | F4: LG. GEN. SVC. | G4: EX LG GEN SVC | H4: PUMPING | I4: ST & AREA LTG
A5: REFERENCE | C5: TOTAL | D5: SCHEDULE 1 | E5: SCH. 11,12 | F5: SCH. 21,22 | G5: SCHEDULE 25 | H5: SCH. 30, 31, 32 | I5: SCH. 41-48 | P5: Print Header for all printed pages on this worksheet:
B6: PRESENT BILL DETERMINANTS | L6: Calculate all revenue exhibits using ____ rates: | P6: ="AVISTA UTILITIES WASHINGTON ELECTRIC PRO FORMA REVENUE UNDER PRESENT AND PROPOSED "&N9&" RATES 12 MONTHS ENDED SEPTEMBER 30, 2014" -> AVISTA UTILITIES WASHINGTON ELECTRIC PRO FORMA REVENUE UNDER PRESENT AND PROPOSED BASE TARIFF RATES 12 MONTHS ENDED SEPTEMBER 30, 2014
B7: KILOWATT HOURS (KWHS) | K7: 1) | L7: BASE TARIFF
A8: PDE-E-10 | B8: BLOCK 1 | D8: ='Bill Determ'!$B$9 -> 1562090324 | E8: ='Bill Determ'!$B$17 -> 411760125 | F8: ='Bill Determ'!$B$28 -> 1262061453 | G8: ='Bill Determ'!$B$37 -> 126000000 | H8: =SUM('Bill Determ'!$B$41:$C$41) -> 51176200.55 | L8: or | N8: 1
A9: PDE-E-10 | B9: BLOCK 2 | D9: ='Bill Determ'!$C$9 -> 532041223 | E9: ='Bill Determ'!$C$17 -> 184890135 | F9: ='Bill Determ'!$C$28 -> 166633500 | G9: ='Bill Determ'!$C$37 -> 558890760 | H9: ='Bill Determ'!$D$42 -> 85950103.45 | K9: 2) | L9: BILLING | N9: =CHOOSE(Base1_Billing2,L7,L9) -> BASE TARIFF
A10: PDE-E-10 | B10: BLOCK 3 | D10: ='Bill Determ'!$D$9 -> 349561635 | G10: ='Bill Determ'!$D$37 -> 420481376 | N10: =CHOOSE(Base1_Billing2,"Base","Billing") -> Base
B11: BLOCK 4
A12: PDE-E-20 | B12: STREET & AREA LIGHTS | I12: =SUM('Rev Runs 12MESEPT2014'!P56:P63) -> 25127765
B14: SUBTOTAL | C14: =SUM(D14:I14) -> 5736664600 | D14: =SUM(D8:D12) -> 2443693182 | E14: 596650260 | F14: 1428694953 | G14: 1105372136 | H14: 137126304 | I14: 25127765
B17: SUBTOTAL | C17: =SUM(D17:I17) -> 5736664600 | D17: =D14+D15 -> 2443693182 | E17: =E14+E15 -> 596650260 | F17: 1428694953 | G17: 1105372136 | H17: 137126304 | I17: 25127765
A18: PDE-E-10 | B18: ADJUSTMENT TO ACTUAL | C18: =SUM(D18:I18) -> 0 | D18: ='Bill Determ'!$E$11 -> 0 | E18: ='Bill Determ'!$D$21 -> 0 | F18: ='Bill Determ'!$D$33 -> 0 | G18: 0 | H18: ='Bill Determ'!$E$44 -> 0 | I18: 0
B20: TOTAL BEFORE ADJUSTMENT | C20: =SUM(D20:I20) -> 5736664600 | D20: =D17+D18 -> 2443693182 | E20: 596650260 | F20: 1428694953 | G20: 1105372136 | H20: 137126304 | I20: 25127765
A21: PDE-E-3 | B21: WEATHER & UNBILLED ADJ. KWHS | C21: =SUM(D21:I21) -> -82830117 | D21: =D142+D145 -> -65215151 | E21: -8249024 | F21: -9466682 | G21: 0 | H21: 100740 | I21: =I142+I145 -> 0
B23: TOTAL PROFORMA KWHS | C23: =IF(ROUND(SUM(D23:I23),3)<>ROUND(SUM(C20:C21),3),#VALUE!,SUM(D23:I23)) -> 5653834483 | D23: =D20+D21 -> 2378478031 | E23: 588401236 | F23: 1419228271 | G23: 1105372136 | H23: 137227044 | I23: 25127765
A25: PDE-E-10 | B25: TOTAL BILLS | D25: ='Bill Determ'!$F$9 -> 2462067 | E25: ='Bill Determ'!$F$17 -> 364552 | F25: ='Bill Determ'!$F$28 -> 24110 | G25: ='Bill Determ'!$G$37 -> 252 | H25: ='Bill Determ'!$F$41 -> 29216
B26: MINIMUM BILLS
A27: PDE-E-10 | B27: EXCESS DEMAND | E27: ='Bill Determ'!$E$17 -> 402284 | F27: ='Bill Determ'!$E$28 -> 2748136 | G27: ='Bill Determ'!$F$37+'Bill Determ'!F38 -> 1276783
B29: PROPOSED BILL DETERMINANTS
B30: KILOWATT HOURS (KWHS)
B31: BLOCK 1 | D31: =D8 -> 1562090324 | E31: 411760125 | F31: 1262061453 | G31: 126000000 | H31: 51176200.55 | I31: 0
B32: BLOCK 2 | D32: =D9 -> 532041223 | E32: 184890135 | F32: 166633500 | G32: ='Bill Determ'!$C$37 -> 558890760 | H32: 85950103.45 | I32: 0
B33: BLOCK 3 | D33: 349561635 | E33: 0 | F33: 0 | G33: ='Bill Determ'!$D$37 -> 420481376 | H33: 0 | I33: 0
B34: BLOCK 4 | D34: 0 | E34: 0 | F34: 0 | G34: 0 | H34: 0 | I34: 0
B35: STREET & AREA LIGHTS | D35: 0 | E35: 0 | F35: 0 | G35: 0 | H35: 0 | I35: 25127765
B37: SUBTOTAL | C37: =SUM(D37:I37) -> 5736664600 | D37: =SUM(D31:D35) -> 2443693182 | E37: 596650260 | F37: 1428694953 | G37: 1105372136 | H37: 137126304 | I37: 25127765
C38: =SUM(D38:I38) -> 0 | D38: =D15 -> 0 | E38: =E15 -> 0 | F38: 0 | G38: 0 | H38: 0 | I38: 0
B40: SUBTOTAL | C40: =SUM(D40:I40) -> 5736664600 | D40: =D37+D38 -> 2443693182 | E40: 596650260 | F40: 1428694953 | G40: 1105372136 | H40: 137126304 | I40: 25127765
B41: ADJUSTMENT TO ACTUAL | C41: =SUM(D41:I41) -> 0 | D41: =D18 -> 0 | E41: 0 | F41: 0 | G41: 0 | H41: 0 | I41: 0
B43: TOTAL BEFORE ADJUSTMENT | C43: =SUM(D43:I43) -> 5736664600 | D43: =D40+D41 -> 2443693182 | E43: 596650260 | F43: 1428694953 | G43: 1105372136 | H43: 137126304 | I43: 25127765
B44: WEATHER & UNBILLED ADJ. KWHS | C44: =SUM(D44:I44) -> -82830117 | D44: =D21 -> -65215151 | E44: -8249024 | F44: -9466682 | G44: 0 | H44: 100740 | I44: 0
B46: TOTAL PROFORMA KWHS | C46: =IF(ROUND(SUM(D46:I46),3)<>ROUND(SUM(C43:C44),3),#VALUE!,SUM(D46:I46)) -> 5653834483 | D46: =D43+D44 -> 2378478031 | E46: 588401236 | F46: 1419228271 | G46: 1105372136 | H46: 137227044 | I46: 25127765
B48: TOTAL BILLS | D48: =D25 -> 2462067 | E48: =E25 -> 364552 | F48: =F25 -> 24110 | G48: =G25 -> 252 | H48: =H25 -> 29216
B49: MINIMUM BILLS
B50: EXCESS DEMAND | E50: =E27 -> 402284 | F50: =F27 -> 2748136 | G50: =G27 -> 1276783
D55: 1 | E55: 2 | F55: 3 | G55: 4 | H55: 5 | I55: 6 | L55: =SUMPRODUCT(--(ISBLANK(D55:I55))) -> 0
A56: WORK PAPER | D56: RESIDENTIAL | E56: GENERAL SVC. | F56: LG. GEN. SVC. | G56: EX LG GEN SVC | H56: PUMPING | I56: ST & AREA LTG | L56: ="selected in cell "&CELL("address",Base1_Billing2)&":" -> selected in cell $N$8:
A57: REFERENCE | C57: TOTAL | D57: SCHEDULE 1 | E57: SCH. 11,12 | F57: SCH. 21,22 | G57: SCHEDULE 25 | H57: SCH. 30, 31, 32 | I57: SCH. 41-48 | L57: =N10 -> Base
B58: PRESENT RATES | L58: ="Rates_"&$L$57&"_Present" -> Rates_Base_Present | N58: - range name where Present Rates table can be found
A59: PDE-E-21 | B59: BASIC CHARGE | D59: =INDEX(INDIRECT($L$58),$K59,D$55) -> 8.5 | E59: 18 | F59: 0 | G59: 0 | H59: 18 | I59: 0 | K59: 1 | L59: ="Rates_"&$L$57&"_Proposed" -> Rates_Base_Proposed | N59: - range name where Proposed Rates table can be found
B60: MONTHLY MINIMUM
A62: PDE-E-21 | B62: BLOCK 1 PER KWH | D62: =INDEX(INDIRECT($L$58),$K62,D$55) -> 7.39 | E62: 11.293 | F62: 7.089 | G62: 5.505 | H62: 9.546 | I62: 0 | K62: 2
A63: PDE-E-21 | B63: BLOCK 2 PER KWH | D63: 8.598 | E63: 8.298 | F63: 6.34 | G63: 4.953 | H63: 6.818 | I63: 0 | K63: 3
A64: PDE-E-21 | B64: BLOCK 3 PER KWH | D64: 10.08 | E64: 0 | F64: 0 | G64: 4.235 | H64: 0 | I64: 0 | K64: 4
B65: BLOCK 4 PER KWH | K65: 5
B67: ADJUST TO ACTUAL PER KWH | D67: =(D124-D111)/D14*100 -> 8.037800881 | E67: =(E124-E111-SUM(E117:E120))/E14*100 -> 10.36490864 | F67: =(F124-F111-SUM(F117:F120))/F14*100 -> 7.00164161 | H67: =(H124-H111-SUM(H117:H120))/H14*100 -> 7.836102802
A69: PDE-E-21 | B69: DEMAND BLOCK 1 | D69: =INDEX(INDIRECT($L$58),$K69,D$55) -> 0 | E69: 0 | F69: 500 | G69: 21000 | H69: 0 | I69: 0 | K69: 6
A70: PDE-E-21 | B70: DEMAND BLOCK 2 | D70: 0 | E70: 6 | F70: 6 | G70: 6 | H70: 0 | I70: 0 | K70: 7
B75: PROPOSED RATES
B76: BASIC CHARGE | D76: =INDEX(INDIRECT($L$59),$K76,D$55) -> 8.5 | E76: =INDEX(INDIRECT($L$59),$K76,E$55) -> 18 | H76: =INDEX(INDIRECT($L$59),$K76,H$55) -> 18 | K76: 1
B77: MONTHLY MINIMUM
B79: BLOCK 1 PER KWH | D79: =INDEX(INDIRECT($L$59),$K79,D$55) -> 7.39 | E79: 11.293 | F79: 7.089 | G79: 5.505 | H79: 9.546 | K79: 2
B80: BLOCK 2 PER KWH | D80: 8.598 | E80: 8.298 | F80: 6.34 | G80: 4.953 | H80: 6.818 | K80: 3
B81: BLOCK 3 PER KWH | D81: 10.08 | G81: 4.235 | K81: 4
B82: BLOCK 4 PER KWH | K82: 5
B84: ADJUST TO ACTUAL PER KWH | D84: =(D177-D164)/D37*100 -> 8.037800881 | E84: =(E177-E164-SUM(E170:E173))/E37*100 -> 10.36490864 | F84: =(F177-F164-SUM(F170:F173))/F37*100 -> 7.00164161 | H84: =(H177-H164-SUM(H170:H173))/H37*100 -> 7.836102802
B86: DEMAND BLOCK 1 | F86: =INDEX(INDIRECT($L$59),$K86,F$55) -> 500 | G86: =INDEX(INDIRECT($L$59),$K86,G$55) -> 21000 | K86: 6
B87: DEMAND BLOCK 2 | E87: =INDEX(INDIRECT($L$59),$K87,E$55) -> 6 | F87: =INDEX(INDIRECT($L$59),$K87,F$55) -> 6 | G87: =INDEX(INDIRECT($L$59),$K87,G$55) -> 6 | K87: 7
B95: =CHOOSE(Base1_Billing2,"Note: Rates do not include BPA Residential Exchange Program Schedule 59, Energy Efficiency Rider Adjustment Schedule 91, or Power Cost Surcharge Schedule 93.","") -> Note: Rates do not include BPA Residential Exchange Program Schedule 59, Energy Efficiency Rider Adjustment Schedule 91, or Power Cost Surcharge Schedule 93.
A107: WORK PAPER | D107: RESIDENTIAL | E107: GENERAL SVC. | F107: LG. GEN. SVC. | G107: EX LG GEN SVC | H107: PUMPING | I107: ST & AREA LTG
A108: REFERENCE | C108: TOTAL | D108: SCHEDULE 1 | E108: SCH. 11,12 | F108: SCH. 21,22 | G108: SCHEDULE 25 | H108: SCH. 30, 31, 32 | I108: SCH. 41-48
B109: PRESENT REVENUE
B110: =UPPER(CHOOSE(Base1_Billing2,$N$9,$N$10))&" REVENUE" -> BASE TARIFF REVENUE
B111: BASIC CHARGE | C111: =SUM(D111:I111) -> 28015393.5 | D111: =D25*D59 -> 20927569.5 | E111: =E25*E59 -> 6561936 | H111: =H25*H59 -> 525888
B112: MONTHLY MINIMUM | C112: 0
B113: BLOCK 1 | C113: 263227662.4 | D113: =ROUND(D8*D62/100,2) -> 115438474.9 | E113: 46500070.91 | F113: 89467536.41 | G113: 6936300 | H113: 4885280.1
B114: BLOCK 2 | C114: 105193589.1 | D114: 45744904.36 | E114: 15342183.41 | F114: 10564563.9 | G114: 27681859.34 | H114: 5860078.05
B115: BLOCK 3 | C115: 53043199.08 | D115: =ROUND(D10*D64/100,2) -> 35235812.81 | G115: 17807386.27
B116: BLOCK 4 | C116: 0
B117: DEMAND BLOCK 1 | C117: 17347000 | F117: =F25*F69 -> 12055000 | G117: =G25*G69 -> 5292000
B118: DEMAND BLOCK 2 | C118: 26563218 | E118: =E27*E70 -> 2413704 | F118: =F27*F70 -> 16488816 | G118: =G27*G70 -> 7660698
A119: PDE-E-22/23 | B119: POWER FACTOR ADJUSTMENT | C119: 139528 | E119: ='Bill Determ'!G17*0.5 -> 7411.5 | F119: =('Bill Determ'!G28)*0.5 -> 127296.5 | H119: ='Bill Determ'!G41*0.5 -> 4820
A120: PDE-E-29/8 | B120: PRIMARY VOLTAGE DISCOUNT | C120: -1310530.5 | F120: -70490 | G120: ='WA Sch 25'!P142 -> -1240040.5
B121: ANNUAL MINIMUM ADJUSTMENT | C121: 0
A122: PDE-E-11 | B122: STREET & AREA LIGHT REVENUE | C122: 6907430.16 | I122: ='Lighting summary'!D19 -> 6907430.16
B124: SUBTOTAL | C124: =IF(ROUND(SUM(C111:C122),3)<>ROUND(SUM(D124:I124),3),#VALUE!,SUM(D124:I124)) -> 499126489.7 | D124: =SUM(D111:D122) -> 217346761.6 | E124: 70825305.82 | F124: 128632722.8 | G124: 64138203.11 | H124: 11276066.15 | I124: 6907430.16
C125: =SUM(D125:I125) -> 0 | D125: =ROUND(D15*D67/100,2) -> 0 | E125: =ROUND(E15*E67/100,2) -> 0 | F125: 0 | G125: =ROUND(G15*G63/100,2) -> 0 | H125: 0
B127: SUBTOTAL | C127: =SUM(D127:I127) -> 499126489.7 | D127: =D124+D125 -> 217346761.6 | E127: 70825305.82 | F127: 128632722.8 | G127: 64138203.11 | H127: 11276066.15 | I127: 6907430.16
B128: ADJUST TO ACTUAL | C128: =SUM(D128:I128) -> 0 | D128: =ROUND(D18*D67/100,2) -> 0 | E128: =ROUND(E18*E67/100,2) -> 0 | F128: 0 | G128: 0 | H128: 0 | I128: 0
B130: ="TOTAL "&UPPER(CHOOSE(Base1_Billing2,$N$9,$N$10))&" REVENUE" -> TOTAL BASE TARIFF REVENUE | C130: =IF(ROUND(SUM(D130:I130),3)<>ROUND(SUM(C127:C128),3),#VALUE!,SUM(D130:I130)) -> 499126489.7 | D130: =D127+D128 -> 217346761.6 | E130: 70825305.82 | F130: 128632722.8 | G130: 64138203.11 | H130: 11276066.15 | I130: 6907430.16
B132: ADJUSTMENT REVENUE
B133: UNBILLED REVENUE ADJUSTMENT | L133: =D8/$D$14 -> 0.6392334093 | N133: =$D$134*L133 -> -2126117.806 | P133: =N133*(D62/100) -> -157120.1059
A134: PDE-E-15 | B134: UNBILLED LOAD KWHS | C134: =SUM(D134:I134) -> -2786906 | D134: ='Rev Runs 12MESEPT2014'!P79+'Rev Runs 12MESEPT2014'!P88 -> -3326043 | E134: ='Rev Runs 12MESEPT2014'!P80+'Rev Runs 12MESEPT2014'!P81+'Rev Runs 12MESEPT2014'!P89+'Rev Runs 12MESEPT2014'!P90 -> 230343 | F134: ='Rev Runs 12MESEPT2014'!P82+'Rev Runs 12MESEPT2014'!P83+'Rev Runs 12MESEPT2014'!P91+'Rev Runs 12MESEPT2014'!P92 -> 208054 | H134: ='Rev Runs 12MESEPT2014'!P85+'Rev Runs 12MESEPT2014'!P86+'Rev Runs 12MESEPT2014'!P94+'Rev Runs 12MESEPT2014'!P95 -> 100740 | L134: =D9/$D$14 -> 0.2177201405 | N134: =$D$134*L134 -> -724146.5494 | P134: =N134*(D63/100) -> -62262.12032
A135: PDE-E-5/6 | B135: UNBILLED LOAD RATE | D135: =D67 -> 8.037800881 | E135: =E67 -> 10.36490864 | F135: =F67 -> 7.00164161 | H135: =H67 -> 7.836102802 | L135: =D10/$D$14 -> 0.1430464502 | N135: -475778.6443 | P135: =N135*(D64/100) -> -47958.48735
B136: UNBILLED LOAD REVENUE | C136: =SUM(D136:I136) -> -221004.58 | D136: =ROUND(D134*D135/100,2) -> -267340.71 | E136: =ROUND(E134*E135/100,2) -> 23874.84 | F136: =ROUND(F134*F135/100,2) -> 14567.2 | H136: =ROUND(H134*H135/100,2) -> 7894.09 | L136: =SUM(L133:L135) -> 1 | N136: =SUM(N133:N135) -> -3326043 | P136: =SUM(P133:P135) -> -267340.7135
A138: PDE-E-17 | B138: WEATHER-SENSITIVE KWHS | C138: =SUM(D138:I138) -> 0 | D138: 0 | E138: 0 | F138: 0
A139: PDE-E-5/6 | B139: WEATHER-SENSITIVE RATE | D139: =I226 -> 9.236509848 | E139: =I245 -> 8.298 | F139: =I278 -> 6.34
B140: WEATHER-SENSITIVE REVENUE | C140: =SUM(D140:I140) -> 0 | D140: =ROUND(D138*D139/100,2) -> 0 | E140: =ROUND(E138*E139/100,2) -> 0 | F140: =ROUND(F138*F139/100,2) -> 0
A142: PDE-E-15 | B142: TOTAL UNBILLED KWH ADJUST | C142: =IF(ROUND(C134+C138,3)<>ROUND(SUM(D142:I142),3),#VALUE!,C134+C138) -> -2786906 | D142: =D134+D138 -> -3326043 | E142: =E134+E138 -> 230343 | F142: =F134+F138 -> 208054 | H142: =H134+H138 -> 100740 | I142: =I134+I138 -> 0
B143: TOTAL UNBILLED REVENUE ADJ | C143: =IF(ROUND(C136+C140,3)<>ROUND(SUM(D143:I143),3),#VALUE!,C136+C140) -> -221004.58 | D143: =D136+D140 -> -267340.71 | E143: =E136+E140 -> 23874.84 | F143: =F136+F140 -> 14567.2 | H143: =H136+H140 -> 7894.09
B144: WEATHER NORMALIZATION ADJ
A145: PDE-E-17 | B145: WEATHER-SENSITIVE KWHS | C145: =SUM(D145:I145) -> -80043211 | D145: -61889108 | E145: -8479367 | F145: -9674736
A146: PDE-E-5/6 | B146: WEATHER-SENSITIVE RATE | D146: =I226 -> 9.236509848 | E146: =I245 -> 8.298 | F146: =I278 -> 6.34
B147: WEATHER-SENSITIVE REVENUE | C147: =SUM(D147:I147) -> -7033389.69 | D147: =ROUND(D145*D146/100,2) -> -5716393.56 | E147: =ROUND(E145*E146/100,2) -> -703617.87 | F147: =ROUND(F145*F146/100,2) -> -613378.26
B149: TOTAL ADJUSTMENT REVENUE | C149: =IF(ROUND(C143+C147,3)<>ROUND(SUM(D149:I149),3),#VALUE!,C143+C147) -> -7254394.27 | D149: =D147+D143 -> -5983734.27 | E149: =E147+E143 -> -679743.03 | F149: =F147+F143 -> -598811.06 | H149: =H147+H143 -> 7894.09
B150: =B130 -> TOTAL BASE TARIFF REVENUE | C150: =C130 -> 499126489.7 | D150: 217346761.6 | E150: 70825305.82 | F150: 128632722.8 | G150: 64138203.11 | H150: 11276066.15 | I150: 6907430.16
B152: TOTAL PRESENT REVENUE | C152: =IF(ROUND(C149+C150,3)<>ROUND(SUM(D152:I152),3),#VALUE!,SUM(D152:I152)) -> 491872095.4 | D152: =D149+D150 -> 211363027.3 | E152: 70145562.79 | F152: 128033911.8 | G152: 64138203.11 | H152: 11283960.24 | I152: 6907430.16
A160: WORK PAPER | D160: RESIDENTIAL | E160: GENERAL SVC. | F160: LG. GEN. SVC. | G160: EX LG GEN SVC | H160: PUMPING | I160: ST & AREA LTG
A161: REFERENCE | C161: TOTAL | D161: SCHEDULE 1 | E161: SCH. 11,12 | F161: SCH. 21,22 | G161: SCHEDULE 25 | H161: SCH. 30, 31, 32 | I161: SCH. 41-48
B162: PROPOSED REVENUE
B163: =UPPER(CHOOSE(Base1_Billing2,$N$9,$N$10))&" REVENUE" -> BASE TARIFF REVENUE
B164: BASIC CHARGE | C164: =SUM(D164:I164) -> 28015393.5 | D164: =D48*D76 -> 20927569.5 | E164: =E48*E76 -> 6561936 | H164: =H48*H76 -> 525888
B165: MONTHLY MINIMUM | C165: 0 | D165: =D49*D77 -> 0
B166: BLOCK 1 | C166: 263227662.4 | D166: =ROUND(D31*D79/100,2) -> 115438474.9 | E166: 46500070.91 | F166: 89467536.41 | G166: 6936300 | H166: =ROUND(H31*H79/100,2) -> 4885280.1
B167: BLOCK 2 | C167: 105193589.1 | D167: 45744904.36 | E167: 15342183.41 | F167: 10564563.9 | G167: 27681859.34 | H167: 5860078.05
B168: BLOCK 3 | C168: 53043199.08 | D168: =ROUND(D33*D81/100,2) -> 35235812.81 | G168: 17807386.27
B169: BLOCK 4 | C169: 0 | D169: =ROUND(D34*D82/100,2) -> 0
B170: DEMAND BLOCK 1 | C170: 17347000 | F170: =ROUND(F48*F86,2) -> 12055000 | G170: =ROUND(G48*G86,2) -> 5292000
B171: DEMAND BLOCK 2 | C171: 26563218 | E171: =ROUND(E50*E87,2) -> 2413704 | F171: =ROUND(F50*F87,2) -> 16488816 | G171: =ROUND(G50*G87,2) -> 7660698
B172: POWER FACTOR ADJUSTMENT | C172: 139528 | E172: =E119 -> 7411.5 | F172: =F119 -> 127296.5 | H172: =H119 -> 4820
B173: PRIMARY VOLTAGE DISCOUNT | C173: -1310530.5 | F173: =F120 -> -70490 | G173: ='WA Sch 25'!P142 -> -1240040.5
B174: ANNUAL MINIMUM ADJUSTMENT | C174: 0
A175: PDE-E-11 | B175: STREET & AREA LIGHT REVENUE | C175: 6907430.161 | I175: ='Lighting summary'!G19 -> 6907430.161
B177: SUBTOTAL | C177: =IF(ROUND(SUM(C164:C175),3)<>ROUND(SUM(D177:I177),3),#VALUE!,SUM(D177:I177)) -> 499126489.7 | D177: =SUM(D164:D175) -> 217346761.6 | E177: 70825305.82 | F177: 128632722.8 | G177: 64138203.11 | H177: 11276066.15 | I177: 6907430.161
C178: =SUM(D178:I178) -> 0 | D178: =ROUND(D38*D84/100,2) -> 0 | E178: =ROUND(E38*E84/100,2) -> 0 | F178: 0 | G178: =ROUND(G38*G80/100,2) -> 0 | H178: 0 | I178: 0
B180: SUBTOTAL | C180: =SUM(D180:I180) -> 499126489.7 | D180: =D177+D178 -> 217346761.6 | E180: 70825305.82 | F180: 128632722.8 | G180: 64138203.11 | H180: 11276066.15 | I180: 6907430.161
B181: ADJUST TO ACTUAL | C181: =SUM(D181:I181) -> 0 | D181: =ROUND(D41*D84/100,2) -> 0 | E181: 0 | F181: 0 | G181: 0 | H181: 0 | I181: 0
B183: ="SUBTOTAL "&UPPER(CHOOSE(Base1_Billing2,$N$9,$N$10))&" REVENUE" -> SUBTOTAL BASE TARIFF REVENUE | C183: =IF(ROUND(SUM(D183:I183),3)<>ROUND(SUM(C180:C181),3),#VALUE!,SUM(D183:I183)) -> 499126489.7 | D183: =D180+D181 -> 217346761.6 | E183: 70825305.82 | F183: 128632722.8 | G183: 64138203.11 | H183: 11276066.15 | I183: 6907430.161
B185: ADJUSTMENT REVENUE
B186: UNBILLED REVENUE ADJUSTMENT
B187: UNBILLED LOAD KWHS | C187: =SUM(D187:I187) -> -2786906 | D187: =D134 -> -3326043 | E187: =E134 -> 230343 | F187: =F134 -> 208054 | H187: =H134 -> 100740
B188: UNBILLED LOAD RATE | D188: =D84 -> 8.037800881 | E188: 10.36490864 | F188: =F84 -> 7.00164161 | H188: =H84 -> 7.836102802
B189: UNBILLED LOAD REVENUE | C189: =SUM(D189:I189) -> -221004.58 | D189: =ROUND(D187*D188/100,2) -> -267340.71 | E189: =ROUND(E187*E188/100,2) -> 23874.84 | F189: =ROUND(F187*F188/100,2) -> 14567.2 | H189: =ROUND(H187*H188/100,2) -> 7894.09
B191: WEATHER-SENSITIVE KWHS | C191: =SUM(D191:I191) -> 0 | D191: =D138 -> 0 | E191: =E138 -> 0 | F191: =F138 -> 0
B192: WEATHER-SENSITIVE RATE | D192: =I235 -> 9.236509848 | E192: =I253 -> 8.298 | F192: =I286 -> 6.34
B193: WEATHER-SENSITIVE REVENUE | C193: =SUM(D193:I193) -> 0 | D193: =ROUND(D191*D192/100,2) -> 0 | E193: =ROUND(E191*E192/100,2) -> 0 | F193: =ROUND(F191*F192/100,2) -> 0
B195: TOTAL UNBILLED KWH ADJUST | C195: =IF(ROUND(C187+C191,3)<>ROUND(SUM(D195:I195),3),#VALUE!,SUM(D195:I195)) -> -2786906 | D195: =D187+D191 -> -3326043 | E195: =E187+E191 -> 230343 | F195: =F187+F191 -> 208054 | H195: =H187+H191 -> 100740
B196: TOTAL UNBILLED REVENUE ADJ | C196: =IF(ROUND(C189+C193,3)<>ROUND(SUM(D196:I196),3),#VALUE!,SUM(D196:I196)) -> -221004.58 | D196: =D189+D193 -> -267340.71 | E196: =E189+E193 -> 23874.84 | F196: =F189+F193 -> 14567.2 | H196: =H189+H193 -> 7894.09
B197: WEATHER NORMALIZATION ADJ
B198: WEATHER-SENSITIVE KWHS | C198: =SUM(D198:I198) -> -80043211 | D198: =D145 -> -61889108 | E198: =E145 -> -8479367 | F198: =F145 -> -9674736
B199: WEATHER-SENSITIVE RATE | D199: =I235 -> 9.236509848 | E199: =I253 -> 8.298 | F199: =I286 -> 6.34
B200: WEATHER-SENSITIVE REVENUE | C200: =SUM(D200:I200) -> -7033389.69 | D200: =ROUND(D198*D199/100,2) -> -5716393.56 | E200: =ROUND(E198*E199/100,2) -> -703617.87 | F200: =ROUND(F198*F199/100,2) -> -613378.26
B202: TOTAL ADJUSTMENT REVENUE | C202: =IF(ROUND(SUM(D202:I202),3)<>ROUND(C196+C200,3),#VALUE!,SUM(D202:I202)) -> -7254394.27 | D202: =D200+D196 -> -5983734.27 | E202: =E200+E196 -> -679743.03 | F202: =F200+F196 -> -598811.06 | H202: =H200+H196 -> 7894.09
B203: ="TOTAL "&UPPER(CHOOSE(Base1_Billing2,$N$9,$N$10))&" REVENUE" -> TOTAL BASE TARIFF REVENUE | C203: =SUM(D203:I203) -> 499126489.7 | D203: =D183 -> 217346761.6 | E203: 70825305.82 | F203: 128632722.8 | G203: 64138203.11 | H203: 11276066.15 | I203: 6907430.161
B204: TOTAL PROPOSED REVENUE | C204: =IF(ROUND(SUM(D204:I204),3)<>ROUND(SUM(C202:C203),3),#VALUE!,SUM(D204:I204)) -> 491872095.4 | D204: =D202+D203 -> 211363027.3 | E204: 70145562.79 | F204: 128033911.8 | G204: 64138203.11 | H204: 11283960.24 | I204: 6907430.161
B205: TOTAL PRESENT REVENUE | C205: =SUM(D205:I205) -> 491872095.4 | D205: =D152 -> 211363027.3 | E205: 70145562.79 | F205: 128033911.8 | G205: 64138203.11 | H205: 11283960.24 | I205: =I152 -> 6907430.16
B207: TOTAL REVENUE INCREASE | C207: =SUM(D207:I207) -> 0.000334800221 | D207: =D204-D205 -> 0 | E207: 0 | F207: 0 | G207: 0 | H207: 0 | I207: 0.000334800221
B208: PERCENT REVENUE INCREASE | C208: =C207/C205 -> 6.806652058e-13 | D208: =D207/D205 -> 0 | E208: 0 | F208: 0 | G208: 0 | H208: 0 | I208: =I207/I205 -> 4.846957743e-11
B209: =IF(Base1_Billing2=2,"Pres and Prop Revenues may be incorrect due to Sch 59--for example all of Sch 11 gets benefit of Sch 59 but it s/only be Sch 12; see Billing Rev on Exhibit page for fix","") -> 
C210: =C4 -> 
A216: WORK PAPER | D216: TOTAL | E216: TOTAL | F216: BASELOAD | G216: BASELOAD | H216: WTHR-SENS. | I216: WTHR-SENS.
A217: REFERENCE | C217: RATES | D217: KWHS | E217: REVENUE | F217: KWHS | G217: REVENUE | H217: KWHS | I217: REVENUE
B219: PRESENT BASELOAD AND WEATHER-SENSITIVE RATES
B220: SCHEDULE 1
B221: 0-600 KWHS | C221: =D62 -> 7.39 | D221: =D8 -> 1562090324 | E221: =C221*D221/100 -> 115438474.9 | F221: =MIN(D221,F225) -> 1562090324 | G221: =F221*C221/100 -> 115438474.9 | H221: =D221-F221 -> 0 | I221: =H221*C221/100 -> 0
B222: 601-1300 KWHS | C222: =D63 -> 8.598 | D222: =D9 -> 532041223 | E222: =C222*D222/100 -> 45744904.36 | F222: =MIN(F225-F221,D222) -> 70260097.05 | G222: =F222*C222/100 -> 6040963.145 | H222: =D222-F222 -> 461781126 | I222: =H222*C222/100 -> 39703941.21 | L222: =H222/$H$225 -> 0.5691566477 | N222: =L222*$D$145 -> -35224597.24 | O222: =N222*(D63/100) -> -3028610.871
B223: OVER 1300 KWHS | C223: =D64 -> 10.08 | D223: =D10 -> 349561635 | E223: =C223*D223/100 -> 35235812.81 | F223: =MIN(F225-F221-F222,D223) -> 0 | G223: =F223*C223/100 -> 0 | H223: =D223-F223 -> 349561635 | I223: =H223*C223/100 -> 35235812.81 | L223: =H223/$H$225 -> 0.4308433523 | N223: =L223*$D$145 -> -26664510.76 | O223: =N223*(D64/100) -> -2687782.685
N224: =SUM(N222:N223) -> -61889108 | O224: =SUM(O222:O223) -> -5716393.555
B225: TOTAL | D225: =D221+D222+D223 -> 2443693182 | E225: 196419192.1 | F225: =663*D25 -> 1632350421 | G225: 121479438.1 | H225: 811342761 | I225: 74939754.02
B226: AVERAGE RATE | E226: =E225/D225*100 -> 8.037800881 | G226: =G225/F225*100 -> 7.441995084 | I226: =I225/H225*100 -> 9.236509848
B228: PROPOSED BASELOAD AND WEATHER-SENSITIVE RATES
B229: SCHEDULE 1
B230: 0-600 KWHS | C230: =D79 -> 7.39 | D230: =D221 -> 1562090324 | E230: =C230*D230/100 -> 115438474.9 | F230: =MIN(D230,F234) -> 1562090324 | G230: =F230*C230/100 -> 115438474.9 | H230: =H221 -> 0 | I230: =H230*C230/100 -> 0
B231: 601-1300 KWHS | C231: =D80 -> 8.598 | D231: =D222 -> 532041223 | E231: =C231*D231/100 -> 45744904.36 | F231: =MIN(F234-F230,D231) -> 70260097.05 | G231: =F231*C231/100 -> 6040963.145 | H231: =H222 -> 461781126 | I231: =H231*C231/100 -> 39703941.21
B232: OVER 1300 KWHS | C232: =D81 -> 10.08 | D232: =D223 -> 349561635 | E232: =C232*D232/100 -> 35235812.81 | F232: =MIN(F234-F230-F231,D232) -> 0 | G232: =F232*C232/100 -> 0 | H232: =H223 -> 349561635 | I232: =H232*C232/100 -> 35235812.81
B234: TOTAL | D234: =D230+D231+D232 -> 2443693182 | E234: 196419192.1 | F234: =F225 -> 1632350421 | G234: 121479438.1 | H234: 811342761 | I234: 74939754.02
B235: AVERAGE RATE | E235: =E234/D234*100 -> 8.037800881 | G235: =G234/F234*100 -> 7.441995084 | I235: =I234/H234*100 -> 9.236509848
B239: PRESENT BASELOAD AND WEATHER-SENSITIVE RATES
B240: SCHEDULE 11
B241: 0-3650 KWHS | C241: =E62 -> 11.293 | D241: =E8 -> 411760125 | E241: =C241*D241/100 -> 46500070.91 | F241: =MIN(D241,F244) -> 411760125 | G241: =F241*C241/100 -> 46500070.91 | H241: =D241-F241 -> 0 | I241: =H241*C241/100 -> 0
B242: over 3650 KWHS | C242: =E63 -> 8.298 | D242: =E9 -> 184890135 | E242: =C242*D242/100 -> 15342183.41 | F242: =MIN(F244-F241,D242) -> 76010451.04 | G242: =F242*C242/100 -> 6307347.227 | H242: =D242-F242 -> 108879684 | I242: =H242*C242/100 -> 9034836.178
B244: TOTAL | D244: =D241+D242 -> 596650260 | E244: 61842254.32 | F244: =1338*E25 -> 487770576 | G244: 52807418.14 | H244: 108879684 | I244: 9034836.178
B245: AVERAGE RATE | E245: =E244/D244*100 -> 10.36490863 | G245: =G244/F244*100 -> 10.82628201 | I245: =I244/H244*100 -> 8.298
B247: PROPOSED BASELOAD AND WEATHER-SENSITIVE RATES
B248: SCHEDULE 11
B249: 0-3650 KWHS | C249: =E79 -> 11.293 | D249: =E31 -> 411760125 | E249: =C249*D249/100 -> 46500070.91 | F249: =MIN(D249,F252) -> 411760125 | G249: =F249*C249/100 -> 46500070.91 | H249: =D249-F249 -> 0 | I249: =H249*C249/100 -> 0
B250: over 3650 KWHS | C250: =E80 -> 8.298 | D250: =E32 -> 184890135 | E250: =C250*D250/100 -> 15342183.41 | F250: =MIN(F252-F249,D250) -> 76010451.04 | G250: =F250*C250/100 -> 6307347.227 | H250: =D250-F250 -> 108879684 | I250: =H250*C250/100 -> 9034836.178
B252: TOTAL | D252: =D249+D250 -> 596650260 | E252: 61842254.32 | F252: =F244 -> 487770576 | G252: 52807418.14 | H252: 108879684 | I252: 9034836.178
B253: AVERAGE RATE | E253: =E252/D252*100 -> 10.36490863 | G253: =G252/F252*100 -> 10.82628201 | I253: =I252/H252*100 -> 8.298
B261: Note: Total Base Load for Sch. 1 = Base Load per bill times total billings (base load per bill on PDE-E-18) =
B262: ="663 X "&TEXT(D25,"#,##0")&" = "&TEXT(F225,"#,##0") -> 663 X 2,462,067 = 1,632,350,421
B263: ="Total Base Load for Sch. 11 = 1,338 X "&TEXT(E25,"#,##0")&" = "&TEXT(F244,"#,##0") -> Total Base Load for Sch. 11 = 1,338 X 364,552 = 487,770,576
B264: =IF(Base1_Billing2=2,"Pres and Prop Revenues may be incorrect due to Sch 59--for example all of Sch 11 gets benefit of Sch 59 but it s/only be Sch 12; see Billing Rev on Exhibit page for fix","") -> 
A269: WORK PAPER | D269: TOTAL | E269: TOTAL | F269: BASELOAD | G269: BASELOAD | H269: WTHR-SENS. | I269: WTHR-SENS.
A270: REFERENCE | C270: RATES | D270: KWHS | E270: REVENUE | F270: KWHS | G270: REVENUE | H270: KWHS | I270: REVENUE
B272: PRESENT BASELOAD AND WEATHER-SENSITIVE RATES
B273: SCHEDULE 21
B274: 0-250000 KWHS | C274: =F62 -> 7.089 | D274: =F8 -> 1262061453 | E274: =C274*D274/100 -> 89467536.41 | F274: =MIN(D274,F277) -> 1262061453 | G274: =F274*C274/100 -> 89467536.41 | H274: =D274-F274 -> 0 | I274: =H274*C274/100 -> 0
B275: OVER 250000 KWHS | C275: =F63 -> 6.34 | D275: =F9 -> 166633500 | E275: =C275*D275/100 -> 10564563.9 | F275: =MIN(F277-F274,D275) -> 35056546.97 | G275: =F275*C275/100 -> 2222585.078 | H275: =D275-F275 -> 131576953 | I275: =H275*C275/100 -> 8341978.82
B277: TOTAL | D277: =D274+D275 -> 1428694953 | E277: =E274+E275 -> 100032100.3 | F277: =53800*F25 -> 1297118000 | G277: =G274+G275 -> 91690121.48 | H277: =H274+H275 -> 131576953 | I277: =I274+I275 -> 8341978.82
B278: AVERAGE RATE | E278: =E277/D277*100 -> 7.00164161 | G278: =G277/F277*100 -> 7.068757159 | I278: =I277/H277*100 -> 6.34
B280: PROPOSED BASELOAD AND WEATHER-SENSITIVE RATES
B281: SCHEDULE 21
B282: 0-250000 KWHS | C282: =F79 -> 7.089 | D282: =D274 -> 1262061453 | E282: =C282*D282/100 -> 89467536.41 | F282: =MIN(D282,F285) -> 1262061453 | G282: =F282*C282/100 -> 89467536.41 | H282: =H274 -> 0 | I282: =H282*C282/100 -> 0
B283: OVER 250000 KWHS | C283: =F80 -> 6.34 | D283: =D275 -> 166633500 | E283: =C283*D283/100 -> 10564563.9 | F283: =MIN(F285-F282,D283) -> 35056546.97 | G283: =F283*C283/100 -> 2222585.078 | H283: =H275 -> 131576953 | I283: =H283*C283/100 -> 8341978.82
B285: TOTAL | D285: =D282+D283 -> 1428694953 | E285: =E282+E283 -> 100032100.3 | F285: =F277 -> 1297118000 | G285: =G282+G283 -> 91690121.48 | H285: =H282+H283 -> 131576953 | I285: =I282+I283 -> 8341978.82
B286: AVERAGE RATE | G286: =G285/F285*100 -> 7.068757159 | I286: =I285/H285*100 -> 6.34
B294: Note: Total Base Load for Sch. 21 = Base Load per bill times total billings (base load per bill on PDE-E-18) =
B295: ="53,800 X "&TEXT(F25,"#,##0")&" = "&TEXT(F277,"#,##0") -> 53,800 X 24,110 = 1,297,118,000
D299: =D207/D48 -> 0 | E299: =E207/E48 -> 0 | F299: =F207/F48 -> 0 | G299: =G207/G48 -> 0 | H299: =H207/H48 -> 0
D300: =D23/D25 -> 966.0492712
D302: =(800*((D79-D62)/100))+(165*((D80-D63)/100))+(D76-D59) -> 0

Sheet Rate Design
A1: PRESENT RATES | D1: 1 | E1: 2 | F1: 3 | G1: 4 | H1: 5 | I1: 6 | N1: Tiers - used for bill comparisons
C2: TOTAL | D2: SCH. 1 | E2: SCH. 11,12 | F2: SCH. 21,22 | G2: SCH. 25 | H2: SCH. 30, 31, 32 | L2: Range Name | N2: SCHEDULE 1 | O2: SCH. 11,12 | P2: SCH. 21,22 | Q2: SCHEDULE 25 | R2: SCH. 30, 31, 32
B3: Base Tariff Rates
A4: 1 | B4: BASIC CHARGE | D4: 8.5 | E4: 18 | F4: 0 | G4: 0 | H4: 18
A5: 2 | B5: BLOCK 1 PER KWH | D5: 7.39 | E5: 11.293 | F5: 7.089 | G5: 5.505 | H5: 9.546 | N5: 800 | O5: 3650 | P5: 250000 | Q5: 500000
A6: 3 | B6: BLOCK 2 PER KWH | D6: 8.598 | E6: 8.298 | F6: 6.34 | G6: 4.953 | H6: 6.818 | N6: 1500 | O6: 9999999 | P6: 9999999 | Q6: 9999999
A7: 4 | B7: BLOCK 3 PER KWH | D7: 10.08 | E7: 0 | F7: 0 | G7: 4.235 | H7: 0 | L7: Rates_Base_Present | N7: 9999999 | O7: 9999999 | P7: 9999999 | Q7: 9999999
A8: 5 | B8: BLOCK 4 PER KWH
A9: 6 | B9: DEMAND CHARGE | D9: 0 | E9: 0 | F9: 500 | G9: 21000 | H9: 0
A10: 7 | B10: DEMAND BLOCK 1 | D10: 0 | E10: 6 | F10: 6 | G10: 6 | H10: 0 | N10: 0 | O10: 20 | P10: 50 | Q10: 3000
B12: Billing Rates | D12: =IF(D13<>'Pres & Prop Rev'!D$5,#VALUE!,"") ->  | E12: =IF(E13<>'Pres & Prop Rev'!E$5,#VALUE!,"") ->  | F12: =IF(F13<>'Pres & Prop Rev'!F$5,#VALUE!,"") ->  | G12: =IF(G13<>'Pres & Prop Rev'!G$5,#VALUE!,"") ->  | H12: =IF(H13<>'Pres & Prop Rev'!H$5,#VALUE!,"") -> 
D13: SCHEDULE 1 | E13: SCH. 11,12 | F13: SCH. 21,22 | G13: SCHEDULE 25 | H13: SCH. 30, 31, 32
A14: 1 | B14: BASIC CHARGE | D14: =D4 -> 8.5 | E14: =E4 -> 18 | F14: =F4 -> 0 | G14: =G4 -> 0 | H14: =H4 -> 18
A15: 2 | B15: BLOCK 1 PER KWH | D15: =D5-0.051+0.263+0.262+0.097-0.035 -> 7.926 | E15: =E5-0.143+0.362+0.141-0.036 -> 11.617 | F15: =F5-0.143+0.273+0.102-0.036 -> 7.285 | G15: =G5+0.172+0.064-0.034 -> 5.707 | H15: =H5-0.143+0.261+0.089-0.042 -> 9.711 | N15: =N5 -> 800 | O15: =O5 -> 3650 | P15: =P5 -> 250000 | Q15: =Q5 -> 500000
A16: 3 | B16: BLOCK 2 PER KWH | D16: =D6-0.051+0.263+0.262+0.097-0.035 -> 9.134 | E16: =E6-0.143+0.362+0.141-0.036 -> 8.622 | F16: =F6-0.143+0.273+0.102-0.036 -> 6.536 | G16: =G6+0.172+0.064-0.034 -> 5.155 | H16: =H6-0.143+0.261+0.089-0.042 -> 6.983 | N16: =N6 -> 1500 | O16: 9999999 | P16: 9999999 | Q16: 9999999
A17: 4 | B17: BLOCK 3 PER KWH | D17: 10.616 | G17: =G7+0.172-0.034 -> 4.373 | L17: Rates_Billing_Present | N17: 9999999 | O17: 9999999 | P17: 9999999 | Q17: 9999999
A18: 5 | B18: BLOCK 4 PER KWH
A19: 6 | B19: DEMAND CHARGE | F19: =F9 -> 500 | G19: =G9 -> 21000
A20: 7 | B20: DEMAND BLOCK 1 | E20: =E10 -> 6 | F20: =F10 -> 6 | G20: =G10 -> 6 | N20: =N10 -> 0 | O20: =O10 -> 20 | P20: =P10 -> 50 | Q20: =Q10 -> 3000
A22: PROPOSED RATES
B24: Base Tariff Rates | D24: =IF(D25<>'Pres & Prop Rev'!D$5,#VALUE!,"") ->  | E24: =IF(E25<>'Pres & Prop Rev'!E$5,#VALUE!,"") ->  | F24: =IF(F25<>'Pres & Prop Rev'!F$5,#VALUE!,"") ->  | G24: =IF(G25<>'Pres & Prop Rev'!G$5,#VALUE!,"") ->  | H24: =IF(H25<>'Pres & Prop Rev'!H$5,#VALUE!,"") -> 
D25: SCHEDULE 1 | E25: SCH. 11,12 | F25: SCH. 21,22 | G25: SCHEDULE 25 | H25: SCH. 30, 31, 32 | T25: Rounding
A26: 1 | B26: BASIC CHARGE | D26: =ROUND(D62,$T26) -> 8.5 | E26: =ROUND(E62,$T26) -> 18 | F26: =ROUND(F62,$T26) -> 0 | G26: =ROUND(G62,$T26) -> 0 | H26: =ROUND(H62,$T26) -> 18 | T26: 2 | U26: 2
A27: 2 | B27: BLOCK 1 PER KWH | D27: =ROUND(D85,$T27) -> 7.39 | E27: =ROUND(E85,$T27) -> 11.293 | F27: 7.089 | G27: 5.505 | H27: 9.546 | N27: 800 | O27: 3650 | P27: 250000 | Q27: 500000 | T27: 3 | U27: 3
A28: 3 | B28: BLOCK 2 PER KWH | D28: 8.598 | E28: 8.298 | F28: 6.34 | G28: 4.953 | H28: 6.818 | N28: 1500 | O28: 9999999 | P28: 9999999 | Q28: 6000000 | T28: 3 | U28: 3
A29: 4 | B29: BLOCK 3 PER KWH | D29: 10.08 | E29: 0 | F29: 0 | G29: 4.235 | H29: 0 | L29: Rates_Base_Proposed | N29: 9999999 | O29: 9999999 | P29: 9999999 | Q29: 99999999 | T29: 3 | U29: 3
A30: 5 | B30: BLOCK 4 PER KWH | T30: 3 | U30: 3
A31: 6 | B31: DEMAND CHARGE | D31: =ROUND(D66,$T31) -> 0 | E31: =ROUND(E66,$T31) -> 0 | F31: =ROUND(F66,$T31) -> 500 | G31: =ROUND(G66,$T31) -> 21000 | H31: =ROUND(H66,$T31) -> 0 | T31: 2 | U31: 2
A32: 7 | B32: DEMAND BLOCK 1 | D32: =ROUND(D69,$T32) -> 0 | E32: =ROUND(E69,$T32) -> 6 | F32: =ROUND(F69,$T32) -> 6 | G32: =ROUND(G69,$T32) -> 6 | H32: =ROUND(H69,$T32) -> 0 | N32: 0 | O32: 20 | P32: 50 | Q32: 3000 | T32: 2 | U32: 2
B34: Billing Rates | D34: =IF(D35<>'Pres & Prop Rev'!D$5,#VALUE!,"") ->  | E34: =IF(E35<>'Pres & Prop Rev'!E$5,#VALUE!,"") ->  | F34: =IF(F35<>'Pres & Prop Rev'!F$5,#VALUE!,"") ->  | G34: =IF(G35<>'Pres & Prop Rev'!G$5,#VALUE!,"") ->  | H34: =IF(H35<>'Pres & Prop Rev'!H$5,#VALUE!,"") -> 
D35: SCHEDULE 1 | E35: SCH. 11,12 | F35: SCH. 21,22 | G35: SCHEDULE 25 | H35: SCH. 30, 31, 32 | S35: LIRAP/DSM increase
A36: 1 | B36: BASIC CHARGE | D36: =D26 -> 8.5 | E36: =E26 -> 18 | F36: =F26 -> 0 | G36: =G26 -> 0 | H36: =H26 -> 18 | S36: 1 | T36: 11 | U36: 21 | V36: 25 | W36: 31
A37: 2 | B37: BLOCK 1 PER KWH | D37: =D27-0.051+0.263+0.262+0.097-0.035 -> 7.926 | E37: =E27-0.143+0.362+0.141-0.036 -> 11.617 | F37: =F27-0.143+0.273+0.102-0.036 -> 7.285 | G37: =G27+0.172+0.064-0.034 -> 5.707 | H37: =H27-0.143+0.261+0.089-0.042 -> 9.711 | N37: =N27 -> 800 | O37: 3650 | P37: 250000 | Q37: 500000 | S37: 0 | T37: 0 | U37: 0 | V37: 0 | W37: 0
A38: 3 | B38: BLOCK 2 PER KWH | D38: =D28-0.051+0.263+0.262+0.097-0.035 -> 9.134 | E38: =E28-0.143+0.362+0.141-0.036 -> 8.622 | F38: =F28-0.143+0.273+0.102-0.036 -> 6.536 | G38: =G28+0.172+0.064-0.034 -> 5.155 | H38: =H28-0.143+0.261+0.089-0.042 -> 6.983 | N38: 1500 | O38: 9999999 | P38: 9999999 | Q38: 6000000 | S38: =S$37 -> 0 | T38: =T$37 -> 0 | U38: =U$37 -> 0 | V38: =V$37 -> 0 | W38: =W$37 -> 0
A39: 4 | B39: BLOCK 3 PER KWH | D39: 10.616 | G39: =G29+0.172-0.034 -> 4.373 | L39: Rates_Billing_Proposed | N39: 9999999 | O39: 9999999 | P39: 9999999 | Q39: 99999999 | S39: =S$37 -> 0 | T39: 0 | U39: 0 | V39: 0 | W39: 0
A40: 5 | B40: BLOCK 4 PER KWH | S40: 0 | T40: 0 | U40: 0 | V40: 0 | W40: 0
A41: 6 | B41: DEMAND CHARGE | F41: =F31 -> 500 | G41: =G31 -> 21000
A42: 7 | B42: DEMAND BLOCK 1 | E42: =E32 -> 6 | F42: =F32 -> 6 | G42: =G32 -> 6 | N42: =N32 -> 0 | O42: =O32 -> 20 | P42: =P32 -> 50 | Q42: =Q32 -> 3000
D45: 0 | E45: 0) ERM=0; 1) ERM as is
B47: Proposed Rate Workup - from Pres & Prop Rev tab
B49: KILOWATT HOURS (KWHS)
B50: BLOCK 1 | C50: =SUM(D50:H50) -> 3413088102 | D50: ='Pres & Prop Rev'!D31 -> 1562090324 | E50: ='Pres & Prop Rev'!E31 -> 411760125 | F50: ='Pres & Prop Rev'!F31 -> 1262061453 | G50: ='Pres & Prop Rev'!G31 -> 126000000 | H50: ='Pres & Prop Rev'!H31 -> 51176200.55
B51: BLOCK 2 | C51: =SUM(D51:H51) -> 1528405721 | D51: ='Pres & Prop Rev'!D32 -> 532041223 | E51: ='Pres & Prop Rev'!E32 -> 184890135 | F51: ='Pres & Prop Rev'!F32 -> 166633500 | G51: ='Pres & Prop Rev'!G32 -> 558890760 | H51: ='Pres & Prop Rev'!H32 -> 85950103.45
B52: BLOCK 3 | C52: =SUM(D52:H52) -> 770043011 | D52: ='Pres & Prop Rev'!D33 -> 349561635 | E52: ='Pres & Prop Rev'!E33 -> 0 | F52: ='Pres & Prop Rev'!F33 -> 0 | G52: ='Pres & Prop Rev'!G33 -> 420481376 | H52: ='Pres & Prop Rev'!H33 -> 0
B53: ADJ. TO ACTUAL/EE ADJ | C53: =SUM(D53:H53) -> 0 | D53: ='Pres & Prop Rev'!D41+'Pres & Prop Rev'!D38 -> 0 | E53: ='Pres & Prop Rev'!E41+'Pres & Prop Rev'!E38 -> 0 | F53: ='Pres & Prop Rev'!F41+'Pres & Prop Rev'!F38 -> 0 | G53: ='Pres & Prop Rev'!G41+'Pres & Prop Rev'!G38 -> 0 | H53: ='Pres & Prop Rev'!H41+'Pres & Prop Rev'!H38 -> 0
B54: WEATHER & U/B KWHS | C54: =SUM(D54:H54) -> -82830117 | D54: ='Pres & Prop Rev'!D44 -> -65215151 | E54: ='Pres & Prop Rev'!E44 -> -8249024 | F54: ='Pres & Prop Rev'!F44 -> -9466682 | G54: ='Pres & Prop Rev'!G44 -> 0 | H54: ='Pres & Prop Rev'!H44 -> 100740
B55: TOTAL PROFORMA KWHS | C55: =IF(ROUND(SUM(D55:I55),3)<>ROUND(SUM(C50:C54),3),#VALUE!,SUM(D55:I55)) -> 5628706718 | D55: =SUM(D50:D54) -> 2378478031 | E55: =SUM(E50:E54) -> 588401236 | F55: =SUM(F50:F54) -> 1419228271 | G55: =SUM(G50:G54) -> 1105372136 | H55: =SUM(H50:H54) -> 137227044
B56: TOTAL BILLS | D56: ='Pres & Prop Rev'!D48 -> 2462067 | E56: ='Pres & Prop Rev'!E48 -> 364552 | F56: ='Pres & Prop Rev'!F48 -> 24110 | G56: ='Pres & Prop Rev'!G48 -> 252 | H56: ='Pres & Prop Rev'!H48 -> 29216
B57: EXCESS DEMAND | D57: ='Pres & Prop Rev'!D50 -> 0 | E57: ='Pres & Prop Rev'!E50 -> 402284 | F57: ='Pres & Prop Rev'!F50 -> 2748136 | G57: ='Pres & Prop Rev'!G50 -> 1276783 | H57: ='Pres & Prop Rev'!H50 -> 0
J58: Proposed rates: | K58: Formulas to copy
B59: Proposed Revenue | C59: =SUM(D59:I59) -> 484965868.6 | D59: =ROR!D46 -> 211356158.1 | E59: =ROR!E46 -> 70147406.34 | F59: =ROR!F46 -> 128040856.5 | G59: =ROR!G46 -> 64137497.98 | H59: =ROR!H46 -> 11283949.72 | J59: same as current | K59: FLOOR | L59: CEILING | M59: OTHER
B60: Targeted Rate Increase | C60: =ROR!C47 -> -0.01622058394 | D60: =ROR!D47 -> -0.01622056263 | E60: =ROR!E47 -> -0.0162206 | F60: =ROR!F47 -> -0.0162206 | G60: =ROR!G47 -> -0.0162206 | H60: =ROR!H47 -> -0.0162206 | J60: diff than current
B61: Present Basic Charge | D61: =D4 -> 8.5 | E61: =E4 -> 18 | F61: =F4 -> 0 | G61: =G4 -> 0 | H61: =H4 -> 18
B62: BASIC CHARGE | D62: 8.5 | E62: 18 | F62: 0 | G62: 0 | H62: 18 | K62: =FLOOR(K61*(1+K$60),$K63) -> 0 | L62: =CEILING(L61*(1+L$60),$L63) -> 0 | M62: =M61*(1+M$60) -> 0
B63: % D in Basic Charge | D63: =IF(D61,D62/D61-1,0) -> 0 | E63: =IF(E61,E62/E61-1,0) -> 0 | F63: =IF(F61,F62/F61-1,0) -> 0 | G63: =IF(G61,G62/G61-1,0) -> 0 | H63: =IF(H61,H62/H61-1,0) -> 0 | K63: 0.05 | L63: 0.05
B64: Basic Charge Revenue | C64: =SUM(D64:I64) -> 28015393.5 | D64: =D56*D62 -> 20927569.5 | E64: =E56*E62 -> 6561936 | F64: =F56*F62 -> 0 | G64: =G56*G62 -> 0 | H64: =H56*H62 -> 525888
B65: Present Demand Block 1 | D65: =D9 -> 0 | E65: =E9 -> 0 | F65: =F9 -> 500 | G65: =G9 -> 21000 | H65: =H9 -> 0
B66: DEMAND BLOCK 1 | F66: 500 | G66: 21000 | K66: =FLOOR(K65*(1+K$60),$K67) -> 0 | L66: =CEILING(L65*(1+L$60),$L67) -> 0 | M66: =M65*(1+M$60) -> 0
B67: % D in Demand Block 1 | D67: =IF(D65,D66/D65-1,0) -> 0 | E67: =IF(E65,E66/E65-1,0) -> 0 | F67: =IF(F65,F66/F65-1,0) -> 0 | G67: =IF(G65,G66/G65-1,0) -> 0 | H67: =IF(H65,H66/H65-1,0) -> 0 | K67: 5 | L67: 10
B68: Present Demand Block 2 | D68: =D10 -> 0 | E68: =E10 -> 6 | F68: =F10 -> 6 | G68: =G10 -> 6 | H68: =H10 -> 0
B69: DEMAND BLOCK 2 | E69: 6 | F69: 6 | G69: 6 | H69: 0 | K69: =FLOOR(K68*(1+K$60),$K70) -> 0 | L69: =CEILING(L68*(1+L$60),$L70) -> 0 | M69: =M68*(1+M$60) -> 0
B70: % D in Demand Block 2 | D70: =IF(D68,D69/D68-1,0) -> 0 | E70: =IF(E68,E69/E68-1,0) -> 0 | F70: =IF(F68,F69/F68-1,0) -> 0 | G70: =IF(G68,G69/G68-1,0) -> 0 | H70: =IF(H68,H69/H68-1,0) -> 0 | K70: 0.05 | L70: 0.05
B71: Demand Revenue | C71: =SUM(D71:I71) -> 43910218 | D71: =D56*D66+D57*D69 -> 0 | E71: =E56*E66+E57*E69 -> 2413704 | F71: =F56*F66+F57*F69 -> 28543816 | G71: =G56*G66+G57*G69 -> 12952698 | H71: =H56*H66+H57*H69 -> 0
B72: Pwr Fctr/Prim Voltg Disc | C72: =SUM(D72:I72) -> -1171002.5 | D72: ='Pres & Prop Rev'!D172+'Pres & Prop Rev'!D173 -> 0 | E72: ='Pres & Prop Rev'!E172+'Pres & Prop Rev'!E173 -> 7411.5 | F72: ='Pres & Prop Rev'!F172+'Pres & Prop Rev'!F173 -> 56806.5 | G72: ='Pres & Prop Rev'!G172+'Pres & Prop Rev'!G173 -> -1240040.5 | H72: ='Pres & Prop Rev'!H172+'Pres & Prop Rev'!H173 -> 4820
B74: Present Block 1 Base Rate | D74: =D5 -> 7.39 | E74: =E5 -> 11.293 | F74: =F5 -> 7.089 | G74: =G5 -> 5.505 | H74: =H5 -> 9.546
B75: Present Block 2 Base Rate | D75: =D6 -> 8.598 | E75: 8.298 | F75: 6.34 | G75: 4.953 | H75: 6.818
B76: Present Block 3 Base Rate | D76: 10.08 | E76: 0 | F76: 0 | G76: 4.235 | H76: 0
B78: 1) Flat Rate Increase | D78: 0 | E78: 1 | F78: 1 | G78: 1 | H78: 1
B79: 2) % Rate Increase | D79: 0 | E79: 0 | F79: 0 | G79: 0 | H79: 0 | M79: =M$60 -> 0
B80: Method ---> | D80: 2 | E80: 2 | F80: 2 | G80: 2 | H80: 2
A82: Calculated | B82: BLOCK 1 PER KWH | D82: =CHOOSE(D$80,D74+D$78,D74*(1+D$79)) -> 7.39 | E82: =CHOOSE(E$80,E74+E$78,E74*(1+E$79)) -> 11.293 | F82: =CHOOSE(F$80,F74+F$78,F74*(1+F$79)) -> 7.089 | G82: =CHOOSE(G$80,G74+G$78,G74*(1+G$79)) -> 5.505 | H82: =CHOOSE(H$80,H74+H$78,H74*(1+H$79)) -> 9.546
B83: BLOCK 2 PER KWH | D83: 8.598 | E83: 8.298 | F83: 6.34 | G83: =CHOOSE(G$80,G75+G$78,G75*(1+G$79)) -> 4.953 | H83: =CHOOSE(H$80,H75+H$78,H75*(1+H$79)) -> 6.818 | M83: =0.75*M82 -> 0
B84: BLOCK 3 PER KWH | D84: 10.08 | E84: 0 | F84: 0 | G84: =CHOOSE(G$80,G76+G$78,G76*(1+(G$79*1))) -> 4.235 | H84: 0
A85: Input | B85: BLOCK 1 PER KWH | D85: =D82 -> 7.39 | E85: 11.293 | F85: 7.089 | G85: 5.505 | H85: 9.546 | M85: =M82 -> 0
B86: BLOCK 2 PER KWH | D86: 8.598 | E86: 8.298 | F86: 6.34 | G86: 4.953 | H86: 6.818 | J86: =G86-G85 -> -0.552 | M86: =M83 -> 0 | N86: =0.75*(N85-N74)+N75 -> 0
B87: BLOCK 3 PER KWH | D87: =D84 -> 10.08 | E87: =E84 -> 0 | F87: 0 | G87: =G84 -> 4.235 | H87: 0 | J87: =G87-G86 -> -0.718 | M87: =M84 -> 0
B88: Blocks 1-3 Revenue | C88: =SUM(D88:I88) -> 421464450.5 | D88: =SUMPRODUCT(D50:D52,D85:D87)/100 -> 196419192.1 | E88: =SUMPRODUCT(E50:E52,E85:E87)/100 -> 61842254.32 | F88: =SUMPRODUCT(F50:F52,F85:F87)/100 -> 100032100.3 | G88: =SUMPRODUCT(G50:G52,G85:G87)/100 -> 52425545.62 | H88: =SUMPRODUCT(H50:H52,H85:H87)/100 -> 10745358.16
B89: Adj. to Actual Revenue | C89: =SUM(D89:I89) -> 0 | D89: ='Pres & Prop Rev'!D181+'Pres & Prop Rev'!D178 -> 0 | E89: ='Pres & Prop Rev'!E181+'Pres & Prop Rev'!E178 -> 0 | F89: ='Pres & Prop Rev'!F181+'Pres & Prop Rev'!F178 -> 0 | G89: ='Pres & Prop Rev'!G181+'Pres & Prop Rev'!G178 -> 0 | H89: ='Pres & Prop Rev'!H181+'Pres & Prop Rev'!H178 -> 0
B90: Weather & U/B Revenue | C90: =SUM(D90:I90) -> -7254394.27 | D90: ='Pres & Prop Rev'!D202 -> -5983734.27 | E90: ='Pres & Prop Rev'!E202 -> -679743.03 | F90: ='Pres & Prop Rev'!F202 -> -598811.06 | G90: ='Pres & Prop Rev'!G202 -> 0 | H90: ='Pres & Prop Rev'!H202 -> 7894.09
B92: Revenue Remaining | C92: =IF(ROUND(C59-C64-C71-C72-SUM(C88:C90),3)<>ROUND(SUM(D92:I92),3),#VALUE!,SUM(D92:I92)) -> 1203.381191 | D92: =D59-D64-D71-D72-SUM(D88:D90) -> -6869.231472 | E92: =E59-E64-E71-E72-SUM(E88:E90) -> 1843.550287 | F92: =F59-F64-F71-F72-SUM(F88:F90) -> 6944.725397 | G92: =G59-G64-G71-G72-SUM(G88:G90) -> -705.1334 | H92: =H59-H64-H71-H72-SUM(H88:H90) -> -10.52962166 | J92: there will be some remainder in Schs. 21 & 25 because some components of their revenue don't change w/a rate change.
B93: Revenue Remaining - ¢/kWh | C93: =C92/C55*100 -> 2.1379355e-05 | D93: =D92/D55*100 -> -0.0002888078587 | E93: 0.0003133151622 | F93: 0.0004893311061 | G93: -6.379149402e-05 | H93: -7.673138878e-06
B94: check - < $6k is rounding | C94: =SUM(D94:I94) -> 0.0008090268821 | D94: =D59-'Pres & Prop Rev'!D204-D92 -> -0.003928273916 | E94: =E59-'Pres & Prop Rev'!E204-E92 -> -0.002687074244 | F94: =F59-'Pres & Prop Rev'!F204-F92 -> -0.006597295403 | G94: =G59-'Pres & Prop Rev'!G204-G92 -> 0.006400004029 | H94: =H59-'Pres & Prop Rev'!H204-H92 -> 0.007621666417
A95: =IF(Base1_Billing2=2,"MAKE SURE TO CHANGE Base1_Billing2 to '1' before designing Base Rates","") -> 
B96: Proposed Target | C96: =SUM(D96:I96) -> 484965868.6 | D96: =D59 -> 211356158.1 | E96: =E59 -> 70147406.34 | F96: =F59 -> 128040856.5 | G96: =G59 -> 64137497.98 | H96: =H59 -> 11283949.72
B97: Proposed Actual | C97: =SUM(D97:I97) -> 484964665.2 | D97: ='Pres & Prop Rev'!D204 -> 211363027.3 | E97: ='Pres & Prop Rev'!E204 -> 70145562.79 | F97: ='Pres & Prop Rev'!F204 -> 128033911.8 | G97: ='Pres & Prop Rev'!G204 -> 64138203.11 | H97: ='Pres & Prop Rev'!H204 -> 11283960.24
C98: =SUM(D98:H98) -> -1203.382 | D98: =D97-D96 -> 6869.2354 | E98: =E97-E96 -> -1843.5476 | F98: =F97-F96 -> -6944.7188 | G98: =G97-G96 -> 705.127 | H98: =H97-H96 -> 10.522
B99: Rate D Check
B100: Basic Charge | C100: ='Pres & Prop Rev'!C164/'Pres & Prop Rev'!C111-1 -> 0 | D100: ='Pres & Prop Rev'!D164/'Pres & Prop Rev'!D111-1 -> 0 | E100: ='Pres & Prop Rev'!E164/'Pres & Prop Rev'!E111-1 -> 0 | F100: ='Pres & Prop Rev'!F164/'Pres & Prop Rev'!F111-1 ->  | G100: ='Pres & Prop Rev'!G164/'Pres & Prop Rev'!G111-1 ->  | H100: ='Pres & Prop Rev'!H164/'Pres & Prop Rev'!H111-1 -> 0
B101: Demand Charge | C101: =SUM('Pres & Prop Rev'!C170:C171)/SUM('Pres & Prop Rev'!C117:C118)-1 -> 0 | D101: =SUM('Pres & Prop Rev'!D170:D171)/SUM('Pres & Prop Rev'!D117:D118)-1 ->  | E101: =SUM('Pres & Prop Rev'!E170:E171)/SUM('Pres & Prop Rev'!E117:E118)-1 -> 0 | F101: =SUM('Pres & Prop Rev'!F170:F171)/SUM('Pres & Prop Rev'!F117:F118)-1 -> 0 | G101: =SUM('Pres & Prop Rev'!G170:G171)/SUM('Pres & Prop Rev'!G117:G118)-1 -> 0 | H101: =SUM('Pres & Prop Rev'!H170:H171)/SUM('Pres & Prop Rev'!H117:H118)-1 -> 
B102: Adj. to Actual Revenue | C102: ='Pres & Prop Rev'!C181/'Pres & Prop Rev'!C128-1 ->  | D102: ='Pres & Prop Rev'!D181/'Pres & Prop Rev'!D128-1 ->  | E102: ='Pres & Prop Rev'!E181/'Pres & Prop Rev'!E128-1 ->  | F102: ='Pres & Prop Rev'!F181/'Pres & Prop Rev'!F128-1 ->  | G102: ='Pres & Prop Rev'!G181/'Pres & Prop Rev'!G128-1 ->  | H102: ='Pres & Prop Rev'!H181/'Pres & Prop Rev'!H128-1 -> 
B103: Weather & U/B Revenue | C103: ='Pres & Prop Rev'!C202/'Pres & Prop Rev'!C149-1 -> 0 | D103: ='Pres & Prop Rev'!D202/'Pres & Prop Rev'!D149-1 -> 0 | E103: ='Pres & Prop Rev'!E202/'Pres & Prop Rev'!E149-1 -> 0 | F103: ='Pres & Prop Rev'!F202/'Pres & Prop Rev'!F149-1 -> 0 | G103: ='Pres & Prop Rev'!G202/'Pres & Prop Rev'!G149-1 ->  | H103: ='Pres & Prop Rev'!H202/'Pres & Prop Rev'!H149-1 -> 0
B104: Block Energy Charges | C104: =SUM('Pres & Prop Rev'!C166:C169)/SUM('Pres & Prop Rev'!C113:C116)-1 -> 0 | D104: =SUM('Pres & Prop Rev'!D166:D169)/SUM('Pres & Prop Rev'!D113:D116)-1 -> 0 | E104: =SUM('Pres & Prop Rev'!E166:E169)/SUM('Pres & Prop Rev'!E113:E116)-1 -> 0 | F104: =SUM('Pres & Prop Rev'!F166:F169)/SUM('Pres & Prop Rev'!F113:F116)-1 -> 0 | G104: =SUM('Pres & Prop Rev'!G166:G169)/SUM('Pres & Prop Rev'!G113:G116)-1 -> 0 | H104: =SUM('Pres & Prop Rev'!H166:H169)/SUM('Pres & Prop Rev'!H113:H116)-1 -> 0
B105: Overall Revenue | C105: ='Pres & Prop Rev'!C208 -> 6.806652058e-13 | D105: ='Pres & Prop Rev'!D208 -> 0 | E105: ='Pres & Prop Rev'!E208 -> 0 | F105: ='Pres & Prop Rev'!F208 -> 0 | G105: ='Pres & Prop Rev'!G208 -> 0 | H105: ='Pres & Prop Rev'!H208 -> 0
B107: Avg. Usage | D107: =D55/D56 -> 966.0492712 | E107: =E55/E56 -> 1614.039248 | F107: =F55/F56 -> 58864.71468 | G107: =G55/G56 -> 4386397.365 | H107: =H55/H56 -> 4696.982612
B108: Bill Compare: | C108: =INDEX($D$2:$I$2,K108) -> SCH. 1 | F108: =INDEX($D$2:$I$2,L108) -> SCH. 11,12 | K108: 1 | L108: 2
B109: =IF(Base1_Billing2=2,"BILLING RATES","BASE RATES") -> BASE RATES | C109: Pres | D109: Prop | E109: % Incr | F109: Pres | G109: Prop | H109: % Incr
B110: 100
B111: 200
B112: 300
B113: 400
B114: 500
B115: 600
B116: 700
B117: 800
B118: 900
B119: 1000 | C119: =ROUND(D14+600*D15/100+400*D16/100,2) -> 92.59 | D119: =ROUND(D36+600*D37/100+400*D38/100,2) -> 92.59 | E119: =D119/C119-1 -> 0 | F119: =D119-C119 -> 0
B120: 1100
B121: 1200
B122: 1300
B123: 1400
B124: 1500
D125: 2425727000 | E125: =395341000+52692000 -> 448033000
D126: =205474*12 -> 2465688 | E126: =(19967+8691)*12 -> 343896
D127: =D125/D126 -> 983.7931644 | E127: =E125/E126 -> 1302.815386

Sheet Exh 2 (hidden)
A1: AVISTA UTILITIES | L1: This worksheet pulls data from 'ROR' tab.
A2: WASHINGTON ELECTRIC
A3: PRESENT & PROPOSED RATES OF RETURN BY RATE SCHEDULE
A4: 12 MONTHS ENDED SEPTEMBER 30, 2014
D9: Present Rates | G9: Base | I9: Proposed Rates
D10: Present | E10: Present | G10: Tariff | I10: Proposed | J10: Proposed
A11: Line | B11: Type of | C11: Sch. | D11: Rate of | E11: Relative | G11: Proposed | I11: Rate of | J11: Relative
A12: No. | B12: Service | C12: Number | D12: Return | E12: ROR | G12: Increase | I12: Return | J12: ROR
B13: (a) | C13: (b) | D13: (c) | E13: (d) | G13: (e) | I13: (f) | J13: (g)
A14: 1 | B14: Residential | C14: 1 | D14: =INDEX(ROR!$C$20:$I$20,$A14+1) -> 0.03509473209 | E14: =INDEX(ROR!$C$21:$I$21,$A14+1) -> 0.5797896497 | G14: =INDEX(ROR!$C$47:$I$47,$A14+1) -> -0.01622056263 | I14: =INDEX(ROR!$C$38:$I$38,$A14+1) -> 0.03209801901 | J14: =INDEX(ROR!$C$37:$I$37,$A14+1) -> 0.5622129288
A15: 2 | B15: General Service | C15: 11/12 | D15: =INDEX(ROR!$C$20:$I$20,$A15+1) -> 0.1183281004 | E15: =INDEX(ROR!$C$21:$I$21,$A15+1) -> 1.954863416 | G15: =INDEX(ROR!$C$47:$I$47,$A15+1) -> -0.0162206 | I15: =INDEX(ROR!$C$38:$I$38,$A15+1) -> 0.1139798466 | J15: =INDEX(ROR!$C$37:$I$37,$A15+1) -> 1.996414275
A16: 3 | B16: Large General Service | C16: 21/22 | D16: =INDEX(ROR!$C$20:$I$20,$A16+1) -> 0.08905618029 | E16: =INDEX(ROR!$C$21:$I$21,$A16+1) -> 1.471270715 | G16: =INDEX(ROR!$C$47:$I$47,$A16+1) -> -0.0162206 | I16: =INDEX(ROR!$C$38:$I$38,$A16+1) -> 0.08524610462 | J16: =INDEX(ROR!$C$37:$I$37,$A16+1) -> 1.493128349
A17: 4 | B17: Extra Large General Svc. | C17: 25 | D17: =INDEX(ROR!$C$20:$I$20,$A17+1) -> 0.05628245594 | E17: =INDEX(ROR!$C$21:$I$21,$A17+1) -> 0.9298257452 | G17: =INDEX(ROR!$C$47:$I$47,$A17+1) -> -0.0162206 | I17: =INDEX(ROR!$C$38:$I$38,$A17+1) -> 0.05237680942 | J17: =INDEX(ROR!$C$37:$I$37,$A17+1) -> 0.9174061307
A18: 5 | B18: Pumping Service | C18: 30/31/32 | D18: =INDEX(ROR!$C$20:$I$20,$A18+1) -> 0.05949298315 | E18: =INDEX(ROR!$C$21:$I$21,$A18+1) -> 0.9828659122 | G18: =INDEX(ROR!$C$47:$I$47,$A18+1) -> -0.0162206 | I18: =INDEX(ROR!$C$38:$I$38,$A18+1) -> 0.05624182225 | J18: =INDEX(ROR!$C$37:$I$37,$A18+1) -> 0.9851037723
A19: 6 | B19: Street & Area Lights | C19: 41-48 | D19: =INDEX(ROR!$C$20:$I$20,$A19+1) -> 0.05004595949 | E19: =INDEX(ROR!$C$21:$I$21,$A19+1) -> 0.8267944389 | G19: =INDEX(ROR!$C$47:$I$47,$A19+1) -> -0.0162206 | I19: =INDEX(ROR!$C$38:$I$38,$A19+1) -> 0.04770321018 | J19: =INDEX(ROR!$C$37:$I$37,$A19+1) -> 0.8355456921
A20: 7 | B20: Total | D20: =INDEX(ROR!$C$20:$I$20,1) -> 0.0605301114 | E20: =INDEX(ROR!$C$21:$I$21,1) -> 1 | G20: =INDEX(ROR!$C$47:$I$47,1) -> -0.01622058394 | I20: =INDEX(ROR!$C$38:$I$38,1) -> 0.05709228189 | J20: =INDEX(ROR!$C$37:$I$37,1) -> 1

Sheet Adder Schedule (hidden)
A1: AVISTA UTILITIES
A2: WASHINGTON ELECTRIC
A3: PROPOSED REC REVENUE DECREASE BY SERVICE SCHEDULE
A4: 12 MONTHS ENDED JUNE 30, 2013
A5: (000s of Dollars)
F9: Billing | H9: REC
D10: kWh Rate | F10: Determinants | H10: Revenue
A11: 1 | B11: Residential | C11: 1 | D11: =D35 ->  | F11: ='Pres & Prop Rev'!D46 -> 2378478031 | H11: =D11*F11 -> 
A13: 2 | B13: General Service | C13: 11/12 | D13: =D35 ->  | F13: ='Pres & Prop Rev'!E46 -> 588401236 | H13: =D13*F13 -> 
A15: 3 | B15: Large General Service | C15: 21/22 | D15: =D35 ->  | F15: ='Pres & Prop Rev'!F46 -> 1419228271
A17: 4 | B17: Extra Large General Service | C17: 25 | D17: =D35 ->  | F17: ='Pres & Prop Rev'!G46 -> 1105372136
A19: 5 | B19: Pumping Service | C19: 30/31/32 | D19: =D35 ->  | F19: ='Pres & Prop Rev'!H46 -> 137227044
A21: 6 | B21: Street & Area Lights | C21: 41-48 | D21: =D35 ->  | F21: ='Pres & Prop Rev'!I46 -> 25127765
A23: 7 | B23: Total | F23: =SUM(F11:F22) -> 5653834483 | H23: =SUM(H11:H22) -> 
B29: Rate Calculation
B31: REC Revenue Available for Refund | D31: 0
B33: Total kWh's | D33: 0
B35: Sch 98 Per kWh Rate | D35: =ROUND(D31/D33,5) -> 
B37: * From Johnson Exhibit

Sheet ERM
E3: Present | F3: Present
B4: Type of | C4: Schedule | D4: Billing | E4: ERM | F4: ERM
B5: Service | C5: Number | D5: Determinants | E5: Rate | F5: Revenue
B6: (a) | C6: (b) | D6: (c) | E6: (d) | F6: (e)
B8: Residential | C8: 1 | D8: ='Pres & Prop Rev'!D23 -> 2378478031 | E8: -0.00149 | F8: =D8*E8 -> -3543932.266
B10: General Service | C10: 11/12 | D10: ='Pres & Prop Rev'!E23 -> 588401236 | E10: -0.002 | F10: =D10*E10 -> -1176802.472
B12: Large General Service | C12: 21/22 | D12: ='Pres & Prop Rev'!F23 -> 1419228271 | E12: -0.0015 | F12: =D12*E12 -> -2128842.406
B14: Extra Large General Service | C14: 25 | D14: ='Pres & Prop Rev'!G23 -> 1105372136 | E14: -0.00097 | F14: -1072210.972
B16: Pumping Service | C16: 30/31/32 | D16: ='Pres & Prop Rev'!H23 -> 137227044 | E16: -0.00139 | F16: -190745.5912
B18: Street & Area Lights | C18: 41-48 | D18: ='Pres & Prop Rev'!I23 -> 25127765 | E18: -0.00458 | F18: -115085.1637
B20: Total | D20: =SUM(D8:D18) -> 5653834483 | F20: =SUM(F8:F18) -> -8227618.871

Sheet ROR
B1: AVISTA UTILITIES
B2: WASHINGTON ELECTRIC
B3: PRESENT & PROPOSED RATE OF RETURN BY RATE SCHEDULE
B4: 12 MONTHS ENDED SEPTEMBER 30, 2014
C7: Total | D7: Sch 1 | E7: Sch 11 | F7: Sch 21 | G7: Sch 25 | H7: Sch 31 | I7: Schs 41-48
B8: Total Rate Base | C8: =SUM(D8:I8) -> 1464296000 | D8: 720595927 | E8: 165553693 | F8: 344478226 | G8: 167975026 | H8: 35523080 | I8: 30170048 | J8: from COS
B10: Revenue From Retail Rates | C10: =SUM(D10:I10) -> 499982000 | D10: 214841000 | E10: 71304000 | F10: 130152000 | G10: 65195000 | H10: 11470000 | I10: 7020000 | J10: from COS
B11: Other Operating Revenues | C11: =SUM(D11:I11) -> 60314000 | D11: 27221121 | E11: 6396146 | F11: 14740879 | G11: 10190723 | H11: 1363806 | I11: 401325 | J11: from COS
B12: Total Revenues | C12: =IF(ROUND(C10+C11,0)<>ROUND(SUM(D12:I12),0),#VALUE!,SUM(D12:I12)) -> 560296000 | D12: =D10+D11 -> 242062121 | E12: 77700146 | F12: 144892879 | G12: 75385723 | H12: 12833806 | I12: 7421325
B14: Total Operating Exp b4 conv items & taxes | C14: =SUM(D14:I14) -> 421287000 | D14: =D17-D15-D16 -> 203401731 | E14: =E17-E15-E16 -> 46526054 | F14: 96442519 | G14: 60165472 | H14: 9549776 | I14: 5201448
B15: Revenue Related conversion items | C15: =SUM(D15:I15) -> 23854000 | D15: 10250004 | E15: 3401894 | F15: 6209515 | G15: 3110435 | H15: 547230 | I15: 334922 | J15: from COS
B16: Income Taxes | C16: =SUM(D16:I16) -> 26521000 | D16: 3121265 | E16: 8182544 | F16: 11562930 | G16: 2655769 | H16: 623426 | I16: 375066 | J16: from COS
B17: Total Expenses | C17: =IF(ROUND(SUM(C14:C16),0)<>ROUND(SUM(D17:I17),0),#VALUE!,SUM(D17:I17)) -> 471662000 | D17: 216773000 | E17: 58110492 | F17: 114214964 | G17: 65931676 | H17: 10720432 | I17: 5911436 | J17: from COS
D18: .
B19: Net Operating Income | C19: =IF(ROUND(C12-C17,0)<>ROUND(SUM(D19:I19),0),#VALUE!,ROUND(SUM(D19:I19),-3)) -> 88634000 | D19: =D12-D17 -> 25289121 | E19: 19589654 | F19: 30677915 | G19: 9454047 | H19: 2113374 | I19: 1509889
B20: Present Rate of Return | C20: =C19/C8 -> 0.0605301114 | D20: 0.03509473209 | E20: 0.1183281004 | F20: 0.08905618029 | G20: 0.05628245594 | H20: 0.05949298315 | I20: =I19/I8 -> 0.05004595949
B21: Present Return Ratio | C21: =C20/$C20 -> 1 | D21: 0.5797896497 | E21: 1.954863416 | F21: 1.471270715 | G21: 0.9298257452 | H21: 0.9828659122 | I21: 0.8267944389
B23: Interest Expense | C23: =SUM(D23:I23) -> 39682000 | D23: 19527942 | E23: 4486457 | F23: 9335261 | G23: 4552075 | H23: 962665 | I23: 817600 | J23: from COS
B25: Proposed Misc Revenue Increase | C25: 0
B26: Proposed Rate Revenue Increase | C26: -8110000 | D26: =C26/C10 -> -0.01622058394
B27: Proposed Rev Increase | C27: =C25+C26 -> -8110000
D28: change
B29: Proposed Rate Revenues | C29: =C10+C26 -> 491872000 | D29: =C29-C10 -> -8110000 | F29: Uncollectibles | G29: 0.004449
B30: incremental conversion expenses | C30: =ROUND(C27*G29,-3)+ROUND(C27*G30,-3)+ROUND(C27*G31,-3) -> -365000 | F30: Commiss Fees | G30: 0.002
B31: incremental Income Taxes | C31: =ROUND(C27*G32,-3) -> -2711000 | F31: Excise Tax | G31: 0.038562
B32: Proposed Return | C32: =C19+C27-C30-C31 -> 83600000 | D32: =C32-C19 -> -5034000 | F32: Federal Inc Tax | G32: 0.334246
B33: Proposed Return % | C33: =C32/C8 -> 0.05709228189
B35: Allocation of incremental Misc Rev | C35: =SUM(D35:I35) -> 0 | D35: 0 | E35: 0 | F35: 0 | G35: 0 | H35: 0 | I35: 0 | J35: from COS
B37: Target Relative Return | C37: =C38/C33 -> 1 | D37: =D39/D8/C33 -> 0.5622129288 | E37: 1.996414275 | F37: 1.493128349 | G37: 0.9174061307 | H37: 0.9851037723 | I37: 0.8355456921 | J37: Input | K37: =D26 -> -0.01622058394
B38: Target Return % | C38: =C39/C8 -> 0.05709228189 | D38: =D39/D8 -> 0.03209801901 | E38: 0.1139798466 | F38: 0.08524610462 | G38: 0.05237680942 | H38: 0.05624182225 | I38: 0.04770321018
B39: Target Return (NOI b4 Interest) | C39: =C32 -> 83600000 | D39: =$C$32-SUM(E39:I39) -> 23129701.76 | E39: =E8*E37*$C$32/$C$8 -> 18869784.53 | F39: =F8*F37*$C$32/$C$8 -> 29365426.89 | G39: =G8*G37*$C$32/$C$8 -> 8797995.924 | H39: =H8*H37*$C$32/$C$8 -> 1997882.751 | I39: =I8*I37*$C$32/$C$8 -> 1439208.141 | J39: =ROUND(C39-SUM(D39:I39),0) -> 0
B40: Target Return after Interest Expense | C40: =C39-C23 -> 43918000 | D40: =D39-D23 -> 3601759.763 | E40: 14383327.53 | F40: 20030165.89 | G40: 4245920.924 | H40: 1035217.751 | I40: 621608.141 | J40: 0
B41: Target Return b4 Income Taxes & Interest | C41: =C40+C16+C31+C23 -> 107410000 | D41: =D40+D23+D40/$C40*SUM($C$16,$C$31) -> 25082384.03 | E41: =E40+E23+E40/$C40*SUM($C$16,$C$31) -> 26667658.49 | F41: 40224715.79 | G41: 11099908.06 | H41: 2559122.668 | I41: 1776210.961 | J41: 0
B42: Target Return b4 Misc Rev | C42: =C41-C11-$C$25*C35 -> 47096000 | D42: =D41-D11-$C$25*D35 -> -2138736.966 | E42: 20271512.49 | F42: 25483836.79 | G42: 909185.0607 | H42: 1195316.668 | I42: 1374885.961 | J42: 0
B43: =B14 -> Total Operating Exp b4 conv items & taxes | C43: 421287000 | D43: =D14 -> 203401731 | E43: 46526054 | F43: 96442519 | G43: 60165472 | H43: 9549776 | I43: =I14 -> 5201448 | J43: 0
B44: Conversion Items | C44: =C15+C30 -> 23489000 | D44: =$C44*D46/$C46 -> 10093164.07 | E44: 3349839.852 | F44: 6114500.678 | G44: 3062840.922 | H44: 538857.0501 | I44: 329797.4273 | J44: =ROUND(C44-SUM(D44:I44),0) -> 0
B45: Incremental Rate Revenue | C45: =C26 -> -8110000 | D45: =(D42-D10+D14+($C$44*D10)/$C$29)/(1-$C$44/$C$29) -> -3484841.895 | E45: =(E42-E10+E14+($C$44*E10)/$C$29)/(1-$C$44/$C$29) -> -1156593.662 | F45: -2111143.531 | G45: =(G42-G10+G14+($C$44*G10)/$C$29)/(1-$C$44/$C$29) -> -1057502.017 | H45: -186050.282 | I45: =(I42-I10+I14+($C$44*I10)/$C$29)/(1-$C$44/$C$29) -> -113868.612 | J45: =ROUND(C45-SUM(D45:I45),0) -> 0
B46: Target Rate Revenue | C46: =C42+C43+C44 -> 491872000 | D46: =D10+D45 -> 211356158.1 | E46: =E10+E45 -> 70147406.34 | F46: 128040856.5 | G46: 64137497.98 | H46: 11283949.72 | I46: 6906131.388 | J46: =ROUND(C46-SUM(D46:I46),0) -> 0
B47: Change in Rate Revenue | C47: =C46/C10-1 -> -0.01622058394 | D47: -0.01622056263 | E47: -0.0162206 | F47: -0.0162206 | G47: -0.0162206 | H47: -0.0162206 | I47: -0.0162206
B49: Incremental Rate Revenue - rounded | C49: =SUM(D49:I49) -> -8111000 | D49: =ROUND(D45,-3) -> -3485000 | E49: =ROUND(E45,-3) -> -1157000 | F49: -2111000 | G49: -1058000 | H49: -186000 | I49: -114000
B50: Target Rate Revenue - rounded | C50: =SUM(D50:I50) -> 491871000 | D50: =ROUND(D46,-3) -> 211356000 | E50: =ROUND(E46,-3) -> 70147000 | F50: 128041000 | G50: 64137000 | H50: 11284000 | I50: =ROUND(I46,-3) -> 6906000
B52: ERM Revenue decrease | C52: =SUM(D52:I52) -> 0 | D52: 0 | E52: 0 | F52: 0 | G52: 0 | H52: 0 | I52: 0
B53: Net Increase | C53: =SUM(D53:I53) -> -8110000 | D53: =D45+D52 -> -3484841.895 | E53: =E45+E52 -> -1156593.662 | F53: -2111143.531 | G53: -1057502.017 | H53: -186050.282 | I53: -113868.612
B54: Present Billed | C54: =SUM(D54:I54) -> 481541000 | D54: 204738000 | E54: 66923000 | F54: 129127000 | G54: 62716000 | H54: 10909000 | I54: 7128000
B55: Net Increase as % of billed | C55: =C53/C54 -> -0.01684176425 | D55: =D53/D54 -> -0.0170209824 | E55: =E53/E54 -> -0.0172824539 | F55: -0.01634935785 | G55: -0.01686175804 | H55: -0.01705475131 | I55: -0.01597483333
B56: Total Present Billed Revenue | C56: =SUM(D56:I56) -> 511735455.2 | D56: ='Page 1'!H14*1000 -> 224111669.6 | E56: ='Page 1'!H16*1000 -> 72022221.79 | F56: ='Page 1'!H18*1000 -> 130796751.1 | G56: ='Page 1'!H20*1000 -> 66101946.75 | H56: ='Page 1'!H22*1000 -> 11505973.87 | I56: ='Page 1'!H24*1000 -> 7196892.065
B57: % of Present Billed Revenue | C57: =C45/C56 -> -0.01584803225 | D57: =D45/D56 -> -0.01554957804 | E57: -0.01605884453 | F57: -0.01614064197 | G57: -0.01599804649 | H57: -0.01616988567 | I57: -0.01582191465
B61: Movement To Unity | D61: =(D37-D21)/(1-D21) -> -0.04182838656 | E61: =(E37-E21)/(1-E21) -> -0.04351497649 | F61: =(F37-F21)/(1-F21) -> -0.04638020871 | G61: -0.1769824927 | H61: 0.1306086501 | I61: 0.0505252437
B64: Uniform Present Return | C64: =C19 -> 88634000 | D64: =$C64*D$8/$C$8 -> 43617751.73 | E64: =$C64*E$8/$C$8 -> 10020983.48 | F64: 20851305.39 | G64: 10167547.04 | H64: 2150215.99 | I64: 1826196.366
B65: Present Income Taxes at Unity | C65: =C16 -> 26521000 | D65: 13051271.45 | E65: 2998471.274 | F65: 6239112.196 | G65: 3042325.913 | H65: 643386.0399 | I65: 546433.1276
B66: Operating Expenses (Excl. Rev Rel exp & inc tax) | C66: =SUM(D66:I66) -> 421287000 | D66: =D14 -> 203401731 | E66: =E14 -> 46526054 | F66: 96442519 | G66: 60165472 | H66: 9549776 | I66: 5201448
B67: Deduct Other Operating Revenues | C67: =SUM(D67:I67) -> -60314000 | D67: =-D11 -> -27221121 | E67: =-E11 -> -6396146 | F67: -14740879 | G67: -10190723 | H67: -1363806 | I67: -401325
B68: Revenue Related Expenses at Unity | C68: =C15 -> 23854000 | D68: =$C68*SUM(D64:D67)/SUM($C$64:$C$67) -> 11665760.36 | E68: =$C68*SUM(E64:E67)/SUM($C$64:$C$67) -> 2662781.645 | F68: 5450479.161 | G68: 3165547.861 | H68: 550076.2635 | I68: 359354.7071
B69: Total Uniform Cost at Present Return | C69: =SUM(C64:C68) -> 499982000 | D69: =SUM(D64:D68) -> 244515393.5 | E69: 55812144.4 | F69: 114242536.8 | G69: 66350169.81 | H69: 11529648.29 | I69: 7532107.201
B71: Uniform Proposed Return | C71: =C32 -> 83600000 | D71: =$C71*D$8/$C$8 -> 41140465.79 | E71: =$C71*E$8/$C$8 -> 9451838.108 | F71: =$C71*F$8/$C$8 -> 19667047.98 | G71: 9590077.535 | H71: 2028093.697 | I71: 1722476.885
B72: Proposed Income Taxes at Unity | C72: =C16+C31 -> 23810000 | D72: 11717158.98 | E72: 2691964.897 | F72: 5601344.647 | G72: 2731336.676 | H72: 577618.5517 | I72: 490576.2516
B73: Operating Expenses (Excl. Rev Rel exp & inc tax) | C73: =SUM(D73:I73) -> 421287000 | D73: =D14 -> 203401731 | E73: =E14 -> 46526054 | F73: 96442519 | G73: 60165472 | H73: 9549776 | I73: 5201448
B74: Deduct Other Operating Revenues | C74: =SUM(D74:I74) -> -60314000 | D74: =-D11-$C$25*D35 -> -27221121 | E74: =-E11-$C$25*E35 -> -6396146 | F74: -14740879 | G74: -10190723 | H74: -1363806 | I74: -401325
B75: Proposed Revenue Related Expenses at Unity | C75: =C15+C30 -> 23489000 | D75: =$C75*SUM(D71:D74)/SUM($C$71:$C$74) -> 11486068.23 | E75: =$C75*SUM(E71:E74)/SUM($C$71:$C$74) -> 2621481.134 | F75: 5364454.082 | G75: 3124098.393 | H75: 541193.477 | I75: 351704.6824
B76: Total Uniform Cost at Proposed Return | C76: =SUM(C71:C75) -> 491872000 | D76: =SUM(D71:D75) -> 240524303 | E76: 54895192.14 | F76: 112334486.7 | G76: 65420261.6 | H76: 11332875.73 | I76: 7364880.819
B78: Revenue Change to Achieve Unity (rounded) | C78: =SUM(D78:I78) -> -8113000 | D78: =ROUND(D76-D10,-3)-2000 -> 25681000 | E78: =ROUND(E76-E10,-3) -> -16409000 | F78: =ROUND(F76-F10,-3) -> -17818000 | G78: =ROUND(G76-G10,-3) -> 225000 | H78: =ROUND(H76-H10,-3) -> -137000 | I78: =ROUND(I76-I10,-3) -> 345000
B80: Revenue to Cost Ratio at Present Rates | C80: =C10/C69 -> 1 | D80: =D10/D69 -> 0.878639978 | E80: =E10/E69 -> 1.27757141 | F80: 1.139260416 | G80: 0.9825897987 | H80: 0.9948265297 | I80: 0.9320101019
B81: Revenue to Cost Ratio at Proposed Rates | C81: =C46/C76 -> 1 | D81: =D46/D76 -> 0.8787309867 | E81: =E46/E76 -> 1.277842441 | F81: 1.13981788 | G81: 0.9803919521 | H81: 0.995682825 | I81: 0.9377112214
B82: Change in Revenue to Cost Ratio | C82: =C81-C80 -> 0 | D82: =D81-D80 -> 9.100874463e-05 | E82: =E81-E80 -> 0.0002710315442 | F82: 0.0005574632643 | G82: =G81-G80 -> -0.002197846607 | H82: 0.000856295313 | I82: =I81-I80 -> 0.00570111946
C83: =C82/(1-C80) ->  | D83: =D82/(1-D80) -> 0.0007499071202 | E83: =E82/(1-E80) -> -0.00097643898 | F83: -0.00400302741 | G83: =G82/(1-G80) -> -0.1262390121 | H83: 0.1655166191 | I83: 0.08385244896

Sheet Bill Determ
A1: AVISTA UTILITIES
A2: WASHINGTON ELECTRIC
A3: ACTUAL / PRO FORMA BILLING DETERMINANTS BY RATE SCHEDULE
A4: 12 MONTHS ENDED SEPTEMBER 30, 2014
A8: Schedule 1 | B8: 0-800 kwhs | C8: 801-1500 kwhs | D8: over 1500 kwhs | E8: Total kwhs | F8: Total Billings(2)
A9: kwhs per billing run(1) | B9: ='Block Data'!O21 -> 1562090324 | C9: ='Block Data'!O22 -> 532041223 | D9: ='Block Data'!O23 -> 349561635 | E9: =B9+C9+D9 -> 2443693182 | F9: ='Rev Runs 12MESEPT2014'!P11*12 -> 2462067
A10: Total kwhs per Rev. Run(2) | E10: ='Rev Runs 12MESEPT2014'!P47 -> 2443693182
A11: Adjust. kwhs to Actual | E11: =E10-E9 -> 0
A14: Schedule 11,12 | B14: 0-3,650 kwhs | C14: over 3,650 kwhs | D14: Total kwhs | E14: kw over 20(1) | F14: Total Billings(2) | G14: kvar billed(1)
A15: kwhs per Revenue Run(1) | B15: ='Block Data'!O38 -> 411760125 | C15: ='Block Data'!O39 -> 184890135 | D15: =B15+C15 -> 596650260 | E15: ='Block Data'!O45 -> 402284 | F15: =SUM('Rev Runs 12MESEPT2014'!P12:P13)*12 -> 364552 | G15: ='Block Data'!O49 -> 14823
A16: Shifted from Sch 21 | B16: 0 | C16: 0 | D16: =SUM(B16:C16) -> 0 | E16: 0 | F16: 0 | G16: 0
A17: Total by Block | B17: =SUM(B15:B16) -> 411760125 | C17: =SUM(C15:C16) -> 184890135 | D17: 596650260 | E17: 402284 | F17: 364552 | G17: 14823
A18: Total kwhs per Rev. Run(2) | D18: ='Rev Runs 12MESEPT2014'!P48+'Rev Runs 12MESEPT2014'!P49 -> 596650260
A19: Schedule Shifting from 21 | D19: =D16 -> 0
A20: Total Adjusted kwhs | D20: =D18+D19 -> 596650260
A21: Adjust. kwhs to Actual | D21: =D20-D17 -> 0
A24: Schedule 21,22 | B24: 0-250,000 kwhs | C24: over 250,000 kwhs | D24: Total kwhs | E24: kw over 50(1) | F24: Total Billings(2) | G24: kvar billed(1)
A25: kwhs per Revenue Run(1) | B25: ='Block Data'!O64 -> 1262061453 | C25: ='Block Data'!O65 -> 166633500 | D25: =B25+C25 -> 1428694953 | E25: ='Block Data'!O71 -> 2748136 | F25: =SUM('Rev Runs 12MESEPT2014'!P14:P15)*12 -> 24110 | G25: ='Block Data'!O75 -> 254593
A26: Special Contract Shifted to Sched 21 | B26: 0 | C26: 0 | D26: =SUM(B26:C26) -> 0 | E26: 0 | F26: 0 | G26: 0
A27: Shifted to Sch 011(4) | B27: =-D16 -> 0 | C27: 0 | D27: =SUM(B27:C27) -> 0 | E27: 0 | F27: =-F16 -> 0 | G27: 0
A28: Total | B28: =SUM(B25:B27) -> 1262061453 | C28: =SUM(C25:C27) -> 166633500 | D28: =SUM(B28:C28) -> 1428694953 | E28: =SUM(E25:E27) -> 2748136 | F28: =SUM(F25:F27) -> 24110 | G28: =SUM(G25:G27) -> 254593
A29: Total kwhs per Rev. Run(2) | D29: ='Rev Runs 12MESEPT2014'!P50+'Rev Runs 12MESEPT2014'!P51 -> 1428694953
A30: Schedule Shifting to Sch. 21 | D30: =D26 -> 0
A31: Schedule Shifting to Sch. 11 | D31: =D27 -> 0
A32: Total adjusted kwhs | D32: =D29+D30+D31 -> 1428694953
A33: Adjust. kwhs to Actual | D33: =D32-D28 -> 0
A36: Schedule 25(3) | B36: 0-500,000 kwhs | C36: 500,001-6M kwhs | D36: > 6M kwhs | E36: Total kwhs | F36: kva over 3,000 | G36: Total Billings(2)
A37: Total | B37: ='WA Sch 25'!Q25 -> 126000000 | C37: ='WA Sch 25'!R25 -> 558890760 | D37: ='WA Sch 25'!S25 -> 420481376 | E37: =SUM(B37:D37) -> 1105372136 | F37: ='WA Sch 25'!P85 -> 1276783 | G37: =21*12 -> 252
A40: Schedule 30, 31, & 32 | B40: Block 1 kwhs | C40: Block 2 kwhs | D40: Block 3 kwhs | E40: Total kwhs | F40: Total Billings(2) | G40: kvar billed(1)
A41: kwhs per billing run (30,31& 32)(1) | B41: ='Block Data'!O92 -> 40542913.69 | C41: ='Block Data'!O93 -> 10633286.86 | D41: ='Block Data'!O94 -> 85950103.45 | E41: =B41+C41+D41 -> 137126304 | F41: =SUM('Rev Runs 12MESEPT2014'!P17:P19)*12 -> 29216 | G41: ='Block Data'!O99 -> 9640
A42: Total Schs. 30,31&32 | D42: =D41 -> 85950103.45 | E42: =E41 -> 137126304
A43: Total kwhs per Rev. Run(2) | E43: ='Rev Runs 12MESEPT2014'!P53+'Rev Runs 12MESEPT2014'!P54+'Rev Runs 12MESEPT2014'!P55 -> 137126304
A44: Adjust kwhs to Actual | E44: =E43-E42 -> 0
A48: (1) From workpaper PDE-E-22/23
A49: (2) From workpaper PDE-E-19
A50: (3) From workpaper PDE-E-7/8
A61: Revenue Runs from this sheet | B61: =E10+D18+D29+E43+E37 -> 5711536835
A63: actual Revenue Runs | B63: ='Rev Runs 12MESEPT2014'!P70 -> 5733334958
A64: less:
A65: Sch 25 Adj | B65: ='Rev Runs 12MESEPT2014'!P52-'Bill Determ'!E37 -> -3329642 | C65: rev. runs too high
A67: Sch shifting | B67: =D26 -> 0 | C67: not shown on this sheet
A68: Schs 41-48 St & Area Lt | B68: =SUM('Rev Runs 12MESEPT2014'!P56:P63) -> 25127765 | C68: not shown on this sheet
B69: =B63-SUM(B65:B68) -> 5711536835
A70: Diff | B70: =B61-B69 -> 0
A72: from Present Rev tab | B72: ='Pres & Prop Rev'!C20-'Pres & Prop Rev'!C15 -> 5736664600
A73: this sheet + SAL | B73: =B61+B68+B67 -> 5736664600
A74: Diff | B74: =B72-B73 -> 0
A77: Rev. Run customers | B77: ='Rev Runs 12MESEPT2014'!P34*12 -> 2884769
A78: less:
A79: normalize Sch 25 | B79: =('Rev Runs 12MESEPT2014'!P16*12)-G37 -> 0 | C79: rev. runs too high
A80: Sch Shifting | B80: =-F26 -> 0 | C80: not shown on this sheet
A81: Schs 41-48 St & Area Lt | B81: =SUM('Rev Runs 12MESEPT2014'!P20:P27)*12 -> 4572 | C81: not shown on this sheet
B82: =B77-SUM(B78:B81) -> 2880197
A84: from Present Rev tab | B84: =SUM('Pres & Prop Rev'!D25:I25) -> 2880197
A85: Diff | B85: =B82-B84 -> 0

Sheet Bill Impact
A3: Schedule 001 Bill Impact
A7: Schedule 001 Present | G7: Schedule 001 Proposed
B8: Basic Charge | C8: Block 1 | D8: Block 2 | E8: Total Bill | G8: Basic Charge | H8: Block 1 | I8: Block 2 | J8: Total Bill | L8: Bill Impact | M8: % Change
B9: ='Page 2'!D12 -> 8.5 | C9: ='Page 2'!F14 -> 0.07926 | D9: ='Page 2'!F15 -> 0.09134 | G9: ='Page 2'!O12 -> 8.5 | H9: =C9+'[1]Power Cost Rate Adjustment'!I13 -> 0.08201400239 | I9: =D9+'[1]Power Cost Rate Adjustment'!I13 -> 0.09409400239
A10: 100 | B10: =$B$9 -> 8.5 | C10: =A10*$C$9 -> 7.926 | E10: =SUM(B10:D10) -> 16.426 | G10: =$G$9 -> 8.5 | H10: =A10*$H$9 -> 8.201400239 | J10: =SUM(G10:I10) -> 16.70140024 | L10: =J10-E10 -> 0.2754002388 | M10: =L10/E10 -> 0.01676611706
A11: 200 | B11: =$B$9 -> 8.5 | C11: =A11*$C$9 -> 15.852 | E11: =SUM(B11:D11) -> 24.352 | G11: =$G$9 -> 8.5 | H11: =A11*$H$9 -> 16.40280048 | J11: =SUM(G11:I11) -> 24.90280048 | L11: =J11-E11 -> 0.5508004776 | M11: =L11/E11 -> 0.02261828505
A12: 300 | B12: 8.5 | C12: 23.778 | E12: 32.278 | G12: 8.5 | H12: 24.60420072 | J12: 33.10420072 | L12: 0.8262007164 | M12: 0.02559640363
A13: 400 | B13: 8.5 | C13: 31.704 | E13: 40.204 | G13: 8.5 | H13: 32.80560096 | J13: 41.30560096 | L13: 1.101600955 | M13: 0.02740028244
A14: 500 | B14: 8.5 | C14: 39.63 | E14: 48.13 | G14: 8.5 | H14: 41.00700119 | J14: 49.50700119 | L14: 1.377001194 | M14: 0.02861003935
A15: 600 | B15: =$B$9 -> 8.5 | C15: =A15*$C$9 -> 47.556 | E15: =SUM(B15:D15) -> 56.056 | G15: =$G$9 -> 8.5 | H15: =A15*$H$9 -> 49.20840143 | J15: =SUM(G15:I15) -> 57.70840143 | L15: 1.652401433 | M15: =L15/E15 -> 0.02947769075
A16: 700 | B16: 8.5 | C16: =A16*$C$9 -> 55.482 | E16: =SUM(B16:D16) -> 63.982 | G16: 8.5 | H16: =A16*$H$9 -> 57.40980167 | J16: =SUM(G16:I16) -> 65.90980167 | L16: 1.927801672 | M16: =L16/E16 -> 0.03013037529
A17: 800 | B17: 8.5 | C17: =A17*$C$9 -> 63.408 | E17: 71.908 | G17: 8.5 | H17: =A17*$H$9 -> 65.61120191 | J17: 74.11120191 | L17: 2.20320191 | M17: 0.03063917659
A18: 938 | B18: 8.5 | C18: =ROUND($C$17,2) -> 63.41 | D18: =ROUND((A18-$A$17)*$D$9,2) -> 12.6 | E18: 84.51 | G18: 8.5 | H18: =ROUND($H$17,2) -> 65.61 | I18: =ROUND((A18-$A$17)*$I$9,2) -> 12.98 | J18: =SUM(G18:I18) -> 87.09 | L18: 2.58 | M18: 0.03052893149
A19: 1000 | B19: 8.5 | C19: =ROUND($C$17,2) -> 63.41 | D19: =ROUND((A19-$A$17)*$D$9,2) -> 18.27 | E19: 90.18 | G19: 8.5 | H19: =ROUND($H$17,2) -> 65.61 | I19: =ROUND((A19-$A$17)*$I$9,2) -> 18.82 | J19: 92.93 | L19: 2.75 | M19: 0.03049456642
A20: 1100 | B20: 8.5 | C20: =$C$17 -> 63.408 | D20: =(A20-$A$17)*$D$9 -> 27.402 | E20: =SUM(B20:D20) -> 99.31 | G20: 8.5 | H20: =$H$17 -> 65.61120191 | I20: =(A20-$A$17)*$I$9 -> 28.22820072 | J20: =SUM(G20:I20) -> 102.3394026 | L20: 3.029402627 | M20: =L20/E20 -> 0.03050450737
A21: 1200 | B21: 8.5 | C21: 63.408 | D21: =(A21-$A$17)*$D$9 -> 36.536 | E21: 108.444 | G21: 8.5 | H21: 65.61120191 | I21: =(A21-$A$17)*$I$9 -> 37.63760096 | J21: 111.7488029 | L21: 3.304802866 | M21: 0.03047474149
A22: 1300 | B22: 8.5 | C22: 63.408 | D22: =(A22-$A$17)*$D$9 -> 45.67 | E22: =SUM(B22:D22) -> 117.578 | G22: 8.5 | H22: 65.61120191 | I22: =(A22-$A$17)*$I$9 -> 47.04700119 | J22: =SUM(G22:I22) -> 121.1582031 | L22: 3.580203104 | M22: =L22/E22 -> 0.0304496003
A23: 1400 | B23: 8.5 | C23: 63.408 | D23: =(A23-$A$17)*$D$9 -> 54.804 | E23: 126.712 | G23: 8.5 | H23: 65.61120191 | I23: 56.45640143 | J23: 130.5676033 | L23: 3.855603343 | M23: 0.03042808371
A24: 1500 | B24: 8.5 | C24: 63.408 | D24: 63.938 | E24: 135.846 | G24: 8.5 | H24: 65.61120191 | I24: 65.86580167 | J24: 139.9770036 | L24: 4.131003582 | M24: 0.03040946058

Sheet WA Sch 25
A1: Washington Schedule 25 Billing Determinants | Q1: 1st | R1: =Q2 -> 500000 | S1: =R2 -> 6000000
P2: 12-mo Ended | Q2: 500000 | R2: 6000000 | S2: 99999999
A3: KWHs | C3: Acct No. | D3: 2013-10-01 | E3: 2013-11-01 | F3: 2013-12-01 | G3: 2014-01-01 | H3: 2014-02-01 | I3: 2014-03-01 | J3: 2014-04-01 | K3: 2014-05-01 | L3: 2014-06-01 | M3: 2014-07-01 | N3: 2014-08-01 | O3: 2014-09-01 | P3: Total | Q3: kwhs/mo | R3: kwhs/mo | S3: kwhs/mo
A4: 1 | B4: BF Goodrich | C4: 770037736 | D4: 4298263 | E4: 4939355 | F4: 5252512 | G4: 5003666 | H4: 5142014 | I4: 5585572 | J4: 5291105 | K4: 5742085 | L4: 5130640 | M4: 5548221 | N4: 5068140 | O4: 5737595 | P4: =SUM(D4:O4) -> 62739168 | Q4: =Q$2*12-SUMPRODUCT(--($D4:$O4<=Q$2),Q$2-$D4:$O4) -> 6000000 | R4: =R$2*12-SUM($Q4:Q4)-SUMPRODUCT(--($D4:$O4<=R$2),R$2-$D4:$O4) -> 56739168 | S4: =S$2*12-SUM($Q4:R4)-SUMPRODUCT(--($D4:$O4<=S$2),S$2-$D4:$O4) -> 0
A5: 2 | B5: Boise Cascade Plywood | C5: 500017 | D5: 3441942 | E5: 3185935 | F5: 2807255 | G5: 3022123 | H5: 3149362 | I5: 3389341 | J5: 3302817 | K5: 3245936 | L5: 3132003 | M5: 3212152 | N5: 3276412 | O5: 3177657 | P5: 38342935 | Q5: =Q$2*12-SUMPRODUCT(--($D5:$O5<=Q$2),Q$2-$D5:$O5) -> 6000000 | R5: =R$2*12-SUM($Q5:Q5)-SUMPRODUCT(--($D5:$O5<=R$2),R$2-$D5:$O5) -> 32342935 | S5: =S$2*12-SUM($Q5:R5)-SUMPRODUCT(--($D5:$O5<=S$2),S$2-$D5:$O5) -> 0
A6: 3 | B6: Boise Cascade Sawmill | C6: 500018 | D6: 1490478 | E6: 1344666 | F6: 1427467 | G6: 1507426 | H6: 1391380 | I6: 1468131 | J6: 1414812 | K6: 1343626 | L6: 1285155 | M6: 1389185 | N6: 1377793 | O6: 1340464 | P6: 16780583 | Q6: 6000000 | R6: =R$2*12-SUM($Q6:Q6)-SUMPRODUCT(--($D6:$O6<=R$2),R$2-$D6:$O6) -> 10780583 | S6: =S$2*12-SUM($Q6:R6)-SUMPRODUCT(--($D6:$O6<=S$2),S$2-$D6:$O6) -> 0
A7: 4 | B7: City of Spokane Sewage Treatment Plt | C7: 1900002 | D7: 1326433 | E7: 1407945 | F7: 1520566 | G7: 1454695 | H7: 1321418 | I7: 1451591 | J7: 1336505 | K7: 1377450 | L7: 1353208 | M7: 1410226 | N7: 1356961 | O7: 1323317 | P7: 16640315 | Q7: 6000000 | R7: =R$2*12-SUM($Q7:Q7)-SUMPRODUCT(--($D7:$O7<=R$2),R$2-$D7:$O7) -> 10640315 | S7: =S$2*12-SUM($Q7:R7)-SUMPRODUCT(--($D7:$O7<=S$2),S$2-$D7:$O7) -> 0
A8: 5 | B8: Deaconess Medical Center | C8: 1900011 | D8: 1741083 | E8: 1670632 | F8: 1757337 | G8: 1799152 | H8: 1605608 | I8: 1731135 | J8: 1677375 | K8: 1860709 | L8: 1865157 | M8: 2247046 | N8: 2168542 | O8: 1851413 | P8: 21975189 | Q8: 6000000 | R8: =R$2*12-SUM($Q8:Q8)-SUMPRODUCT(--($D8:$O8<=R$2),R$2-$D8:$O8) -> 15975189 | S8: =S$2*12-SUM($Q8:R8)-SUMPRODUCT(--($D8:$O8<=S$2),S$2-$D8:$O8) -> 0
A9: 6 | B9: Gonzaga University | C9: 622922 | D9: 2231729 | E9: 2312719 | F9: 2538351 | G9: 2449541 | H9: 2411794 | I9: 2251724 | J9: 2055710 | K9: 1778151 | L9: 1660896 | M9: 2130299 | N9: 1954266 | O9: 2096335 | P9: 25871515 | Q9: 6000000 | R9: =R$2*12-SUM($Q9:Q9)-SUMPRODUCT(--($D9:$O9<=R$2),R$2-$D9:$O9) -> 19871515 | S9: =S$2*12-SUM($Q9:R9)-SUMPRODUCT(--($D9:$O9<=S$2),S$2-$D9:$O9) -> 0
A10: 7 | B10: Honeywell Electronics | C10: 2304636 | D10: 1111818 | E10: 1088531 | F10: 1171314 | G10: 1331397 | H10: 1231416 | I10: 1412046 | J10: 1290159 | K10: 1275296 | L10: 1326023 | M10: 1560055 | N10: 1574636 | O10: 1416531 | P10: 15789222 | Q10: 6000000 | R10: =R$2*12-SUM($Q10:Q10)-SUMPRODUCT(--($D10:$O10<=R$2),R$2-$D10:$O10) -> 9789222 | S10: =S$2*12-SUM($Q10:R10)-SUMPRODUCT(--($D10:$O10<=S$2),S$2-$D10:$O10) -> 0
A11: 8 | B11: Huntwood Industries | C11: 610074869 | D11: 1219487 | E11: 1044228 | F11: 1081609 | G11: 1171895 | H11: 1039508 | I11: 1027559 | J11: 1127517 | K11: 1143875 | L11: 1180880 | M11: 1272910 | N11: 1086487 | O11: 1103038 | P11: 13498993 | Q11: 6000000 | R11: =R$2*12-SUM($Q11:Q11)-SUMPRODUCT(--($D11:$O11<=R$2),R$2-$D11:$O11) -> 7498993 | S11: =S$2*12-SUM($Q11:R11)-SUMPRODUCT(--($D11:$O11<=S$2),S$2-$D11:$O11) -> 0
A12: 9 | B12: Inland Empire Paper | C12: 2500004 | D12: 41469952 | E12: 38710524 | F12: 40892560 | G12: 39997142 | H12: 37589022 | I12: 44227810 | J12: 42531394 | K12: 41295298 | L12: 39269360 | M12: 41965448 | N12: 42932314 | O12: 41600552 | P12: 492481376 | Q12: 6000000 | R12: =R$2*12-SUM($Q12:Q12)-SUMPRODUCT(--($D12:$O12<=R$2),R$2-$D12:$O12) -> 66000000 | S12: =S$2*12-SUM($Q12:R12)-SUMPRODUCT(--($D12:$O12<=S$2),S$2-$D12:$O12) -> 420481376
A13: 10 | B13: JR Simplot | C13: 290048778 | D13: 5491088 | E13: 4760582 | F13: 4761418 | G13: 5213720 | H13: 4575413 | I13: 4687418 | J13: 4408215 | K13: 4754022 | L13: 3930381 | M13: 4123631 | N13: 5713247 | O13: 5280702 | P13: 57699837 | Q13: 6000000 | R13: =R$2*12-SUM($Q13:Q13)-SUMPRODUCT(--($D13:$O13<=R$2),R$2-$D13:$O13) -> 51699837 | S13: =S$2*12-SUM($Q13:R13)-SUMPRODUCT(--($D13:$O13<=S$2),S$2-$D13:$O13) -> 0
A14: 11 | B14: McCaine Foods Inc | C14: 2500003 | D14: 5514180 | E14: 5581710 | F14: 4994259 | G14: 5721912 | H14: 4903959 | I14: 5233637 | J14: 5228882 | K14: 5297074 | L14: 5420677 | M14: 3492653 | N14: 5806455 | O14: 4849712 | P14: 62045110 | Q14: 6000000 | R14: =R$2*12-SUM($Q14:Q14)-SUMPRODUCT(--($D14:$O14<=R$2),R$2-$D14:$O14) -> 56045110 | S14: =S$2*12-SUM($Q14:R14)-SUMPRODUCT(--($D14:$O14<=S$2),S$2-$D14:$O14) -> 0
A15: 12 | B15: Sacred Heart Medical Center | C15: 500020 | D15: 3353467 | E15: 3190043 | F15: 3361489 | G15: 5447727 | H15: 3084727 | I15: 3294449 | J15: 3264427 | K15: 3777375 | L15: 3812724 | M15: 4719720 | N15: 4609496 | O15: 3949487 | P15: 45865131 | Q15: 6000000 | R15: =R$2*12-SUM($Q15:Q15)-SUMPRODUCT(--($D15:$O15<=R$2),R$2-$D15:$O15) -> 39865131 | S15: =S$2*12-SUM($Q15:R15)-SUMPRODUCT(--($D15:$O15<=S$2),S$2-$D15:$O15) -> 0
A16: 13 | B16: Spokane County Courthouse | C16: 1900012 | D16: 1039565 | E16: 941046 | F16: 1017773 | G16: 1005776 | H16: 921837 | I16: 961575 | J16: 974564 | K16: 1106167 | L16: 1116526 | M16: 1327393 | N16: 1299169 | O16: 1117992 | P16: 12829383 | Q16: 6000000 | R16: =R$2*12-SUM($Q16:Q16)-SUMPRODUCT(--($D16:$O16<=R$2),R$2-$D16:$O16) -> 6829383 | S16: =S$2*12-SUM($Q16:R16)-SUMPRODUCT(--($D16:$O16<=S$2),S$2-$D16:$O16) -> 0
A17: 14 | B17: Spokane Steel Foundry | C17: 2400169 | D17: 956655 | E17: 910645 | F17: 883817 | G17: 1138651 | H17: 1093286 | I17: 1270034 | J17: 1260055 | K17: 1241281 | L17: 1298773 | M17: 1365046 | N17: 1254636 | O17: 1241065 | P17: 13913944 | Q17: 6000000 | R17: =R$2*12-SUM($Q17:Q17)-SUMPRODUCT(--($D17:$O17<=R$2),R$2-$D17:$O17) -> 7913944 | S17: =S$2*12-SUM($Q17:R17)-SUMPRODUCT(--($D17:$O17<=S$2),S$2-$D17:$O17) -> 0
A18: 15 | B18: Triumph Composite / Boeing | C18: 690067830 | D18: 1392930 | E18: 1288430 | F18: 1199293 | G18: 1456258 | H18: 1311513 | I18: 1385672 | J18: 1382363 | K18: 1458072 | L18: 1498048 | M18: 1686548 | N18: 1617727 | O18: 1510505 | P18: 17187359 | Q18: 6000000 | R18: =R$2*12-SUM($Q18:Q18)-SUMPRODUCT(--($D18:$O18<=R$2),R$2-$D18:$O18) -> 11187359 | S18: =S$2*12-SUM($Q18:R18)-SUMPRODUCT(--($D18:$O18<=S$2),S$2-$D18:$O18) -> 0
A19: 16 | B19: Vaagen Brothers Lumber | C19: 1300001 | D19: 1965359 | E19: 2173242 | F19: 2247997 | G19: 2343068 | H19: 2067458 | I19: 2079437 | J19: 1736342 | K19: 1893472 | L19: 1921847 | M19: 1864324 | N19: 1840793 | O19: 1887491 | P19: 24020830 | Q19: 6000000 | R19: =R$2*12-SUM($Q19:Q19)-SUMPRODUCT(--($D19:$O19<=R$2),R$2-$D19:$O19) -> 18020830 | S19: =S$2*12-SUM($Q19:R19)-SUMPRODUCT(--($D19:$O19<=S$2),S$2-$D19:$O19) -> 0
A20: 17 | B20: WSU - MP-A South Campus Feeder | C20: 290081951 | D20: 2328015 | E20: 2270912 | F20: 2568272 | G20: 2573491 | H20: 2328295 | I20: 2294454 | J20: 2178798 | K20: 2122803 | L20: 2033114 | M20: 2120238 | N20: 2122512 | O20: 2183944 | P20: 27124848 | Q20: 6000000 | R20: =R$2*12-SUM($Q20:Q20)-SUMPRODUCT(--($D20:$O20<=R$2),R$2-$D20:$O20) -> 21124848 | S20: =S$2*12-SUM($Q20:R20)-SUMPRODUCT(--($D20:$O20<=S$2),S$2-$D20:$O20) -> 0
A21: 18 | B21: WSU - MP-B East Campus EA | C21: 500033 | D21: 3661463 | E21: 3750575 | F21: 4129253 | G21: 4173718 | H21: 3793923 | I21: 3602586 | J21: 3254870 | K21: 3555304 | L21: 3584454 | M21: 4878641 | N21: 4750503 | O21: 4239383 | P21: 47374673 | Q21: 6000000 | R21: =R$2*12-SUM($Q21:Q21)-SUMPRODUCT(--($D21:$O21<=R$2),R$2-$D21:$O21) -> 41374673 | S21: =S$2*12-SUM($Q21:R21)-SUMPRODUCT(--($D21:$O21<=S$2),S$2-$D21:$O21) -> 0
A22: 19 | B22: WSU - MP-C East Campus EB | C22: 410031282 | D22: 2937824 | E22: 3014865 | F22: 3249981 | G22: 3159883 | H22: 2895841 | I22: 2936678 | J22: 2696707 | K22: 2650914 | L22: 2536934 | M22: 2687164 | N22: 2677878 | O22: 2619960 | P22: 34064629 | Q22: 6000000 | R22: =R$2*12-SUM($Q22:Q22)-SUMPRODUCT(--($D22:$O22<=R$2),R$2-$D22:$O22) -> 28064629 | S22: =S$2*12-SUM($Q22:R22)-SUMPRODUCT(--($D22:$O22<=S$2),S$2-$D22:$O22) -> 0
A23: 20 | B23: WSU - MP -D Casp East (no PVD) | C23: 500032 | D23: 2449064 | E23: 2381208 | F23: 2495880 | G23: 2445576 | H23: 2347368 | I23: 2516128 | J23: 2590408 | K23: 2487696 | L23: 2372384 | M23: 2553000 | N23: 2621672 | O23: 2605512 | P23: 29865896 | Q23: 6000000 | R23: =R$2*12-SUM($Q23:Q23)-SUMPRODUCT(--($D23:$O23<=R$2),R$2-$D23:$O23) -> 23865896 | S23: =S$2*12-SUM($Q23:R23)-SUMPRODUCT(--($D23:$O23<=S$2),S$2-$D23:$O23) -> 0
A24: 21 | B24: WSU - MP-E Casp West (no PVD) | C24: 500034 | D24: 2420896 | E24: 2173008 | F24: 2130896 | G24: 2198888 | H24: 2245216 | I24: 2167624 | J24: 2308624 | K24: 2278376 | L24: 2154656 | M24: 3281344 | N24: 3155888 | O24: 2745784 | P24: 29261200 | Q24: 6000000 | R24: =R$2*12-SUM($Q24:Q24)-SUMPRODUCT(--($D24:$O24<=R$2),R$2-$D24:$O24) -> 23261200 | S24: =S$2*12-SUM($Q24:R24)-SUMPRODUCT(--($D24:$O24<=S$2),S$2-$D24:$O24) -> 0
B25: Schedule 25 Total | D25: =SUM(D4:D24) -> 91841691 | E25: 88140801 | F25: 91489299 | G25: 94615705 | H25: 86450358 | I25: 94974601 | J25: 91311649 | K25: 91684982 | L25: 87883840 | M25: 94835244 | N25: 98265527 | O25: 93878439 | P25: =IF(ROUND(SUM(P4:P24),0)<>ROUND(SUM(D25:O25),0),#VALUE!,SUM(P4:P24)) -> 1105372136 | Q25: =SUM(Q4:Q24) -> 126000000 | R25: =SUM(R4:R24) -> 558890760 | S25: =SUM(S4:S24) -> 420481376
S26: =SUM(Q25:S25) -> 1105372136
B27: Revenue Run Total | D27: 90540039 | E27: 89392627 | F27: 90598623 | G27: 91489298 | H27: 94615706 | I27: 86450358 | J27: 94974601 | K27: 91311649 | L27: 91684982 | M27: 87883840 | N27: 94835244 | O27: 98265527 | P27: =SUM(D27:O27) -> 1102042494
B28: Booked Unbilled Reversal | D28: -90506847 | E28: -91858241 | F28: -90789289 | G28: -92260234 | H28: -94502093 | I28: -86431641 | J28: -95082095 | K28: -91276026 | L28: -91640677 | M28: -87808773 | N28: -94827476 | O28: -98329239 | P28: =SUM(D28:O28) -> -1105312631
B29: Gross Booked Unbilled | D29: 91858241 | E29: 90789289 | F29: 92260234 | G29: 94502093 | H29: 86431641 | I29: 95082095 | J29: 91276026 | K29: 91640677 | L29: 87808773 | M29: 94827476 | N29: 98329239 | O29: 93914752 | P29: =SUM(D29:O29) -> 1108720536
B30: Gross Unbilled True-up | D30: -16550 | E30: -2648488 | F30: -770935 | G30: 113612 | H30: 18717 | I30: -107494 | J30: 35623 | K30: 44305 | L30: 75067 | M30: 7768 | N30: -63712 | O30: -36313 | P30: -3348400
B31: Unbilled Reversal True-up | D31: -33192 | E31: 2465614 | F31: 190666 | G31: 770936 | H31: -113613 | I31: -18717 | J31: 107494 | K31: -35623 | L31: -44305 | M31: -75067 | N31: -7768 | O31: 63712 | P31: 3270137
P32: 0
P33: 0
B34: Adj Revenue Runs, Sch 25 | D34: =SUM(D27:D33) -> 91841691 | E34: 88140801 | F34: 91489299 | G34: 94615705 | H34: 86450358 | I34: 94974601 | J34: 91311649 | K34: =SUM(K27:K33) -> 91684982 | L34: =SUM(L27:L33) -> 87883840 | M34: =SUM(M27:M33) -> 94835244 | N34: 98265527 | O34: 93878439 | P34: =IF(ROUND(SUM(P27:P33),0)<>ROUND(SUM(D34:O34),0),#VALUE!,SUM(P27:P33)) -> 1105372136
D35: =D34-D25 -> 0 | E35: 0 | F35: 0 | G35: 0 | H35: 0 | I35: 0 | J35: 0 | K35: 0 | L35: 0 | M35: 0 | N35: 0 | O35: 0 | P35: 0
B38: KVA | D38: =D$3 -> 2013-10-01 | E38: =E$3 -> 2013-11-01 | F38: 2013-12-01 | G38: 2014-01-01 | H38: 2014-02-01 | I38: 2014-03-01 | J38: 2014-04-01 | K38: 2014-05-01 | L38: 2014-06-01 | M38: 2014-07-01 | N38: 2014-08-01 | O38: 2014-09-01 | P38: Total | Q38: Peak | R38: Month
A39: 1 | B39: BF Goodrich | C39: 770037736 | D39: 10811 | E39: 9762 | F39: 10398 | G39: 10417 | H39: 11138 | I39: 9790 | J39: 10641 | K39: 10682 | L39: 10109 | M39: 10740 | N39: 10529 | O39: 10784 | P39: =SUM(D39:O39) -> 125801 | Q39: =MAX(D39:O39) -> 11138 | R39: =INDEX($D$38:$O$38,MATCH(Q39,$D39:$O39,0)) -> 2014-02-01
A40: 2 | B40: Boise Cascade Plywood | C40: 500017 | D40: 5438 | E40: 5456 | F40: 5456 | G40: 5521 | H40: 5733 | I40: 5310 | J40: 5464 | K40: 5316 | L40: 5184 | M40: 5188 | N40: 5218 | O40: 5310 | P40: 64594 | Q40: =MAX(D40:O40) -> 5733 | R40: =INDEX($D$38:$O$38,MATCH(Q40,$D40:$O40,0)) -> 2014-02-01
A41: 3 | B41: Boise Cascade Sawmill | C41: 500018 | D41: 3231 | E41: 3267 | F41: 3327 | G41: 3236 | H41: 3296 | I41: 3202 | J41: 3114 | K41: 3037 | L41: 2971 | M41: 2910 | N41: 2983 | O41: 3068 | P41: 37642 | Q41: 3327 | R41: 2013-12-01
A42: 4 | B42: City of Spokane Sewage Treatment Plt | C42: 1900002 | D42: 2594 | E42: 2786 | F42: 2751 | G42: 2725 | H42: 2706 | I42: 2661 | J42: 2547 | K42: 2554 | L42: 2881 | M42: 2934 | N42: 2904 | O42: 2616 | P42: 32659 | Q42: 2934 | R42: 2014-07-01
A43: 5 | B43: Deaconess Medical Center | C43: 1900011 | D43: 3215 | E43: 2829 | F43: 2920 | G43: 2953 | H43: 2991 | I43: 2902 | J43: 3416 | K43: 3626 | L43: 3910 | M43: 4150 | N43: 4083 | O43: 3667 | P43: 40662 | Q43: 4150 | R43: 2014-07-01
A44: 6 | B44: Gonzaga University | C44: 622922 | D44: 4078 | E44: 4651 | F44: 5063 | G44: 4811 | H44: 5277 | I44: 4683 | J44: 4052 | K44: 4754 | L44: 4153 | M44: 5200 | N44: 4929 | O44: 5187 | P44: 56838 | Q44: 5277 | R44: 2014-02-01
A45: 7 | B45: Honeywell Electronics | C45: 2304636 | D45: 2829 | E45: 2950 | F45: 3013 | G45: 3177 | H45: 3195 | I45: 3224 | J45: 3200 | K45: 3210 | L45: 3550 | M45: 3897 | N45: 3761 | O45: 3625 | P45: 39631 | Q45: 3897 | R45: 2014-07-01
A46: 8 | B46: Huntwood Industries | C46: 610074869 | D46: 4199 | E46: 4192 | F46: 4205 | G46: 4207 | H46: 4247 | I46: 4217 | J46: 4254 | K46: 4384 | L46: 4373 | M46: 4404 | N46: 4247 | O46: 4275 | P46: 51204 | Q46: 4404 | R46: 2014-07-01
A47: 9 | B47: Inland Empire Paper | C47: 2500004 | D47: 61097 | E47: 61341 | F47: 62976 | G47: 62898 | H47: 63227 | I47: 65304 | J47: 64739 | K47: 64357 | L47: 63682 | M47: 62338 | N47: 62011 | O47: 62126 | P47: 756096 | Q47: 65304 | R47: 2014-03-01
A48: 10 | B48: JR Simplot | C48: 290048778 | D48: 8204 | E48: 8234 | F48: 8417 | G48: 8279 | H48: 8078 | I48: 8151 | J48: 8298 | K48: 8433 | L48: 8263 | M48: 8277 | N48: 8522 | O48: 8266 | P48: 99422 | Q48: 8522 | R48: 2014-08-01
A49: 11 | B49: McCaine Foods Inc | C49: 2500003 | D49: 9390 | E49: 9057 | F49: 9294 | G49: 8857 | H49: 8948 | I49: 9062 | J49: 9026 | K49: 9094 | L49: 9465 | M49: 9139 | N49: 9426 | O49: 9316 | P49: 110074 | Q49: 9465 | R49: 2014-06-01
A50: 12 | B50: Sacred Heart Medical Center | C50: 500020 | D50: 6164 | E50: 5479 | F50: 5521 | G50: 5495 | H50: 5555 | I50: 5693 | J50: 6667 | K50: 7559 | L50: 7644 | M50: 8596 | N50: 8376 | O50: 7928 | P50: 80677 | Q50: 8596 | R50: 2014-07-01
A51: 13 | B51: Spokane County Courthouse | C51: 1900012 | D51: 2430 | E51: 2061 | F51: 2096 | G51: 2100 | H51: 2120 | I51: 2049 | J51: 2380 | K51: 2856 | L51: 2799 | M51: 3128 | N51: 3141 | O51: 2852 | P51: 30012 | Q51: 3141 | R51: 2014-08-01
A52: 14 | B52: Spokane Steel Foundry | C52: 2400169 | D52: 5192 | E52: 5116 | F52: 5191 | G52: 5161 | H52: 5050 | I52: 5194 | J52: 4992 | K52: 4872 | L52: 5095 | M52: 4912 | N52: 4927 | O52: 4942 | P52: 60644 | Q52: 5194 | R52: 2014-03-01
A53: 15 | B53: Triumph Composite / Boeing | C53: 690067830 | D53: 2904 | E53: 2960 | F53: 2998 | G53: 2928 | H53: 3002 | I53: 2818 | J53: 2965 | K53: 3504 | L53: 3369 | M53: 3960 | N53: 3937 | O53: 3407 | P53: 38752 | Q53: 3960 | R53: 2014-07-01
A54: 16 | B54: Vaagen Brothers Lumber | C54: 1300001 | D54: 4566 | E54: 4975 | F54: 4824 | G54: 4959 | H54: 4673 | I54: 4587 | J54: 4158 | K54: 4379 | L54: 4348 | M54: 4248 | N54: 4162 | O54: 4378 | P54: 54257 | Q54: 4975 | R54: 2013-11-01
A55: 17 | B55: WSU - MP-A South Campus Feeder | C55: 290081951 | D55: 4919 | E55: 4583 | F55: 4540 | G55: 4464 | H55: 4743 | I55: 4281 | J55: 3990 | K55: 4054 | L55: 3952 | M55: 4052 | N55: 3937 | O55: 4011 | P55: 51526 | Q55: 4919 | R55: 2013-10-01
A56: 18 | B56: WSU - MP-B East Campus EA | C56: 500033 | D56: 6816 | E56: 7504 | F56: 8396 | G56: 7990 | H56: 7769 | I56: 7583 | J56: 7065 | K56: 8589 | L56: 8280 | M56: 11065 | N56: 10528 | O56: 3054 | P56: 94639 | Q56: 11065 | R56: 2014-07-01
A57: 19 | B57: WSU - MP-C East Campus EB | C57: 410031282 | D57: 5815 | E57: 5632 | F57: 5633 | G57: 5679 | H57: 5607 | I57: 5386 | J57: 5157 | K57: 4731 | L57: 7476 | M57: 6560 | N57: 6377 | O57: 4861 | P57: 68914 | Q57: 7476 | R57: 2014-06-01
A58: 20 | B58: WSU - MP -D Casp East (no PVD) | C58: 500032 | D58: 4661 | E58: 4950 | F58: 5158 | G58: 6283 | H58: 5020 | I58: 5017 | J58: 5003 | K58: 4837 | L58: 4766 | M58: 4939 | N58: 5116 | O58: 5353 | P58: 61103 | Q58: 6283 | R58: 2014-01-01
A59: 21 | B59: WSU - MP-E Casp West (no PVD) | C59: 500034 | D59: 5302 | E59: 4732 | F59: 4928 | G59: 6090 | H59: 4802 | I59: 4293 | J59: 4942 | K59: 5569 | L59: 6690 | M59: 7002 | N59: 6633 | O59: 5866 | P59: 66849 | Q59: 7002 | R59: 2014-07-01
B60: Schedule 25 Total | D60: =SUM(D39:D59) -> 163855 | E60: 162517 | F60: 167105 | G60: 168230 | H60: 167177 | I60: 165407 | J60: 166070 | K60: 170397 | L60: 172960 | M60: 177639 | N60: 175747 | O60: 164892 | P60: =IF(ROUND(SUM(P39:P59),0)<>ROUND(SUM(D60:O60),0),#VALUE!,SUM(P39:P59)) -> 2021996
P62: =P$2 -> 12-mo Ended
B63: KVA in excess of 3,000 | D63: =D$3 -> 2013-10-01 | E63: =E$3 -> 2013-11-01 | F63: 2013-12-01 | G63: 2014-01-01 | H63: 2014-02-01 | I63: 2014-03-01 | J63: 2014-04-01 | K63: 2014-05-01 | L63: 2014-06-01 | M63: 2014-07-01 | N63: 2014-08-01 | O63: 2014-09-01 | P63: Total
A64: 1 | B64: =B4 -> BF Goodrich | C64: 770037736 | D64: =IF(D39>3000,D39-3000,0) -> 7811 | E64: 6762 | F64: 7398 | G64: =MAX(0,G39-3000) -> 7417 | H64: =MAX(0,H39-3000) -> 8138 | I64: 6790 | J64: 7641 | K64: 7682 | L64: 7109 | M64: 7740 | N64: 7529 | O64: 7784 | P64: =SUM(D64:O64) -> 89801
A65: 2 | B65: Boise Cascade Plywood | C65: 500017 | D65: 2438 | E65: 2456 | F65: 2456 | G65: 2521 | H65: =MAX(0,H40-3000) -> 2733 | I65: 2310 | J65: 2464 | K65: 2316 | L65: 2184 | M65: 2188 | N65: 2218 | O65: 2310 | P65: 28594
A66: 3 | B66: Boise Cascade Sawmill | C66: 500018 | D66: 231 | E66: 267 | F66: 327 | G66: 236 | H66: 296 | I66: 202 | J66: 114 | K66: 37 | L66: 0 | M66: 0 | N66: 0 | O66: 68 | P66: 1778
A67: 4 | B67: City of Spokane Sewage Treatment Plt | C67: 1900002 | D67: 0 | E67: 0 | F67: 0 | G67: 0 | H67: 0 | I67: 0 | J67: 0 | K67: 0 | L67: 0 | M67: 0 | N67: 0 | O67: 0 | P67: 0
A68: 5 | B68: Deaconess Medical Center | C68: 1900011 | D68: 215 | E68: 0 | F68: 0 | G68: 0 | H68: 0 | I68: 0 | J68: 416 | K68: 626 | L68: 910 | M68: 1150 | N68: 1083 | O68: 667 | P68: 5067
A69: 6 | B69: Gonzaga University | C69: 622922 | D69: 1078 | E69: 1651 | F69: 2063 | G69: 1811 | H69: 2277 | I69: 1683 | J69: 1052 | K69: 1754 | L69: 1153 | M69: 2200 | N69: 1929 | O69: 2187 | P69: 20838
A70: 7 | B70: Honeywell Electronics | C70: 2304636 | D70: 0 | E70: 0 | F70: 13 | G70: 177 | H70: 195 | I70: 224 | J70: 200 | K70: 210 | L70: 550 | M70: 897 | N70: 761 | O70: 625 | P70: 3852
A71: 8 | B71: Huntwood Industries | C71: 610074869 | D71: 1199 | E71: 1192 | F71: 1205 | G71: 1207 | H71: 1247 | I71: 1217 | J71: 1254 | K71: 1384 | L71: 1373 | M71: 1404 | N71: 1247 | O71: 1275 | P71: 15204
A72: 9 | B72: =B12 -> Inland Empire Paper | C72: 2500004 | D72: =MAX(0,D47-3000) -> 58097 | E72: 58341 | F72: 59976 | G72: 59898 | H72: 60227 | I72: 62304 | J72: 61739 | K72: 61357 | L72: 60682 | M72: 59338 | N72: 59011 | O72: 59126 | P72: 720096
A73: 10 | B73: JR Simplot | C73: 290048778 | D73: 5204 | E73: 5234 | F73: 5417 | G73: 5279 | H73: 5078 | I73: 5151 | J73: 5298 | K73: 5433 | L73: 5263 | M73: 5277 | N73: 5522 | O73: 5266 | P73: 63422
A74: 11 | B74: McCaine Foods Inc | C74: 2500003 | D74: 6390 | E74: 6057 | F74: 6294 | G74: 5857 | H74: 5948 | I74: 6062 | J74: 6026 | K74: 6094 | L74: 6465 | M74: 6139 | N74: 6426 | O74: 6316 | P74: 74074
A75: 12 | B75: Sacred Heart Medical Center | C75: 500020 | D75: 3164 | E75: 2479 | F75: 2521 | G75: 2495 | H75: =MAX(0,H50-3000) -> 2555 | I75: 2693 | J75: 3667 | K75: 4559 | L75: 4644 | M75: 5596 | N75: 5376 | O75: 4928 | P75: 44677
A76: 13 | B76: Spokane County Courthouse | C76: 1900012 | D76: 0 | E76: 0 | F76: 0 | G76: 0 | H76: 0 | I76: 0 | J76: 0 | K76: 0 | L76: 0 | M76: 128 | N76: 141 | O76: 0 | P76: 269
A77: 14 | B77: Spokane Steel Foundry | C77: 2400169 | D77: 2192 | E77: 2116 | F77: 2191 | G77: 2161 | H77: 2050 | I77: 2194 | J77: 1992 | K77: 1872 | L77: 2095 | M77: 1912 | N77: 1927 | O77: 1942 | P77: 24644
A78: 15 | B78: Triumph Composite / Boeing | C78: 690067830 | D78: 0 | E78: 0 | F78: 0 | G78: 0 | H78: 2 | I78: 0 | J78: 0 | K78: 504 | L78: 369 | M78: 960 | N78: 937 | O78: 407 | P78: 3179
A79: 16 | B79: Vaagen Brothers Lumber | C79: 1300001 | D79: 1566 | E79: 1975 | F79: 1824 | G79: 1959 | H79: 1673 | I79: 1587 | J79: 1158 | K79: 1379 | L79: 1348 | M79: 1248 | N79: 1162 | O79: 1378 | P79: 18257
A80: 17 | B80: WSU - MP-A South Campus Feeder | C80: 290081951 | D80: 1919 | E80: 1583 | F80: 1540 | G80: 1464 | H80: 1743 | I80: 1281 | J80: 990 | K80: 1054 | L80: 952 | M80: 1052 | N80: 937 | O80: 1011 | P80: 15526
A81: 18 | B81: WSU - MP-B East Campus EA | C81: 500033 | D81: 3816 | E81: 4504 | F81: 5396 | G81: 4990 | H81: 4769 | I81: 4583 | J81: 4065 | K81: 5589 | L81: 5280 | M81: 8065 | N81: 7528 | O81: 54 | P81: 58639
A82: 19 | B82: WSU - MP-C East Campus EB | C82: 410031282 | D82: 2815 | E82: 2632 | F82: 2633 | G82: 2679 | H82: 2607 | I82: 2386 | J82: 2157 | K82: 1731 | L82: 4476 | M82: 3560 | N82: 3377 | O82: 1861 | P82: 32914
A83: 20 | B83: WSU - MP -D Casp East (no PVD) | C83: 500032 | D83: 1661 | E83: 1950 | F83: 2158 | G83: 3283 | H83: 2020 | I83: 2017 | J83: 2003 | K83: 1837 | L83: 1766 | M83: 1939 | N83: 2116 | O83: 2353 | P83: 25103
A84: 21 | B84: WSU - MP-E Casp West (no PVD) | C84: 500034 | D84: 2302 | E84: 1732 | F84: 1928 | G84: 3090 | H84: 1802 | I84: 1293 | J84: 1942 | K84: 2569 | L84: 3690 | M84: 4002 | N84: 3633 | O84: 2866 | P84: 30849
B85: Schedule 25 Total | D85: =SUM(D64:D84) -> 102098 | E85: 100931 | F85: 105340 | G85: 106524 | H85: 105360 | I85: 103977 | J85: 104178 | K85: 107987 | L85: 110309 | M85: 114795 | N85: 112860 | O85: 102424 | P85: =IF(ROUND(SUM(P64:P84),0)<>ROUND(SUM(D85:O85),0),#VALUE!,SUM(P64:P84)) -> 1276783
P87: =P$2 -> 12-mo Ended
B88: KW | D88: =D$3 -> 2013-10-01 | E88: =E$3 -> 2013-11-01 | F88: 2013-12-01 | G88: 2014-01-01 | H88: 2014-02-01 | I88: 2014-03-01 | J88: 2014-04-01 | K88: 2014-05-01 | L88: 2014-06-01 | M88: 2014-07-01 | N88: 2014-08-01 | O88: 2014-09-01 | P88: Total
A89: 1 | B89: =B4 -> BF Goodrich | C89: 770037736 | D89: 10332 | E89: 9265 | F89: 9912 | G89: 9979 | H89: 10676 | I89: 9343 | J89: 10172 | K89: 10156 | L89: 9685 | M89: 10298 | N89: 10055 | O89: 10366 | P89: =SUM(D89:O89) -> 120239
A90: 2 | B90: Boise Cascade Plywood | C90: 500017 | D90: 5435 | E90: 5452 | F90: 5452 | G90: 5485 | H90: 5704 | I90: 5309 | J90: 5460 | K90: 5284 | L90: 5141 | M90: 5158 | N90: 5183 | O90: 5267 | P90: 64330
A91: 3 | B91: Boise Cascade Sawmill | C91: 500018 | D91: 2881 | E91: 2926 | F91: 2988 | G91: 2898 | H91: 2979 | I91: 2873 | J91: 2764 | K91: 2674 | L91: 2610 | M91: 2531 | N91: 2646 | O91: 2736 | P91: 33506
A92: 4 | B92: City of Spokane Sewage Treatment Plt | C92: 1900002 | D92: 2146 | E92: 2281 | F92: 2264 | G92: 2264 | H92: 2255 | I92: 2175 | J92: 2083 | K92: 2037 | L92: 2331 | M92: 2390 | N92: 2344 | O92: 2083 | P92: 26653
A93: 5 | B93: Deaconess Medical Center | C93: 1900011 | D93: 3058 | E93: 2680 | F93: 2789 | G93: 2814 | H93: 2856 | I93: 2780 | J93: 3238 | K93: 3423 | L93: 3704 | M93: 3910 | N93: 3864 | O93: 3494 | P93: 38610
A94: 6 | B94: Gonzaga University | C94: 622922 | D94: 3898 | E94: 4491 | F94: 4945 | G94: 4665 | H94: 5158 | I94: 4564 | J94: 3802 | K94: 4351 | L94: 3791 | M94: 4760 | N94: 4424 | O94: 4805 | P94: 53654
A95: 7 | B95: Honeywell Electronics | C95: 2304636 | D95: 2229 | E95: 2391 | F95: 2447 | G95: 2610 | H95: 2654 | I95: 2688 | J95: 2638 | K95: 2610 | L95: 2873 | M95: 3167 | N95: 3060 | O95: 2937 | P95: 32304
A96: 8 | B96: Huntwood Industries | C96: 610074869 | D96: 3478 | E96: 3503 | F96: 3486 | G96: 3511 | H96: 3536 | I96: 3511 | J96: 3545 | K96: 3662 | L96: 3654 | M96: 3646 | N96: 3503 | O96: 3570 | P96: 42605
A97: 9 | B97: =B12 -> Inland Empire Paper | C97: 2500004 | D97: 61000 | E97: 61236 | F97: 62880 | G97: 62664 | H97: 62968 | I97: 65100 | J97: 64536 | K97: 64156 | L97: 63476 | M97: 62120 | N97: 61812 | O97: 61924 | P97: 753872
A98: 10 | B98: JR Simplot | C98: 290048778 | D98: 7963 | E98: 7988 | F98: 8182 | G98: 8056 | H98: 7862 | I98: 7921 | J98: 8039 | K98: 8182 | L98: 8022 | M98: 8274 | N98: 8257 | O98: 8014 | P98: 96760
A99: 11 | B99: McCaine Foods Inc | C99: 2500003 | D99: 9027 | E99: 8758 | F99: 8982 | G99: 8557 | H99: 8680 | I99: 8814 | J99: 8758 | K99: 8814 | L99: 9117 | M99: 8882 | N99: 9139 | O99: 9005 | P99: 106533
A100: 12 | B100: Sacred Heart Medical Center | C100: 500020 | D100: 6048 | E100: 5431 | F100: 5485 | G100: 5447 | H100: 5506 | I100: 5662 | J100: 6497 | K100: 7270 | L100: 7337 | M100: 8207 | N100: 7997 | O100: 7652 | P100: 78539
A101: 13 | B101: Spokane County Courthouse | C101: 1900012 | D101: 2201 | E101: 1869 | F101: 1907 | G101: 1915 | H101: 1961 | I101: 1869 | J101: 2125 | K101: 2549 | L101: 2478 | M101: 2814 | N101: 2789 | O101: 2579 | P101: 27056
A102: 14 | B102: Spokane Steel Foundry | C102: 2400169 | D102: 4777 | E102: 4651 | F102: 4553 | G102: 4556 | H102: 4653 | I102: 4778 | J102: 4466 | K102: 4498 | L102: 4423 | M102: 4531 | N102: 4462 | O102: 4541 | P102: 54889
A103: 15 | B103: Triumph Composite / Boeing | C103: 690067830 | D103: 2587 | E103: 2646 | F103: 2654 | G103: 2579 | H103: 2680 | I103: 2495 | J103: 2612 | K103: 3066 | L103: 2940 | M103: 3461 | N103: 3444 | O103: 2974 | P103: 34138
A104: 16 | B104: Vaagen Brothers Lumber | C104: 1300001 | D104: 4155 | E104: 4558 | F104: 4413 | G104: 4536 | H104: 4301 | I104: 4189 | J104: 3763 | K104: 3965 | L104: 3909 | M104: 3797 | N104: 3707 | O104: 3920 | P104: 49213
A105: 17 | B105: WSU - MP-A South Campus Feeder | C105: 290081951 | D105: 4780 | E105: 4424 | F105: 4402 | G105: 4312 | H105: 4592 | I105: 4144 | J105: 3640 | K105: 3685 | L105: 3550 | M105: 3651 | N105: 3517 | O105: 3976 | P105: 48673
A106: 18 | B106: WSU - MP-B East Campus EA | C106: 500033 | D106: 6578 | E106: 7268 | F106: 8045 | G106: 7761 | H106: 7558 | I106: 7348 | J106: 6833 | K106: 8022 | L106: 8065 | M106: 10651 | N106: 10136 | O106: 1220 | P106: 89485
A107: 19 | B107: WSU - MP-C East Campus EB | C107: 410031282 | D107: 5712 | E107: 5527 | F107: 5536 | G107: 5242 | H107: 5216 | I107: 5065 | J107: 4805 | K107: 4376 | L107: 7283 | M107: 6468 | N107: 6266 | O107: 4796 | P107: 66292
A108: 20 | B108: WSU - MP -D Casp East (no PVD) | C108: 500032 | D108: 4088 | E108: 4608 | F108: 4768 | G108: 5584 | H108: 4576 | I108: 4528 | J108: 4528 | K108: 4320 | L108: 4224 | M108: 4352 | N108: 4560 | O108: 4752 | P108: 54888
A109: 21 | B109: WSU - MP-E Casp West (no PVD) | C109: 500034 | D109: 4960 | E109: 4448 | F109: 4656 | G109: 5488 | H109: 4528 | I109: 3984 | J109: 4624 | K109: 5216 | L109: 5984 | M109: 6560 | N109: 6208 | O109: 5520 | P109: 62176
B110: Schedule 25 Total | D110: =SUM(D89:D109) -> 157333 | E110: 156401 | F110: 160746 | G110: 160923 | H110: 160899 | I110: 159140 | J110: 158928 | K110: 162316 | L110: 164597 | M110: 169628 | N110: 167373 | O110: 156131 | P110: =IF(ROUND(SUM(P89:P109),0)<>ROUND(SUM(D110:O110),0),#VALUE!,SUM(P89:P109)) -> 1934415
B116: 9 KWHs | D116: =D$3 -> 2013-10-01 | E116: =E$3 -> 2013-11-01 | F116: 2013-12-01 | G116: 2014-01-01 | H116: 2014-02-01 | I116: 2014-03-01 | J116: 2014-04-01 | K116: 2014-05-01 | L116: 2014-06-01 | M116: 2014-07-01 | N116: 2014-08-01 | O116: 2014-09-01 | P116: Total
B117: 60 KV | D117: 4877496 | E117: 4784364 | F117: 4815108 | G117: 5098788 | H117: 4632408 | I117: 4901652 | J117: 4758660 | K117: 4921128 | L117: 4502952 | M117: 5063292 | N117: 4981752 | O117: 4748724 | P117: =SUM(D117:O117) -> 58086324
B118: 4.16 KV | D118: 1656400 | E118: 1590600 | F118: 1732300 | G118: 1760930 | H118: 1639350 | I118: 1747990 | J118: 1669270 | K118: 1731730 | L118: 1608680 | M118: 1699700 | N118: 1724770 | O118: 1659380 | P118: =SUM(D118:O118) -> 20221100
B119: 115 KV | D119: 34936056 | E119: 32335560 | F119: 34345152 | G119: 33137424 | H119: 31317264 | I119: 37578168 | J119: 36103464 | K119: 34642440 | L119: 33157728 | M119: 35202456 | N119: 36225792 | O119: 35192448 | P119: =SUM(D119:O119) -> 414173952
A120: * | B120: Total | D120: =SUM(D117:D119) -> 41469952 | E120: 38710524 | F120: 40892560 | G120: 39997142 | H120: 37589022 | I120: 44227810 | J120: 42531394 | K120: 41295298 | L120: 39269360 | M120: 41965448 | N120: 42932314 | O120: 41600552 | P120: 492481376
D121: =D12 -> 41469952 | E121: 38710524 | F121: 40892560 | G121: 39997142 | H121: 37589022 | I121: 44227810 | J121: 42531394 | K121: 41295298 | L121: 39269360 | M121: 41965448 | N121: 42932314 | O121: 41600552 | P121: =SUM(D121:O121) -> 492481376
B122: 9 KVA
B123: 60 KV | D123: 8525 | E123: 8140 | F123: 8051 | G123: 8891 | H123: 9243 | I123: 8891 | J123: 8795 | K123: 9145 | L123: 8378 | M123: 9117 | N123: 9082 | O123: 8405 | P123: =SUM(D123:O123) -> 104663
B124: 4.16 KV | D124: 3096 | E124: 3168 | F124: 3200 | G124: 4059 | H124: 3313 | I124: 3228 | J124: 3220 | K124: 7917 | L124: 3164 | M124: 3145 | N124: 3184 | O124: 3208 | P124: =SUM(D124:O124) -> 43902
B125: 115 KV | D125: 51840 | E125: 51552 | F125: 53424 | G125: 52848 | H125: 53568 | I125: 55872 | J125: 55296 | K125: 55008 | L125: 53856 | M125: 52560 | N125: 52272 | O125: 52848 | P125: =SUM(D125:O125) -> 640944
A126: * | B126: Total | D126: =SUM(D123:D125) -> 63461 | E126: 62860 | F126: 64675 | G126: 65798 | H126: 66124 | I126: 67991 | J126: 67311 | K126: 72070 | L126: 65398 | M126: 64822 | N126: 64538 | O126: 64461 | P126: 789509
D127: =D47 -> 61097 | E127: 61341 | F127: 62976 | G127: 62898 | H127: 63227 | I127: 65304 | J127: 64739 | K127: 64357 | L127: 63682 | M127: 62338 | N127: 62011 | O127: 62126 | P127: =SUM(D127:O127) -> 756096
B128: 9 KW
B129: 60 KV | D129: 8208 | E129: 7848 | F129: 7776 | G129: 8064 | H129: 8352 | I129: 8064 | J129: 7992 | K129: 8208 | L129: 7632 | M129: 8208 | N129: 8208 | O129: 7560 | P129: =SUM(D129:O129) -> 96120
B130: 4.16 KV | D130: 2460 | E130: 2520 | F130: 2560 | G130: 2840 | H130: 2700 | I130: 2580 | J130: 2600 | K130: 6820 | L130: 2500 | M130: 2460 | N130: 2540 | O130: 2540 | P130: =SUM(D130:O130) -> 35120
B131: 115 KV | D131: 51840 | E131: 51552 | F131: 53424 | G131: 52848 | H131: 53568 | I131: 55872 | J131: 55296 | K131: 55008 | L131: 53856 | M131: 52560 | N131: 52272 | O131: 52848 | P131: =SUM(D131:O131) -> 640944
A132: * | B132: Total | D132: =SUM(D129:D131) -> 62508 | E132: 61920 | F132: 63760 | G132: 63752 | H132: 64620 | I132: 66516 | J132: 65888 | K132: 70036 | L132: 63988 | M132: 63228 | N132: 63020 | O132: 62948 | P132: 772184
D133: =D97 -> 61000 | E133: 61236 | F133: 62880 | G133: 62664 | H133: 62968 | I133: 65100 | J133: 64536 | K133: 64156 | L133: 63476 | M133: 62120 | N133: 61812 | O133: 61924 | P133: =SUM(D133:O133) -> 753872
B135: Calc Revenue for 9 | D135: =500000*0.05707+MIN(5500000,D12-500000)*0.05151+MAX(0,D12-6000000)*0.04559+14500+D72*4.75-D123*1.1-D125*1.4 -> 2137422.362 | E135: =500000*0.05707+MIN(5500000,E12-500000)*0.05151+MAX(0,E12-6000000)*0.04559+14500+E72*4.75-E123*1.1-E125*1.4 -> 2013605.739 | F135: 2118328.11 | G135: =500000*0.0575+MIN(5500000,G12-500000)*0.05177+MAX(0,G12-6000000)*0.04433+15000+G72*5.25-G123*1.1-G125*1.4 -> 2066275.505 | H135: =500000*0.0575+MIN(5500000,H12-500000)*0.05177+MAX(0,H12-6000000)*0.04433+15000+H72*5.25-H123*1.1-H125*1.4 -> 1959855.595 | I135: 2262218.917 | J135: 2184962.546 | K135: 2128179.11 | L135: 2037282.029 | M135: 2150745.11 | N135: 2192331.23 | O135: 2133836.27 | P135: =SUM(D135:O135) -> 25385042.52
B136: Revenue for 9 per Handbill Report | D136: 2137422 | E136: 2013606 | F136: 2118328 | G136: 2066276 | H136: 1959856 | I136: 2262219 | J136: 2184963 | K136: 2128179 | L136: 2037282 | M136: 2150745 | N136: 2192331 | O136: 2133836 | P136: =SUM(D136:O136) -> 25385043
D137: =D135-D136 -> 0.3616800001 | E137: =E135-E136 -> -0.2608400001 | F137: 0.1103999997 | G137: -0.49514 | H137: -0.4047399999 | I137: -0.08269999968 | J137: -0.4539799998 | K137: 0.1103400001 | L137: 0.02880000044 | M137: 0.10984 | N137: 0.2296200003 | O137: 0.2701599998
B138: Primary Voltage Discount
B139: >11 and <60 | C139: -0.2 | D139: =(D60-D58-D59-D47)*$C139 -> -18559 | E139: =(E60-E58-E59-E47)*$C139 -> -18298.8 | F139: -18808.6 | G139: -18591.8 | H139: =(H60-H58-H59-H47)*$C139 -> -18825.6 | I139: -18158.6 | J139: -18277.2 | K139: -19126.8 | L139: -19564.4 | M139: -20672 | N139: -20397.4 | O139: -18309.4 | P139: =SUM(D139:O139) -> -227589.6
B140: >60 and <115 | C140: =-1.1 -> -1.1 | D140: =D123*$C140 -> -9377.5 | E140: =E123*$C140 -> -8954 | F140: -8856.1 | G140: -9780.1 | H140: =H123*$C140 -> -10167.3 | I140: -9780.1 | J140: -9674.5 | K140: -10059.5 | L140: -9215.8 | M140: -10028.7 | N140: -9990.2 | O140: =O123*$C140 -> -9245.5 | P140: =SUM(D140:O140) -> -115129.3
B141: >115 | C141: -1.4 | D141: =D125*$C141 -> -72576 | E141: =E125*$C141 -> -72172.8 | F141: -74793.6 | G141: -73987.2 | H141: -74995.2 | I141: -78220.8 | J141: =J125*$C141 -> -77414.4 | K141: -77011.2 | L141: -75398.4 | M141: -73584 | N141: -73180.8 | O141: =O125*$C141 -> -73987.2 | P141: =SUM(D141:O141) -> -897321.6
D142: =SUM(D139:D141) -> -100512.5 | E142: -99425.6 | F142: -102458.3 | G142: -102359.1 | H142: -103988.1 | I142: -106159.5 | J142: -105366.1 | K142: -106197.5 | L142: -104178.6 | M142: -104284.7 | N142: -103568.4 | O142: -101542.1 | P142: -1240040.5
B144: Base Revenues
B145: BF Goodrich | C145: 770037736 | D145: =500000*0.0562+MIN(5500000,D4-500000)*0.05056+MAX(0,D4-6000000)*0.04323+21000+D64*6-0.2*D39 -> 285843.9773 | E145: =500000*0.0562+MIN(5500000,E4-500000)*0.05056+MAX(0,E4-6000000)*0.04323+21000+E64*6-0.2*E39 -> 312173.3888 | F145: 331695.4067 | G145: 319223.953 | H145: 330400.6278 | I145: 345008.5203 | J145: 335056.0688 | K145: 358095.4176 | L145: 323857.3584 | M145: 348630.0538 | N145: 323133.3584 | O145: =500000*0.0562+MIN(5500000,O4-500000)*0.05056+MAX(0,O4-6000000)*0.04323+21000+O64*6-0.2*O39 -> 358460.0032 | P145: =SUM(D145:O145) -> 3971578.134
B146: Boise Cascade Plywood | C146: 500017 | D146: =500000*0.0562+MIN(5500000,D5-500000)*0.05056+MAX(0,D5-6000000)*0.04323+21000+D65*6-0.2*D40 -> 211384.9875 | E146: 198545.6736 | F146: 179399.6128 | G146: 190640.3389 | H146: 198303.1427 | I146: 207983.081 | J146: 204501.6275 | K146: 200767.3242 | L146: 194241.2717 | M146: 198316.8051 | N146: 201739.7907 | O146: 197280.3379 | P146: =SUM(D146:O146) -> 2383103.994
B147: Boise Cascade Sawmill | C147: 500018 | D147: 99918.36768 | E147: 92754.91296 | F147: 97289.33152 | G147: 100804.2586 | H147: 95284.9728 | I147: 98620.30336 | J147: 95414.09472 | K147: 91368.33056 | L147: 88203.2368 | M147: 93475.1936 | N147: 92884.61408 | O147: 91388.25984 | P147: 1137405.876
B148: City of Spokane Sewage Treatment Plt | C148: 1900002 | D148: 90365.65248 | E148: 94448.4992 | F148: 100149.617 | G148: 96824.3792 | H148: 90089.69408 | I148: 96680.24096 | J148: 90884.2928 | K148: 92953.072 | L148: 91661.99648 | M148: 94534.22656 | N148: 91847.14816 | O148: 90203.70752 | P148: 1120642.526
B149: Deaconess Medical Center | C149: 1900011 | D149: 112496.1565 | E149: 107721.3539 | F149: 112086.9587 | G149: 114194.5251 | H149: 104401.3405 | I149: 110765.7856 | J149: 110440.88 | K149: 120928.247 | L149: 122800.3379 | M149: 143500.6458 | N149: 139142.8835 | O149: 120696.0413 | P149: 1419175.156
B150: Gonzaga University | C150: 622922 | D150: 142308.6182 | E150: 149726.8726 | F150: 163524.4266 | G150: 157572.593 | H150: 158366.9046 | I150: 146828.5654 | J150: 133258.2976 | K150: 123296.5146 | L150: 113882.3018 | M150: 143687.9174 | N150: 133215.889 | O150: 141895.2976 | P150: 1707564.198
B151: Honeywell Electronics | C151: 2304636 | D151: 79467.71808 | E151: 78266.12736 | F151: 82517.03584 | G151: 91562.03232 | H151: 86611.39296 | I151: 95912.24576 | J151: 89610.43904 | K151: 88916.96576 | L151: 93453.72288 | M151: 107298.9808 | N151: 107247.3962 | O151: 98464.80736 | P151: 1099328.864
B152: Huntwood Industries | C152: 610074869 | D152: 91831.46272 | E152: 82929.76768 | F152: 84895.15104 | G152: 89471.6112 | H152: 83010.12448 | I152: 82231.98304 | J152: 87500.45952 | K152: 89081.52 | L152: 90888.6928 | M152: 95721.5296 | N152: 85385.38272 | O152: 86384.60128 | P152: 1049332.286
B153: Inland Empire Paper | C153: 2500004 | D153: =500000*0.0562+MIN(5500000,D12-500000)*0.05056+MAX(0,D12-6000000)*0.04323+21000+D72*6-1.1*D123-1.4*D125 -> 2127174.525 | E153: =500000*0.0562+MIN(5500000,E12-500000)*0.05056+MAX(0,E12-6000000)*0.04323+21000+E72*6-1.1*E123-1.4*E125 -> 2010175.153 | F153: 2111791.669 | G153: 2072497.149 | H153: 1968972.921 | I153: 2265591.326 | J153: 2189777.263 | K153: 2134067.033 | L153: 2044892.233 | M153: 2154381.617 | N153: 2194658.934 | O153: =500000*0.0562+MIN(5500000,O12-500000)*0.05056+MAX(0,O12-6000000)*0.04323+21000+O72*6-1.1*O123-1.4*O125 -> 2137715.163 | P153: 25411694.98
B154: JR Simplot | C154: 290048778 | D154: =500000*0.0562+MIN(5500000,D13-500000)*0.05056+MAX(0,D13-6000000)*0.04323+21000+D73*6-0.2*D48 -> 331032.6093 | E154: =500000*0.0562+MIN(5500000,E13-500000)*0.05056+MAX(0,E13-6000000)*0.04323+21000+E73*6-0.2*E48 -> 294272.2259 | F154: 295375.8941 | G154: 317443.8832 | H154: 284005.2813 | I154: 290091.6541 | J154: 276827.7504 | K154: 295094.7523 | L154: 252465.4634 | M154: 262317.3834 | N154: 344109.3683 | O154: 320755.0931 | P154: 3563791.359
B155: McCaine Foods Inc | C155: 2500003 | D155: =500000*0.0562+MIN(5500000,D14-500000)*0.05056+MAX(0,D14-6000000)*0.04323+21000+D74*6-0.2*D49 -> 339078.9408 | E155: 340561.8576 | F155: 312234.935 | G155: 346490.4707 | H155: 305662.567 | I155: 322992.2867 | J155: 322543.0739 | K155: 326385.2614 | L155: 334786.4291 | M155: 235414.7357 | N155: 354065.1648 | O155: 305054.2387 | P155: 3845269.962
B156: Sacred Heart Medical Center | C156: 500020 | D156: =500000*0.0562+MIN(5500000,D15-500000)*0.05056+MAX(0,D15-6000000)*0.04323+21000+D75*6-0.2*D50 -> 211122.4915 | E156: 198886.7741 | F156: 207798.6838 | G156: 313128.0771 | H156: 194002.7971 | I156: 205406.7414 | J156: 209538.0291 | K156: 240646.28 | L156: 242926.5254 | M156: 294305.8432 | N156: 287456.9178 | O156: 251488.4627 | P156: 2856707.623
B157: Spokane County Courthouse | C157: 1900012 | D157: =500000*0.0562+MIN(5500000,D16-500000)*0.05056+MAX(0,D16-6000000)*0.04323+21000+D76*6-0.2*D51 -> 75894.4064 | E157: 70987.08576 | F157: 74859.40288 | G157: 74252.03456 | H157: 70004.07872 | I157: 72027.432 | J157: 72617.95584 | K157: 79176.60352 | L157: 79711.75456 | M157: 91075.39008 | N157: 89723.78464 | O157: 79775.27552 | P157: 930105.2045
B158: Spokane Steel Foundry | C158: 2400169 | D158: =500000*0.0562+MIN(5500000,D17-500000)*0.05056+MAX(0,D17-6000000)*0.04323+21000+D77*6-0.2*D52 -> 84302.0768 | E158: 81535.0112 | F158: 80613.58752 | G158: 93323.99456 | H158: 90386.54016 | I158: 100158.119 | J158: 98481.9808 | K158: 96836.76736 | L158: 101036.9629 | M158: 103326.3258 | N158: 97830.99616 | O158: 97231.8464 | P158: 1125064.209
B159: Stimson Lumber - Colville | C159: 610018682 | D159: =500000*0.0562+MIN(5500000,D18-500000)*0.05056+MAX(0,D18-6000000)*0.04323+21000+D78*6-0.2*D53 -> 93665.7408 | E159: 88371.0208 | F159: 83856.65408 | G159: 96862.80448 | H159: 89541.69728 | I159: 93315.97632 | J159: 93119.27328 | K159: 99863.32032 | L159: 101101.5069 | M159: 114059.8669 | N159: 110446.8771 | O159: 101951.7328 | P159: 1166156.471
B160: Triumph Composite / Boeing | C160: 690067830 | D160: =500000*0.0562+MIN(5500000,D19-500000)*0.05056+MAX(0,D19-6000000)*0.04323+21000+D79*6-0.2*D54 -> 131671.351 | E160: 144554.1155 | F160: 147457.9283 | G160: 153047.7181 | H160: 137454.0765 | I160: 137560.9347 | J160: 117725.8515 | K160: 126952.1443 | L160: 128206.9843 | M160: 124718.6214 | N160: 123030.0941 | O160: 126643.945 | P160: 1599023.765
B161: Vaagen Brothers Lumber | C161: 1300001 | D161: =500000*0.0562+MIN(5500000,D20-500000)*0.05056+MAX(0,D20-6000000)*0.04323+21000+D80*6-0.2*D55 -> 152054.6384 | E161: 147218.7107 | F161: 162003.8323 | G161: 161826.905 | H161: 151047.9952 | I161: 146657.3942 | J161: 139122.0269 | K161: 136662.1197 | L161: 131535.8438 | M161: 136520.8333 | N161: 135968.8067 | O161: 139504.0086 | P161: 1740123.115
B162: WSU - MP-A South Campus Feeder | C162: 290081951 | D162: =500000*0.0562+MIN(5500000,D21-500000)*0.05056+MAX(0,D21-6000000)*0.04323+21000+D81*6-0.2*D56 -> 230476.3693 | E162: 238972.272 | F162: 263291.8317 | G162: 263185.1821 | H162: 242700.9469 | I162: 231948.1482 | J162: 211363.2272 | K162: 235392.3702 | L162: 235073.9942 | M162: 316661.089 | N162: 307067.8317 | O162: 237876.4045 | P162: 3014009.667
B163: WSU - MP-B East Campus EA | C163: 500033 | D163: =500000*0.0562+MIN(5500000,D22-500000)*0.05056+MAX(0,D22-6000000)*0.04323+21000+D82*6-0.2*D57 -> 188083.3814 | E163: 190917.1744 | F163: 202810.4394 | G163: 198521.8845 | H163: 184754.321 | I163: 185537.2397 | J163: 172076.1059 | K163: 167290.0118 | L163: 177448.183 | M163: 179731.0118 | N163: 178200.1117 | O163: 166478.9776 | P163: 2191848.842
B164: WSU - MP-C East Campus EB | C164: 410031282 | D164: =500000*0.0562+MIN(5500000,D23-500000)*0.05056+MAX(0,D23-6000000)*0.04323+21000+D83*6 -> 157610.6758 | E164: =500000*0.0562+MIN(5500000,E23-500000)*0.05056+MAX(0,E23-6000000)*0.04323+21000+E83*6 -> 155913.8765 | F164: 162959.6928 | G164: 167166.3226 | H164: 154622.9261 | I164: 163137.4317 | J164: 166809.0285 | K164: 160619.9098 | L164: 154363.735 | M164: 164533.68 | N164: 169067.7363 | O164: 169672.6867 | P164: 1946477.702
B165: WSU - MP -D Casp East (no PVD) | C165: 500032 | D165: =500000*0.0562+MIN(5500000,D24-500000)*0.05056+MAX(0,D24-6000000)*0.04323+21000+D84*6 -> 160032.5018 | E165: =500000*0.0562+MIN(5500000,E24-500000)*0.05056+MAX(0,E24-6000000)*0.04323+21000+E84*6 -> 144079.2845 | F165: 143126.1018 | G165: 153535.7773 | H165: 148150.121 | I165: 141173.0694 | J165: 152196.0294 | K165: 154428.6906 | L165: 154899.4074 | M165: 213736.7526 | N165: 205179.6973 | O165: 179842.839 | P165: 1950380.272
B166: Schedule 25 Total | P166: =SUM(P145:P165) -> 65228784.21 | Q166: =P166-'Pres & Prop Rev'!G152 -> 1090581.1
D170: 24 | E170: 24 | F170: 24 | G170: 24 | H170: 24 | I170: 24 | J170: 24 | K170: 24 | L170: 24 | M170: 24 | N170: 24 | O170: 24
D171: 31 | E171: 30 | F171: 31 | G171: 31 | H171: 28 | I171: 31 | J171: 30 | K171: 31 | L171: 30 | M171: 31 | N171: 31 | O171: 30 | P171: =SUM(D171:O171) -> 365
D172: =D170*D171 -> 744 | E172: =E170*E171 -> 720 | F172: =F170*F171 -> 744 | G172: 744 | H172: 672 | I172: 744 | J172: 720 | K172: 744 | L172: 720 | M172: 744 | N172: 744 | O172: 720 | P172: =SUM(D172:O172) -> 8760
B173: Load Factor | D173: =D3 -> 2013-10-01 | E173: =E3 -> 2013-11-01 | F173: 2013-12-01 | G173: 2014-01-01 | H173: 2014-02-01 | I173: 2014-03-01 | J173: 2014-04-01 | K173: 2014-05-01 | L173: 2014-06-01 | M173: 2014-07-01 | N173: 2014-08-01 | O173: 2014-09-01 | P173: Monthly Average | Q173: Annual Peak
A174: 1 | B174: BF Goodrich | D174: =(D4/D$172)/D39 -> 0.5343849057 | E174: =(E4/E$172)/E39 -> 0.7027469041 | F174: 0.6789601805 | G174: 0.6456136629 | H174: 0.6870000492 | I174: 0.7668528343 | J174: 0.6906077384 | K174: 0.7225104084 | L174: 0.7049054198 | M174: 0.6943469544 | N174: 0.6469765532 | O174: 0.7389541862 | P174: =AVERAGE(D174:O174) -> 0.6844883164 | Q174: =(P4/8760)/Q39 -> 0.6430243742
A175: 2 | B175: Boise Cascade Plywood | D175: 0.850729336 | E175: =(E5/E$172)/E40 -> 0.8110171778 | F175: 0.6915674861 | G175: 0.7357350624 | H175: 0.8174691427 | I175: 0.8579220076 | J175: 0.839539867 | K175: 0.8206954861 | L175: 0.8391211741 | M175: 0.8321913266 | N175: 0.843959289 | O175: 0.8311511299 | P175: =AVERAGE(D175:O175) -> 0.8142582071 | Q175: =(P5/8760)/Q40 -> 0.7634828841
A176: 3 | B176: Boise Cascade Sawmill | D176: 0.6200342449 | E176: =(E6/E$172)/E41 -> 0.5716534027 | F176: 0.576687238 | G176: 0.6261156412 | H176: 0.6281874856 | I176: 0.6162693176 | J176: 0.6310265468 | K176: 0.5946489709 | L176: 0.6007867721 | M176: 0.6416440343 | N176: 0.6208086865 | O176: 0.6068303636 | P176: 0.611224392 | Q176: 0.5757714658
A177: 4 | B177: City of Spokane Sewage Treatment Plt | D177: 0.6872937755 | E177: =(E7/E$172)/E42 -> 0.7018948911 | F177: 0.7429194858 | G177: 0.7175175101 | H177: 0.7266799088 | I177: 0.7332067539 | J177: 0.7288013131 | K177: 0.724906535 | L177: 0.6523622199 | M177: 0.6460344423 | N177: 0.6280552038 | O177: 0.7025765588 | P177: 0.6993540498 | Q177: 0.6474367205
A178: 5 | B178: Deaconess Medical Center | D178: 0.7278896804 | E178: =(E8/E$172)/E43 -> 0.8201916657 | F178: 0.8089082523 | G178: 0.8189011357 | H178: 0.7988290268 | I178: 0.8017899224 | J178: 0.6819928279 | K178: 0.6897277874 | L178: 0.6625309037 | M178: 0.7277646068 | N178: 0.7138640679 | O178: 0.7012290549 | P178: 0.746134911 | Q178: 0.6044778841
A179: 6 | B179: Gonzaga University | D179: 0.7355654126 | E179: =(E9/E$172)/E44 -> 0.6906277622 | F179: 0.6738617612 | G179: 0.6843470832 | H179: 0.6801173331 | I179: 0.6462760523 | J179: 0.7046280301 | K179: 0.5027319948 | L179: 0.5554538888 | M179: 0.5506355976 | N179: 0.5329076107 | O179: 0.5613218409 | P179: 0.6265395306 | Q179: 0.5596682381
A180: 7 | B180: Honeywell Electronics | D180: 0.5282357838 | E180: =(E10/E$172)/E45 -> 0.5124910546 | F180: 0.5225180133 | G180: 0.5632710408 | H180: 0.5735412475 | I180: 0.588682162 | J180: 0.5599648437 | K180: 0.5339898838 | L180: 0.5187883412 | M180: 0.5380672616 | N180: 0.5627349738 | O180: 0.5427321839 | P180: 0.5454180658 | Q180: 0.4625154228
A181: 8 | B181: Huntwood Industries | D181: 0.3903537581 | E181: =(E11/E$172)/E46 -> 0.3459724873 | F181: 0.3457254548 | G181: 0.3744063913 | H181: 0.3642304932 | I181: 0.3275142727 | J181: 0.368123139 | K181: 0.3506994521 | L181: 0.3750539929 | M181: 0.3884878605 | N181: 0.3438502447 | O181: 0.3583619233 | P181: 0.3610649558 | Q181: 0.3499048447
A182: 9 | B182: Inland Empire Paper | D182: 0.9123063783 | E182: =(E12/E$172)/E47 -> 0.8764874499 | F182: 0.87276293 | G182: 0.8547107931 | H182: =(H12/H$172)/H47 -> 0.8846860462 | I182: 0.9102961715 | J182: 0.9124543251 | K182: 0.8624459312 | L182: 0.8564551644 | M182: 0.904828067 | N182: 0.9305562419 | O182: 0.9300219625 | P182: 0.8923342884 | Q182: 0.8608865484
A183: 10 | B183: JR Simplot | D183: 0.8996214802 | E183: =(E13/E$172)/E48 -> 0.8030021186 | F183: 0.7603368631 | G183: 0.8464413784 | H183: 0.8428633694 | I183: 0.7729472471 | J183: 0.737830903 | K183: 0.757715465 | L183: 0.6606392957 | M183: 0.6696284626 | N183: 0.9010907569 | O183: 0.8872862731 | P183: 0.7949503011 | Q183: 0.7729100427
A184: 11 | B184: McCaine Foods Inc | D184: 0.78930056 | E184: =(E14/E$172)/E49 -> 0.8559539583 | F184: 0.7222631493 | G184: 0.8683235786 | H184: 0.8155518592 | I184: 0.77625892 | J184: 0.8046018293 | K184: 0.7829033559 | L184: 0.7954271585 | M184: 0.5136695563 | N184: 0.8279625504 | O184: 0.7230260961 | P184: 0.772936881 | Q184: 0.7483122149
A185: 12 | B185: Sacred Heart Medical Center | D185: 0.7312375273 | E185: =(E15/E$172)/E50 -> 0.8086540021 | F185: =(F15/F$172)/F50 -> 0.8183536273 | G185: 1.332522968 | H185: 0.8263487956 | I185: 0.7778013085 | J185: 0.6800549556 | K185: 0.6716651588 | L185: 0.6927590267 | M185: 0.7379839085 | N185: 0.7396799355 | O185: 0.6919019439 | P185: 0.7924135965 | Q185: 0.60909092
A186: 13 | B186: Spokane County Courthouse | D186: 0.5750060843 | E186: =(E16/E$172)/E51 -> 0.634162219 | F186: 0.6526595717 | G186: 0.6437378392 | H186: 0.6470666274 | I186: 0.6307659913 | J186: 0.5687231559 | K186: 0.5205824938 | L186: 0.5540302092 | M186: 0.5703741612 | N186: 0.5559359734 | O186: 0.5444483403 | P186: 0.5914577222 | Q186: 0.4662659785
A187: 14 | B187: Spokane Steel Foundry | D187: 0.2476553569 | E187: =(E17/E$172)/E52 -> 0.2472214078 | F187: 0.2288433973 | G187: 0.2965403783 | H187: =(H17/H$172)/H52 -> 0.3221611268 | I187: 0.3286551687 | J187: 0.3505761997 | K187: 0.3424442613 | L187: 0.3540434522 | M187: 0.3735218337 | N187: 0.3422648081 | O187: 0.3487861977 | P187: 0.3152261324 | Q187: 0.3058047308
A188: 15 | B188: Triumph Composite / Boeing | D188: 0.6447030792 | E188: =(E18/E$172)/E53 -> 0.6045561186 | F188: 0.5376761031 | G188: 0.6684890784 | H188: 0.6501186709 | I188: 0.6609163824 | J188: 0.6475374742 | K188: 0.5592962881 | L188: 0.6175785759 | M188: 0.5724408059 | N188: 0.5522896234 | O188: 0.6157685973 | P188: 0.6109475665 | Q188: 0.4954614351
A189: 16 | B189: Vaagen Brothers Lumber | D189: 0.5785395443 | E189: =(E19/E$172)/E54 -> 0.6067118928 | F189: 0.6263477081 | G189: 0.6350645183 | H189: 0.6583724384 | I189: 0.6093181174 | J189: 0.5799870397 | K189: 0.581180463 | L189: 0.6138987913 | M189: 0.5898803738 | N189: 0.5944699999 | O189: 0.5987928912 | P189: 0.6060469815 | Q189: 0.5511766596
A190: 17 | B190: WSU - MP-A South Campus Feeder | D190: 0.6361155559 | E190: =(E20/E$172)/E55 -> 0.6882052028 | F190: 0.760347686 | G190: 0.7748640859 | H190: 0.7304922417 | I190: 0.7203792451 | J190: 0.7584231412 | K190: 0.7038060776 | L190: 0.7145165598 | M190: 0.7033026303 | N190: 0.7246224815 | O190: 0.7562342447 | P190: 0.7226090961 | Q190: 0.6294864476
A191: 18 | B191: WSU - MP-B East Campus EA | D191: 0.7220248293 | E191: =(E21/E$172)/E56 -> 0.6941806962 | F191: 0.661037546 | G191: 0.7021071366 | H191: 0.7266982559 | I191: 0.6385580224 | J191: 0.6398659275 | K191: 0.5563667957 | L191: 0.6012570451 | M191: 0.5926175483 | N191: 0.6064860066 | O191: 1.927973787 | P191: 0.7557644664 | Q191: 0.4887544233
A192: 19 | B192: WSU - MP-C East Campus EB | D192: 0.6790521362 | E192: =(E22/E$172)/E57 -> 0.7434858842 | F192: 0.775475596 | G192: 0.7478701479 | H192: 0.7685548783 | I192: 0.7328532955 | J192: 0.7262800832 | K192: 0.7531296664 | L192: 0.4713107871 | M192: 0.5505761539 | N192: 0.5644187529 | O192: 0.7485771103 | P192: 0.6884653743 | Q192: 0.5201519902
A193: 20 | B193: WSU - MP -D Casp East (no PVD) | D193: 0.7062331449 | E193: =(E23/E$172)/E58 -> 0.6681279461 | F193: 0.6503833694 | G193: 0.5231679956 | H193: 0.6958380763 | I193: 0.6740866002 | J193: 0.719126302 | K193: 0.6912709157 | L193: 0.6913507717 | M193: 0.6947664736 | N193: 0.6887710493 | O193: 0.6760259045 | P193: 0.6732623791 | Q193: 0.5426307271
A194: 21 | B194: WSU - MP-E Casp West (no PVD) | D194: 0.6137103872 | E194: =(E24/E$172)/E59 -> 0.6377993801 | F194: 0.5811906507 | G194: 0.4853028939 | H194: 0.6957716031 | I194: 0.6786566779 | J194: 0.648810648 | K194: 0.549889268 | L194: 0.447321043 | M194: 0.6298784065 | N194: 0.6394972028 | O194: 0.6501174376 | P194: 0.6048287999 | Q194: 0.4770522186

Sheet Lighting summary
B1: AVISTA UTILITIES
B2: WASHINGTON ELECTRIC
B3: STREET & AREA LIGHT REVENUE UNDER PRESENT & PROPOSED RATES
B4: 12 MONTHS ENDED SEPTEMBER 30, 2014
C7: ="Present "&IF(Base1_Billing2=2,"Billing ","")&"Rates(1)" -> Present Rates(1) | D7: ="Present "&IF(Base1_Billing2=2,"Billing","")&" Rates" -> Present Rates | F7: ="Proposed "&IF(Base1_Billing2=2,"Billing ","")&"Rates(2)" -> Proposed Rates(2) | G7: ="Proposed "&IF(Base1_Billing2=2,"Billing ","")&"Rates" -> Proposed Rates | I7: % Revenue Change
C8: Monthly | D8: Annual | F8: Monthly | G8: Annual | L8: Target Base | N8: Annual | O8: Present | P8: Proposed
C9: Revenue | D9: Revenue | F9: Revenue | G9: Revenue | I9: Base Rates | J9: Billing Rates | L9: % Change | N9: kWh's | O9: kWh Rate | P9: kWh Rate
B11: Schedule 41 | C11: ='St Lts'!Y$56*IF(Base1_Billing2=2,1+$I$39,1) -> 1961.35 | D11: =C11*12 -> 23536.2 | F11: ='St Lts'!AQ$56*IF(Base1_Billing2=2,1+$D$39,1) -> 1961.35 | G11: =F11*12 -> 23536.2 | I11: =G11/D11-1 -> 0 | J11: 0 | L11: 0 | N11: ='Rev Runs 12MESEPT2014'!P56 -> 104640
B12: Schedule 42 | C12: ='St Lts'!Z$56*IF(Base1_Billing2=2,1+$I$39,1) -> 377732.68 | D12: =C12*12 -> 4532792.16 | F12: ='St Lts'!AR$56*IF(Base1_Billing2=2,1+$D$39,1) -> 377732.68 | G12: =F12*12 -> 4532792.16 | I12: =G12/D12-1 -> 0 | J12: 0 | L12: =L11 -> 0 | N12: ='Rev Runs 12MESEPT2014'!P57 -> 13449724
B13: Schedule 44 | C13: ='St Lts'!AA$56*IF(Base1_Billing2=2,1+$I$39,1) -> 3329.92 | D13: 39959.04 | F13: ='St Lts'!AS$56*IF(Base1_Billing2=2,1+$D$39,1) -> 3329.92 | G13: 39959.04 | I13: 0 | J13: 0 | L13: =L11 -> 0 | N13: ='Rev Runs 12MESEPT2014'!P58 -> 294806
B14: Schedule 45 | C14: ='St Lts'!AB$56*IF(Base1_Billing2=2,1+$I$39,1) -> 6483.48 | D14: 77801.76 | F14: ='St Lts'!AT$56*IF(Base1_Billing2=2,1+$D$39,1) -> 6483.48 | G14: 77801.76 | I14: =G14/D14-1 -> 0 | J14: 0 | L14: =L11 -> 0 | N14: ='Rev Runs 12MESEPT2014'!P60 -> 1070412
B15: Schedule 46 | C15: ='St Lts'!AC$56*IF(Base1_Billing2=2,1+$I$39,1) -> 10699.77 | D15: 128397.24 | F15: ='St Lts'!AU$56*IF(Base1_Billing2=2,1+$D$39,1) -> 10699.77 | G15: 128397.24 | I15: 0 | J15: 0 | L15: =L11 -> 0 | N15: ='Rev Runs 12MESEPT2014'!P61 -> 1448611 | O15: =D15/N15 -> 0.08863472665 | P15: =G15/N15 -> 0.08863472665
B16: Schedule 47 | C16: =IF(Base1_Billing2=1,'Area Lts'!S51,'Area Lts'!S60) -> 109710.14 | D16: 1316521.68 | F16: =IF(Base1_Billing2=1,'Area Lts'!AG51,'Area Lts'!AG60) -> 109710.14 | G16: 1316521.68 | I16: 0 | J16: 0 | L16: =L11 -> 0 | N16: ='Rev Runs 12MESEPT2014'!P62 -> 5579651
B17: Schedule 48 | C17: =IF(Base1_Billing2=1,'Area Lts'!T51,'Area Lts'!T60) -> 65701.84002 | D17: 788422.0803 | F17: =IF(Base1_Billing2=1,'Area Lts'!AH51,'Area Lts'!AH60) -> 65701.84005 | G17: 788422.0806 | I17: 4.24645874e-10 | J17: 0 | L17: =L11 -> 0 | N17: ='Rev Runs 12MESEPT2014'!P63 -> 3179921
B19: Total | C19: =SUM(C11:C17) -> 575619.18 | D19: =SUM(D11:D17) -> 6907430.16 | F19: =SUM(F11:F17) -> 575619.18 | G19: =SUM(G11:G17) -> 6907430.161 | I19: =G19/D19-1 -> 4.846967272e-11 | J19: 0 | L19: =L11 -> 0 | N19: =SUM(N11:N18) -> 25127765
C20: =ROUND(C19-CHOOSE(Base1_Billing2,'St Lts'!AC58+'Area Lts'!T52,'St Lts'!AC64+'Area Lts'!T61),0) -> 0 | F20: =ROUND(F19-CHOOSE(Base1_Billing2,'St Lts'!AU57+'Area Lts'!AH52,'St Lts'!AU63+'Area Lts'!AH61),0) -> 0 | L20: =I19-L19 -> 4.846967272e-11
B21: Sch 46 Per kWh Rate | D21: =D15/N15 -> 0.08863472665 | G21: =G15/N15 -> 0.08863472665
B23: (1) from PDE-E-12/14
B24: (2) from PDE-E-13/14
C26: Billed | D26: =D19*(1+I39)+'Area Lts'!T59*12 -> 6991010.065 | F26: b4 Sch 91/92 | G26: =G19*(1+J39)+'Area Lts'!AH59*12 -> 6990221.186 | I26: =G26/D26-1 -> -0.0001128420148 | K26: =G26-D26 -> -788.8796611
C27: Diff | D27: =D26-D19 -> 83579.90494 | F27: b4 Sch 91/92 | G27: =G26-G19 -> 82791.02494
C28: Pres 91/92 | D28: =D$19*(I36+I37) -> 83579.90494 | F28: 91/92 b4 Sch 91/92 | G28: =G$19*(J36+J37) -> 83579.90494
C29: Pres 93 | D29: =D$19*I38 -> 0 | F29: 93 b4 Sch 93 | G29: =G$19*J38 -> 0
C30: add'l 91/92 | D30: =D28*($L$36+L37) -> 0
C31: Billed | D31: =D26 -> 6991010.065 | F31: w/Sch 91/92/93/98 | G31: =G19*(1+D39)+'Area Lts'!AH59*12 -> 6990221.186 | I31: =G31/D31-1 -> -0.0001128420148 | K31: =G31-D26 -> -788.8796611 | L31: =K31-J$19 -> -788.8796611
J34: Revised
D35: Proposed | I35: Present | J35: Present | K35: Proposed
D36: =K36 -> 0 | G36: Sch 91-DSM | I36: 0 | J36: =(L19+(1+I36))/(1+L19)-1 -> 0 | K36: =J36*(1+L36) -> 0 | L36: 0
D37: =K37 -> 0.0121 | G37: Sch 92-LIRAP | I37: 0.0121 | J37: =(L19+(1+I37))/(1+L19)-1 -> 0.0121 | K37: =J37*(1+L37) -> 0.0121 | L37: 0 | M37: Reflects additional LIRAP funding
D38: =K38 -> 0 | I38: 0 | J38: =(L19+(1+I38))/(1+L19)-1 -> 0 | K38: =J38*(1+$L$38) -> 0 | L38: 0
D39: =D36+D37+D38 -> 0.0121 | G39: Total adder | I39: =I36+I37+I38 -> 0.0121 | J39: =J36+J37+J38 -> 0.0121 | K39: =K36+K37+K38 -> 0.0121
B42: copy of Total above | C42: 488916.6501 | D42: 5866999.801 | F42: 556466.5401 | G42: 6677598.481
B43: diff from curr Total above | C43: =C19-C42 -> 86702.52997 | D43: =D19-D42 -> 1040430.36 | F43: =F19-F42 -> 19152.64 | G43: =G19-G42 -> 229831.68
B44: % diff | C44: =C43/C42 -> 0.1773360142 | D44: =D43/D42 -> 0.1773360142 | F44: =F43/F42 -> 0.03441831381 | G44: =G43/G42 -> 0.03441831381

Sheet St Lts
A1: Street Light Summary | I1: WASHINGTON Street Lights | AJ1: % rate increase --> | AK1: ='Lighting summary'!L11 -> 0 | AL1: ='Lighting summary'!L12 -> 0 | AM1: ='Lighting summary'!L13 -> 0 | AN1: ='Lighting summary'!L14 -> 0 | AO1: ='Lighting summary'!L15 -> 0 | BD1: =-0.00105 -> -0.00105 | BE1: compare input Present Billing Rates to calculated Present Billing Rates | BL1: =BE2 -> 1.0121
A2: DWWPAOAE Report, as of 10/22/14 | M2: Number of Lights(1) | S2: Present Rates | Y2: Monthly Revenue at Present Rates | AE2: Number of Lights | AK2: Proposed Rates | AQ2: Monthly Revenue at Proposed Rates | AX2: Present Billing Rates | BD2: =-0.00458 -> -0.00458 | BE2: =1+'Lighting summary'!I39 -> 1.0121 | BF2: Sch 91 & 93 | BL2: New Billing Rates | BR2: Increase
I3: Fixture Type | J3: Pole Facility | K3: Size | L3: Sched | M3: 041 | N3: 042 | O3: 044 | P3: 045 | Q3: 046 | S3: 041 | T3: 042 | U3: 044 | V3: 045 | W3: 046 | Y3: 041 | Z3: 042 | AA3: 044 | AB3: 045 | AC3: 046 | AE3: 041 | AF3: 042 | AG3: 044 | AH3: 045 | AI3: 046 | AK3: 041 | AL3: 042 | AM3: 044 | AN3: 045 | AO3: 046 | AQ3: 041 | AR3: 042 | AS3: 044 | AT3: 045 | AU3: 046 | AW3: kwh | AX3: 041 | AY3: 042 | AZ3: 044 | BA3: 045 | BB3: 046 | BD3: Sch 93/94 | BE3: 041 | BF3: 042 | BG3: 044 | BH3: 045 | BI3: 046 | BL3: 041 | BM3: 042 | BN3: 044 | BO3: 045 | BP3: 046 | BR3: 041 | BS3: 042 | BT3: 044 | BU3: 045 | BV3: 046
I4: Single Mercury Vapor | J4: Direct Burial | K4: 4000 | L4: 214 | M4: =SUMIF($G:$G,TEXT(M$3,"000")&TEXT($L4,"000"),$E:$E) -> 75 | N4: 0 | O4: 0 | P4: 0 | Q4: 0 | S4: 13.99 | T4: 0 | U4: 0 | V4: 0 | W4: 0 | Y4: =IF(AND(M4<>0,S4=0),#VALUE!,M4*S4) -> 1049.25 | Z4: =IF(AND(N4<>0,T4=0),#VALUE!,N4*T4) -> 0 | AA4: =IF(AND(O4<>0,U4=0),#VALUE!,O4*U4) -> 0 | AB4: =IF(AND(P4<>0,V4=0),#VALUE!,P4*V4) -> 0 | AC4: =IF(AND(Q4<>0,W4=0),#VALUE!,Q4*W4) -> 0 | AE4: =M4 -> 75 | AF4: =N4 -> 0 | AG4: 0 | AH4: 0 | AI4: 0 | AK4: =ROUND(S4*(1+AK$1),2) -> 13.99 | AL4: 0 | AM4: 0 | AN4: 0 | AO4: 0 | AQ4: =IF(AND(AE4<>0,AK4=0),#VALUE!,AE4*AK4) -> 1049.25 | AR4: =IF(AND(AF4<>0,AL4=0),#VALUE!,AF4*AL4) -> 0 | AS4: =IF(AND(AG4<>0,AM4=0),#VALUE!,AG4*AM4) -> 0 | AT4: =IF(AND(AH4<>0,AN4=0),#VALUE!,AH4*AN4) -> 0 | AU4: =IF(AND(AI4<>0,AO4=0),#VALUE!,AI4*AO4) -> 0 | AV4: =SUM(AQ4:AU4)-SUM(Y4:AC4) -> 0 | AW4: 42 | AX4: 14.58 | BD4: =ROUND(AW4*$BD$2,2)+ROUND(AW4*$BD$1,2) -> -0.23 | BE4: =ROUND((S4*$BE$2)+$BD4-AX4,2) -> -0.65 | BL4: =AK4*$BL$1 -> 14.159279 | BM4: =AL4*$BL$1 -> 0 | BN4: 0 | BO4: 0 | BP4: 0 | BR4: =BL4-AX4 -> -0.420721 | BS4: =BM4-AY4 -> 0 | BT4: =BN4-AZ4 -> 0 | BU4: =BO4-BA4 -> 0 | BV4: =BP4-BB4 -> 0
B5: State | C5: Sched | D5: Rate Sub | E5: # of Lights | I5: Single High-Pressure Sodium Vapor | J5: Direct Burial | K5: 50W | L5: 234 | M5: 0 | N5: 129 | O5: 0 | P5: 0 | Q5: 0 | S5: 0 | T5: 13.14 | U5: 0 | V5: 0 | W5: 0 | Y5: =IF(AND(M5<>0,S5=0),#VALUE!,M5*S5) -> 0 | Z5: =IF(AND(N5<>0,T5=0),#VALUE!,N5*T5) -> 1695.06 | AA5: =IF(AND(O5<>0,U5=0),#VALUE!,O5*U5) -> 0 | AB5: =IF(AND(P5<>0,V5=0),#VALUE!,P5*V5) -> 0 | AC5: =IF(AND(Q5<>0,W5=0),#VALUE!,Q5*W5) -> 0 | AE5: =M5 -> 0 | AF5: 129 | AG5: 0 | AH5: 0 | AI5: 0 | AK5: 0 | AL5: 13.14 | AM5: 0 | AN5: 0 | AO5: 0 | AQ5: =IF(AND(AE5<>0,AK5=0),#VALUE!,AE5*AK5) -> 0 | AR5: =IF(AND(AF5<>0,AL5=0),#VALUE!,AF5*AL5) -> 1695.06 | AS5: 0 | AT5: 0 | AU5: 0 | AV5: =SUM(AQ5:AU5)-SUM(Y5:AC5) -> 0 | AW5: 20 | AY5: 13.79 | BD5: -0.11 | BF5: =ROUND((T5*$BE$2)+$BD5-AY5,2) -> -0.6 | BL5: =AK5*$BL$1 -> 0 | BM5: =AL5*$BL$1 -> 13.298994 | BN5: =AM5*$BL$1 -> 0 | BO5: =AN5*$BL$1 -> 0 | BP5: =AO5*$BL$1 -> 0 | BR5: =BL5-AX5 -> 0 | BS5: =BM5-AY5 -> -0.491006 | BT5: =BN5-AZ5 -> 0 | BU5: =BO5-BA5 -> 0 | BV5: =BP5-BB5 -> 0
I6: High-Pressure Sodium Vapor | J6: Dusk to Dawn | K6: 70W | L6: 335 | M6: 0 | N6: 0 | O6: 0 | P6: 0 | Q6: 41 | S6: 0 | T6: 0 | U6: 0 | V6: 0 | W6: 3.38 | Y6: 0 | Z6: 0 | AA6: 0 | AB6: 0 | AC6: 138.58 | AE6: 0 | AF6: 0 | AG6: 0 | AH6: 0 | AI6: 41 | AK6: 0 | AL6: 0 | AM6: 0 | AN6: 0 | AO6: 3.38 | AQ6: 0 | AR6: 0 | AS6: 0 | AT6: 0 | AU6: 138.58 | AV6: 0 | AW6: 25 | BB6: 3.44 | BD6: -0.14 | BI6: -0.16 | BL6: 0 | BM6: 0 | BN6: 0 | BO6: 0 | BP6: 3.420898 | BR6: 0 | BS6: 0 | BT6: 0 | BU6: 0 | BV6: -0.019102
B7: 2 | C7: 041 | D7: 214 | E7: =75 -> 75 | G7: =IF(OR(ISBLANK(C7),ISBLANK(D7)),"",TEXT(C7,"000")&TEXT(D7,"000")) -> 041214 | I7: Single Mercury Vapor | J7: Wood Pole | K7: 7000 | L7: 411 | M7: 32 | N7: 0 | O7: 0 | P7: 0 | Q7: 0 | S7: 15.17 | T7: 0 | U7: 0 | V7: 0 | W7: 0 | Y7: 485.44 | Z7: 0 | AA7: 0 | AB7: 0 | AC7: 0 | AE7: 32 | AF7: 0 | AG7: 0 | AH7: 0 | AI7: 0 | AK7: 15.17 | AL7: 0 | AM7: 0 | AN7: 0 | AO7: 0 | AQ7: 485.44 | AR7: 0 | AS7: 0 | AT7: 0 | AU7: 0 | AV7: 0 | AW7: 80 | AX7: 15.6 | BD7: -0.45 | BE7: =ROUND((S7*$BE$2)+$BD7-AX7,2) -> -0.7 | BL7: 15.353557 | BM7: 0 | BN7: 0 | BO7: 0 | BP7: 0 | BR7: -0.246443 | BS7: 0 | BT7: 0 | BU7: 0 | BV7: 0
B8: 2 | C8: 041 | D8: 411 | E8: 32 | G8: 041411 | I8: Mercury Vapor | J8: Dusk to Dawn | K8: 7000 | L8: 415 | M8: 0 | N8: 0 | O8: 0 | P8: 73 | Q8: 0 | S8: 0 | T8: 0 | U8: 0 | V8: 6.66 | W8: 0 | Y8: 0 | Z8: 0 | AA8: 0 | AB8: 486.18 | AC8: 0 | AE8: 0 | AF8: 0 | AG8: 0 | AH8: 73 | AI8: 0 | AK8: 0 | AL8: 0 | AM8: 0 | AN8: 6.66 | AO8: 0 | AQ8: 0 | AR8: 0 | AS8: 0 | AT8: 486.18 | AU8: 0 | AV8: 0 | AW8: 80 | BA8: 6.6 | BD8: -0.45 | BH8: -0.31 | BL8: 0 | BM8: 0 | BN8: 0 | BO8: 6.740586 | BP8: 0 | BR8: 0 | BS8: 0 | BT8: 0 | BU8: 0.140586 | BV8: 0
B9: 2 | C9: 041 | D9: 511 | E9: 6 | G9: 041511 | I9: Mercury Vapor | J9: Dusk to 1 AM | K9: 7000 | L9: 419 | M9: 0 | N9: 0 | O9: 0 | P9: 16 | Q9: 0 | S9: 0 | T9: 0 | U9: 0 | V9: 4.51 | W9: 0 | Y9: 0 | Z9: 0 | AA9: 0 | AB9: 72.16 | AC9: 0 | AE9: =M9 -> 0 | AF9: =N9 -> 0 | AG9: =O9 -> 0 | AH9: =P9 -> 16 | AI9: =Q9 -> 0 | AK9: 0 | AL9: 0 | AM9: 0 | AN9: 4.51 | AO9: 0 | AQ9: 0 | AR9: 0 | AS9: 0 | AT9: 72.16 | AU9: 0 | AV9: 0 | AW9: 80 | BA9: 4.32 | BD9: -0.45 | BH9: -0.21 | BL9: =AK9*$BL$1 -> 0 | BM9: =AL9*$BL$1 -> 0 | BN9: =AM9*$BL$1 -> 0 | BO9: =AN9*$BL$1 -> 4.564571 | BP9: =AO9*$BL$1 -> 0 | BR9: 0 | BS9: 0 | BT9: 0 | BU9: 0.244571 | BV9: 0
B10: 2 | C10: 041 | D10: 611 | E10: 12 | G10: 041611 | I10: Single High-Pressure Sodium Vapor | J10: Wood Pole | K10: 100W | L10: 421 | M10: 0 | N10: 9 | O10: 0 | P10: 0 | Q10: 0 | S10: 0 | T10: 24.93 | U10: 0 | V10: 0 | W10: 0 | Y10: 0 | Z10: 224.37 | AA10: 0 | AB10: 0 | AC10: 0 | AE10: 0 | AF10: 9 | AG10: 0 | AH10: 0 | AI10: 0 | AK10: 0 | AL10: 24.93 | AM10: 0 | AN10: 0 | AO10: 0 | AQ10: 0 | AR10: 224.37 | AS10: 0 | AT10: 0 | AU10: 0 | AV10: 0 | AW10: 40 | AY10: 26.16 | BD10: -0.22 | BF10: -1.15 | BL10: 0 | BM10: 25.231653 | BN10: 0 | BO10: 0 | BP10: 0 | BR10: 0 | BS10: -0.928347 | BT10: 0 | BU10: 0 | BV10: 0
B11: 2 | C11: 041 | E11: =SUM(E7:E10) -> 125 | I11: Single High-Pressure Sodium Vapor | J11: Wood Pole | K11: 100W | L11: 431 | M11: 0 | N11: 9669 | O11: 3 | P11: 0 | Q11: 0 | S11: 0 | T11: 15.13 | U11: 7.15 | V11: 0 | W11: 0 | Y11: 0 | Z11: 146291.97 | AA11: 21.45 | AB11: 0 | AC11: 0 | AE11: 0 | AF11: 9669 | AG11: 3 | AH11: 0 | AI11: 0 | AK11: 0 | AL11: =ROUND(T11*(1+AL$1),2) -> 15.13 | AM11: 7.15 | AN11: 0 | AO11: 0 | AQ11: 0 | AR11: 146291.97 | AS11: 21.45 | AT11: 0 | AU11: 0 | AV11: =SUM(AQ11:AU11)-SUM(Y11:AC11) -> 0 | AW11: 40 | AY11: 15.79 | AZ11: 7.35 | BD11: -0.22 | BF11: -0.7 | BG11: -0.33 | BL11: 0 | BM11: 15.313073 | BN11: 7.236515 | BO11: 0 | BP11: 0 | BR11: 0 | BS11: -0.476927 | BT11: -0.113485 | BU11: 0 | BV11: 0
I12: Single High-Pressure Sodium Vapor | J12: Pedestal Base | K12: 100W | L12: 432 | M12: 0 | N12: 144 | O12: 20 | P12: 0 | Q12: 0 | S12: 0 | T12: 24.93 | U12: 7.15 | V12: 0 | W12: 0 | Y12: 0 | Z12: 3589.92 | AA12: 143 | AB12: 0 | AC12: 0 | AE12: 0 | AF12: 144 | AG12: 20 | AH12: 0 | AI12: 0 | AK12: 0 | AL12: =ROUND(T12*(1+AL$1),2) -> 24.93 | AM12: 7.15 | AN12: 0 | AO12: 0 | AQ12: 0 | AR12: 3589.92 | AS12: 143 | AT12: 0 | AU12: 0 | AV12: 0 | AW12: 40 | AY12: 26.16 | AZ12: 7.35 | BD12: -0.22 | BF12: -1.15 | BG12: -0.33 | BL12: 0 | BM12: 25.231653 | BN12: 7.236515 | BO12: 0 | BP12: 0 | BR12: 0 | BS12: -0.928347 | BT12: -0.113485 | BU12: 0 | BV12: 0
B13: 2 | C13: 042 | D13: 234 | E13: 129 | G13: 042234 | I13: Single High-Pressure Sodium Vapor | J13: Direct Burial | K13: 100W | L13: 433 | M13: 0 | N13: 86 | O13: 10 | P13: 0 | Q13: 0 | S13: 0 | T13: 24.93 | U13: 7.15 | V13: 0 | W13: 0 | Y13: 0 | Z13: 2143.98 | AA13: 71.5 | AB13: 0 | AC13: 0 | AE13: 0 | AF13: 86 | AG13: 10 | AH13: 0 | AI13: 0 | AK13: 0 | AL13: 24.93 | AM13: 7.15 | AN13: 0 | AO13: 0 | AQ13: 0 | AR13: 2143.98 | AS13: 71.5 | AT13: 0 | AU13: 0 | AV13: 0 | AW13: 40 | AY13: 26.16 | AZ13: 7.35 | BD13: -0.22 | BF13: -1.15 | BG13: -0.33 | BL13: 0 | BM13: 25.231653 | BN13: 7.236515 | BO13: 0 | BP13: 0 | BR13: 0 | BS13: -0.928347 | BT13: -0.113485 | BU13: 0 | BV13: 0
B14: 2 | C14: 042 | D14: 421 | E14: 9 | G14: 042421 | I14: Single High-Pressure Sodium Vapor | J14: Direct Burial | K14: 100W | L14: 434 | M14: =SUMIF($G:$G,TEXT(M$3,"000")&TEXT($L14,"000"),$E:$E) -> 0 | N14: 2594 | O14: 0 | P14: 0 | Q14: 0 | S14: 0 | T14: 14.06 | U14: 0 | V14: 0 | W14: 0 | Y14: 0 | Z14: 36471.64 | AA14: 0 | AB14: 0 | AC14: 0 | AE14: 0 | AF14: 2594 | AG14: 0 | AH14: 0 | AI14: 0 | AK14: 0 | AL14: 14.06 | AM14: 0 | AN14: 0 | AO14: 0 | AQ14: 0 | AR14: 36471.64 | AS14: 0 | AT14: 0 | AU14: 0 | AV14: 0 | AW14: 40 | AY14: 14.66 | BD14: -0.22 | BF14: -0.65 | BL14: 0 | BM14: 14.230126 | BN14: 0 | BO14: 0 | BP14: 0 | BR14: 0 | BS14: -0.429874 | BT14: 0 | BU14: 0 | BV14: 0
B15: 2 | C15: 042 | D15: 431 | E15: 9669 | G15: 042431 | I15: Single High-Pressure Sodium Vapor | J15: No Pole / Dusk to Dawn (046) | K15: 100W | L15: 435 | M15: 0 | N15: 2574 | O15: 44 | P15: 0 | Q15: 75 | S15: 0 | T15: 13.33 | U15: 7.15 | V15: 0 | W15: 4.78 | Y15: 0 | Z15: 34311.42 | AA15: 314.6 | AB15: 0 | AC15: 358.5 | AE15: 0 | AF15: 2574 | AG15: 44 | AH15: 0 | AI15: 75 | AK15: 0 | AL15: 13.33 | AM15: 7.15 | AN15: 0 | AO15: 4.78 | AQ15: 0 | AR15: 34311.42 | AS15: 314.6 | AT15: 0 | AU15: 358.5 | AV15: 0 | AW15: 40 | AY15: 13.88 | AZ15: 7.35 | BB15: 4.84 | BD15: -0.22 | BF15: -0.61 | BG15: -0.33 | BI15: -0.22 | BL15: 0 | BM15: 13.491293 | BN15: 7.236515 | BO15: 0 | BP15: 4.837838 | BR15: 0 | BS15: -0.388707 | BT15: -0.113485 | BU15: 0 | BV15: -0.002162
B16: 2 | C16: 042 | D16: 432 | E16: 144 | G16: 042432 | I16: Single High-Pressure Sodium Vapor | J16: Developer Contributed | K16: 100W | L16: 436 | M16: 0 | N16: 603 | O16: 0 | P16: 0 | Q16: 0 | S16: 0 | T16: 15.13 | U16: 0 | V16: 0 | W16: 0 | Y16: 0 | Z16: 9123.39 | AA16: 0 | AB16: 0 | AC16: 0 | AE16: 0 | AF16: 603 | AG16: 0 | AH16: 0 | AI16: 0 | AK16: 0 | AL16: =AL11 -> 15.13 | AM16: 0 | AN16: 0 | AO16: 0 | AQ16: 0 | AR16: 9123.39 | AS16: 0 | AT16: 0 | AU16: 0 | AV16: 0 | AW16: 40 | AY16: 15.79 | BD16: -0.22 | BF16: -0.7 | BL16: 0 | BM16: 15.313073 | BN16: 0 | BO16: 0 | BP16: 0 | BR16: 0 | BS16: -0.476927 | BT16: 0 | BU16: 0 | BV16: 0
B17: 2 | C17: 042 | D17: 433 | E17: 86 | G17: 042433 | I17: Decorative Sodium Vapor | J17: No Pole | K17: Kim Light 100W | L17: 438 | M17: 0 | N17: 14 | O17: 0 | P17: 0 | Q17: 0 | S17: 0 | T17: 14.06 | U17: 0 | V17: 0 | W17: 0 | Y17: 0 | Z17: 196.84 | AA17: 0 | AB17: 0 | AC17: 0 | AE17: 0 | AF17: 14 | AG17: 0 | AH17: 0 | AI17: 0 | AK17: 0 | AL17: =ROUND(T17*(1+AL$1),2) -> 14.06 | AM17: 0 | AN17: 0 | AO17: 0 | AQ17: 0 | AR17: 196.84 | AS17: 0 | AT17: 0 | AU17: 0 | AV17: 0 | AW17: 40 | AY17: 14.66 | BD17: -0.22 | BF17: -0.65 | BL17: 0 | BM17: 14.230126 | BN17: 0 | BO17: 0 | BP17: 0 | BR17: 0 | BS17: -0.429874 | BT17: 0 | BU17: 0 | BV17: 0
B18: 2 | C18: 042 | D18: 434 | E18: 2594 | G18: 042434 | I18: Double High-Pressure Sodium Vapor | J18: Wood Pole | K18: 100W | L18: 441 | M18: 0 | N18: 25 | O18: 0 | P18: 0 | Q18: 0 | S18: 0 | T18: 27.39 | U18: 12.55 | V18: 0 | W18: 0 | Y18: 0 | Z18: 684.75 | AA18: 0 | AB18: 0 | AC18: 0 | AE18: 0 | AF18: 25 | AG18: 0 | AH18: 0 | AI18: 0 | AK18: 0 | AL18: 27.39 | AM18: 12.55 | AN18: 0 | AO18: 0 | AQ18: 0 | AR18: 684.75 | AS18: 0 | AT18: 0 | AU18: 0 | AV18: 0 | AW18: 80 | AY18: 28.54 | AZ18: 12.83 | BD18: -0.45 | BF18: -1.27 | BG18: -0.58 | BL18: 0 | BM18: 27.721419 | BN18: 12.701855 | BO18: 0 | BP18: 0 | BR18: 0 | BS18: -0.818581 | BT18: -0.128145 | BU18: 0 | BV18: 0
B19: 2 | C19: 042 | D19: 435 | E19: 2574 | G19: 042435 | I19: Double High-Pressure Sodium Vapor | J19: Pedestal Base | K19: 100W | L19: 442 | M19: =SUMIF($G:$G,TEXT(M$3,"000")&TEXT($L19,"000"),$E:$E) -> 0 | N19: =SUMIF($G:$G,TEXT(N$3,"000")&TEXT($L19,"000"),$E:$E) -> 1 | O19: =SUMIF($G:$G,TEXT(O$3,"000")&TEXT($L19,"000"),$E:$E) -> 0 | P19: =SUMIF($G:$G,TEXT(P$3,"000")&TEXT($L19,"000"),$E:$E) -> 0 | Q19: =SUMIF($G:$G,TEXT(Q$3,"000")&TEXT($L19,"000"),$E:$E) -> 0 | R19: =IF(SUM(M19:Q19)>0,0,1) -> 0 | S19: 0 | T19: 38.81 | U19: 0 | V19: 0 | W19: 0 | Z19: 38.81 | AC19: 0 | AE19: =SUMIF($G:$G,TEXT(AE$3,"000")&TEXT($L19,"000"),$E:$E) -> 0 | AF19: =SUMIF($G:$G,TEXT(AF$3,"000")&TEXT($L19,"000"),$E:$E) -> 1 | AG19: =SUMIF($G:$G,TEXT(AG$3,"000")&TEXT($L19,"000"),$E:$E) -> 0 | AH19: =SUMIF($G:$G,TEXT(AH$3,"000")&TEXT($L19,"000"),$E:$E) -> 0 | AI19: =SUMIF($G:$G,TEXT(AI$3,"000")&TEXT($L19,"000"),$E:$E) -> 0 | AK19: =ROUND(S19*(1+AK$1),2) -> 0 | AL19: =ROUND(T19*(1+AL$1),2) -> 38.81 | AM19: =ROUND(U19*(1+AM$1),2) -> 0 | AN19: =ROUND(V19*(1+AN$1),2) -> 0 | AO19: =ROUND(W19*(1+AO$1),2) -> 0 | AR19: 38.81 | AW19: 80 | AY19: 40.61 | AZ19: 12.83 | BD19: =ROUND(AW19*$BD$2,2)+ROUND(AW19*$BD$1,2) -> -0.45 | BF19: =ROUND((T19*$BE$2)+$BD19-AY19,2) -> -1.78 | BG19: =ROUND((U19*$BE$2)+$BD19-AZ19,2) -> -13.28 | BL19: =AK19*$BL$1 -> 0 | BM19: =AL19*$BL$1 -> 39.279601 | BN19: =AM19*$BL$1 -> 0 | BO19: =AN19*$BL$1 -> 0 | BP19: =AO19*$BL$1 -> 0 | BR19: =BL19-AX19 -> 0 | BS19: =BM19-AY19 -> -1.330399 | BT19: =BN19-AZ19 -> -12.83 | BU19: =BO19-BA19 -> 0 | BV19: =BP19-BB19 -> 0
B20: 2 | C20: 042 | D20: 436 | E20: 603 | G20: 042436 | I20: Decorative Sodium Vapor | J20: Direct Burial | K20: Granville 100W | L20: 474 | M20: 0 | N20: 216 | O20: 0 | P20: 0 | Q20: 0 | S20: 0 | T20: 24.49 | U20: 0 | V20: 0 | W20: 0 | Y20: 0 | Z20: 5289.84 | AA20: 0 | AB20: 0 | AC20: 0 | AE20: 0 | AF20: 216 | AG20: 0 | AH20: 0 | AI20: 0 | AK20: 0 | AL20: 24.49 | AM20: 0 | AN20: 0 | AO20: 0 | AQ20: 0 | AR20: 5289.84 | AS20: 0 | AT20: 0 | AU20: 0 | AV20: 0 | AW20: 40 | AY20: 25.7 | BD20: -0.22 | BF20: -1.13 | BL20: 0 | BM20: 24.786329 | BN20: 0 | BO20: 0 | BP20: 0 | BR20: 0 | BS20: -0.913671 | BT20: 0 | BU20: 0 | BV20: 0
B21: 2 | C21: 042 | D21: 438 | E21: 14 | G21: 042438 | I21: Decorative Sodium Vapor | J21: No Pole | K21: Granville 100W | L21: 475 | M21: =SUMIF($G:$G,TEXT(M$3,"000")&TEXT($L21,"000"),$E:$E) -> 0 | N21: =SUMIF($G:$G,TEXT(N$3,"000")&TEXT($L21,"000"),$E:$E) -> 1 | O21: =SUMIF($G:$G,TEXT(O$3,"000")&TEXT($L21,"000"),$E:$E) -> 0 | P21: =SUMIF($G:$G,TEXT(P$3,"000")&TEXT($L21,"000"),$E:$E) -> 0 | Q21: =SUMIF($G:$G,TEXT(Q$3,"000")&TEXT($L21,"000"),$E:$E) -> 0 | R21: =IF(SUM(M21:Q21)>0,0,1) -> 0 | S21: 0 | T21: 18.8 | U21: 0 | V21: 0 | W21: 0 | Z21: 18.8 | AE21: =SUMIF($G:$G,TEXT(AE$3,"000")&TEXT($L21,"000"),$E:$E) -> 0 | AF21: =SUMIF($G:$G,TEXT(AF$3,"000")&TEXT($L21,"000"),$E:$E) -> 1 | AG21: =SUMIF($G:$G,TEXT(AG$3,"000")&TEXT($L21,"000"),$E:$E) -> 0 | AH21: =SUMIF($G:$G,TEXT(AH$3,"000")&TEXT($L21,"000"),$E:$E) -> 0 | AI21: =SUMIF($G:$G,TEXT(AI$3,"000")&TEXT($L21,"000"),$E:$E) -> 0 | AK21: =ROUND(S21*(1+AK$1),2) -> 0 | AL21: =ROUND(T21*(1+AL$1),2) -> 18.8 | AM21: =ROUND(U21*(1+AM$1),2) -> 0 | AN21: =ROUND(V21*(1+AN$1),2) -> 0 | AO21: =ROUND(W21*(1+AO$1),2) -> 0 | AR21: 18.8 | AW21: 40 | AY21: 19.68 | BD21: =ROUND(AW21*$BD$2,2)+ROUND(AW21*$BD$1,2) -> -0.22 | BF21: =ROUND((T21*$BE$2)+$BD21-AY21,2) -> -0.87 | BL21: =AK21*$BL$1 -> 0 | BM21: =AL21*$BL$1 -> 19.02748 | BN21: =AM21*$BL$1 -> 0 | BO21: =AN21*$BL$1 -> 0 | BP21: =AO21*$BL$1 -> 0 | BR21: =BL21-AX21 -> 0 | BS21: =BM21-AY21 -> -0.65252 | BT21: =BN21-AZ21 -> 0 | BU21: =BO21-BA21 -> 0 | BV21: =BP21-BB21 -> 0
B22: 2 | C22: 042 | D22: 441 | E22: 25 | G22: 042441 | I22: Decorative Sodium Vapor (Capital Only) | J22: Direct Burial | K22: Granville 100W | L22: 478 | M22: 0 | N22: 30 | O22: 0 | P22: 0 | Q22: 0 | S22: 0 | T22: 17.33 | U22: 0 | V22: 0 | W22: 0 | Y22: 0 | Z22: 519.9 | AA22: 0 | AB22: 0 | AC22: 0 | AE22: 0 | AF22: 30 | AG22: 0 | AH22: 0 | AI22: 0 | AK22: =ROUND(S22*(1+AK$1),2) -> 0 | AL22: 17.33 | AM22: 0 | AN22: 0 | AO22: 0 | AQ22: 0 | AR22: 519.9 | AS22: 0 | AT22: 0 | AU22: 0 | AV22: 0 | AY22: 18.33 | BD22: 0 | BF22: =ROUND((T22*$BE$2)+$BD22-AY22,2) -> -0.79 | BL22: 0 | BM22: 17.539693 | BN22: 0 | BO22: 0 | BP22: 0 | BR22: 0 | BS22: -0.790307 | BT22: 0 | BU22: 0 | BV22: 0
B23: 2 | C23: 042 | D23: 442 | E23: 1 | G23: 042442 | I23: Decorative Sodium Vapor | J23: Direct Burial | K23: Post Top 100W | L23: 484 | M23: 0 | N23: 161 | O23: 0 | P23: 0 | Q23: 0 | S23: 0 | T23: 23.31 | U23: 0 | V23: 0 | W23: 0 | Y23: 0 | Z23: 3752.91 | AA23: 0 | AB23: 0 | AC23: 0 | AE23: 0 | AF23: 161 | AG23: 0 | AH23: 0 | AI23: 0 | AK23: 0 | AL23: 23.31 | AM23: 0 | AN23: 0 | AO23: 0 | AQ23: 0 | AR23: 3752.91 | AS23: 0 | AT23: 0 | AU23: 0 | AV23: 0 | AW23: 40 | AY23: 24.44 | BD23: -0.22 | BF23: -1.07 | BL23: 0 | BM23: 23.592051 | BN23: 0 | BO23: 0 | BP23: 0 | BR23: 0 | BS23: -0.847949 | BT23: 0 | BU23: 0 | BV23: 0
B24: 2 | C24: 042 | D24: 474 | E24: 216 | G24: 042474 | I24: LED (Dusk to Dawn) | J24: Dusk to Dawn | K24: 100W | L24: 495 | M24: 0 | N24: 0 | O24: 0 | P24: 0 | Q24: 44 | S24: 0 | T24: 0 | U24: 0 | V24: 0 | W24: 4.78 | Y24: 0 | Z24: 0 | AA24: 0 | AB24: 0 | AC24: 210.32 | AE24: =SUMIF($G:$G,TEXT(AE$3,"000")&TEXT($L24,"000"),$E:$E) -> 0 | AF24: 0 | AG24: 0 | AH24: 0 | AI24: 44 | AK24: 0 | AL24: 0 | AM24: 0 | AN24: 0 | AO24: 4.78 | AQ24: 0 | AR24: 0 | AS24: 0 | AT24: 0 | AU24: 210.32 | AW24: 49 | BB24: 4.79 | BD24: -0.27 | BI24: =ROUND((W24*$BE$2)+$BD24-BB24,2) -> -0.22 | BL24: =AK24*$BL$1 -> 0 | BM24: 0 | BN24: 0 | BO24: 0 | BP24: 4.837838 | BR24: =BL24-AX24 -> 0 | BS24: 0 | BT24: 0 | BU24: 0 | BV24: 0.047838
B25: 2 | C25: 042 | D25: 475 | E25: 1 | G25: 042475 | I25: LED (Dusk to 11:00) | J25: Dusk to 11 PM | K25: 100W | L25: 499 | M25: 0 | N25: 0 | O25: 0 | P25: 0 | Q25: 45 | S25: 0 | T25: 0 | U25: 0 | V25: 0 | W25: 2.65 | Y25: 0 | Z25: 0 | AA25: 0 | AB25: 0 | AC25: 119.25 | AE25: 0 | AF25: 0 | AG25: 0 | AH25: 0 | AI25: 45 | AK25: 0 | AL25: 0 | AM25: 0 | AN25: 0 | AO25: 2.65 | AQ25: 0 | AR25: 0 | AS25: 0 | AT25: 0 | AU25: 119.25 | AW25: 21 | BB25: 2.68 | BD25: -0.12 | BI25: -0.12 | BL25: 0 | BM25: 0 | BN25: 0 | BO25: 0 | BP25: 2.682065 | BR25: 0 | BS25: 0 | BT25: 0 | BU25: 0 | BV25: 0.002065
B26: 3 | C26: 042 | D26: 478 | E26: 30 | G26: =IF(OR(ISBLANK(C26),ISBLANK(D26)),"",TEXT(C26,"000")&TEXT(D26,"000")) -> 042478 | I26: Single Mercury Vapor | J26: Wood Pole | K26: 10000 | L26: 511 | M26: =SUMIF($G:$G,TEXT(M$3,"000")&TEXT($L26,"000"),$E:$E) -> 6 | N26: 0 | O26: 0 | P26: 0 | Q26: 0 | S26: 18.55 | T26: 0 | U26: 0 | V26: 0 | W26: 0 | Y26: 111.3 | Z26: 0 | AA26: 0 | AB26: 0 | AC26: 0 | AE26: 6 | AF26: =N26 -> 0 | AG26: =O26 -> 0 | AH26: =P26 -> 0 | AI26: =Q26 -> 0 | AK26: 18.55 | AL26: 0 | AM26: 0 | AN26: 0 | AO26: 0 | AQ26: 111.3 | AR26: 0 | AS26: 0 | AT26: 0 | AU26: 0 | AV26: 0 | AW26: 111 | AX26: 19 | BD26: -0.63 | BE26: -0.86 | BL26: 18.774455 | BM26: 0 | BN26: 0 | BO26: 0 | BP26: 0 | BR26: -0.225545 | BS26: 0 | BT26: 0 | BU26: 0 | BV26: 0
B27: 2 | C27: 042 | D27: 484 | E27: 161 | G27: 042484 | I27: Mercury Vapor | J27: Dusk to Dawn | K27: 10000 | L27: 515 | M27: 0 | N27: 0 | O27: 0 | P27: 1 | Q27: 0 | S27: 0 | T27: 0 | U27: 0 | V27: 9.2 | W27: 0 | Y27: 0 | Z27: 0 | AA27: 0 | AB27: 9.2 | AC27: 0 | AE27: =SUMIF($G:$G,TEXT(AE$3,"000")&TEXT($L27,"000"),$E:$E) -> 0 | AF27: =SUMIF($G:$G,TEXT(AF$3,"000")&TEXT($L27,"000"),$E:$E) -> 0 | AG27: =SUMIF($G:$G,TEXT(AG$3,"000")&TEXT($L27,"000"),$E:$E) -> 0 | AH27: =SUMIF($G:$G,TEXT(AH$3,"000")&TEXT($L27,"000"),$E:$E) -> 1 | AI27: =SUMIF($G:$G,TEXT(AI$3,"000")&TEXT($L27,"000"),$E:$E) -> 0 | AK27: 0 | AL27: 0 | AM27: 0 | AN27: 9.2 | AO27: 0 | AQ27: 0 | AR27: 0 | AS27: 0 | AT27: 9.2 | AU27: 0 | AV27: 0 | AW27: 111 | BA27: 9.1 | BD27: -0.63 | BH27: =ROUND((V27*$BE$2)+$BD27-BA27,2) -> -0.42 | BL27: 0 | BM27: 0 | BN27: 0 | BO27: 9.31132 | BP27: 0 | BR27: 0 | BS27: 0 | BT27: 0 | BU27: 0.21132 | BV27: 0
B28: 2 | C28: 042 | D28: 522 | E28: 0 | G28: 042522 | I28: Single High-Pressure Sodium Vapor | J28: Pedestal Base | K28: 200W | L28: 522 | M28: 0 | N28: 0 | O28: 0 | P28: 0 | Q28: 0 | S28: 0 | T28: 56.52 | U28: 0 | V28: 0 | W28: 0 | Y28: 0 | Z28: 0 | AA28: 0 | AB28: 0 | AC28: 0 | AE28: 0 | AF28: 0 | AG28: 0 | AH28: 0 | AI28: 0 | AK28: 0 | AL28: 56.52 | AM28: 0 | AN28: 0 | AO28: 0 | AQ28: 0 | AR28: 0 | AS28: 0 | AT28: 0 | AU28: 0 | AV28: 0 | AW28: 85 | AY28: 59.33 | BD28: -0.48 | BF28: -2.61 | BL28: 0 | BM28: 57.203892 | BN28: 0 | BO28: 0 | BP28: 0 | BR28: 0 | BS28: -2.126108 | BT28: 0 | BU28: 0 | BV28: 0
B29: 2 | C29: 042 | D29: 531 | E29: 2618 | G29: 042531 | I29: Single High-Pressure Sodium Vapor | J29: Wood Pole | K29: 200W | L29: 531 | M29: 0 | N29: 2618 | O29: 2 | P29: 0 | Q29: 0 | S29: 0 | T29: 22.52 | U29: 11.14 | V29: 0 | W29: 0 | Y29: 0 | Z29: 58957.36 | AA29: 22.28 | AB29: 0 | AC29: 0 | AE29: 0 | AF29: 2618 | AG29: 2 | AH29: 0 | AI29: 0 | AK29: 0 | AL29: 22.52 | AM29: 11.14 | AN29: 0 | AO29: 0 | AQ29: 0 | AR29: 58957.36 | AS29: 22.28 | AT29: 0 | AU29: 0 | AV29: 0 | AW29: 85 | AY29: 23.36 | AZ29: 11.3 | BD29: -0.48 | BF29: -1.05 | BG29: =ROUND((U29*$BE$2)+$BD29-AZ29,2) -> -0.51 | BL29: 0 | BM29: 22.792492 | BN29: 11.274794 | BO29: 0 | BP29: 0 | BR29: 0 | BS29: -0.567508 | BT29: -0.025206 | BU29: 0 | BV29: 0
B30: 2 | C30: 042 | D30: 532 | E30: 881 | G30: 042532 | I30: Single High-Pressure Sodium Vapor | J30: Pedestal Base | K30: 200W | L30: 532 | M30: 0 | N30: 881 | O30: 107 | P30: 0 | Q30: 0 | S30: 0 | T30: 33.36 | U30: 11.14 | V30: 0 | W30: 0 | Y30: 0 | Z30: 29390.16 | AA30: 1191.98 | AB30: 0 | AC30: 0 | AE30: 0 | AF30: 881 | AG30: 107 | AH30: 0 | AI30: 0 | AK30: 0 | AL30: 33.36 | AM30: 11.14 | AN30: 0 | AO30: 0 | AQ30: 0 | AR30: 29390.16 | AS30: 1191.98 | AT30: 0 | AU30: 0 | AV30: 0 | AW30: 85 | AY30: 34.82 | AZ30: 11.3 | BD30: -0.48 | BF30: -1.54 | BG30: -0.51 | BL30: 0 | BM30: 33.763656 | BN30: 11.274794 | BO30: 0 | BP30: 0 | BR30: 0 | BS30: -1.056344 | BT30: -0.025206 | BU30: 0 | BV30: 0
B31: 2 | C31: 042 | D31: 533 | E31: 61 | G31: 042533 | I31: Single High-Pressure Sodium Vapor | J31: Direct Burial | K31: 200W | L31: 533 | M31: 0 | N31: 61 | O31: 2 | P31: 0 | Q31: 0 | S31: 0 | T31: 33.36 | U31: 11.14 | V31: 0 | W31: 0 | Y31: 0 | Z31: 2034.96 | AA31: 22.28 | AB31: 0 | AC31: 0 | AE31: 0 | AF31: 61 | AG31: 2 | AH31: 0 | AI31: 0 | AK31: 0 | AL31: 33.36 | AM31: 11.14 | AN31: 0 | AO31: 0 | AQ31: 0 | AR31: 2034.96 | AS31: 22.28 | AT31: 0 | AU31: 0 | AV31: 0 | AW31: 85 | AY31: 34.82 | AZ31: 11.3 | BD31: -0.48 | BF31: -1.54 | BG31: -0.51 | BL31: 0 | BM31: 33.763656 | BN31: 11.274794 | BO31: 0 | BP31: 0 | BR31: 0 | BS31: -1.056344 | BT31: -0.025206 | BU31: 0 | BV31: 0
B32: 2 | C32: 042 | D32: 535 | E32: 742 | G32: 042535 | I32: Single High-Pressure Sodium Vapor | J32: No Pole / Dusk to Dawn (046) | K32: 200W | L32: 535 | M32: 0 | N32: 742 | O32: 20 | P32: 0 | Q32: 128 | S32: 0 | T32: 18.54 | U32: 11.14 | V32: 0 | W32: 8.8 | Y32: 0 | Z32: 13756.68 | AA32: 222.8 | AB32: 0 | AC32: 1126.4 | AE32: 0 | AF32: 742 | AG32: 20 | AH32: 0 | AI32: 128 | AK32: 0 | AL32: 18.54 | AM32: 11.14 | AN32: 0 | AO32: 8.8 | AQ32: 0 | AR32: 13756.68 | AS32: 222.8 | AT32: 0 | AU32: 1126.4 | AV32: 0 | AW32: 85 | AY32: 19.14 | AZ32: 11.3 | BB32: 8.83 | BD32: -0.48 | BF32: -0.86 | BG32: -0.51 | BI32: -0.4 | BL32: 0 | BM32: 18.764334 | BN32: 11.274794 | BO32: 0 | BP32: 8.90648 | BR32: 0 | BS32: -0.375666 | BT32: -0.025206 | BU32: 0 | BV32: 0.07648
B33: 2 | C33: 042 | D33: 536 | E33: 620 | G33: 042536 | I33: Single High-Pressure Sodium Vapor | J33: Developer Contributed | K33: 200W | L33: 536 | M33: 0 | N33: 620 | O33: 0 | P33: 0 | Q33: 0 | S33: 0 | T33: 22.52 | U33: 0 | V33: 0 | W33: 0 | Y33: 0 | Z33: 13962.4 | AA33: 0 | AB33: 0 | AC33: 0 | AE33: 0 | AF33: 620 | AG33: 0 | AH33: 0 | AI33: 0 | AK33: 0 | AL33: =AL29 -> 22.52 | AM33: 0 | AN33: 0 | AO33: 0 | AQ33: 0 | AR33: 13962.4 | AS33: 0 | AT33: 0 | AU33: 0 | AV33: 0 | AW33: 85 | AY33: 23.36 | BD33: -0.48 | BF33: -1.05 | BL33: 0 | BM33: 22.792492 | BN33: 0 | BO33: 0 | BP33: 0 | BR33: 0 | BS33: -0.567508 | BT33: 0 | BU33: 0 | BV33: 0
B34: 3 | C34: 042 | D34: 538 | E34: 20 | G34: =IF(OR(ISBLANK(C34),ISBLANK(D34)),"",TEXT(C34,"000")&TEXT(D34,"000")) -> 042538 | I34: Single High-Pressure Sodium Vapor (Capital Only) | J34: Direct Burial | K34: 200W | L34: 538 | M34: 0 | N34: 20 | O34: 0 | P34: 0 | Q34: 0 | S34: 0 | T34: 22.23 | U34: 0 | V34: 0 | W34: 0 | Y34: 0 | Z34: 444.6 | AA34: 0 | AB34: 0 | AC34: 0 | AE34: 0 | AF34: 20 | AG34: 0 | AH34: 0 | AI34: 0 | AK34: 0 | AL34: =ROUND(T34*(1+AL$1),2) -> 22.23 | AM34: 0 | AN34: 0 | AO34: 0 | AQ34: 0 | AR34: 444.6 | AS34: 0 | AT34: 0 | AU34: 0 | AW34: 85 | AY34: 23.04 | BD34: -0.48 | BF34: -1.02 | BL34: 0 | BM34: 22.498983 | BN34: 0 | BO34: 0 | BP34: 0 | BR34: 0 | BS34: -0.541017 | BT34: 0 | BU34: 0 | BV34: 0
B35: 2 | C35: 042 | D35: 541 | E35: 7 | G35: 042541 | I35: Double High-Pressure Sodium Vapor | J35: Wood Pole | K35: 200W | L35: 541 | M35: 0 | N35: 7 | O35: 0 | P35: 0 | Q35: 0 | S35: 0 | T35: 45.07 | U35: 0 | V35: 0 | W35: 0 | Y35: 0 | Z35: 315.49 | AA35: 0 | AB35: 0 | AC35: 0 | AE35: 0 | AF35: 7 | AG35: 0 | AH35: 0 | AI35: 0 | AK35: 0 | AL35: 45.07 | AM35: 0 | AN35: 0 | AO35: 0 | AQ35: 0 | AR35: 315.49 | AS35: 0 | AT35: 0 | AU35: 0 | AV35: =SUM(AQ35:AU35)-SUM(Y35:AC35) -> 0 | AW35: 170 | AY35: 46.72 | BD35: -0.96 | BF35: -2.06 | BL35: 0 | BM35: 45.615347 | BN35: 0 | BO35: 0 | BP35: 0 | BR35: 0 | BS35: -1.104653 | BT35: 0 | BU35: 0 | BV35: 0
B36: 2 | C36: 042 | D36: 542 | E36: 24 | G36: 042542 | I36: Double High-Pressure Sodium Vapor | J36: Pedestal Base | K36: 200W | L36: 542 | M36: =SUMIF($G:$G,TEXT(M$3,"000")&TEXT($L36,"000"),$E:$E) -> 0 | N36: 24 | O36: 0 | P36: 0 | Q36: 0 | S36: 0 | T36: 56.52 | U36: 20.48 | V36: 0 | W36: 0 | Y36: 0 | Z36: 1356.48 | AA36: 0 | AB36: 0 | AC36: 0 | AE36: 0 | AF36: 24 | AG36: 0 | AH36: 0 | AI36: 0 | AK36: 0 | AL36: 56.52 | AM36: 20.48 | AN36: 0 | AO36: 0 | AQ36: 0 | AR36: 1356.48 | AS36: 0 | AT36: 0 | AU36: 0 | AV36: 0 | AW36: 170 | AY36: 58.85 | AZ36: 20.71 | BD36: -0.96 | BF36: -2.61 | BG36: -0.94 | BL36: 0 | BM36: 57.203892 | BN36: 20.727808 | BO36: 0 | BP36: 0 | BR36: 0 | BS36: -1.646108 | BT36: 0.017808 | BU36: 0 | BV36: 0
B37: 2 | C37: 042 | D37: 631 | E37: 103 | G37: 042631 | I37: Single Mercury Vapor | J37: Wood Pole | K37: 20000 | L37: 611 | M37: 12 | N37: 0 | O37: 0 | P37: 0 | Q37: 0 | S37: 26.28 | T37: 0 | U37: 0 | V37: 0 | W37: 0 | Y37: 315.36 | Z37: 0 | AA37: 0 | AB37: 0 | AC37: 0 | AE37: 12 | AF37: 0 | AG37: 0 | AH37: 0 | AI37: 0 | AK37: 26.28 | AL37: 0 | AM37: 0 | AN37: 0 | AO37: 0 | AQ37: 315.36 | AR37: 0 | AS37: 0 | AT37: 0 | AU37: 0 | AV37: 0 | AW37: 182 | AX37: 26.79 | BD37: -1.02 | BE37: -1.21 | BL37: 26.597988 | BM37: 0 | BN37: 0 | BO37: 0 | BP37: 0 | BR37: -0.192012 | BS37: 0 | BT37: 0 | BU37: 0 | BV37: 0
B38: 2 | C38: 042 | D38: 632 | E38: 101 | G38: 042632 | I38: Mercury Vapor | J38: Dusk to Dawn | K38: 20000 | L38: 615 | M38: 0 | N38: 0 | O38: 0 | P38: 354 | Q38: 0 | S38: 0 | T38: 0 | U38: 0 | V38: 14.22 | W38: 0 | Y38: 0 | Z38: 0 | AA38: 0 | AB38: 5033.88 | AC38: 0 | AE38: 0 | AF38: 0 | AG38: 0 | AH38: 354 | AI38: 0 | AK38: 0 | AL38: 0 | AM38: 0 | AN38: 14.22 | AO38: 0 | AQ38: 0 | AR38: 0 | AS38: 0 | AT38: 5033.88 | AU38: 0 | AV38: 0 | AW38: 182 | BA38: 14.02 | BD38: =ROUND(AW38*$BD$2,2)+ROUND(AW38*$BD$1,2) -> -1.02 | BH38: -0.65 | BL38: 0 | BM38: 0 | BN38: 0 | BO38: 14.392062 | BP38: 0 | BR38: 0 | BS38: 0 | BT38: 0 | BU38: 0.372062 | BV38: 0
B39: 2 | C39: 042 | D39: 633 | E39: 52 | G39: 042633 | I39: Single High-Pressure Sodium Vapor | J39: Wood Pole | K39: 250W | L39: 631 | M39: 0 | N39: 103 | O39: 0 | P39: 0 | Q39: 0 | S39: 0 | T39: 26.56 | U39: 12.96 | V39: 0 | W39: 0 | Y39: 0 | Z39: 2735.68 | AA39: 0 | AB39: 0 | AC39: 0 | AE39: 0 | AF39: 103 | AG39: 0 | AH39: 0 | AI39: 0 | AK39: 0 | AL39: 26.56 | AM39: 12.96 | AN39: 0 | AO39: 0 | AQ39: 0 | AR39: 2735.68 | AS39: 0 | AT39: 0 | AU39: 0 | AV39: 0 | AW39: 107 | AY39: 27.5 | AZ39: 13.11 | BD39: -0.6 | BF39: -1.22 | BG39: -0.59 | BL39: 0 | BM39: 26.881376 | BN39: 13.116816 | BO39: 0 | BP39: 0 | BR39: 0 | BS39: -0.618624 | BT39: 0.006816 | BU39: 0 | BV39: 0
B40: 2 | C40: 042 | D40: 636 | E40: 22 | G40: 042636 | I40: Single High-Pressure Sodium Vapor | J40: Pedestal Base | K40: 250W | L40: 632 | M40: 0 | N40: 101 | O40: 5 | P40: 0 | Q40: 0 | S40: 0 | T40: 37.4 | U40: 12.96 | V40: 0 | W40: 0 | Y40: 0 | Z40: 3777.4 | AA40: 64.8 | AB40: 0 | AC40: 0 | AE40: 0 | AF40: 101 | AG40: 5 | AH40: 0 | AI40: 0 | AK40: 0 | AL40: 37.4 | AM40: 12.96 | AN40: 0 | AO40: 0 | AQ40: 0 | AR40: 3777.4 | AS40: 64.8 | AT40: 0 | AU40: 0 | AV40: 0 | AW40: 107 | AY40: 38.98 | AZ40: 13.11 | BD40: -0.6 | BF40: -1.73 | BG40: -0.59 | BL40: 0 | BM40: 37.85254 | BN40: 13.116816 | BO40: 0 | BP40: 0 | BR40: 0 | BS40: -1.12746 | BT40: 0.006816 | BU40: 0 | BV40: 0
B41: 2 | C41: 042 | D41: 831 | E41: 97 | G41: 042831 | I41: Single High-Pressure Sodium Vapor | J41: Direct Burial | K41: 250W | L41: 633 | M41: 0 | N41: 52 | O41: 0 | P41: 0 | Q41: 0 | S41: 0 | T41: 37.4 | U41: 12.96 | V41: 0 | W41: 0 | Y41: 0 | Z41: 1944.8 | AA41: 0 | AB41: 0 | AC41: 0 | AE41: 0 | AF41: 52 | AG41: 0 | AH41: 0 | AI41: 0 | AK41: 0 | AL41: 37.4 | AM41: 12.96 | AN41: 0 | AO41: 0 | AQ41: 0 | AR41: 1944.8 | AS41: 0 | AT41: 0 | AU41: 0 | AV41: 0 | AW41: 107 | AY41: 38.98 | AZ41: 13.11 | BD41: -0.6 | BF41: -1.73 | BG41: -0.59 | BL41: 0 | BM41: 37.85254 | BN41: 13.116816 | BO41: 0 | BP41: 0 | BR41: 0 | BS41: -1.12746 | BT41: 0.006816 | BU41: 0 | BV41: 0
B42: 2 | C42: 042 | D42: 832 | E42: 4 | G42: 042832 | I42: Single High-Pressure Sodium Vapor | J42: Dusk to Dawn (046) | K42: 250W | L42: 635 | M42: 0 | N42: 0 | O42: 1 | P42: 0 | Q42: 281 | S42: 0 | T42: 0 | U42: 12.96 | V42: 0 | W42: 10.6 | Y42: 0 | Z42: 0 | AA42: 12.96 | AB42: 0 | AC42: 2978.6 | AE42: 0 | AF42: 0 | AG42: 1 | AH42: 0 | AI42: 281 | AK42: 0 | AL42: 0 | AM42: 12.96 | AN42: 0 | AO42: 10.6 | AQ42: 0 | AR42: 0 | AS42: 12.96 | AT42: 0 | AU42: 2978.6 | AV42: 0 | AW42: 107 | AZ42: 13.11 | BB42: 10.62 | BD42: -0.6 | BG42: -0.59 | BI42: -0.49 | BL42: 0 | BM42: 0 | BN42: 13.116816 | BO42: 0 | BP42: 10.72826 | BR42: 0 | BS42: 0 | BT42: 0.006816 | BU42: 0 | BV42: 0.10826
B43: 2 | C43: 042 | D43: 835 | E43: 11 | G43: =IF(OR(ISBLANK(C43),ISBLANK(D43)),"",TEXT(C43,"000")&TEXT(D43,"000")) -> 042835 | I43: Single High-Pressure Sodium Vapor | J43: Developer Contributed | K43: 250W | L43: 636 | M43: 0 | N43: 22 | O43: 0 | P43: 0 | Q43: 0 | S43: 0 | T43: 26.56 | U43: 0 | V43: 0 | W43: 0 | Y43: 0 | Z43: 584.32 | AA43: 0 | AB43: 0 | AC43: 0 | AE43: 0 | AF43: 22 | AG43: 0 | AH43: 0 | AI43: 0 | AK43: 0 | AL43: =AL39 -> 26.56 | AM43: 0 | AN43: 0 | AO43: 0 | AQ43: 0 | AR43: 584.32 | AS43: 0 | AT43: 0 | AU43: 0 | AV43: 0 | AW43: 107 | AY43: 27.5 | BD43: -0.6 | BF43: -1.22 | BL43: 0 | BM43: 26.881376 | BN43: 0 | BO43: 0 | BP43: 0 | BR43: 0 | BS43: -0.618624 | BT43: 0 | BU43: 0 | BV43: 0
B44: 2 | C44: 042 | D44: 836 | E44: 3 | G44: 042836 | I44: Mercury Vapor | J44: Dusk to Dawn | K44: 35000 | L44: 715 | M44: 0 | N44: 0 | O44: 0 | P44: 6 | Q44: 0 | S44: 0 | T44: 0 | U44: 0 | V44: 23.08 | W44: 0 | Y44: 0 | Z44: 0 | AA44: 0 | AB44: 138.48 | AC44: 0 | AE44: 0 | AF44: 0 | AG44: 0 | AH44: 6 | AI44: 0 | AK44: 0 | AL44: =ROUND(T44*(1+AL$1),2) -> 0 | AM44: 0 | AN44: 23.08 | AO44: 0 | AQ44: 0 | AR44: 0 | AS44: 0 | AT44: 138.48 | AU44: 0 | AV44: 0 | AW44: 285 | BA44: 22.81 | BD44: -1.61 | BH44: -1.06 | BL44: 0 | BM44: 0 | BN44: 0 | BO44: 23.359268 | BP44: 0 | BR44: 0 | BS44: 0 | BT44: 0 | BU44: 0.549268 | BV44: 0
B45: 2 | C45: 042 | D45: 842 | E45: 3 | G45: 042842 | I45: Single High-Pressure Sodium Vapor | J45: Pedestal Base | K45: 310W | L45: 732 | M45: 0 | N45: 0 | O45: 25 | P45: 0 | Q45: 0 | S45: 0 | T45: 0 | U45: 15.19 | V45: 0 | W45: 0 | Y45: 0 | Z45: 0 | AA45: 379.75 | AB45: 0 | AC45: 0 | AE45: 0 | AF45: 0 | AG45: 25 | AH45: 0 | AI45: 0 | AK45: 0 | AL45: 0 | AM45: 15.19 | AN45: 0 | AO45: 0 | AQ45: 0 | AR45: 0 | AS45: 379.75 | AT45: 0 | AU45: 0 | AV45: 0 | AW45: 133 | AZ45: 15.32 | BD45: -0.75 | BG45: -0.7 | BL45: 0 | BM45: 0 | BN45: 15.373799 | BO45: 0 | BP45: 0 | BR45: 0 | BS45: 0 | BT45: 0.053799 | BU45: 0 | BV45: 0
E46: =SUM(E13:E45) -> 21625 | I46: Single High-Pressure Sodium Vapor | J46: No Pole / Dusk to Dawn (046) | K46: 310W | L46: 735 | M46: =SUMIF($G:$G,TEXT(M$3,"000")&TEXT($L46,"000"),$E:$E) -> 0 | N46: 0 | O46: 3 | P46: 0 | Q46: 292 | S46: 0 | T46: 0 | U46: 15.19 | V46: 0 | W46: 12.79 | Y46: 0 | Z46: 0 | AA46: 45.57 | AB46: 0 | AC46: 3734.68 | AE46: 0 | AF46: 0 | AG46: 3 | AH46: 0 | AI46: 292 | AK46: 0 | AL46: 0 | AM46: 15.19 | AN46: 0 | AO46: 12.79 | AQ46: 0 | AR46: 0 | AS46: 45.57 | AT46: 0 | AU46: 3734.68 | AV46: 0 | AW46: 133 | AZ46: 15.32 | BB46: 12.79 | BD46: -0.75 | BG46: -0.7 | BI46: -0.6 | BL46: 0 | BM46: 0 | BN46: 15.373799 | BO46: 0 | BP46: 12.944759 | BR46: 0 | BS46: 0 | BT46: 0.053799 | BU46: 0 | BV46: 0.154759
I47: Mercury Vapor | J47: Dusk to 1 AM | K47: 55000 | L47: 819 | M47: 0 | N47: 0 | O47: 0 | P47: 34 | Q47: 0 | S47: 0 | T47: 0 | U47: 0 | V47: 21.87 | W47: 0 | Y47: 0 | Z47: 0 | AA47: 0 | AB47: 743.58 | AC47: 0 | AE47: 0 | AF47: 0 | AG47: 0 | AH47: 34 | AI47: 0 | AK47: 0 | AL47: 0 | AM47: 0 | AN47: 21.87 | AO47: 0 | AQ47: 0 | AR47: 0 | AS47: 0 | AT47: 743.58 | AU47: 0 | AV47: 0 | AW47: 417 | BA47: 20.8 | BD47: -2.35 | BH47: -1.02 | BL47: 0 | BM47: 0 | BN47: 0 | BO47: 22.134627 | BP47: 0 | BR47: 0 | BS47: 0 | BT47: 0 | BU47: 1.334627 | BV47: 0
B48: 2 | C48: 044 | D48: 431 | E48: 3 | G48: =IF(OR(ISBLANK(C48),ISBLANK(D48)),"",TEXT(C48,"000")&TEXT(D48,"000")) -> 044431 | I48: Single High-Pressure Sodium Vapor | J48: Wood Pole | K48: 400W | L48: 831 | M48: 0 | N48: 97 | O48: 0 | P48: 0 | Q48: 0 | S48: 0 | T48: 33.65 | U48: 19.51 | V48: 0 | W48: 0 | Y48: 0 | Z48: 3264.05 | AA48: 0 | AB48: 0 | AC48: 0 | AE48: 0 | AF48: 97 | AG48: 0 | AH48: 0 | AI48: 0 | AK48: 0 | AL48: 33.65 | AM48: 19.51 | AN48: 0 | AO48: 0 | AQ48: 0 | AR48: 3264.05 | AS48: 0 | AT48: 0 | AU48: 0 | AV48: 0 | AW48: 169 | AY48: 34.66 | AZ48: 19.7 | BD48: -0.95 | BF48: -1.55 | BG48: -0.9 | BL48: 0 | BM48: 34.057165 | BN48: 19.746071 | BO48: 0 | BP48: 0 | BR48: 0 | BS48: -0.602835 | BT48: 0.046071 | BU48: 0 | BV48: 0
B49: 2 | C49: 044 | D49: 432 | E49: 20 | G49: 044432 | I49: Single High-Pressure Sodium Vapor | J49: Pedestal Base | K49: 400W | L49: 832 | M49: 0 | N49: 4 | O49: 31 | P49: 0 | Q49: 0 | S49: 0 | T49: 49.88 | U49: 19.51 | V49: 0 | W49: 0 | Y49: 0 | Z49: 199.52 | AA49: 604.81 | AB49: 0 | AC49: 0 | AE49: 0 | AF49: 4 | AG49: 31 | AH49: 0 | AI49: 0 | AK49: 0 | AL49: 49.88 | AM49: 19.51 | AN49: 0 | AO49: 0 | AQ49: 0 | AR49: 199.52 | AS49: 604.81 | AT49: 0 | AU49: 0 | AV49: 0 | AW49: 169 | AY49: 51.83 | AZ49: 19.7 | BD49: -0.95 | BF49: -2.3 | BG49: -0.9 | BL49: 0 | BM49: 50.483548 | BN49: 19.746071 | BO49: 0 | BP49: 0 | BR49: 0 | BS49: -1.346452 | BT49: 0.046071 | BU49: 0 | BV49: 0
B50: 2 | C50: 044 | D50: 433 | E50: 10 | G50: 044433 | I50: Single High-Pressure Sodium Vapor | J50: No Pole / Dusk to Dawn (046) | K50: 400W | L50: 835 | M50: 0 | N50: 11 | O50: 9 | P50: 0 | Q50: 80 | S50: 0 | T50: 26.33 | U50: 19.51 | V50: 0 | W50: 16.22 | Y50: 0 | Z50: 289.63 | AA50: 175.59 | AB50: 0 | AC50: 1297.6 | AE50: 0 | AF50: 11 | AG50: 9 | AH50: 0 | AI50: 80 | AK50: 0 | AL50: 26.33 | AM50: 19.51 | AN50: 0 | AO50: 16.22 | AQ50: 0 | AR50: 289.63 | AS50: 175.59 | AT50: 0 | AU50: 1297.6 | AV50: 0 | AW50: 169 | AY50: 26.91 | AZ50: 19.7 | BB50: 16.21 | BD50: -0.95 | BF50: -1.21 | BG50: -0.9 | BI50: -0.74 | BL50: 0 | BM50: 26.648593 | BN50: 19.746071 | BO50: 0 | BP50: 16.416262 | BR50: 0 | BS50: -0.261407 | BT50: 0.046071 | BU50: 0 | BV50: 0.206262
B51: 2 | C51: 044 | D51: 435 | E51: 44 | G51: 044435 | I51: Single High-Pressure Sodium Vapor | J51: Developer Contributed | K51: 400W | L51: 836 | M51: 0 | N51: 3 | O51: 0 | P51: 0 | Q51: 0 | S51: 0 | T51: 33.65 | U51: 0 | V51: 0 | W51: 0 | Y51: 0 | Z51: 100.95 | AA51: 0 | AB51: 0 | AC51: 0 | AE51: 0 | AF51: 3 | AG51: 0 | AH51: 0 | AI51: 0 | AK51: 0 | AL51: =AL48 -> 33.65 | AM51: 0 | AN51: 0 | AO51: 0 | AQ51: 0 | AR51: 100.95 | AS51: 0 | AT51: 0 | AU51: 0 | AV51: 0 | AW51: 169 | AY51: 34.66 | BD51: -0.95 | BF51: -1.55 | BL51: 0 | BM51: 34.057165 | BN51: 0 | BO51: 0 | BP51: 0 | BR51: 0 | BS51: -0.602835 | BT51: 0 | BU51: 0 | BV51: 0
B52: 2 | C52: 044 | D52: 531 | E52: 2 | G52: 044531 | I52: Double High-Pressure Sodium Vapor | J52: Pedestal Base | K52: 400W | L52: 842 | M52: 0 | N52: 3 | O52: 0 | P52: 0 | Q52: 0 | S52: 0 | T52: 88.2 | U52: 0 | V52: 0 | W52: 0 | Y52: 0 | Z52: 264.6 | AA52: 0 | AB52: 0 | AC52: 0 | AE52: 0 | AF52: 3 | AG52: 0 | AH52: 0 | AI52: 0 | AK52: 0 | AL52: =ROUND(T52*(1+AL$1),2) -> 88.2 | AM52: 0 | AN52: 0 | AO52: 0 | AQ52: 0 | AR52: 264.6 | AS52: 0 | AT52: 0 | AU52: 0 | AV52: 0 | AW52: 338 | AY52: 91.44 | BD52: -1.9 | BF52: -4.07 | BL52: 0 | BM52: 89.26722 | BN52: 0 | BO52: 0 | BP52: 0 | BR52: 0 | BS52: -2.17278 | BT52: 0 | BU52: 0 | BV52: 0
B53: 2 | C53: 044 | D53: 532 | E53: 107 | G53: 044532 | I53: Double High-Pressure Sodium Vapor | J53: No Pole | K53: 400W | L53: 845 | M53: 0 | N53: 0 | O53: 1 | P53: 0 | Q53: 0 | S53: 0 | T53: 0 | U53: 36.55 | V53: 0 | W53: 0 | Y53: 0 | Z53: 0 | AA53: 36.55 | AB53: 0 | AC53: 0 | AE53: 0 | AF53: 0 | AG53: 1 | AH53: 0 | AI53: 0 | AK53: 0 | AL53: 0 | AM53: 36.55 | AN53: 0 | AO53: 0 | AQ53: 0 | AR53: 0 | AS53: 36.55 | AT53: 0 | AU53: 0 | AV53: 0 | AW53: 338 | AZ53: 36.78 | BD53: -1.9 | BG53: -1.69 | BL53: 0 | BM53: 0 | BN53: 36.992255 | BO53: 0 | BP53: 0 | BR53: 0 | BS53: 0 | BT53: 0.212255 | BU53: 0 | BV53: 0
B54: 2 | C54: 044 | D54: 533 | E54: 2 | G54: 044533 | I54: Single High-Pressure Sodium Vapor | J54: Dust to Dawn (046) | K54: 150W | L54: 935 | M54: 0 | N54: 0 | O54: 0 | P54: 0 | Q54: 112 | S54: 0 | T54: 0 | U54: 0 | V54: 0 | W54: 6.57 | Y54: 0 | Z54: 0 | AA54: 0 | AB54: 0 | AC54: 735.84 | AE54: 0 | AF54: 0 | AG54: 0 | AH54: 0 | AI54: 112 | AK54: =ROUND(S54*(1+AK$1),2) -> 0 | AL54: 0 | AM54: =ROUND(U54*(1+AM$1),2) -> 0 | AN54: =ROUND(V54*(1+AN$1),2) -> 0 | AO54: 6.57 | AQ54: =IF(AND(AE54<>0,AK54=0),#VALUE!,AE54*AK54) -> 0 | AR54: 0 | AS54: 0 | AT54: 0 | AU54: 735.84 | AV54: 0 | AW54: 62 | BB54: 6.61 | BD54: -0.35 | BI54: -0.31 | BL54: 0 | BM54: 0 | BN54: 0 | BO54: 0 | BP54: 6.649497 | BR54: 0 | BS54: 0 | BT54: 0 | BU54: 0 | BV54: 0.039497
B55: 2 | C55: 044 | D55: 535 | E55: 20 | G55: 044535 | S55: 0 | T55: 0 | U55: 0 | V55: 0 | W55: 0 | AK55: 0 | AL55: 0 | AM55: 0 | AN55: 0 | AO55: =ROUND(W55*(1+AO$1),2) -> 0 | AV55: 0 | BL55: 0 | BM55: 0 | BN55: 0 | BO55: 0 | BP55: 0
B56: 2 | C56: 044 | D56: 632 | E56: 5 | G56: 044632 | M56: =SUM(M4:M55) -> 125 | N56: =SUM(N4:N55) -> 21625 | O56: =SUM(O4:O55) -> 283 | P56: =SUM(P4:P55) -> 484 | Q56: =SUM(Q4:Q55) -> 1098 | S56: 0 | T56: 0 | U56: 0 | V56: 0 | W56: 0 | Y56: =ROUND(SUM(Y4:Y55),2) -> 1961.35 | Z56: =ROUND(SUM(Z4:Z55),2) -> 377732.68 | AA56: =ROUND(SUM(AA4:AA55),2) -> 3329.92 | AB56: =ROUND(SUM(AB4:AB55),2) -> 6483.48 | AC56: =ROUND(SUM(AC4:AC55),2) -> 10699.77 | AE56: =SUM(AE4:AE55) -> 125 | AF56: =SUM(AF4:AF55) -> 21625 | AG56: =SUM(AG4:AG55) -> 283 | AH56: =SUM(AH4:AH55) -> 484 | AI56: =SUM(AI4:AI55) -> 1098 | AK56: 0 | AL56: 0 | AM56: 0 | AN56: 0 | AO56: 0 | AQ56: =ROUND(SUM(AQ4:AQ55),2) -> 1961.35 | AR56: =ROUND(SUM(AR4:AR55),2) -> 377732.68 | AS56: =ROUND(SUM(AS4:AS55),2) -> 3329.92 | AT56: =ROUND(SUM(AT4:AT55),2) -> 6483.48 | AU56: =ROUND(SUM(AU4:AU55),2) -> 10699.77 | BL56: 0 | BM56: 0 | BN56: 0 | BO56: 0 | BP56: 0
B57: 2 | C57: 044 | D57: 635 | E57: 1 | G57: =IF(OR(ISBLANK(C57),ISBLANK(D57)),"",TEXT(C57,"000")&TEXT(D57,"000")) -> 044635 | K57: Total | Q57: =SUM(M56:Q56) -> 23615 | S57: 0 | T57: 0 | U57: 0 | V57: 0 | W57: 0 | AI57: =SUM(AE56:AI56) -> 23615 | AK57: 0 | AL57: 0 | AM57: 0 | AN57: 0 | AO57: 0 | AU57: =SUM(AQ56:AU56) -> 400207.2 | BL57: 0 | BM57: 0 | BN57: 0 | BO57: 0 | BP57: 0
B58: 2 | C58: 044 | D58: 732 | E58: 25 | G58: =IF(OR(ISBLANK(C58),ISBLANK(D58)),"",TEXT(C58,"000")&TEXT(D58,"000")) -> 044732 | I58: (1) from Street Light Report and Area Light Report, 10/22/14, PDE-E-24-28 | Q58: =ROUND(Q57-E84,0) -> 0 | S58: 0 | T58: 0 | U58: 0 | V58: 0 | W58: 0 | AC58: =SUM(Y56:AC56) -> 400207.2 | AI58: =AI57-Q57 -> 0 | AK58: 0 | AL58: 0 | AM58: 0 | AN58: 0 | AO58: 0 | AU58: =AU57/AC58-1 -> 0 | BL58: 0 | BM58: 0 | BN58: 0 | BO58: 0 | BP58: 0
B59: 2 | C59: 044 | D59: 735 | E59: 3 | G59: 044735 | S59: 0 | T59: 0 | U59: 0 | V59: 0 | W59: 0 | Y59: 1997 | Z59: 367920 | AA59: 3158 | AB59: 6352 | AC59: 11399 | AD59: Sept '14 revenue | AK59: 0 | AL59: 0 | AM59: 0 | AN59: 0 | AO59: 0 | BL59: 0 | BM59: 0 | BN59: 0 | BO59: 0 | BP59: 0
B60: 2 | C60: 044 | D60: 832 | E60: 31 | G60: 044832 | I60: no customer count - taken out of exhibit to limit print range | S60: 0 | T60: 0 | U60: 0 | V60: 0 | W60: 0 | Y60: =Y56-Y59 -> -35.65 | Z60: =Z56-Z59 -> 9812.68 | AA60: =AA56-AA59 -> 171.92 | AB60: =AB56-AB59 -> 131.48 | AC60: =AC56-AC59 -> -699.23 | AK60: 0 | AL60: 0 | AM60: 0 | AN60: 0 | AO60: 0 | BL60: 0 | BM60: 0 | BN60: 0 | BO60: 0 | BP60: 0
B61: 2 | C61: 044 | D61: 835 | E61: 9 | G61: 044835 | I61: Single High-Pressure Sodium Vapor | J61: Dusk to 1 AM (046) | K61: 100W | L61: 439 | M61: =SUMIF($G:$G,TEXT(M$3,"000")&TEXT($L61,"000"),$E:$E) -> 0 | N61: 0 | O61: 0 | P61: 0 | Q61: 0 | R61: =IF(SUM(M61:Q61)>0,0,1) -> 1 | S61: 0 | T61: 0 | U61: 0 | V61: 0 | W61: 3.76 | AC61: =SUM(Y60:AC60) -> 9381.2 | AE61: =SUMIF($G:$G,TEXT(AE$3,"000")&TEXT($L61,"000"),$E:$E) -> 0 | AF61: 0 | AG61: 0 | AH61: 0 | AI61: 0 | AK61: 0 | AL61: 0 | AM61: 0 | AN61: 0 | AO61: 3.76 | AW61: 40 | BB61: 3.7 | BD61: =ROUND(AW61*$BD$2,2)+ROUND(AW61*$BD$1,2) -> -0.22 | BI61: -0.11 | BL61: 0 | BM61: 0 | BN61: 0 | BO61: 0 | BP61: 3.805496 | BR61: 0 | BS61: 0 | BT61: 0 | BU61: 0 | BV61: 0.105496
B62: 2 | C62: 044 | D62: 845 | E62: 1 | G62: 044845
E63: =SUM(E48:E62) -> 283 | I63: Double High-Pressure Sodium Vapor | J63: Direct Burial | K63: 100W | L63: 443 | M63: 0 | N63: 0 | O63: 0 | P63: 0 | Q63: 0 | R63: =IF(SUM(M63:Q63)>0,0,1) -> 1 | S63: 0 | T63: 0 | U63: 12.75 | V63: 0 | W63: 0 | Y63: Surch Rate | AE63: 0 | AF63: 0 | AG63: 0 | AH63: 0 | AI63: 0 | AK63: 0 | AL63: 0 | AM63: 12.75 | AN63: 0 | AO63: 0 | AQ63: =1+'Lighting summary'!D39 -> 1.0121 | AT63: Billed | AU63: =AU57*AQ63 -> 405049.7071 | AW63: 80 | AZ63: 12.83 | BD63: -0.45 | BG63: -0.38 | BL63: 0 | BM63: 0 | BN63: 12.904275 | BO63: 0 | BP63: 0 | BR63: 0 | BS63: 0 | BT63: 0.074275 | BU63: 0 | BV63: 0
I64: Double High-Pressure Sodium Vapor | J64: Developer Contributed | K64: 100W | L64: 446 | M64: 0 | N64: 0 | O64: 0 | P64: 0 | Q64: 0 | R64: 1 | S64: 0 | T64: 27.84 | U64: 0 | V64: 0 | W64: 0 | Y64: =1+'Lighting summary'!I39 -> 1.0121 | AB64: Billed | AC64: =AC58*$Y$64 -> 405049.7071 | AE64: 0 | AF64: 0 | AG64: 0 | AH64: 0 | AI64: 0 | AK64: 0 | AL64: 27.84 | AM64: 0 | AN64: 0 | AO64: 0 | AW64: 80 | AY64: 28.54 | BD64: -0.45 | BF64: -0.81 | BL64: 0 | BM64: 28.176864 | BN64: 0 | BO64: 0 | BP64: 0 | BR64: 0 | BS64: -0.363136 | BT64: 0 | BU64: 0 | BV64: 0
B65: 2 | C65: 045 | D65: 415 | E65: 73 | G65: 045415 | AB65: Actual | AC65: =SUM(Y59:AC59) -> 390826 | AD65: Diff is Sch 93 | BD65: 0
B66: 2 | C66: 045 | D66: 419 | E66: 16 | G66: =IF(OR(ISBLANK(C66),ISBLANK(D66)),"",TEXT(C66,"000")&TEXT(D66,"000")) -> 045419 | AB66: Diff | AC66: =AC65-AC64 -> -14223.70712 | BD66: 0
B67: 2 | C67: 045 | D67: 515 | E67: 1 | G67: =IF(OR(ISBLANK(C67),ISBLANK(D67)),"",TEXT(C67,"000")&TEXT(D67,"000")) -> 045515
B68: 2 | C68: 045 | D68: 615 | E68: 354 | G68: 045615 | I68: Single High-Pressure Sodium Vapor | J68: Dusk to 1 AM (046) | K68: 200W | L68: 539 | M68: =SUMIF($G:$G,TEXT(M$3,"000")&TEXT($L68,"000"),$E:$E) -> 0 | N68: 0 | O68: 0 | P68: 0 | Q68: 0 | R68: 1 | S68: 0 | T68: 0 | U68: 0 | V68: 0 | W68: 6.7 | AE68: =SUMIF($G:$G,TEXT(AE$3,"000")&TEXT($L68,"000"),$E:$E) -> 0 | AF68: 0 | AG68: 0 | AH68: 0 | AI68: 0 | AK68: 0 | AL68: 0 | AM68: 0 | AN68: 0 | AO68: 6.7 | AW68: 85 | BB68: 6.5 | BD68: -0.48 | BI68: -0.2 | BL68: 0 | BM68: 0 | BN68: 0 | BO68: 0 | BP68: 6.78107 | BR68: 0 | BS68: 0 | BT68: 0 | BU68: 0 | BV68: 0.28107
B69: 2 | C69: 045 | D69: 715 | E69: 6 | G69: 045715 | I69: Double High-Pressure Sodium Vapor | J69: Direct Burial | K69: 200W | L69: 543 | M69: 0 | N69: 0 | O69: 0 | P69: 0 | Q69: 0 | R69: 1 | S69: 0 | T69: 0 | U69: 20.81 | V69: 0 | W69: 0 | AE69: 0 | AF69: 0 | AG69: 0 | AH69: 0 | AI69: 0 | AK69: 0 | AL69: 0 | AM69: 20.81 | AN69: 0 | AO69: 0 | AW69: 170 | AZ69: 20.71 | BD69: -0.96 | BG69: -0.61 | BL69: 0 | BM69: 0 | BN69: 21.061801 | BO69: 0 | BP69: 0 | BR69: 0 | BS69: 0 | BT69: 0.351801 | BU69: 0 | BV69: 0
B70: 2 | C70: 045 | D70: 819 | E70: 34 | G70: 045819 | I70: Mercury Vapor | J70: Dusk to 1 AM | K70: 20000 | L70: 619 | M70: 0 | N70: 0 | O70: 0 | P70: 0 | Q70: 0 | R70: 1 | S70: 0 | T70: 0 | U70: 0 | V70: 9.61 | W70: 0 | AE70: 0 | AF70: 0 | AG70: 0 | AH70: 0 | AI70: 0 | AK70: 0 | AL70: 0 | AM70: 0 | AN70: 9.61 | AO70: 0 | AW70: 182 | BA70: 8.99 | BD70: -1.02 | BH70: -0.28 | BL70: 0 | BM70: 0 | BN70: 0 | BO70: 9.726281 | BP70: 0 | BR70: 0 | BS70: 0 | BT70: 0 | BU70: =BO70-BA70 -> 0.736281 | BV70: 0
E71: =SUM(E65:E70) -> 484 | I71: Single High-Pressure Sodium Vapor | J71: Dusk to 1 AM (046) | K71: 250W | L71: 639 | M71: 0 | N71: 0 | O71: 0 | P71: 0 | Q71: 0 | R71: 1 | S71: 0 | T71: 0 | U71: 0 | V71: 0 | W71: 8.28 | AE71: 0 | AF71: 0 | AG71: 0 | AH71: 0 | AI71: 0 | AK71: 0 | AL71: 0 | AM71: 0 | AN71: 0 | AO71: 8.28 | AW71: 107 | BB71: 8.02 | BD71: =ROUND(AW71*$BD$2,2)+ROUND(AW71*$BD$1,2) -> -0.6 | BI71: -0.24 | BL71: 0 | BM71: 0 | BN71: 0 | BO71: 0 | BP71: 8.380188 | BR71: =BL71-AX71 -> 0 | BS71: 0 | BT71: 0 | BU71: 0 | BV71: 0.360188
I72: Double High-Pressure Sodium Vapor | J72: Pedestal Base | K72: 250W | L72: 642 | M72: 0 | N72: 0 | O72: 0 | P72: 0 | Q72: 0 | R72: 1 | S72: 0 | T72: 0 | U72: 23.29 | V72: 0 | W72: 0 | AE72: 0 | AF72: 0 | AG72: 0 | AH72: 0 | AI72: 0 | AK72: 0 | AL72: 0 | AM72: 23.29 | AN72: 0 | AO72: 0 | AW72: 214 | AZ72: 23.05 | BD72: -1.2 | BG72: -0.68 | BL72: 0 | BM72: 0 | BN72: 23.571809 | BO72: 0 | BP72: 0 | BR72: 0 | BS72: 0 | BT72: 0.521809 | BU72: 0 | BV72: 0
B73: 2 | C73: 046 | D73: 335 | E73: 41 | G73: 046335 | I73: Single High-Pressure Sodium Vapor | J73: Wood Pole | K73: 310W | L73: 731 | M73: 0 | N73: 0 | O73: 0 | P73: 0 | Q73: 0 | R73: 1 | S73: 0 | T73: 0 | U73: 15.44 | V73: 0 | W73: 0 | AE73: 0 | AF73: 0 | AG73: 0 | AH73: 0 | AI73: 0 | AK73: 0 | AL73: 0 | AM73: 15.44 | AN73: 0 | AO73: 0 | AW73: 133 | AZ73: 15.32 | BD73: -0.75 | BG73: -0.44 | BL73: 0 | BM73: 0 | BN73: 15.626824 | BO73: 0 | BP73: 0 | BR73: 0 | BS73: 0 | BT73: 0.306824 | BU73: 0 | BV73: 0
B74: 2 | C74: 046 | D74: 435 | E74: 75 | G74: 046435 | I74: Single High-Pressure Sodium Vapor | J74: Direct Burial | K74: 310W | L74: 733 | M74: 0 | N74: 0 | O74: 0 | P74: 0 | Q74: 0 | R74: =IF(SUM(M74:Q74)>0,0,1) -> 1 | S74: 0 | T74: 0 | U74: 15.44 | V74: 0 | W74: 0 | AE74: 0 | AF74: 0 | AG74: 0 | AH74: 0 | AI74: 0 | AK74: 0 | AL74: 0 | AM74: 15.44 | AN74: 0 | AO74: 0 | AW74: 133 | AZ74: 15.32 | BD74: -0.75 | BG74: -0.44 | BL74: 0 | BM74: 0 | BN74: 15.626824 | BO74: 0 | BP74: 0 | BR74: 0 | BS74: 0 | BT74: 0.306824 | BU74: 0 | BV74: 0
B75: 2 | C75: 046 | D75: 495 | E75: 44 | G75: =IF(OR(ISBLANK(C75),ISBLANK(D75)),"",TEXT(C75,"000")&TEXT(D75,"000")) -> 046495 | I75: Single High-Pressure Sodium Vapor | J75: Dusk to 1 AM (046) | K75: 310W | L75: 739 | M75: 0 | N75: 0 | O75: 0 | P75: 0 | Q75: 0 | R75: 1 | S75: 0 | T75: 0 | U75: 0 | V75: 0 | W75: 9.94 | AE75: 0 | AF75: 0 | AG75: 0 | AH75: 0 | AI75: 0 | AK75: 0 | AL75: 0 | AM75: 0 | AN75: 0 | AO75: 9.94 | AW75: 133 | BB75: 9.6 | BD75: -0.75 | BI75: -0.29 | BL75: 0 | BM75: 0 | BN75: 0 | BO75: 0 | BP75: 10.060274 | BR75: =BL75-AX75 -> 0 | BS75: =BM75-AY75 -> 0 | BT75: =BN75-AZ75 -> 0 | BU75: =BO75-BA75 -> 0 | BV75: =BP75-BB75 -> 0.460274
B76: 2 | C76: 046 | D76: 499 | E76: 45 | G76: 046499 | I76: Double High-Pressure Sodium Vapor | J76: Pedestal Base | K76: 310W | L76: 742 | M76: 0 | N76: 0 | O76: 0 | P76: 0 | Q76: 0 | R76: 1 | S76: 0 | T76: 0 | U76: 29.06 | V76: 0 | W76: 0 | AE76: 0 | AF76: 0 | AG76: 0 | AH76: 0 | AI76: 0 | AK76: 0 | AL76: 0 | AM76: 29.06 | AN76: 0 | AO76: 0 | AW76: 266 | AZ76: 28.76 | BD76: -1.5 | BG76: -0.85 | BL76: 0 | BM76: 0 | BN76: 29.411626 | BO76: 0 | BP76: 0 | BR76: 0 | BS76: 0 | BT76: 0.651626 | BU76: 0 | BV76: 0
B77: 2 | C77: 046 | D77: 535 | E77: 128 | G77: 046535 | I77: Mercury Vapor | J77: Dusk to Dawn | K77: 55000 | L77: 815 | M77: =SUMIF($G:$G,TEXT(M$3,"000")&TEXT($L77,"000"),$E:$E) -> 0 | N77: 0 | O77: 0 | P77: 0 | Q77: 0 | R77: 1 | S77: 0 | T77: 0 | U77: 0 | V77: 33.39 | W77: 0 | AE77: =SUMIF($G:$G,TEXT(AE$3,"000")&TEXT($L77,"000"),$E:$E) -> 0 | AF77: 0 | AG77: 0 | AH77: 0 | AI77: 0 | AK77: 0 | AL77: 0 | AM77: 0 | AN77: 33.39 | AO77: 0 | AW77: 417 | BA77: 32.42 | BD77: -2.35 | BH77: -0.98 | BL77: 0 | BM77: 0 | BN77: 0 | BO77: 33.794019 | BP77: 0 | BR77: 0 | BS77: 0 | BT77: 0 | BU77: 1.374019 | BV77: 0
B78: 2 | C78: 046 | D78: 635 | E78: 281 | G78: 046635 | I78: Single High-Pressure Sodium Vapor | J78: Direct Burial | K78: 400W | L78: 833 | M78: 0 | N78: 0 | O78: 0 | P78: 0 | Q78: 0 | R78: 1 | S78: 0 | T78: 0 | U78: 19.83 | V78: 0 | W78: 0 | AE78: 0 | AF78: 0 | AG78: 0 | AH78: 0 | AI78: 0 | AK78: 0 | AL78: 0 | AM78: 19.83 | AN78: 0 | AO78: 0 | AW78: 169 | AZ78: 19.7 | BD78: -0.95 | BG78: -0.58 | BL78: 0 | BM78: 0 | BN78: 20.069943 | BO78: 0 | BP78: 0 | BR78: 0 | BS78: 0 | BT78: 0.369943 | BU78: 0 | BV78: 0
B79: 2 | C79: 046 | D79: 735 | E79: 292 | G79: 046735 | I79: Single Light Emmitting Diode (LED) | J79: Wood Pole | K79: 70W | L79: 421L | M79: 0 | N79: 0 | O79: 0 | P79: 0 | Q79: 0 | R79: 1 | S79: 0 | T79: =T10 -> 24.93 | AE79: 0 | AF79: 0 | AG79: 0 | AH79: 0 | AI79: 0 | AK79: 0 | AL79: =AL10 -> 24.93 | AM79: 0 | AN79: 0 | AO79: 0 | AW79: 26 | AY79: 26.23 | BD79: -0.15 | BF79: =ROUND((T79*$BE$2)+$BD79-AY79,2) -> -1.15 | BL79: =AK79*$BL$1 -> 0 | BM79: =AL79*$BL$1 -> 25.231653 | BN79: =AM79*$BL$1 -> 0 | BO79: =AN79*$BL$1 -> 0 | BP79: =AO79*$BL$1 -> 0 | BR79: 0 | BS79: -0.998347 | BT79: 0 | BU79: 0 | BV79: 0
B80: 2 | C80: 046 | D80: 835 | E80: 80 | G80: 046835 | I80: Single Light Emmitting Diode (LED) | J80: Wood Pole | K80: 70W | L80: 431L | M80: 0 | N80: 0 | O80: 0 | P80: 0 | Q80: 0 | R80: =IF(SUM(M80:Q80)>0,0,1) -> 1 | S80: 0 | T80: 15.13 | U80: 0 | AE80: 0 | AF80: 0 | AG80: 0 | AH80: 0 | AI80: 0 | AK80: =ROUND(S80*(1+AK$1),2) -> 0 | AL80: 15.13 | AM80: =ROUND(U80*(1+AM$1),2) -> 0 | AN80: =ROUND(V80*(1+AN$1),2) -> 0 | AO80: =ROUND(W80*(1+AO$1),2) -> 0 | AW80: 26 | AY80: 15.86 | BD80: =ROUND(AW80*$BD$2,2)+ROUND(AW80*$BD$1,2) -> -0.15 | BF80: =ROUND((T80*$BE$2)+$BD80-AY80,2) -> -0.7 | BL80: =AK80*$BL$1 -> 0 | BM80: =AL80*$BL$1 -> 15.313073 | BN80: =AM80*$BL$1 -> 0 | BO80: =AN80*$BL$1 -> 0 | BP80: =AO80*$BL$1 -> 0 | BR80: =BL80-AX80 -> 0 | BS80: =BM80-AY80 -> -0.546927 | BT80: =BN80-AZ80 -> 0 | BU80: =BO80-BA80 -> 0 | BV80: =BP80-BB80 -> 0
B81: 2 | C81: 046 | D81: 935 | E81: 112 | G81: 046935 | I81: Single Light Emmitting Diode (LED) | J81: Pedestal Base | K81: 70W | L81: 432L | M81: 0 | N81: 0 | O81: 0 | P81: 0 | Q81: 0 | R81: 1 | S81: 0 | T81: 24.93 | U81: 0 | AE81: 0 | AF81: 0 | AG81: 0 | AH81: 0 | AI81: 0 | AK81: 0 | AL81: 24.93 | AM81: 0 | AN81: 0 | AO81: 0 | AW81: 26 | AY81: 26.23 | BD81: -0.15 | BF81: -1.15 | BL81: 0 | BM81: 25.231653 | BN81: 0 | BO81: 0 | BP81: 0 | BR81: 0 | BS81: -0.998347 | BT81: 0 | BU81: 0 | BV81: 0
E82: =SUM(E73:E81) -> 1098 | I82: Single Light Emmitting Diode (LED) | J82: Direct Burial | K82: 70W | L82: 433L | M82: 0 | N82: 0 | O82: 0 | P82: 0 | Q82: 0 | R82: 1 | S82: 0 | T82: 24.93 | U82: 0 | AE82: 0 | AF82: 0 | AG82: 0 | AH82: 0 | AI82: 0 | AK82: 0 | AL82: 24.93 | AM82: 0 | AN82: 0 | AO82: 0 | AW82: 26 | AY82: 26.23 | BD82: -0.15 | BF82: -1.15 | BL82: 0 | BM82: 25.231653 | BN82: 0 | BO82: 0 | BP82: 0 | BR82: 0 | BS82: -0.998347 | BT82: 0 | BU82: 0 | BV82: 0
I83: Single Light Emmitting Diode (LED) | J83: Direct Burial | K83: 70W | L83: 434L | M83: 0 | N83: 0 | O83: 0 | P83: 0 | Q83: 0 | R83: 1 | S83: 0 | T83: 14.06 | U83: 0 | AE83: 0 | AF83: 0 | AG83: 0 | AH83: 0 | AI83: 0 | AK83: 0 | AL83: 14.06 | AM83: 0 | AN83: 0 | AO83: 0 | AW83: 26 | AY83: 14.73 | BD83: -0.15 | BF83: -0.65 | BL83: 0 | BM83: 14.230126 | BN83: 0 | BO83: 0 | BP83: 0 | BR83: 0 | BS83: -0.499874 | BT83: 0 | BU83: 0 | BV83: 0
B84: 2 | E84: =E11+E46+E63+E71+E82 -> 23615 | I84: Single Light Emmitting Diode (LED) | J84: No Pole / Dusk to Dawn (046) | K84: 70W | L84: 435L | M84: 0 | N84: 0 | O84: 0 | P84: 0 | Q84: 0 | R84: 1 | S84: 0 | T84: 13.33 | U84: 0 | AE84: 0 | AF84: 0 | AG84: 0 | AH84: 0 | AI84: 0 | AK84: 0 | AL84: 13.33 | AM84: 0 | AN84: 0 | AO84: 0 | AW84: 26 | AY84: 13.95 | BD84: -0.15 | BF84: -0.61 | BL84: 0 | BM84: 13.491293 | BN84: 0 | BO84: 0 | BP84: 0 | BR84: 0 | BS84: -0.458707 | BT84: 0 | BU84: 0 | BV84: 0
I85: Single Light Emmitting Diode (LED) | J85: Developer Contributed | K85: 70W | L85: 436L | M85: 0 | N85: 0 | O85: 0 | P85: 0 | Q85: 0 | R85: 1 | S85: 0 | T85: 15.13 | U85: 0 | AE85: 0 | AF85: 0 | AG85: 0 | AH85: 0 | AI85: 0 | AK85: 0 | AL85: 15.13 | AM85: 0 | AN85: 0 | AO85: 0 | AW85: 26 | AY85: 15.86 | BD85: -0.15 | BF85: -0.7 | BL85: 0 | BM85: 15.313073 | BN85: 0 | BO85: 0 | BP85: 0 | BR85: 0 | BS85: -0.546927 | BT85: 0 | BU85: 0 | BV85: 0
D86: Street Light Summary total, WA | E86: 23615 | I86: Decorative Light Emmitting Diode (LED) | J86: No Pole | K86: Kim Light 70W | L86: 438L | M86: 0 | N86: 0 | O86: 0 | P86: 0 | Q86: 0 | R86: 1 | S86: 0 | T86: 14.06 | U86: 0 | AE86: 0 | AF86: 0 | AG86: 0 | AH86: 0 | AI86: 0 | AK86: 0 | AL86: 14.06 | AM86: 0 | AN86: 0 | AO86: 0 | AW86: 26 | AY86: 14.73 | BD86: -0.15 | BF86: -0.65 | BL86: 0 | BM86: 14.230126 | BN86: 0 | BO86: 0 | BP86: 0 | BR86: 0 | BS86: -0.499874 | BT86: 0 | BU86: 0 | BV86: 0
D87: Area Light Count, WA | E87: =5051+3623 -> 8674 | I87: Double Light Emmitting Diode (LED) | J87: Wood Pole | K87: 70W | L87: 441L | M87: =SUMIF($G:$G,TEXT(M$3,"000")&TEXT($L87,"000"),$E:$E) -> 0 | N87: 0 | O87: 0 | P87: 0 | Q87: 0 | R87: 1 | S87: 0 | T87: 27.39 | U87: 0 | AE87: =SUMIF($G:$G,TEXT(AE$3,"000")&TEXT($L87,"000"),$E:$E) -> 0 | AF87: 0 | AG87: 0 | AH87: 0 | AI87: 0 | AK87: 0 | AL87: 27.39 | AM87: 0 | AN87: 0 | AO87: 0 | AW87: 52 | AY87: 28.7 | BD87: -0.29 | BF87: -1.27 | BL87: 0 | BM87: 27.721419 | BN87: 0 | BO87: 0 | BP87: 0 | BR87: 0 | BS87: -0.978581 | BT87: 0 | BU87: 0 | BV87: 0
E88: =E86+E87 -> 32289 | I88: Decorative Light Emmitting Diode (LED) | J88: Direct Burial | K88: Granville 70W | L88: 474L | M88: 0 | N88: 0 | O88: 0 | P88: 0 | Q88: 0 | R88: 1 | S88: 0 | T88: =T20 -> 24.49 | U88: 0 | AE88: 0 | AF88: 0 | AG88: 0 | AH88: 0 | AI88: 0 | AK88: 0 | AL88: =AL20 -> 24.49 | AM88: 0 | AN88: 0 | AO88: 0 | AW88: 26 | AY88: 25.77 | BD88: -0.15 | BF88: -1.13 | BL88: 0 | BM88: 24.786329 | BN88: 0 | BO88: 0 | BP88: 0 | BR88: 0 | BS88: -0.983671 | BT88: 0 | BU88: 0 | BV88: 0
E89: =E84+'Area Lts'!E63-E88 -> 0 | I89: Decorative Light Emmitting Diode (LED) | J89: Direct Burial | K89: Post Top 70W | L89: 484L | M89: 0 | N89: 0 | O89: 0 | P89: 0 | Q89: 0 | R89: 1 | S89: 0 | T89: =T23 -> 23.31 | U89: 0 | AE89: 0 | AF89: 0 | AG89: 0 | AH89: 0 | AI89: 0 | AK89: 0 | AL89: =AL23 -> 23.31 | AM89: 0 | AN89: 0 | AO89: 0 | AW89: 26 | AY89: 24.51 | BD89: -0.15 | BF89: -1.07 | BL89: 0 | BM89: 23.592051 | BN89: 0 | BO89: 0 | BP89: 0 | BR89: 0 | BS89: -0.917949 | BT89: 0 | BU89: 0 | BV89: 0
I90: Single Light Emmitting Diode (LED) | J90: Pedestal Base | K90: 107W | L90: 522L | M90: 0 | N90: 0 | O90: 0 | P90: 0 | Q90: 0 | R90: 1 | S90: 0 | T90: =T28 -> 56.52 | U90: 0 | AE90: 0 | AF90: 0 | AG90: 0 | AH90: 0 | AI90: 0 | AK90: 0 | AL90: =AL28 -> 56.52 | AM90: 0 | AN90: 0 | AO90: 0 | AW90: 39 | AY90: 59.59 | BD90: -0.22 | BF90: -2.61 | BL90: 0 | BM90: 57.203892 | BN90: 0 | BO90: 0 | BP90: 0 | BR90: 0 | BS90: -2.386108 | BT90: 0 | BU90: 0 | BV90: 0
I91: Single Light Emmitting Diode (LED) | J91: Wood Pole | K91: 107W | L91: 531L | M91: 0 | N91: 0 | O91: 0 | P91: 0 | Q91: 0 | R91: 1 | S91: 0 | T91: =T29 -> 22.52 | U91: 0 | V91: 0 | AE91: 0 | AF91: 0 | AG91: 0 | AH91: 0 | AI91: 0 | AK91: 0 | AL91: =AL29 -> 22.52 | AM91: 0 | AN91: 0 | AO91: 0 | AW91: 39 | AY91: 23.62 | BD91: -0.22 | BF91: -1.05 | BL91: 0 | BM91: 22.792492 | BN91: 0 | BO91: 0 | BP91: 0 | BR91: 0 | BS91: -0.827508 | BT91: 0 | BU91: 0 | BV91: 0
I92: Single Light Emmitting Diode (LED) | J92: Pedestal Base | K92: 107W | L92: 532L | M92: 0 | N92: 0 | O92: 0 | P92: 0 | Q92: 0 | R92: 1 | S92: 0 | T92: 33.36 | U92: 0 | V92: 0 | AE92: 0 | AF92: 0 | AG92: 0 | AH92: 0 | AI92: 0 | AK92: 0 | AL92: 33.36 | AM92: 0 | AN92: 0 | AO92: 0 | AW92: 39 | AY92: 35.08 | BD92: -0.22 | BF92: -1.54 | BL92: 0 | BM92: 33.763656 | BN92: 0 | BO92: 0 | BP92: 0 | BR92: 0 | BS92: -1.316344 | BT92: 0 | BU92: 0 | BV92: 0
I93: Single Light Emmitting Diode (LED) | J93: Direct Burial | K93: 107W | L93: 533L | M93: 0 | N93: 0 | O93: 0 | P93: 0 | Q93: 0 | R93: 1 | S93: 0 | T93: 33.36 | U93: 0 | V93: 0 | AE93: 0 | AF93: 0 | AG93: 0 | AH93: 0 | AI93: 0 | AK93: 0 | AL93: 33.36 | AM93: 0 | AN93: 0 | AO93: 0 | AW93: 39 | AY93: 35.08 | BD93: -0.22 | BF93: -1.54 | BL93: 0 | BM93: 33.763656 | BN93: 0 | BO93: 0 | BP93: 0 | BR93: 0 | BS93: -1.316344 | BT93: 0 | BU93: 0 | BV93: 0
I94: Single Light Emmitting Diode (LED) | J94: No Pole / Dusk to Dawn (046) | K94: 107W | L94: 535L | M94: 0 | N94: 0 | O94: 0 | P94: 0 | Q94: 0 | R94: 1 | S94: 0 | T94: 18.54 | U94: 0 | V94: 0 | AE94: 0 | AF94: 0 | AG94: 0 | AH94: 0 | AI94: 0 | AK94: 0 | AL94: 18.54 | AM94: 0 | AN94: 0 | AO94: 0 | AW94: 39 | AY94: 19.4 | BD94: -0.22 | BF94: -0.86 | BL94: 0 | BM94: 18.764334 | BN94: 0 | BO94: 0 | BP94: 0 | BR94: 0 | BS94: -0.635666 | BT94: 0 | BU94: 0 | BV94: 0
I95: Single Light Emmitting Diode (LED) | J95: Developer Contributed | K95: 107W | L95: 536L | M95: 0 | N95: 0 | O95: 0 | P95: 0 | Q95: 0 | R95: 1 | S95: 0 | T95: 22.52 | U95: 0 | V95: 0 | AE95: 0 | AF95: 0 | AG95: 0 | AH95: 0 | AI95: 0 | AK95: 0 | AL95: 22.52 | AM95: 0 | AN95: 0 | AO95: 0 | AW95: 39 | AY95: 23.62 | BD95: -0.22 | BF95: -1.05 | BL95: 0 | BM95: 22.792492 | BN95: 0 | BO95: 0 | BP95: 0 | BR95: 0 | BS95: -0.827508 | BT95: 0 | BU95: 0 | BV95: 0
I96: Double Light Emmitting Diode (LED) | J96: Wood Pole | K96: 107W | L96: 541L | M96: 0 | N96: 0 | O96: 0 | P96: 0 | Q96: 0 | R96: 1 | S96: 0 | T96: =T35 -> 45.07 | U96: 0 | V96: 0 | AE96: 0 | AF96: 0 | AG96: 0 | AH96: 0 | AI96: 0 | AK96: 0 | AL96: =AL35 -> 45.07 | AM96: 0 | AN96: 0 | AO96: 0 | AW96: 78 | AY96: 47.24 | BD96: -0.44 | BF96: -2.06 | BL96: 0 | BM96: 45.615347 | BN96: 0 | BO96: 0 | BP96: 0 | BR96: 0 | BS96: -1.624653 | BT96: 0 | BU96: 0 | BV96: 0
I97: Double Light Emmitting Diode (LED) | J97: Pedestal Base | K97: 107W | L97: 542L | M97: 0 | N97: 0 | O97: 0 | P97: 0 | Q97: 0 | R97: 1 | S97: 0 | T97: =T36 -> 56.52 | U97: 0 | V97: 0 | AE97: 0 | AF97: 0 | AG97: 0 | AH97: 0 | AI97: 0 | AK97: 0 | AL97: =AL36 -> 56.52 | AM97: 0 | AN97: 0 | AO97: 0 | AW97: 78 | AY97: 59.37 | BD97: -0.44 | BF97: -2.61 | BL97: 0 | BM97: 57.203892 | BN97: 0 | BO97: 0 | BP97: 0 | BR97: 0 | BS97: -2.166108 | BT97: 0 | BU97: 0 | BV97: 0
I98: Double Light Emmitting Diode (LED) | J98: Pedestal Base | K98: 70W | L98: 442L | M98: =SUMIF($G:$G,TEXT(M$3,"000")&TEXT($L98,"000"),$E:$E) -> 0 | N98: 0 | O98: 0 | P98: 0 | Q98: 0 | R98: =IF(SUM(M98:Q98)>0,0,1) -> 1 | S98: 0 | T98: 0 | U98: 0 | V98: 0 | AE98: =SUMIF($G:$G,TEXT(AE$3,"000")&TEXT($L98,"000"),$E:$E) -> 0 | AF98: 0 | AG98: 0 | AH98: 0 | AI98: 0 | AK98: =ROUND(S98*(1+AK$1),2) -> 0 | AL98: =AL19 -> 38.81 | AM98: =ROUND(U98*(1+AM$1),2) -> 0 | AN98: =ROUND(V98*(1+AN$1),2) -> 0 | AO98: =ROUND(W98*(1+AO$1),2) -> 0 | AW98: 39 | AY98: 0 | BD98: =ROUND(AW98*$BD$2,2)+ROUND(AW98*$BD$1,2) -> -0.22 | BF98: =ROUND((T98*$BE$2)+$BD98-AY98,2) -> -0.22 | BL98: =AK98*$BL$1 -> 0 | BM98: =AL98*$BL$1 -> 39.279601 | BN98: =AM98*$BL$1 -> 0 | BO98: =AN98*$BL$1 -> 0 | BP98: =AO98*$BL$1 -> 0 | BR98: =BL98-AX98 -> 0 | BS98: =BM98-AY98 -> 39.279601 | BT98: =BN98-AZ98 -> 0 | BU98: =BO98-BA98 -> 0 | BV98: =BP98-BB98 -> 0
I99: Double Light Emmitting Diode (LED) | J99: No Pole | K99: 70W | L99: 475L | M99: 0 | N99: 0 | O99: 0 | P99: 0 | Q99: 0 | R99: 1 | S99: 0 | T99: 0 | U99: 0 | V99: 0 | AE99: 0 | AF99: 0 | AG99: 0 | AH99: 0 | AI99: 0 | AK99: 0 | AL99: =AL21 -> 18.8 | AM99: 0 | AN99: 0 | AO99: 0 | AW99: 39 | AY99: 0 | BD99: -0.22 | BF99: -0.22 | BL99: 0 | BM99: 19.02748 | BN99: 0 | BO99: 0 | BP99: 0 | BR99: 0 | BS99: 19.02748 | BT99: 0 | BU99: 0 | BV99: 0
I101: Add 442/475 to LED's

Sheet Area Lts
A1: Area Light Summary | I1: WASHINGTON Area Lights | S1: Monthly Rev. | Z1: =SL_RateIncr -> 0 | AC1: % rate increase --> | AD1: ='Lighting summary'!L16 -> 0 | AG1: Monthly Rev. | AJ1: -0.00027 | AK1: =-0.00458 -> -0.00458 | AL1: =-0.00105 -> -0.00105 | AP1: compare input Present Billing Rates to calculated Present Billing Rates
A2: DWWPWMS.AREA_LIGHT_ASMBLY1, as of 10/22/14 | M2: # of Lights(1) | P2: Pres. Rates | S2: at Pres. Rates | V2: # of Lights(1) | AA2: # of Lights | AD2: Prop. Rates | AG2: at Prop. Rates | AK2: Pres. Billing Rates | AP2: ='St Lts'!BE2 -> 1.0121 | AQ2: ='St Lts'!BF2 -> Sch 91 & 93 | AS2: New Billing Rates | AU2: ='Lighting summary'!I39 -> 0.0121 | AV2: Increase
I3: Fixture Type | J3: Pole Facility | K3: Size | L3: Sched | M3: 047 | N3: 048 | P3: 047 | Q3: 048 | S3: 047 | T3: 048 | V3: 047 | W3: 048 | AA3: 047 | AB3: 048 | AD3: 047 | AE3: 048 | AG3: 047 | AH3: 048 | AJ3: kwh | AK3: 047 | AL3: 048 | AM3: Sch 59 | AN3: Sch 93 | AO3: Sch 94 | AP3: 047 | AQ3: 048 | AS3: 047 | AT3: 048 | AV3: 047 | AW3: 048
H4: Monthly | I4: Sodium Vapor | J4: Granville w/16' decorative pole | K4: 100W | L4: HAG | M4: =SUMIF($G:$G,TEXT(M$3,"000")&TEXT($L4,"000"),$E:$E) -> 0 | N4: 0 | P4: 29.35 | Q4: =P4 -> 29.35 | S4: =IF(AND(M4<>0,P4=0),#VALUE!,M4*P4) -> 0 | T4: =IF(AND(N4<>0,Q4=0),#VALUE!,N4*Q4) -> 0 | V4: =SUMIF($G:$G,TEXT(V$3,"000")&TEXT($L4,"000"),$E:$E) -> 0 | W4: 0 | AA4: =M4 -> 0 | AB4: =N4 -> 0 | AD4: =ROUND(P4*(1+AD$1),2) -> 29.35 | AE4: =AD4 -> 29.35 | AG4: =IF(AND(AA4<>0,AD4=0),#VALUE!,AA4*AD4) -> 0 | AH4: =IF(AND(AB4<>0,AE4=0),#VALUE!,AB4*AE4) -> 0 | AJ4: 40 | AK4: 30.84 | AL4: 30.72 | AM4: =ROUND($AJ$1*$AJ4,2) -> -0.01 | AN4: =ROUND($AK$1*$AJ4,2) -> -0.18 | AO4: =ROUND($AL$1*$AJ4,2) -> -0.04 | AP4: =ROUND(P4*$AP$2-AK4+AN4+AO4,2) -> -1.35 | AQ4: =ROUND(Q4*$AP$2-AL4+AM4+AN4+AO4,2) -> -1.24 | AS4: =AD4*$AU$2 -> 0.355135 | AT4: =AE4*$AU$2+AM4 -> 0.345135 | AV4: =AS4-AK4 -> -30.484865 | AW4: =AT4-AL4 -> -30.374865
B5: State | C5: Sched | D5: Rate Sub | E5: # of Lights | H5: kWh's | I5: Sodium Vapor | J5: Floodlight on existing standard | K5: 250W | L5: HAH | M5: 105 | N5: 10 | P5: 21.72 | Q5: =P5 -> 21.72 | S5: 2280.6 | T5: 217.2 | V5: 105 | W5: 10 | AA5: =M5 -> 105 | AB5: 10 | AD5: 21.72 | AE5: =AD5 -> 21.72 | AG5: 2280.6 | AH5: 217.2 | AJ5: 107 | AK5: 22.38 | AL5: 22.05 | AM5: =ROUND($AJ$1*$AJ5,2) -> -0.03 | AN5: =ROUND($AK$1*$AJ5,2) -> -0.49 | AO5: =ROUND($AL$1*$AJ5,2) -> -0.11 | AP5: =ROUND(P5*$AP$2-AK5+AN5+AO5,2) -> -1 | AQ5: =ROUND(Q5*$AP$2-AL5+AM5+AN5+AO5,2) -> -0.7 | AS5: =AD5*$AU$2 -> 0.262812 | AT5: =AE5*$AU$2+AM5 -> 0.232812 | AV5: =AS5-AK5 -> -22.117188 | AW5: =AT5-AL5 -> -21.817188
I6: Sodium Vapor | J6: Kim light w/25' fiberglass pole | K6: 100W | L6: HAI | M6: 18 | N6: 3 | P6: 28.35 | Q6: 28.35 | S6: 510.3 | T6: 85.05 | V6: 18 | W6: 3 | AA6: 18 | AB6: 3 | AD6: 28.35 | AE6: =AD6 -> 28.35 | AG6: 510.3 | AH6: 85.05 | AJ6: 40 | AK6: 29.78 | AL6: 29.66 | AM6: -0.01 | AN6: -0.18 | AO6: -0.04 | AP6: -1.31 | AQ6: -1.2 | AS6: =AD6*$AU$2 -> 0.343035 | AT6: 0.333035 | AV6: -29.436965 | AW6: -29.326965
B7: WA | C7: 047 | D7: HAH | E7: 105 | G7: =IF(OR(ISBLANK(C7),ISBLANK(D7)),"",TEXT(C7,"000")&TEXT(D7,"000")) -> 047HAH | H7: =E7*AJ5 -> 11235 | I7: Sodium Vapor | J7: Post Top w/16' decorative pole | K7: 100W | L7: HAP | M7: 0 | N7: 0 | P7: 27.99 | Q7: 27.99 | S7: 0 | T7: 0 | V7: 0 | W7: 0 | AA7: 0 | AB7: 0 | AD7: 27.99 | AE7: 27.99 | AG7: 0 | AH7: 0 | AJ7: 40 | AK7: 29.4 | AL7: 29.28 | AM7: -0.01 | AN7: -0.18 | AO7: -0.04 | AP7: -1.29 | AQ7: -1.18 | AS7: 0.338679 | AT7: 0.328679 | AV7: -29.061321 | AW7: -28.951321
B8: WA | C8: 047 | D8: HAI | E8: 18 | G8: =IF(OR(ISBLANK(C8),ISBLANK(D8)),"",TEXT(C8,"000")&TEXT(D8,"000")) -> 047HAI | H8: =E8*AJ6 -> 720 | I8: Sodium Vapor | J8: on existing standard | K8: 100W | L8: HPA | M8: 635 | N8: 950 | P8: 13.46 | Q8: 13.46 | S8: 8547.1 | T8: 12787 | V8: 635 | W8: 950 | AA8: 635 | AB8: 950 | AD8: 13.46 | AE8: 13.46 | AG8: 8547.1 | AH8: 12787 | AJ8: 40 | AK8: 14.03 | AL8: 13.91 | AM8: -0.01 | AN8: -0.18 | AO8: -0.04 | AP8: =ROUND(P8*$AP$2,2)-AK8+AN8+AO8 -> -0.63 | AQ8: -0.52 | AS8: 0.162866 | AT8: 0.152866 | AV8: -13.867134 | AW8: -13.757134
B9: WA | C9: 047 | D9: HPA | E9: 635 | G9: 047HPA | H9: =E9*AJ8 -> 25400 | I9: Sodium Vapor | J9: on existing standard | K9: 200W | L9: HPB | M9: 1241 | N9: 574 | P9: 19.12 | Q9: 19.12 | S9: 23727.92 | T9: 10974.88 | V9: 1241 | W9: 574 | AA9: 1241 | AB9: 574 | AD9: 19.12 | AE9: 19.12 | AG9: 23727.92 | AH9: 10974.88 | AJ9: 85 | AK9: 19.75 | AL9: 19.49 | AM9: -0.02 | AN9: -0.39 | AO9: -0.09 | AP9: -0.88 | AQ9: -0.64 | AS9: 0.231352 | AT9: 0.211352 | AV9: -19.518648 | AW9: -19.278648
B10: WA | C10: 047 | D10: HPB | E10: 1241 | G10: 047HPB | H10: 105485 | I10: Sodium Vapor | J10: on existing standard | K10: 400W | L10: HPC | M10: 148 | N10: 11 | P10: 26.41 | Q10: 26.41 | S10: 3908.68 | T10: 290.51 | V10: 148 | W10: 11 | AA10: 148 | AB10: 11 | AD10: 26.41 | AE10: 26.41 | AG10: 3908.68 | AH10: 290.51 | AJ10: 169 | AK10: 27 | AL10: 26.48 | AM10: -0.05 | AN10: =ROUND($AK$1*$AJ10,2) -> -0.77 | AO10: -0.18 | AP10: -1.22 | AQ10: -0.75 | AS10: 0.319561 | AT10: 0.269561 | AV10: -26.680439 | AW10: -26.210439
B11: WA | C11: 047 | D11: HPC | E11: 148 | G11: 047HPC | H11: 25012 | I11: Sodium Vapor | J11: 30' wood pole | K11: 200W | L11: HPD | M11: 983 | N11: 263 | P11: 26.56 | Q11: 26.56 | S11: 26108.48 | T11: 6985.28 | V11: 983 | W11: 263 | AA11: 983 | AB11: 263 | AD11: 26.56 | AE11: 26.56 | AG11: 26108.48 | AH11: 6985.28 | AJ11: 85 | AK11: 27.62 | AL11: 27.36 | AM11: -0.02 | AN11: -0.39 | AO11: -0.09 | AP11: -1.22 | AQ11: -0.98 | AS11: 0.321376 | AT11: 0.301376 | AV11: -27.298624 | AW11: -27.058624
B12: WA | C12: 047 | D12: HPD | E12: 983 | G12: 047HPD | H12: 83555 | I12: Sodium Vapor | J12: 30' wood pole | K12: 100W | L12: HPE | M12: 416 | N12: 342 | P12: 19.72 | Q12: 19.72 | S12: 8203.52 | T12: 6744.24 | V12: 416 | W12: 342 | AA12: 416 | AB12: 342 | AD12: 19.72 | AE12: 19.72 | AG12: 8203.52 | AH12: 6744.24 | AJ12: 40 | AK12: 20.65 | AL12: 20.53 | AM12: -0.01 | AN12: -0.18 | AO12: -0.04 | AP12: -0.91 | AQ12: -0.8 | AS12: 0.238612 | AT12: 0.228612 | AV12: -20.411388 | AW12: -20.301388
B13: WA | C13: 047 | D13: HPE | E13: 416 | G13: 047HPE | H13: 16640 | I13: Sodium Vapor | J13: 30' wood pole | K13: 400W | L13: HPG | M13: 64 | N13: 6 | P13: 33.94 | Q13: 33.94 | S13: 2172.16 | T13: 203.64 | V13: 64 | W13: 6 | AA13: 64 | AB13: 6 | AD13: 33.94 | AE13: 33.94 | AG13: 2172.16 | AH13: 203.64 | AJ13: 169 | AK13: 34.96 | AL13: 34.44 | AM13: -0.05 | AN13: -0.77 | AO13: -0.18 | AP13: -1.56 | AQ13: -1.09 | AS13: 0.410674 | AT13: 0.360674 | AV13: -34.549326 | AW13: -34.079326
B14: WA | C14: 047 | D14: HPG | E14: 64 | G14: 047HPG | H14: 10816 | I14: Sodium Vapor | J14: 30' steel pole | K14: 200W | L14: HPL | M14: 54 | N14: 12 | P14: 33.36 | Q14: 33.36 | S14: 1801.44 | T14: 400.32 | V14: 54 | W14: 12 | AA14: 54 | AB14: 12 | AD14: 33.36 | AE14: 33.36 | AG14: 1801.44 | AH14: 400.32 | AJ14: 85 | AK14: 34.82 | AL14: 34.56 | AM14: -0.02 | AN14: -0.39 | AO14: -0.09 | AP14: -1.54 | AQ14: -1.3 | AS14: 0.403656 | AT14: 0.383656 | AV14: -34.416344 | AW14: -34.176344
B15: WA | C15: 047 | D15: HPL | E15: 54 | G15: 047HPL | H15: 4590 | I15: Sodium Vapor | J15: 25' steel pole | K15: 200W | L15: HPO | M15: 8 | N15: 13 | P15: 28.89 | Q15: 28.89 | S15: 231.12 | T15: 375.57 | V15: 8 | W15: 13 | AA15: 8 | AB15: 13 | AD15: 28.89 | AE15: 28.89 | AG15: 231.12 | AH15: 375.57 | AJ15: 85 | AK15: 30.09 | AL15: 29.83 | AM15: =ROUND($AJ$1*$AJ15,2) -> -0.02 | AN15: -0.39 | AO15: -0.09 | AP15: -1.33 | AQ15: -1.09 | AS15: 0.349569 | AT15: 0.329569 | AV15: -29.740431 | AW15: -29.500431
B16: WA | C16: 047 | D16: HPO | E16: 8 | G16: =IF(OR(ISBLANK(C16),ISBLANK(D16)),"",TEXT(C16,"000")&TEXT(D16,"000")) -> 047HPO | H16: 680 | I16: Sodium Vapor | J16: 20' fiberglass pole | K16: 100W | L16: HPS | M16: 68 | N16: 161 | P16: 19.72 | Q16: 19.72 | S16: 1340.96 | T16: 3174.92 | V16: 68 | W16: 161 | AA16: 68 | AB16: 161 | AD16: 19.72 | AE16: 19.72 | AG16: 1340.96 | AH16: 3174.92 | AJ16: 40 | AK16: 20.65 | AL16: 20.53 | AM16: -0.01 | AN16: -0.18 | AO16: -0.04 | AP16: -0.91 | AQ16: -0.8 | AS16: 0.238612 | AT16: 0.228612 | AV16: -20.411388 | AW16: -20.301388
B17: WA | C17: 047 | D17: HPS | E17: 68 | G17: 047HPS | H17: 2720 | I17: Sodium Vapor | J17: 30' steel pole w/2 arms | K17: 200W | L17: HPY | M17: 16 | N17: 0 | P17: 56.52 | Q17: 56.52 | S17: 904.32 | T17: 0 | V17: 16 | W17: 0 | AA17: 16 | AB17: 0 | AD17: 56.52 | AE17: 56.52 | AG17: 904.32 | AH17: 0 | AJ17: 85 | AK17: 59.33 | AL17: 59.07 | AM17: -0.02 | AN17: -0.39 | AO17: -0.09 | AP17: -2.61 | AQ17: -2.37 | AS17: 0.683892 | AT17: 0.663892 | AV17: -58.646108 | AW17: -58.406108
B18: WA | C18: 047 | D18: HPY | E18: 16 | G18: 047HPY | H18: 1360 | I18: Mercury Vapor | J18: on existing standard | K18: 7000 | L18: MVA | M18: 139 | N18: 385 | P18: 15.49 | Q18: 15.49 | S18: 2153.11 | T18: 5963.65 | V18: 139 | W18: 385 | AA18: 139 | AB18: 385 | AD18: 15.49 | AE18: 15.49 | AG18: 2153.11 | AH18: 5963.65 | AJ18: 80 | AK18: 15.94 | AL18: 15.7 | AM18: -0.02 | AN18: -0.37 | AO18: -0.08 | AP18: -0.71 | AQ18: -0.49 | AS18: 0.187429 | AT18: 0.167429 | AV18: -15.752571 | AW18: -15.532571
B19: WA | C19: 047 | D19: MVA | E19: 139 | G19: 047MVA | H19: 11120 | I19: Mercury Vapor | J19: on existing standard | K19: 10000 | L19: MVB | M19: 248 | N19: 420 | P19: 18.55 | Q19: 18.55 | S19: 4600.4 | T19: 7791 | V19: 248 | W19: 420 | AA19: 248 | AB19: 420 | AD19: 18.55 | AE19: 18.55 | AG19: 4600.4 | AH19: 7791 | AJ19: 111 | AK19: 19 | AL19: 18.66 | AM19: =ROUND($AJ$1*$AJ19,2) -> -0.03 | AN19: -0.51 | AO19: -0.12 | AP19: -0.86 | AQ19: -0.55 | AS19: 0.224455 | AT19: 0.194455 | AV19: -18.775545 | AW19: -18.465545
B20: WA | C20: 047 | D20: MVB | E20: 248 | G20: 047MVB | H20: 27528 | I20: Mercury Vapor | J20: on existing standard | K20: 20000 | L20: MVC | M20: 455 | N20: 47 | P20: 26.39 | Q20: 26.39 | S20: 12007.45 | T20: 1240.33 | V20: 455 | W20: 47 | AA20: 455 | AB20: 47 | AD20: 26.39 | AE20: 26.39 | AG20: 12007.45 | AH20: 1240.33 | AJ20: 182 | AK20: 26.91 | AL20: 26.35 | AM20: -0.05 | AN20: -0.83 | AO20: -0.19 | AP20: -1.22 | AQ20: -0.71 | AS20: 0.319319 | AT20: 0.269319 | AV20: -26.590681 | AW20: -26.080681
B21: WA | C21: 047 | D21: MVC | E21: 455 | G21: 047MVC | H21: 82810 | I21: Mercury Vapor | J21: 30' wood pole | K21: 7000 | L21: MVD | M21: 52 | N21: 159 | P21: 19.33 | Q21: 19.33 | S21: 1005.16 | T21: 3073.47 | V21: 52 | W21: 159 | AA21: 52 | AB21: 159 | AD21: 19.33 | AE21: 19.33 | AG21: 1005.16 | AH21: 3073.47 | AJ21: 80 | AK21: 19.99 | AL21: 19.75 | AM21: -0.02 | AN21: -0.37 | AO21: -0.08 | AP21: -0.88 | AQ21: -0.66 | AS21: 0.233893 | AT21: 0.213893 | AV21: -19.756107 | AW21: -19.536107
B22: WA | C22: 047 | D22: MVD | E22: 52 | G22: 047MVD | H22: 4160 | I22: Mercury Vapor | J22: 30' wood pole | K22: 10000 | L22: MVE | M22: 86 | N22: 129 | P22: 22.44 | Q22: 22.44 | S22: 1929.84 | T22: 2894.76 | V22: 86 | W22: 129 | AA22: 86 | AB22: 129 | AD22: 22.44 | AE22: 22.44 | AG22: 1929.84 | AH22: 2894.76 | AJ22: 111 | AK22: 23.12 | AL22: 22.78 | AM22: -0.03 | AN22: -0.51 | AO22: -0.12 | AP22: -1.04 | AQ22: -0.73 | AS22: 0.271524 | AT22: 0.241524 | AV22: -22.848476 | AW22: -22.538476
B23: WA | C23: 047 | D23: MVE | E23: 86 | G23: 047MVE | H23: 9546 | I23: Mercury Vapor | J23: 30' wood pole | K23: 20000 | L23: MVF | M23: 244 | N23: 28 | P23: 30.29 | Q23: 30.29 | S23: 7390.76 | T23: 848.12 | V23: 244 | W23: 28 | AA23: 244 | AB23: 28 | AD23: 30.29 | AE23: 30.29 | AG23: 7390.76 | AH23: 848.12 | AJ23: 182 | AK23: 31.02 | AL23: 30.46 | AM23: -0.05 | AN23: -0.83 | AO23: -0.19 | AP23: -1.38 | AQ23: -0.87 | AS23: 0.366509 | AT23: 0.316509 | AV23: -30.653491 | AW23: -30.143491
B24: WA | C24: 047 | D24: MVF | E24: 244 | G24: 047MVF | H24: 44408 | I24: Mercury Vapor | J24: 25' steel | K24: 7000 | L24: MVG | M24: =SUMIF($G:$G,TEXT(M$3,"000")&TEXT($L24,"000"),$E:$E) -> 0 | N24: 1 | P24: 25.19 | Q24: 25.19 | S24: 0 | T24: 25.19 | V24: =SUMIF($G:$G,TEXT(V$3,"000")&TEXT($L24,"000"),$E:$E) -> 0 | W24: 1 | AA24: 0 | AB24: 1 | AD24: 25.19 | AE24: 25.19 | AG24: 0 | AH24: 25.19 | AJ24: 80 | AK24: 26.2 | AL24: 25.96 | AM24: -0.02 | AN24: -0.37 | AO24: -0.08 | AP24: -1.16 | AQ24: -0.94 | AS24: 0.304799 | AT24: 0.284799 | AV24: -25.895201 | AW24: -25.675201
B25: WA | C25: 047 | D25: MVH | E25: 5 | G25: 047MVH | H25: =E25*AJ25 -> 555 | I25: Mercury Vapor | J25: 25' steel | K25: 10000 | L25: MVH | M25: 5 | N25: 21 | P25: 28.32 | Q25: 28.32 | S25: 141.6 | T25: 594.72 | V25: 5 | W25: 21 | AA25: 5 | AB25: 21 | AD25: 28.32 | AE25: 28.32 | AG25: 141.6 | AH25: 594.72 | AJ25: 111 | AK25: 29.33 | AL25: 28.99 | AM25: -0.03 | AN25: -0.51 | AO25: -0.12 | AP25: -1.3 | AQ25: -0.99 | AS25: 0.342672 | AT25: 0.312672 | AV25: -28.987328 | AW25: -28.677328
B26: WA | C26: 047 | D26: MVI | E26: 2 | G26: 047MVI | H26: =E26*AJ26 -> 364 | I26: Mercury Vapor | J26: 25' steel | K26: 20000 | L26: MVI | M26: 2 | N26: 0 | P26: 36.13 | Q26: 36.13 | S26: 72.26 | T26: 0 | V26: 2 | W26: 0 | AA26: 2 | AB26: 0 | AD26: 36.13 | AE26: 36.13 | AG26: 72.26 | AH26: 0 | AJ26: 182 | AK26: 37.21 | AL26: 36.65 | AM26: -0.05 | AN26: -0.83 | AO26: -0.19 | AP26: -1.66 | AQ26: -1.15 | AS26: 0.437173 | AT26: 0.387173 | AV26: -36.772827 | AW26: -36.262827
B27: WA | C27: 047 | D27: MVJ | E27: 2 | G27: 047MVJ | H27: =E27*AJ27 -> 160 | I27: Mercury Vapor | J27: 30' steel | K27: 7000 | L27: MVJ | M27: 2 | N27: 0 | P27: 26.42 | Q27: 26.42 | S27: 52.84 | T27: 0 | V27: 2 | W27: 0 | AA27: 2 | AB27: 0 | AD27: 26.42 | AE27: 26.42 | AG27: 52.84 | AH27: 0 | AJ27: 80 | AK27: 27.51 | AL27: 27.27 | AM27: -0.02 | AN27: -0.37 | AO27: -0.08 | AP27: -1.22 | AQ27: -1 | AS27: 0.319682 | AT27: 0.299682 | AV27: -27.190318 | AW27: -26.970318
B28: WA | C28: 047 | D28: MVK | E28: 2 | G28: 047MVK | H28: =E28*AJ28 -> 222 | I28: Mercury Vapor | J28: 30' steel | K28: 10000 | L28: MVK | M28: 2 | N28: 34 | P28: 29.53 | Q28: 29.53 | S28: 59.06 | T28: 1004.02 | V28: 2 | W28: 34 | AA28: 2 | AB28: 34 | AD28: 29.53 | AE28: 29.53 | AG28: 59.06 | AH28: 1004.02 | AJ28: 111 | AK28: 30.62 | AL28: 30.28 | AM28: -0.03 | AN28: -0.51 | AO28: -0.12 | AP28: -1.36 | AQ28: -1.05 | AS28: 0.357313 | AT28: 0.327313 | AV28: -30.262687 | AW28: -29.952687
B29: WA | C29: 047 | D29: MVL | E29: 6 | G29: 047MVL | H29: =E29*AJ29 -> 1092 | I29: Mercury Vapor | J29: 30' steel | K29: 20000 | L29: MVL | M29: 6 | N29: 0 | P29: 37.35 | Q29: 37.35 | S29: 224.1 | T29: 0 | V29: 6 | W29: 0 | AA29: 6 | AB29: 0 | AD29: 37.35 | AE29: 37.35 | AG29: 224.1 | AH29: 0 | AJ29: 182 | AK29: 38.51 | AL29: 37.95 | AM29: -0.05 | AN29: -0.83 | AO29: -0.19 | AP29: -1.73 | AQ29: -1.22 | AS29: 0.451935 | AT29: 0.401935 | AV29: -38.058065 | AW29: -37.548065
B30: WA | C30: 047 | D30: MVO | E30: 0 | G30: 047MVO | H30: =E30*AJ32 -> 0 | I30: Mercury Vapor | J30: 25' aluminum | K30: 7000 | L30: MVM | M30: 0 | N30: 0 | P30: 27.27 | Q30: 27.27 | S30: 0 | T30: 0 | V30: 0 | W30: 0 | AA30: 0 | AB30: 0 | AD30: 27.27 | AE30: 27.27 | AG30: 0 | AH30: 0 | AJ30: 80 | AK30: 28.4 | AL30: 28.16 | AM30: -0.02 | AN30: -0.37 | AO30: -0.08 | AP30: -1.25 | AQ30: -1.03 | AS30: 0.329967 | AT30: 0.309967 | AV30: -28.070033 | AW30: -27.850033
B31: WA | C31: 047 | D31: PA | E31: 54 | G31: 047PA | H31: =E31*AJ34 -> 0 | I31: Mercury Vapor | J31: 25' aluminum | K31: 10000 | L31: MVN | M31: 0 | N31: 0 | P31: 30.38 | Q31: 30.38 | S31: 0 | T31: 0 | V31: 0 | W31: 0 | AA31: 0 | AB31: 0 | AD31: 30.38 | AE31: 30.38 | AG31: 0 | AH31: 0 | AJ31: 111 | AK31: 31.53 | AL31: 31.19 | AM31: -0.03 | AN31: -0.51 | AO31: -0.12 | AP31: -1.41 | AQ31: -1.1 | AS31: 0.367598 | AT31: 0.337598 | AV31: -31.162402 | AW31: -30.852402
E32: =SUM(E7:E31) -> 5051 | H32: =SUM(H7:H31) -> 470178 | I32: Mercury Vapor | J32: 25' aluminum | K32: 20000 | L32: MVO | M32: 0 | N32: 0 | P32: 38.18 | Q32: 38.18 | S32: 0 | T32: 0 | V32: 0 | W32: 0 | AA32: 0 | AB32: 0 | AD32: 38.18 | AE32: 38.18 | AG32: 0 | AH32: 0 | AJ32: 182 | AK32: 39.37 | AL32: 38.81 | AM32: -0.05 | AN32: -0.83 | AO32: -0.19 | AP32: -1.75 | AQ32: -1.24 | AS32: 0.461978 | AT32: 0.411978 | AV32: -38.908022 | AW32: -38.398022
I33: Mercury Vapor | J33: Special | K33: 7000 | L33: MVV | M33: 0 | N33: 2 | P33: 7.745 | Q33: 7.745 | S33: 0 | T33: 15.49 | V33: 0 | W33: 2 | AA33: 0 | AB33: 2 | AD33: =AD18/2 -> 7.745 | AE33: 7.745 | AG33: 0 | AH33: 15.49 | AJ33: 40 | AK33: =AK18/2 -> 7.97 | AL33: =AL18/2 -> 7.85 | AM33: =ROUND($AJ$1*$AJ33,2) -> -0.01 | AN33: -0.18 | AO33: -0.04 | AP33: -0.35 | AQ33: -0.24 | AS33: 0.0937145 | AT33: 0.0837145 | AV33: -7.8762855 | AW33: -7.7662855
B34: WA | C34: 048 | D34: HAH | E34: 10 | G34: 048HAH | H34: =E34*AJ5 -> 1070 | I34: none | J34: 30' wood pole | K34: n/a | L34: PA | M34: 54 | N34: 2 | P34: 6.24 | Q34: 6.24 | S34: 336.96 | T34: 12.48 | V34: 54 | W34: 2 | AA34: 54 | AB34: 2 | AD34: 6.24 | AE34: 6.24 | AG34: 336.96 | AH34: 12.48 | AK34: 6.6 | AL34: 6.6 | AM34: 0 | AN34: 0 | AO34: 0 | AP34: -0.28 | AQ34: -0.28 | AS34: 0.075504 | AT34: 0.075504 | AV34: -6.524496 | AW34: -6.524496
B35: WA | C35: 048 | D35: HAI | E35: 3 | G35: =IF(OR(ISBLANK(C35),ISBLANK(D35)),"",TEXT(C35,"000")&TEXT(D35,"000")) -> 048HAI | H35: =E35*AJ6 -> 120 | I35: none | J35: 55' wood pole | K35: n/a | L35: PB | M35: 0 | N35: 0 | P35: 11.91 | Q35: 11.91 | S35: 0 | T35: 0 | V35: 0 | W35: 0 | AA35: 0 | AB35: 0 | AD35: 11.91 | AE35: 11.91 | AG35: 0 | AH35: 0 | AK35: 12.6 | AL35: 12.6 | AM35: 0 | AN35: 0 | AO35: 0 | AP35: -0.55 | AQ35: -0.55 | AS35: 0.144111 | AT35: 0.144111 | AV35: -12.455889 | AW35: -12.455889
B36: WA | C36: 048 | D36: HPA | E36: 950 | G36: 048HPA | H36: =E36*AJ8 -> 38000 | I36: LED | J36: =J8 -> on existing standard | K36: 70W | L36: HPAL | M36: 0 | N36: 0 | V36: 0 | W36: 0 | AD36: =AD8 -> 13.46 | AE36: 13.46 | AJ36: 26
B37: WA | C37: 048 | D37: HPB | E37: 574 | G37: 048HPB | H37: 48790 | I37: LED | J37: =J9 -> on existing standard | K37: 107W | L37: HPBL | M37: 0 | N37: 0 | V37: 0 | W37: 0 | AD37: =AD9 -> 19.12 | AE37: =AE9 -> 19.12 | AJ37: 39
B38: WA | C38: 048 | D38: HPC | E38: 11 | G38: 048HPC | H38: 1859 | I38: LED | J38: =J16 -> 20' fiberglass pole | K38: 70W | L38: HPCL | M38: 0 | N38: 0 | V38: 0 | W38: 0 | AD38: =AD16 -> 19.72 | AE38: =AE16 -> 19.72 | AJ38: 26
B39: WA | C39: 048 | D39: HPD | E39: 263 | G39: 048HPD | H39: 22355 | I39: LED | J39: =J12 -> 30' wood pole | K39: 70W | L39: HPEL | M39: 0 | N39: 0 | V39: 0 | W39: 0 | AD39: =AD12 -> 19.72 | AE39: =AE12 -> 19.72 | AJ39: 26
B40: WA | C40: 048 | D40: HPE | E40: 342 | G40: 048HPE | H40: 13680 | I40: LED | J40: =J11 -> 30' wood pole | K40: 107W | L40: HPDL | M40: 0 | N40: 0 | V40: 0 | W40: 0 | AD40: =AD11 -> 26.56 | AE40: =AE11 -> 26.56 | AJ40: 39
B41: WA | C41: 048 | D41: HPG | E41: 6 | G41: 048HPG | H41: 1014 | I41: LED | J41: =J15 -> 25' steel pole | K41: 107W | L41: HPOL | M41: 0 | N41: 0 | V41: 0 | W41: 0 | AD41: =AD15 -> 28.89 | AE41: =AE15 -> 28.89 | AJ41: 39
B42: WA | C42: 048 | D42: HPL | E42: 12 | G42: =IF(OR(ISBLANK(C42),ISBLANK(D42)),"",TEXT(C42,"000")&TEXT(D42,"000")) -> 048HPL | H42: 1020 | I42: LED | J42: =J14 -> 30' steel pole | K42: 107W | L42: HPLL | M42: 0 | N42: 0 | V42: 0 | W42: 0 | AD42: =AD14 -> 33.36 | AE42: =AE14 -> 33.36 | AJ42: 39
B43: WA | C43: 048 | D43: HPO | E43: 13 | G43: 048HPO | H43: 1105 | I43: LED | J43: =J17 -> 30' steel pole w/2 arms | K43: 107W | L43: HPYL | M43: 0 | N43: 0 | V43: 0 | W43: 0 | AD43: =AD17 -> 56.52 | AE43: =AE17 -> 56.52 | AJ43: 39
B44: WA | C44: 048 | D44: HPS | E44: 161 | G44: 048HPS | H44: 6440 | I44: LED | J44: =J4 -> Granville w/16' decorative pole | K44: 70W | L44: HAGL | M44: 0 | N44: 0 | V44: 0 | W44: 0 | AD44: =AD4 -> 29.35 | AE44: =AE4 -> 29.35 | AJ44: 26
B45: WA | C45: 048 | D45: MVA | E45: 385 | G45: 048MVA | H45: =E45*AJ18 -> 30800 | I45: LED | J45: =J7 -> Post Top w/16' decorative pole | K45: 70W | L45: HAPL | M45: 0 | N45: 0 | V45: 0 | W45: 0 | AD45: =AD7 -> 27.99 | AE45: =AE7 -> 27.99 | AJ45: 26
B46: WA | C46: 048 | D46: MVB | E46: 420 | G46: 048MVB | H46: 46620 | I46: LED | J46: =J6 -> Kim light w/25' fiberglass pole | K46: 70W | L46: HAIL | M46: 0 | N46: 0 | V46: 0 | W46: 0 | AD46: =AD6 -> 28.35 | AE46: =AE6 -> 28.35 | AJ46: 26
B47: WA | C47: 048 | D47: MVC | E47: 47 | G47: 048MVC | H47: 8554 | L47: SLB | M47: 0 | N47: 31 | Q47: 1e-07 | S47: 0 | T47: 3.1e-06 | V47: 0 | W47: 31 | AA47: 0 | AB47: 31 | AD47: =ROUND(P47*(1+$Z$1),2) -> 0 | AE47: 1e-06 | AG47: 0 | AH47: 3.1e-05 | AP47: 0 | AQ47: 0 | AS47: 0 | AT47: 1.21e-08 | AV47: 0 | AW47: 1.21e-08
B48: WA | C48: 048 | D48: MVD | E48: 159 | G48: 048MVD | H48: 12720 | L48: SLC | M48: 0 | N48: 18 | Q48: 1e-06 | S48: 0 | T48: 1.8e-05 | V48: 0 | W48: 18 | AA48: 0 | AB48: 18 | AD48: =ROUND(P48*(1+$Z$1),2) -> 0 | AE48: 1e-06 | AG48: 0 | AH48: 1.8e-05 | AP48: 0 | AQ48: 0 | AS48: 0 | AT48: 1.21e-08 | AV48: 0 | AW48: 1.21e-08
B49: WA | C49: 048 | D49: MVE | E49: 129 | G49: 048MVE | H49: 14319 | L49: SLD | M49: 0 | N49: 1 | Q49: 1e-06 | S49: 0 | T49: 1e-06 | V49: 0 | W49: 1 | AA49: 0 | AB49: 1 | AD49: =ROUND(P49*(1+$Z$1),2) -> 0 | AE49: 1e-06 | AG49: 0 | AH49: 1e-06 | AP49: =ROUND(P49*$AP$2-AK49+AN49+AO49,2) -> 0 | AQ49: =ROUND(Q49*$AP$2-AL49+AM49+AN49,2) -> 0 | AS49: 0 | AT49: 1.21e-08 | AV49: 0 | AW49: 1.21e-08
B50: WA | C50: 048 | D50: MVF | E50: 28 | G50: 048MVF | H50: 5096
B51: WA | C51: 048 | D51: MVG | E51: 1 | G51: 048MVG | H51: 80 | M51: =SUM(M5:M50) -> 5051 | N51: =SUM(N5:N50) -> 3623 | S51: =SUM(S5:S50) -> 109710.14 | T51: =SUM(T5:T50) -> 65701.84002 | V51: =SUM(V5:V50) -> 5051 | W51: =SUM(W5:W50) -> 3623 | AA51: =SUM(AA5:AA50) -> 5051 | AB51: =SUM(AB5:AB50) -> 3623 | AG51: =SUM(AG5:AG50) -> 109710.14 | AH51: =SUM(AH5:AH50) -> 65701.84005
B52: WA | C52: 048 | D52: MVH | E52: 21 | G52: 048MVH | H52: 2331 | K52: Total | N52: =SUM(M51:N51) -> 8674 | T52: =ROUND(SUM(S51:T51),2) -> 175411.98 | W52: =SUM(V51:W51) -> 8674 | AB52: =SUM(AA51:AB51) -> 8674 | AH52: =ROUND(SUM(AG51:AH51),2) -> 175411.98
B53: WA | C53: 048 | D53: MVK | E53: 34 | G53: 048MVK | H53: =E53*AJ28 -> 3774 | I53: ='St Lts'!I58 -> (1) from Street Light Report and Area Light Report, 10/22/14, PDE-E-24-28 | N53: =ROUND(N52-E63,0) -> 0 | S53: 107985 | T53: 65599 | Z53: Dec '10 revenue | AB53: =AB52-N52 -> 0 | AH53: =AH52/T52-1 -> 0
B54: WA | C54: 048 | D54: MVN | E54: 0 | G54: 048MVN | H54: =E54*AJ31 -> 0 | S54: =S51-S53 -> 1725.14 | T54: =T51-T53 -> 102.8400221
B55: WA | C55: 048 | D55: MVV | E55: 2 | G55: 048MVV | H55: =E55*AJ33 -> 80 | T55: =SUM(S54:T54) -> 1827.980022
B56: WA | C56: 048 | D56: PA | E56: 2 | G56: 048PA | S56: Surch Rate | T56: =T55/SUM(P53:T53) -> 0.01053080942 | AG56: Surch Rate
B57: WA | C57: 048 | D57: PB | E57: 0 | G57: 048PB | S57: ='St Lts'!Y64 -> 1.0121 | AG57: ='St Lts'!AQ63 -> 1.0121
B58: WA | C58: 048 | D58: SLB | E58: 31 | G58: 048SLB | H58: =E58*AJ47 -> 0 | R58: Billed | S58: =S51*$S57 -> 111037.6327 | T58: =T51*$S57 -> 66496.83229 | AF58: Billed | AG58: =AG51*$AG57 -> 111037.6327 | AH58: =AH51*$AG57 -> 66496.83231
B59: WA | C59: 048 | D59: SLC | E59: 18 | G59: 048SLC | H59: =E59*AJ48 -> 0 | R59: less Sch 59 | T59: 0 | AF59: less Sch 59/93 | AG59: =SUMPRODUCT($N$4:$N$49,$AN$4:$AN$49) -> -1188.55 | AH59: =SUMPRODUCT($N$4:$N$49,$AM$4:$AM$49) -> -65.74
B60: WA | C60: 048 | D60: SLD | E60: 1 | G60: 048SLD | H60: =E60*AJ49 -> 0 | S60: =S58+S59 -> 111037.6327 | T60: =T58+T59 -> 66496.83229 | AG60: =AG58+AG59 -> 109849.0827 | AH60: =AH58+AH59 -> 66431.09231
E61: =SUM(E34:E60) -> 3623 | H61: =SUM(H34:H60) -> 259827 | T61: =S60+T60 -> 177534.465 | AH61: =AG60+AH60 -> 176280.175
B63: WA | E63: =E32+E61 -> 8674 | H63: =H32+H61 -> 730005
X64: Monthly Increase (Decrease)
X65: Annual Increase (Decrease)

Sheet Capital Recovery Factor Calc
A5: Avista | F5: Avista | M5: Avista
A6: Capital Recovery Factor Calculation | F6: Capital Recovery Factor Calculation | M6: Capital Recovery Factor Calculation
A7: Present - UE-120436 | F7: Proposed - UE-150204 | M7: Present - UE-140188
A10: Cost of Capital | F10: Cost of Capital | J10: Source | M10: Cost of Capital | Q10: Source
A11: Capital | B11: Capital | C11: Component | D11: Weighted | F11: Capital | G11: Capital | H11: Component | I11: Weighted | M11: Capital
A12: Component | B12: Structure | C12: Cost | D12: Cost | F12: Component | G12: Structure | H12: Cost | I12: Cost | M12: Component
A13: Long Term Debt | B13: 0.53 | C13: 0.0572 | D13: =B13*C13 -> 0.030316 | F13: Long Term Debt | G13: 0.515 | H13: 0.052 | I13: =G13*H13 -> 0.02678 | J13: Settlement Stipulation | M13: Rate of Return | P13: 0.0732 | Q13: Settlement
A14: Preferred Equity | B14: 0 | C14: 0 | D14: =B14*C14 -> 0 | F14: Preferred Equity | G14: 0 | H14: 0 | I14: =G14*H14 -> 0 | J14: Settlement Stipulation
A15: Common Equity | B15: 0.47 | C15: 0.098 | D15: 0.04606 | F15: Common Equity | G15: 0.485 | H15: 0.095 | I15: 0.046075 | J15: Settlement Stipulation | M15: Less:
A16: Total | B16: =SUM(B13:B15) -> 1 | D16: =SUM(D13:D15) -> 0.076376 | F16: Total | G16: =SUM(G13:G15) -> 1 | I16: =SUM(I13:I15) -> 0.072855 | M16: Long Term Debt | P16: 0.0282 | Q16: Settlement Appendix I
M17: Federal Income Tax Rate | P17: 0.35
P18: =ROUND(P16*P17,5) -> 0.00987
A19: Grossed-up Rate of Return | F19: Grossed-up Rate of Return
M20: Total | P20: =P13-P18 -> 0.06333
A21: Tax Gross-up Factor | D21: =1/0.62082 -> 1.610772849 | F21: Tax Gross-up Factor | I21: =1/0.62 -> 1.612903226 | J21: Smith | K21: PDE-31
M23: Grossed-up Rate of Return
A24: Weighted ROE * Tax Gross-up | C24: 1.611 * 4.606% | D24: =D15*D21 -> 0.07419219742 | F24: Weighted ROE * Tax Gross-up | H24: 1.613 * 4.752% | I24: =I15*I21 -> 0.07431451613
A25: Long Term Debt | D25: =D13 -> 0.030316 | F25: Long Term Debt | I25: =I13 -> 0.02678 | M25: Revenue Conversion Factor | P25: 0.62074 | Q25: Andrews Conversion Factor
A26: Preferred Equity * Tax Gross-up | C26: 1.611 * 0.000% | D26: =D14*D21 -> 0 | F26: Preferred Equity * Tax Gross-up | H26: 1.613 * 0.000% | I26: =I14*I21 -> 0
A27: Grossed-up Rate of Return | D27: =SUM(D24:D26) -> 0.1045081974 | F27: Grossed-up Rate of Return | I27: =SUM(I24:I26) -> 0.1010945161 | M27: Grossed-up Rate of Return | P27: =ROUND(P20/P25,5) -> 0.10202
M30: Depreciation Rate
C31: Test Year | D31: Effective | H31: Test Year | I31: Effective | O31: Test Year | P31: Effective
A32: Account | B32: Plant in | C32: Depreciation | D32: Depreciation | F32: Account | G32: Plant in | H32: Depreciation | I32: Depreciation | M32: Account | N32: Plant in | O32: Depreciation | P32: Depreciation
A33: Number | B33: Service | C33: Expense | D33: Rate | F33: Number | G33: Service | H33: Expense | I33: Rate | M33: Number | N33: Service | O33: Expense | P33: Rate
A34: 373 - Street Lighting | B34: 20810000 | C34: 593000 | D34: =C34/B34 -> 0.02849591543 | F34: 373 - Street Lighting | G34: 28183000 | H34: 819000 | I34: =H34/G34 -> 0.02906007167 | J34: Knox | M34: 373 - Street Lighting | N34: 23600000 | O34: 641000 | P34: =ROUND(O34/N34,4) -> 0.0272 | Q34: From Cost of Service (Knox)
A35: Revenue Conversion Factor (Before FIT) | D35: 0.954989 | F35: Revenue Conversion Factor (Before FIT) | I35: 0.953853 | J35: Smith | K35: PDE-31 | M35: Revenue Conversion Factor (Before FIT) | P35: 0.954989 | Q35: Andrews Conversion Factor
A36: Grossed-Up Depreciation Rate | D36: =D34/D35 -> 0.02983899859 | F36: Grossed-Up Depreciation Rate | I36: =I34/I35 -> 0.03046598551 | M36: Grossed-up Depreciation Rate | P36: =P34/P35 -> 0.02848200346
A38: *From Cost of Service (Knox) | F38: *From Cost of Service (Knox)
A40: Capital Recovery Factor | B40: =D27+D36 -> 0.134347196 | F40: Capital Recovery Factor | G40: =I27+I36 -> 0.1315605016 | M40: Capital Recovery Factor | N40: =P27+P36 -> 0.1305020035

Sheet Block Data
U2: Rate Design
A3: WASHINGTON ELECTRIC SYSTEM
C4: October | D4: November | E4: December | F4: January | G4: February | H4: March | I4: April | J4: May | K4: June | L4: July | M4: August | N4: September | O4: Annual Total | U4: May
A5: Rate Design Program Monthly Results
A6: Block ID 900 | B6: Schedule 001
B7: Block 1 | C7: 125323490 | D7: 127488013 | E7: 141275603 | F7: 144260498 | G7: 141384451 | H7: 138518799 | I7: 128754929 | J7: 124040417 | K7: 114284975 | L7: 117294243 | M7: 126903830 | N7: 126213835 | O7: =SUM(C7:N7) -> 1555743083 | R7: 0 | S7: =R7/$R$10 ->  | U7: 14978538
B8: Block 2 | C8: 33893076 | D8: 37102573 | E8: 63168569 | F8: 72113480 | G8: 63933665 | H8: 57894956 | I8: 38874456 | J8: 30640801 | K8: 21598043 | L8: 27826942 | M8: 43193601 | N8: 39264809 | O8: =SUM(C8:N8) -> 529504971 | R8: 0 | S8: =R8/$R$10 ->  | U8: 3538501
B9: Block 3 | C9: 12150088 | D9: 17294257 | E9: 55284271 | F9: 71166181 | G9: 58011163 | H9: 47034607 | I9: 18841043 | J9: 12322310 | K9: 8570057 | L9: 9911166 | M9: 18867973 | N9: 18169310 | O9: =SUM(C9:N9) -> 347622426 | R9: 0 | U9: 1286158
A10: kWhs | B10: Total | C10: =SUM(C7:C9) -> 171366654 | D10: =SUM(D7:D9) -> 181884843 | E10: 259728443 | F10: 287540159 | G10: 263329279 | H10: 243448362 | I10: 186470428 | J10: 167003528 | K10: 144453075 | L10: 155032351 | M10: 188965404 | N10: 183647954 | O10: 2432870480 | R10: =SUM(R7:R9) -> 0 | S10: =SUM(S7:S9) ->  | U10: 19803197
B11: Billed Customers | C11: ='Rev Runs 12MESEPT2014'!D11 -> 204564 | D11: ='Rev Runs 12MESEPT2014'!E11 -> 205005 | E11: ='Rev Runs 12MESEPT2014'!F11 -> 205512 | F11: ='Rev Runs 12MESEPT2014'!G11 -> 205536 | G11: ='Rev Runs 12MESEPT2014'!H11 -> 205720 | H11: ='Rev Runs 12MESEPT2014'!I11 -> 205499 | I11: ='Rev Runs 12MESEPT2014'!J11 -> 205076 | J11: ='Rev Runs 12MESEPT2014'!K11 -> 205201 | K11: ='Rev Runs 12MESEPT2014'!L11 -> 204431 | L11: ='Rev Runs 12MESEPT2014'!M11 -> 204966 | M11: ='Rev Runs 12MESEPT2014'!N11 -> 204911 | N11: ='Rev Runs 12MESEPT2014'!O11 -> 205646 | O11: =SUM(C11:N11) -> 2462067 | U11: 203177
B12: Block 1 Limit | C12: =C11*800 -> 163651200 | D12: =D11*800 -> 164004000 | E12: 164409600 | F12: 164428800 | G12: 164576000 | H12: 164399200 | I12: 164060800 | J12: 164160800 | K12: 163544800 | L12: 163972800 | M12: 163928800 | N12: 164516800 | O12: =SUM(C12:N12) -> 1969653600 | U12: 162541600
B13: Revenue Run Total | C13: ='Rev Runs 12MESEPT2014'!D47 -> 172515690 | D13: ='Rev Runs 12MESEPT2014'!E47 -> 182389214 | E13: ='Rev Runs 12MESEPT2014'!F47 -> 262077988 | F13: ='Rev Runs 12MESEPT2014'!G47 -> 289886480 | G13: ='Rev Runs 12MESEPT2014'!H47 -> 265521283 | H13: ='Rev Runs 12MESEPT2014'!I47 -> 243798239 | I13: ='Rev Runs 12MESEPT2014'!J47 -> 186717371 | J13: ='Rev Runs 12MESEPT2014'!K47 -> 166632949 | K13: ='Rev Runs 12MESEPT2014'!L47 -> 143928993 | L13: ='Rev Runs 12MESEPT2014'!M47 -> 156298537 | M13: ='Rev Runs 12MESEPT2014'!N47 -> 190162484 | N13: ='Rev Runs 12MESEPT2014'!O47 -> 183763954 | O13: =SUM(C13:N13) -> 2443693182 | U13: 172072750
B14: Difference | C14: =C13-C10 -> 1149036 | D14: 504371 | E14: 2349545 | F14: 2346321 | G14: 2192004 | H14: 349877 | I14: 246943 | J14: -370579 | K14: -524082 | L14: 1266186 | M14: 1197080 | N14: 116000 | O14: =SUM(C14:N14) -> 10822702 | P14: =O14/O13 -> 0.004428830133 | U14: 152269553
B16: Block 1 | C16: =(C7/C$10)*C$14 -> 840310.5172 | D16: =(D7/D$10)*D$14 -> 353527.2953 | E16: 1278001.681 | F16: 1177162.304 | G16: 1176911.596 | H16: =(H7/H$10)*H$14 -> 199075.2431 | I16: 170510.299 | J16: -275244.3271 | K16: -414630.8292 | L16: 957969.9167 | M16: =(M7/M$10)*M$14 -> 803925.1292 | N16: 79722.12345 | O16: =SUM(C16:N16) -> 6347240.948
B17: Block 2 | C17: =(C8/C$10)*C$14 -> 227257.5415 | D17: 102886.3183 | E17: 571432.9695 | F17: 588444.3171 | G17: =(G8/G$10)*G$14 -> 532196.2296 | H17: 83204.96944 | I17: 51481.48632 | J17: -67991.60191 | K17: -78358.63357 | L17: 227269.2387 | M17: 273627.8429 | N17: 24801.35359 | O17: =SUM(C17:N17) -> 2536252.031
B18: Block 3 | C18: 81467.94134 | D18: 47957.38641 | E18: 500110.3499 | F18: 580714.3793 | G18: =(G9/G$10)*G$14 -> 482896.174 | H18: 67596.7875 | I18: 24951.21469 | J18: -27343.07096 | K18: -31092.53723 | L18: 80946.84465 | M18: 119527.0279 | N18: 11476.52296 | O18: 1939209.021
C19: =SUM(C16:C18) -> 1149036 | D19: =SUM(D16:D18) -> 504371 | E19: 2349545 | F19: 2346321 | G19: 2192004 | H19: =SUM(H16:H18) -> 349877 | I19: =SUM(I16:I18) -> 246943 | J19: =SUM(J16:J18) -> -370579 | K19: -524082 | L19: =SUM(L16:L18) -> 1266186 | M19: =SUM(M16:M18) -> 1197080 | N19: =SUM(N16:N18) -> 116000 | O19: 10822702
B21: Block 1 | C21: =C7+C16 -> 126163800.5 | D21: =D7+D16 -> 127841540.3 | E21: 142553604.7 | F21: 145437660.3 | G21: 142561362.6 | H21: =H7+H16 -> 138717874.2 | I21: 128925439.3 | J21: 123765172.7 | K21: 113870344.2 | L21: 118252212.9 | M21: 127707755.1 | N21: 126293557.1 | O21: =SUM(C21:N21) -> 1562090324
B22: Block 2 | C22: =C8+C17 -> 34120333.54 | D22: 37205459.32 | E22: 63740001.97 | F22: 72701924.32 | G22: =G8+G17 -> 64465861.23 | H22: 57978160.97 | I22: 38925937.49 | J22: 30572809.4 | K22: 21519684.37 | L22: 28054211.24 | M22: 43467228.84 | N22: 39289610.35 | O22: =SUM(C22:N22) -> 532041223
B23: Block 3 | C23: 12231555.94 | D23: 17342214.39 | E23: 55784381.35 | F23: 71746895.38 | G23: =G9+G18 -> 58494059.17 | H23: 47102203.79 | I23: 18865994.21 | J23: 12294966.93 | K23: 8538964.463 | L23: 9992112.845 | M23: 18987500.03 | N23: 18180786.52 | O23: 349561635
C24: =SUM(C21:C23) -> 172515690 | D24: =SUM(D21:D23) -> 182389214 | E24: 262077988 | F24: 289886480 | G24: 265521283 | H24: =SUM(H21:H23) -> 243798239 | I24: =SUM(I21:I23) -> 186717371 | J24: =SUM(J21:J23) -> 166632949 | K24: 143928993 | L24: =SUM(L21:L23) -> 156298537 | M24: =SUM(M21:M23) -> 190162484 | N24: =SUM(N21:N23) -> 183763954 | O24: 2443693182
C25: =C24-C13 -> 0 | D25: =D24-D13 -> 0 | E25: 0 | F25: 0 | G25: 0 | H25: =H24-H13 -> 0 | I25: =I24-I13 -> 0 | J25: =J24-J13 -> 0 | K25: 0 | L25: =L24-L13 -> 0 | M25: =M24-M13 -> 0 | N25: =N24-N13 -> 0 | O25: 0
A27: Block ID 98 | B27: Schedule 011/012
B28: Block 1 | C28: 32508047 | D28: 32578160 | E28: 38260062 | F28: 40105947 | G28: 38926156 | H28: 37464376 | I28: 33300156 | J28: 32142886 | K28: 30287159 | L28: 30679635 | M28: 32971221 | N28: 33889502 | O28: =SUM(C28:N28) -> 413113307 | R28: 0 | S28: =R28/$R$30 ->  | U28: 3577080
B29: Block 2 | C29: 15473242 | D29: 12183113 | E29: 17792203 | F29: 22900662 | G29: 17867579 | H29: 15848047 | I29: 12063583 | J29: 12032767 | K29: 11610691 | L29: 12884299 | M29: 16840524 | N29: 18152235 | O29: =SUM(C29:N29) -> 185648945 | R29: 0 | S29: =R29/$R$30 ->  | U29: 1305201
A30: kWhs | B30: Total | C30: =SUM(C28:C29) -> 47981289 | D30: 44761273 | E30: 56052265 | F30: 63006609 | G30: 56793735 | H30: 53312423 | I30: =SUM(I28:I29) -> 45363739 | J30: =SUM(J28:J29) -> 44175653 | K30: 41897850 | L30: 43563934 | M30: 49811745 | N30: 52041737 | O30: 598762252 | R30: =SUM(R28:R29) -> 0 | S30: =SUM(S28:S29) ->  | U30: 4882281
B31: Revenue Run Total | C31: ='Rev Runs 12MESEPT2014'!D48+'Rev Runs 12MESEPT2014'!D49 -> 48027262 | D31: ='Rev Runs 12MESEPT2014'!E48+'Rev Runs 12MESEPT2014'!E49 -> 44565871 | E31: ='Rev Runs 12MESEPT2014'!F48+'Rev Runs 12MESEPT2014'!F49 -> 56546224 | F31: ='Rev Runs 12MESEPT2014'!G48+'Rev Runs 12MESEPT2014'!G49 -> 59897515 | G31: ='Rev Runs 12MESEPT2014'!H48+'Rev Runs 12MESEPT2014'!H49 -> 57189947 | H31: ='Rev Runs 12MESEPT2014'!I48+'Rev Runs 12MESEPT2014'!I49 -> 53416031 | I31: ='Rev Runs 12MESEPT2014'!J48+'Rev Runs 12MESEPT2014'!J49 -> 45515376 | J31: ='Rev Runs 12MESEPT2014'!K48+'Rev Runs 12MESEPT2014'!K49 -> 44349209 | K31: ='Rev Runs 12MESEPT2014'!L48+'Rev Runs 12MESEPT2014'!L49 -> 40552190 | L31: ='Rev Runs 12MESEPT2014'!M48+'Rev Runs 12MESEPT2014'!M49 -> 43982858 | M31: ='Rev Runs 12MESEPT2014'!N48+'Rev Runs 12MESEPT2014'!N49 -> 50216491 | N31: ='Rev Runs 12MESEPT2014'!O48+'Rev Runs 12MESEPT2014'!O49 -> 52391286 | O31: =SUM(C31:N31) -> 596650260 | U31: 43938991
C32: =C31-C30 -> 45973 | D32: -195402 | E32: 493959 | F32: -3109094 | G32: 396212 | H32: 103608 | I32: 151637 | J32: 173556 | K32: -1345660 | L32: 418924 | M32: 404746 | N32: 349549 | O32: =SUM(C32:N32) -> -2111992 | P32: =O32/O31 -> -0.00353974873 | U32: 39056710
B34: Block 1 | C34: =(C28/C$30)*C$32 -> 31147.40091 | D34: =(D28/D$30)*D$32 -> -142217.5285 | E34: 337165.7143 | F34: -1979048.883 | G34: 271561.8214 | H34: 72808.71606 | I34: 111312.1596 | J34: 126282.0206 | K34: -972752.0238 | L34: 295024.6737 | M34: 267908.0971 | N34: 227625.7907 | O34: =SUM(C34:N34) -> -1353182.041
B35: Block 2 | C35: =(C29/C$30)*C$32 -> 14825.59909 | D35: -53184.47146 | E35: 156793.2857 | F35: -1130045.117 | G35: 124650.1786 | H35: 30799.28394 | I35: 40324.84041 | J35: 47273.97939 | K35: -372907.9762 | L35: 123899.3263 | M35: 136837.9029 | N35: 121923.2093 | O35: =SUM(C35:N35) -> -758809.9587
C36: =SUM(C34:C35) -> 45973 | D36: =SUM(D34:D35) -> -195402 | E36: 493959 | F36: -3109094 | G36: 396212 | H36: 103608 | I36: 151637 | J36: 173556 | K36: -1345660 | L36: 418924 | M36: 404746 | N36: 349549 | O36: =SUM(O34:O35) -> -2111992
B38: Block 1 | C38: =C28+C34 -> 32539194.4 | D38: =D28+D34 -> 32435942.47 | E38: 38597227.71 | F38: 38126898.12 | G38: 39197717.82 | H38: 37537184.72 | I38: 33411468.16 | J38: 32269168.02 | K38: 29314406.98 | L38: 30974659.67 | M38: 33239129.1 | N38: 34117127.79 | O38: =SUM(C38:N38) -> 411760125
B39: Block 2 | C39: =C29+C35 -> 15488067.6 | D39: =D29+D35 -> 12129928.53 | E39: 17948996.29 | F39: 21770616.88 | G39: 17992229.18 | H39: 15878846.28 | I39: 12103907.84 | J39: 12080040.98 | K39: 11237783.02 | L39: 13008198.33 | M39: 16977361.9 | N39: 18274158.21 | O39: =SUM(C39:N39) -> 184890135
C40: =SUM(C38:C39) -> 48027262 | D40: 44565871 | E40: 56546224 | F40: 59897515 | G40: 57189947 | H40: 53416031 | I40: 45515376 | J40: 44349209 | K40: 40552190 | L40: 43982858 | M40: 50216491 | N40: 52391286 | O40: 596650260
C41: =C40-C31 -> 0 | D41: 0 | E41: 0 | F41: 0 | G41: 0 | H41: 0 | I41: 0 | J41: 0 | K41: 0 | L41: 0 | M41: 0 | N41: 0 | O41: 0
A43: Block ID 11 | B43: Schedule 011/012
B44: Block 1 | C44: 77031 | D44: 75710 | E44: 76401 | F44: 76774 | G44: 76489 | H44: 77150 | I44: 75789 | J44: 76713 | K44: 76742 | L44: 77572 | M44: 78620 | N44: 79382 | O44: =SUM(C44:N44) -> 924373 | R44: 0 | U44: 7949
B45: Block 2 | C45: 37129 | D45: 33907 | E45: 36326 | F45: 32350 | G45: 32599 | H45: 32471 | I45: 29210 | J45: 29621 | K45: 28990 | L45: 32495 | M45: 38324 | N45: 38862 | O45: =SUM(C45:N45) -> 402284 | R45: 0 | U45: 2528
A46: kW | B46: Total | C46: =SUM(C44:C45) -> 114160 | D46: 109617 | E46: 112727 | F46: 109124 | G46: 109088 | H46: 109621 | I46: =SUM(I44:I45) -> 104999 | J46: =SUM(J44:J45) -> 106334 | K46: 105732 | L46: 110067 | M46: 116944 | N46: 118244 | O46: 1326657 | R46: =SUM(R44:R45) -> 0 | U46: 10477
A48: Block ID 111 | B48: Schedule 011/012
B49: kVar | C49: 1565 | D49: 1406 | E49: 1323 | F49: 1081 | G49: 1117 | H49: 1164 | I49: 1261 | J49: 1556 | K49: 1142 | L49: 1054 | M49: 982 | N49: 1172 | O49: =SUM(C49:N49) -> 14823 | R49: 0 | U49: 155
B50: pf Charge | C50: 0.5 | D50: 0.5 | E50: 0.5 | F50: 0.5 | G50: 0.5 | H50: 0.5 | I50: 0.5 | J50: 0.5 | K50: 0.5 | L50: 0.5 | M50: 0.5 | N50: 0.5 | O50: 0.5 | U50: 0.5
B51: pf Revenue | C51: =C49*C50 -> 782.5 | D51: 703 | E51: 661.5 | F51: 540.5 | G51: 558.5 | H51: 582 | I51: 630.5 | J51: 778 | K51: 571 | L51: 527 | M51: 491 | N51: 586 | O51: 7411.5 | U51: 77.5
A53: Block ID 221 | B53: Schedule 021/022
B54: Block 1 | C54: 107983174 | D54: 100622609 | E54: 111483583 | F54: 110850355 | G54: 108574518 | H54: 104782219 | I54: 98501974 | J54: 101517154 | K54: 101065874 | L54: 101473854 | M54: 108965072 | N54: 115067839 | O54: =SUM(C54:N54) -> 1270888225 | R54: 0 | S54: =R54/$R$56 ->  | U54: 13826999
B55: Block 2 | C55: 14135892 | D55: 17060773 | E55: 14402937 | F55: 14052515 | G55: 13278050 | H55: 11869608 | I55: 10418637 | J55: 11818818 | K55: 13344162 | L55: 12820475 | M55: 16225316 | N55: 18623162 | O55: =SUM(C55:N55) -> 168050345 | R55: 0 | S55: =R55/$R$56 ->  | U55: 3190875
A56: kWhs | B56: Total | C56: =SUM(C54:C55) -> 122119066 | D56: 117683382 | E56: 125886520 | F56: 124902870 | G56: 121852568 | H56: 116651827 | I56: =SUM(I54:I55) -> 108920611 | J56: =SUM(J54:J55) -> 113335972 | K56: 114410036 | L56: 114294329 | M56: 125190388 | N56: 133691001 | O56: 1438938570 | R56: =SUM(R54:R55) -> 0 | S56: =SUM(S54:S55) ->  | U56: 17017874
B57: Revenue Run Total | C57: ='Rev Runs 12MESEPT2014'!D50+'Rev Runs 12MESEPT2014'!D51 -> 122102098 | D57: ='Rev Runs 12MESEPT2014'!E50+'Rev Runs 12MESEPT2014'!E51 -> 110516653 | E57: ='Rev Runs 12MESEPT2014'!F50+'Rev Runs 12MESEPT2014'!F51 -> 126020571 | F57: ='Rev Runs 12MESEPT2014'!G50+'Rev Runs 12MESEPT2014'!G51 -> 124987510 | G57: ='Rev Runs 12MESEPT2014'!H50+'Rev Runs 12MESEPT2014'!H51 -> 121599193 | H57: ='Rev Runs 12MESEPT2014'!I50+'Rev Runs 12MESEPT2014'!I51 -> 116342928 | I57: ='Rev Runs 12MESEPT2014'!J50+'Rev Runs 12MESEPT2014'!J51 -> 108793173 | J57: ='Rev Runs 12MESEPT2014'!K50+'Rev Runs 12MESEPT2014'!K51 -> 113179392 | K57: ='Rev Runs 12MESEPT2014'!L50+'Rev Runs 12MESEPT2014'!L51 -> 112320632 | L57: ='Rev Runs 12MESEPT2014'!M50+'Rev Runs 12MESEPT2014'!M51 -> 115086097 | M57: ='Rev Runs 12MESEPT2014'!N50+'Rev Runs 12MESEPT2014'!N51 -> 125217488 | N57: ='Rev Runs 12MESEPT2014'!O50+'Rev Runs 12MESEPT2014'!O51 -> 132529218 | O57: =SUM(C57:N57) -> 1428694953 | U57: 113575945
C58: =C57-C56 -> -16968 | D58: -7166729 | E58: 134051 | F58: 84640 | G58: -253375 | H58: -308899 | I58: -127438 | J58: -156580 | K58: -2089404 | L58: 791768 | M58: 27100 | N58: -1161783 | O58: =SUM(C58:N58) -> -10243617 | P58: =O58/O57 -> -0.007169911939 | U58: 96558071
B60: Block 1 | C60: =(C54/C$56)*C$58 -> -15003.86923 | D60: =(D54/D$56)*D$58 -> -6127755.319 | E60: 118713.948 | F60: 75117.36157 | G60: -225765.1927 | H60: -277467.7731 | I60: -115248.11 | J60: -140251.6403 | K60: -1845707.324 | L60: 702954.8284 | M60: 23587.70109 | N60: -999946.5798 | O60: =SUM(C60:N60) -> -8826771.969
B61: Block 2 | C61: =(C55/C$56)*C$58 -> -1964.130773 | D61: =(D55/D$56)*D$58 -> -1038973.681 | E61: 15337.05204 | F61: 9522.638428 | G61: -27609.80728 | H61: -31431.22689 | I61: -12189.88996 | J61: -16328.35974 | K61: -243696.6759 | L61: 88813.17156 | M61: 3512.298912 | N61: -161836.4202 | O61: =SUM(C61:N61) -> -1416845.031
C62: =SUM(C60:C61) -> -16968 | D62: =SUM(D60:D61) -> -7166729 | E62: =SUM(E60:E61) -> 134051 | F62: =SUM(F60:F61) -> 84640 | G62: =SUM(G60:G61) -> -253375 | H62: =SUM(H60:H61) -> -308899 | I62: =SUM(I60:I61) -> -127438 | J62: =SUM(J60:J61) -> -156580 | K62: =SUM(K60:K61) -> -2089404 | L62: =SUM(L60:L61) -> 791768 | M62: =SUM(M60:M61) -> 27100 | N62: =SUM(N60:N61) -> -1161783 | O62: =SUM(O60:O61) -> -10243617
B64: Block 1 | C64: =C54+C60 -> 107968170.1 | D64: =D54+D60 -> 94494853.68 | E64: 111602296.9 | F64: 110925472.4 | G64: 108348752.8 | H64: 104504751.2 | I64: 98386725.89 | J64: 101376902.4 | K64: 99220166.68 | L64: 102176808.8 | M64: 108988659.7 | N64: 114067892.4 | O64: =SUM(C64:N64) -> 1262061453
B65: Block 2 | C65: =C55+C61 -> 14133927.87 | D65: =D55+D61 -> 16021799.32 | E65: 14418274.05 | F65: 14062037.64 | G65: 13250440.19 | H65: 11838176.77 | I65: 10406447.11 | J65: 11802489.64 | K65: 13100465.32 | L65: 12909288.17 | M65: 16228828.3 | N65: 18461325.58 | O65: =SUM(C65:N65) -> 166633500
C66: =SUM(C64:C65) -> 122102098 | D66: 110516653 | E66: 126020571 | F66: 124987510 | G66: 121599193 | H66: 116342928 | I66: 108793173 | J66: 113179392 | K66: 112320632 | L66: 115086097 | M66: 125217488 | N66: 132529218 | O66: 1428694953
C67: =C66-C57 -> 0 | D67: 0 | E67: 0 | F67: 0 | G67: 0 | H67: 0 | I67: 0 | J67: 0 | K67: 0 | L67: 0 | M67: 0 | N67: 0 | O67: 0
A69: Block ID 21 | B69: Schedule 021/022
B70: Block 1 | C70: 97474 | D70: 95585 | E70: 95946 | F70: 95481 | G70: 95308 | H70: 95583 | I70: 95759 | J70: 95544 | K70: 95880 | L70: 95967 | M70: 96333 | N70: 97215 | O70: =SUM(C70:N70) -> 1152075 | R70: 0 | U70: 12097
B71: Block 2 | C71: 239710 | D71: 217425 | E71: 221638 | F71: 215425 | G71: 218801 | H71: 220903 | I71: 210307 | J71: 221356 | K71: 231405 | L71: 241300 | M71: 254569 | N71: 255297 | O71: =SUM(C71:N71) -> 2748136 | R71: 0 | U71: 30948
A72: kW | B72: Total | C72: =SUM(C70:C71) -> 337184 | D72: 313010 | E72: 317584 | F72: 310906 | G72: 314109 | H72: 316486 | I72: 306066 | J72: 316900 | K72: 327285 | L72: 337267 | M72: 350902 | N72: 352512 | O72: 3900211 | R72: =SUM(R70:R71) -> 0 | U72: 43045
A74: Block ID 21 | B74: Schedule 021/022
B75: kVar | C75: 22897 | D75: 21602 | E75: 18902 | F75: 18412 | G75: 18149 | H75: 17656 | I75: 19514 | J75: 22783 | K75: 23041 | L75: 23768 | M75: 24011 | N75: 23858 | O75: =SUM(C75:N75) -> 254593 | R75: 0 | U75: 2175
B76: pf Charge | C76: 0.5 | D76: 0.5 | E76: 0.5 | F76: 0.5 | G76: 0.5 | H76: 0.5 | I76: 0.5 | J76: 0.5 | K76: 0.5 | L76: 0.5 | M76: 0.5 | N76: 0.5 | O76: 0.5 | U76: 0.5
B77: pf Revenue | C77: =C75*C76 -> 11448.5 | D77: 10801 | E77: 9451 | F77: 9206 | G77: 9074.5 | H77: 8828 | I77: =I75*I76 -> 9757 | J77: =J75*J76 -> 11391.5 | K77: 11520.5 | L77: 11884 | M77: 12005.5 | N77: 11929 | O77: 127296.5 | U77: 1087.5
A79: Block ID 30 | B79: Schedule 30/31/32
B80: Block 1 | C80: 3997784 | D80: 2463217 | E80: 1690143 | F80: 1780954 | G80: 1863301 | H80: 1848147 | I80: 2641996 | J80: 3708663 | K80: 4980734 | L80: 5311184 | M80: 5404134 | N80: 5292985 | O80: =SUM(C80:N80) -> 40983242 | R80: 0 | S80: =R80/$R$83 ->  | U80: 159803
B81: Block 2 | C81: 864660 | D81: 449963 | E81: 432586 | F81: 450192 | G81: 439708 | H81: 443291 | I81: 579839 | J81: 1002300 | K81: 1443007 | L81: 1578424 | M81: 1596498 | N81: 1448367 | O81: =SUM(C81:N81) -> 10728835 | R81: 0 | S81: =R81/$R$83 ->  | U81: 44908
B82: Block 3 | C82: 5569360 | D82: 2101056 | E82: 2145235 | F82: 2727446 | G82: 2976985 | H82: 2425769 | I82: 2492878 | J82: 5980068 | K82: 12666013 | L82: 15261044 | M82: 16563016 | N82: 15331299 | O82: =SUM(C82:N82) -> 86240169 | R82: 0 | U82: 193602
A83: kWhs | B83: Total | C83: =SUM(C80:C82) -> 10431804 | D83: 5014236 | E83: 4267964 | F83: 4958592 | G83: 5279994 | H83: 4717207 | I83: 5714713 | J83: 10691031 | K83: 19089754 | L83: 22150652 | M83: 23563648 | N83: 22072651 | O83: 137952246 | R83: =SUM(R80:R82) -> 0 | S83: =SUM(S80:S82) ->  | U83: 398313
B84: Revenue Run Total | C84: ='Rev Runs 12MESEPT2014'!D53+'Rev Runs 12MESEPT2014'!D54+'Rev Runs 12MESEPT2014'!D55 -> 10534589 | D84: ='Rev Runs 12MESEPT2014'!E53+'Rev Runs 12MESEPT2014'!E54+'Rev Runs 12MESEPT2014'!E55 -> 4961688 | E84: ='Rev Runs 12MESEPT2014'!F53+'Rev Runs 12MESEPT2014'!F54+'Rev Runs 12MESEPT2014'!F55 -> 4285935 | F84: ='Rev Runs 12MESEPT2014'!G53+'Rev Runs 12MESEPT2014'!G54+'Rev Runs 12MESEPT2014'!G55 -> 4672648 | G84: ='Rev Runs 12MESEPT2014'!H53+'Rev Runs 12MESEPT2014'!H54+'Rev Runs 12MESEPT2014'!H55 -> 4692329 | H84: ='Rev Runs 12MESEPT2014'!I53+'Rev Runs 12MESEPT2014'!I54+'Rev Runs 12MESEPT2014'!I55 -> 4018427 | I84: ='Rev Runs 12MESEPT2014'!J53+'Rev Runs 12MESEPT2014'!J54+'Rev Runs 12MESEPT2014'!J55 -> 5516677 | J84: ='Rev Runs 12MESEPT2014'!K53+'Rev Runs 12MESEPT2014'!K54+'Rev Runs 12MESEPT2014'!K55 -> 10758607 | K84: ='Rev Runs 12MESEPT2014'!L53+'Rev Runs 12MESEPT2014'!L54+'Rev Runs 12MESEPT2014'!L55 -> 19067966 | L84: ='Rev Runs 12MESEPT2014'!M53+'Rev Runs 12MESEPT2014'!M54+'Rev Runs 12MESEPT2014'!M55 -> 22113559 | M84: ='Rev Runs 12MESEPT2014'!N53+'Rev Runs 12MESEPT2014'!N54+'Rev Runs 12MESEPT2014'!N55 -> 23803945 | N84: ='Rev Runs 12MESEPT2014'!O53+'Rev Runs 12MESEPT2014'!O54+'Rev Runs 12MESEPT2014'!O55 -> 22699934 | O84: =SUM(C84:N84) -> 137126304 | U84: 11987118
C85: =C84-C83 -> 102785 | D85: -52548 | E85: 17971 | F85: -285944 | G85: -587665 | H85: -698780 | I85: -198036 | J85: 67576 | K85: -21788 | L85: -37093 | M85: 240297 | N85: 627283 | O85: =SUM(C85:N85) -> -825942 | P85: =O85/O84 -> -0.006023220753 | U85: 11588805
B87: Block 1 | C87: =(C80/C$83)*C$85 -> 39390.33253 | D87: =(D80/D$83)*D$85 -> -25813.92797 | E87: 7116.639187 | F87: -102701.152 | G87: -207385.9899 | H87: -273773.9007 | I87: -91554.95995 | J87: 23441.76262 | K87: -5684.737079 | L87: =(L80/L$83)*L$85 -> -8893.993193 | M87: 55110.19295 | N87: 150421.4201 | O87: =SUM(C87:N87) -> -440328.3133 | P87: =O87/$O$90 -> 0.5331225598
B88: Block 2 | C88: =(C81/C$83)*C$85 -> 8519.531051 | D88: -4715.505159 | E88: 1821.478111 | F88: -25960.93836 | G88: -48939.63929 | H88: -65666.58724 | I88: -20093.57184 | J88: 6335.350145 | K88: -1646.969181 | L88: -2643.194495 | M88: 16280.74226 | N88: 41161.16351 | O88: =SUM(C88:N88) -> -95548.14048 | P88: =O88/$O$90 -> 0.1156838379
B89: Block 3 | C89: 54875.13642 | D89: -22018.56687 | E89: 9032.882701 | F89: -157281.9097 | G89: -331339.3708 | H89: -359339.5121 | I89: -86387.46821 | J89: 37798.88723 | K89: -14456.29374 | L89: -25555.81231 | M89: 168906.0648 | N89: 435700.4163 | O89: -290065.5462 | P89: 0.3511936023
C90: =SUM(C87:C89) -> 102785 | D90: =SUM(D87:D89) -> -52548 | E90: =SUM(E87:E89) -> 17971 | F90: =SUM(F87:F89) -> -285944 | G90: =SUM(G87:G89) -> -587665 | H90: =SUM(H87:H89) -> -698780 | I90: =SUM(I87:I89) -> -198036 | J90: =SUM(J87:J89) -> 67576 | K90: =SUM(K87:K89) -> -21788 | L90: =SUM(L87:L89) -> -37093 | M90: =SUM(M87:M89) -> 240297 | N90: =SUM(N87:N89) -> 627283 | O90: =SUM(O87:O89) -> -825942 | P90: =SUM(P87:P89) -> 1
B92: Block 1 | C92: =C80+C87 -> 4037174.333 | D92: =D80+D87 -> 2437403.072 | E92: 1697259.639 | F92: 1678252.848 | G92: 1655915.01 | H92: 1574373.099 | I92: 2550441.04 | J92: 3732104.763 | K92: 4975049.263 | L92: =L80+L87 -> 5302290.007 | M92: 5459244.193 | N92: 5443406.42 | O92: =SUM(C92:N92) -> 40542913.69 | P92: =O92/$O$95 -> 0.2956610986
B93: Block 2 | C93: =C81+C88 -> 873179.5311 | D93: 445247.4948 | E93: 434407.4781 | F93: 424231.0616 | G93: 390768.3607 | H93: 377624.4128 | I93: 559745.4282 | J93: 1008635.35 | K93: 1441360.031 | L93: 1575780.806 | M93: 1612778.742 | N93: 1489528.164 | O93: =SUM(C93:N93) -> 10633286.86 | P93: =O93/$O$95 -> 0.07754374288
B94: Block 3 | C94: 5624235.136 | D94: 2079037.433 | E94: 2154267.883 | F94: 2570164.09 | G94: 2645645.629 | H94: 2066429.488 | I94: 2406490.532 | J94: 6017866.887 | K94: 12651556.71 | L94: 15235488.19 | M94: 16731922.06 | N94: 15766999.42 | O94: 85950103.45 | P94: 0.6267951585
C95: =SUM(C92:C94) -> 10534589 | D95: =SUM(D92:D94) -> 4961688 | E95: =SUM(E92:E94) -> 4285935 | F95: =SUM(F92:F94) -> 4672648 | G95: =SUM(G92:G94) -> 4692329 | H95: =SUM(H92:H94) -> 4018427 | I95: =SUM(I92:I94) -> 5516677 | J95: =SUM(J92:J94) -> 10758607 | K95: =SUM(K92:K94) -> 19067966 | L95: =SUM(L92:L94) -> 22113559 | M95: =SUM(M92:M94) -> 23803945 | N95: =SUM(N92:N94) -> 22699934 | O95: =SUM(O92:O94) -> 137126304 | P95: 1
C96: =C95-C84 -> 0 | D96: =D95-D84 -> 0 | E96: =E95-E84 -> 0 | F96: =F95-F84 -> 0 | G96: =G95-G84 -> 0 | H96: =H95-H84 -> 0 | I96: =I95-I84 -> 0 | J96: =J95-J84 -> 0 | K96: =K95-K84 -> 0 | L96: =L95-L84 -> 0 | M96: =M95-M84 -> 0 | N96: =N95-N84 -> 0 | O96: =O95-O84 -> 0
A98: Block ID 131 | B98: Schedule 31/32
B99: kVar | C99: 992 | D99: 745 | E99: 637 | F99: 459 | G99: 457 | H99: 447 | I99: 602 | J99: 1050 | K99: 1148 | L99: 1116 | M99: 1040 | N99: 947 | O99: =SUM(C99:N99) -> 9640 | R99: 0 | U99: 11
B100: pf Charge | C100: 0.5 | D100: 0.5 | E100: 0.5 | F100: 0.5 | G100: 0.5 | H100: 0.5 | I100: 0.5 | J100: 0.5 | K100: 0.5 | L100: 0.5 | M100: 0.5 | N100: 0.5 | O100: 0.5 | U100: 0.5
B101: pf Revenue | C101: =C99*C100 -> 496 | D101: 372.5 | E101: 318.5 | F101: 229.5 | G101: 228.5 | H101: 223.5 | I101: =I99*I100 -> 301 | J101: =J99*J100 -> 525 | K101: 574 | L101: 558 | M101: 520 | N101: 473.5 | O101: 4820 | U101: 5.5

Sheet Rev Runs 12MESEPT2014
B4: Electric Revenue Meters Report by Location Twelve Months Ended for Report Date : '09/30/2014'
B6: State Cde:WA
D8: Meters
C9: Period | D9: 201310 | E9: 201311 | F9: 201312 | G9: 201401 | H9: 201402 | I9: 201403 | J9: 201404 | K9: 201405 | L9: 201406 | M9: 201407 | N9: 201408 | O9: 201409 | P9: 12 Month Average
B10: Rate Schedule Num
B11: 001 | D11: 204564 | E11: 205005 | F11: 205512 | G11: 205536 | H11: 205720 | I11: 205499 | J11: 205076 | K11: 205201 | L11: 204431 | M11: 204966 | N11: 204911 | O11: 205646 | P11: 205172.25
B12: 011 | D12: 21192 | E12: 21223 | F12: 21267 | G12: 21315 | H12: 21311 | I12: 21762 | J12: 21737 | K12: 21798 | L12: 21840 | M12: 21847 | N12: 21803 | O12: 21820 | P12: 21576.25
B13: 012 | D13: 8676 | E13: 8786 | F13: 8804 | G13: 8801 | H13: 8807 | I13: 8802 | J13: 8784 | K13: 8813 | L13: 8804 | M13: 8821 | N13: 8852 | O13: 8887 | P13: 8803.083333
B14: 021 | D14: 1947 | E14: 1951 | F14: 1957 | G14: 1953 | H14: 1953 | I14: 1968 | J14: 1964 | K14: 1965 | L14: 1947 | M14: 1955 | N14: 1951 | O14: 1958 | P14: 1955.75
B15: 022 | D15: 56 | E15: 56 | F15: 55 | G15: 55 | H15: 55 | I15: 52 | J15: 53 | K15: 51 | L15: 52 | M15: 52 | N15: 52 | O15: 52 | P15: 53.41666667
B16: 025 | D16: 21 | E16: 21 | F16: 21 | G16: 22 | H16: 20 | I16: 21 | J16: 21 | K16: 21 | L16: 21 | M16: 21 | N16: 21 | O16: 21 | P16: 21
B17: 030 | D17: 33 | E17: 32 | F17: 32 | G17: 31 | H17: 33 | I17: 32 | J17: 32 | K17: 32 | L17: 32 | M17: 32 | N17: 32 | O17: 32 | P17: 32.08333333
B18: 031 | D18: 1186 | E18: 1191 | F18: 1185 | G18: 1184 | H18: 1184 | I18: 1186 | J18: 1178 | K18: 1195 | L18: 1197 | M18: 1194 | N18: 1189 | O18: 1191 | P18: 1188.333333
B19: 032 | D19: 1218 | E19: 1221 | F19: 1215 | G19: 1215 | H19: 1212 | I19: 1211 | J19: 1209 | K19: 1213 | L19: 1213 | M19: 1214 | N19: 1212 | O19: 1218 | P19: 1214.25
B20: 041 | D20: 11 | E20: 11 | F20: 11 | G20: 11 | H20: 11 | I20: 11 | J20: 11 | K20: 11 | L20: 11 | M20: 11 | N20: 11 | O20: 11 | P20: 11
B21: 042 | D21: 289 | E21: 290 | F21: 290 | G21: 290 | H21: 291 | I21: 292 | J21: 292 | K21: 293 | L21: 295 | M21: 295 | N21: 295 | O21: 293 | P21: 292.0833333
B22: 044 | D22: 13 | E22: 13 | F22: 13 | G22: 14 | H22: 14 | I22: 14 | J22: 14 | K22: 13 | L22: 13 | M22: 13 | N22: 13 | O22: 13 | P22: 13.33333333
B23: 044A | D23: 1 | E23: 1 | F23: 1 | G23: 1 | H23: 0 | I23: 1 | J23: 1 | K23: 1 | L23: 1 | M23: 1 | N23: 1 | O23: 1 | P23: 0.9166666667
B24: 045 | D24: 11 | E24: 11 | F24: 11 | G24: 11 | H24: 11 | I24: 11 | J24: 11 | K24: 11 | L24: 11 | M24: 11 | N24: 11 | O24: 11 | P24: 11
B25: 046 | D25: 52 | E25: 52 | F25: 52 | G25: 52 | H25: 53 | I25: 53 | J25: 53 | K25: 53 | L25: 53 | M25: 53 | N25: 53 | O25: 53 | P25: 52.66666667
B26: 047 | D26: 0 | E26: 0 | F26: 0 | G26: 0 | H26: 0 | I26: 0 | J26: 0 | K26: 0 | L26: 0 | M26: 0 | N26: 0 | O26: 0 | P26: 0
B27: 048 | D27: 0 | E27: 0 | F27: 0 | G27: 0 | H27: 0 | I27: 0 | J27: 0 | K27: 0 | L27: 0 | M27: 0 | N27: 0 | O27: 0 | P27: 0
B28: 058 | D28: 0 | E28: 0 | F28: 0 | G28: 0 | H28: 0 | I28: 0 | J28: 0 | K28: 0 | L28: 0 | M28: 0 | N28: 0 | O28: 0 | P28: 0
B29: 058A | D29: 0 | E29: 0 | F29: 0 | G29: 0 | H29: 0 | I29: 0 | J29: 0 | K29: 0 | L29: 0 | M29: 0 | N29: 0 | O29: 0 | P29: 0
B30: 062 | D30: 0 | E30: 0 | F30: 0 | H30: 0 | I30: 0 | J30: 0 | K30: 0 | L30: 0 | M30: 0 | N30: 0 | O30: 0 | P30: 0
B31: 090 | D31: 0 | E31: 0 | F31: 0 | G31: 0 | H31: 0 | I31: 0 | J31: 0 | K31: 0 | L31: 0 | M31: 0 | N31: 0 | O31: 0 | P31: 0
B32: 095 | D32: 0 | E32: 0 | F32: 0 | G32: 0 | H32: 0 | I32: 0 | J32: 0 | K32: 0 | L32: 0 | M32: 0 | N32: 0 | O32: 0 | P32: 0
B33: 099 | D33: 0 | E33: 0 | F33: 0 | G33: 0 | H33: 0 | I33: 0 | J33: 0 | K33: 0 | L33: 0 | M33: 0 | N33: 0 | O33: 0 | P33: 0
B34: Total for WA | D34: 239270 | E34: 239864 | F34: 240426 | G34: 240491 | H34: 240675 | I34: 240915 | J34: 240436 | K34: 240671 | L34: 239921 | M34: 240486 | N34: 240407 | O34: 241207 | P34: =SUM(P11:P33) -> 240397.4167
B35: Sum | D35: 239270 | E35: 239864 | F35: 240426 | G35: 240491 | H35: 240675 | I35: 240915 | J35: 240436 | K35: 240671 | L35: 239921 | M35: 240486 | N35: 240407 | O35: 241207
B40: Electric Revenue Usage Report by Location Twelve Months Ended for Report Date : '09/30/2014'
B42: State Cde:WA
D44: Usage
C45: Period | D45: 201310 | E45: 201311 | F45: 201312 | G45: 201401 | H45: 201402 | I45: 201403 | J45: 201404 | K45: 201405 | L45: 201406 | M45: 201407 | N45: 201408 | O45: 201409 | P45: 12 Month Total
B46: Rate Schedule Num
B47: 001 | D47: 172515690 | E47: 182389214 | F47: 262077988 | G47: 289886480 | H47: 265521283 | I47: 243798239 | J47: 186717371 | K47: 166632949 | L47: 143928993 | M47: 156298537 | N47: 190162484 | O47: 183763954 | P47: 2443693182
B48: 011 | D48: 43916217 | E48: 40179786 | F48: 50463099 | G48: 53060661 | H48: 50640324 | I48: 47384122 | J48: 40860561 | K48: 40248640 | L48: 36985033 | M48: 40322474 | N48: 46425927 | O48: 48154837 | P48: 538641681
B49: 012 | D49: 4111045 | E49: 4386085 | F49: 6083125 | G49: 6836854 | H49: 6549623 | I49: 6031909 | J49: 4654815 | K49: 4100569 | L49: 3567157 | M49: 3660384 | N49: 3790564 | O49: 4236449 | P49: 58008579
B50: 021 | D50: 119045428 | E50: 107583773 | F50: 122214591 | G50: 120805640 | H50: 117657323 | I50: 112802808 | J50: 106041673 | K50: 110626832 | L50: 109967292 | M50: 112734937 | N50: 122472208 | O50: 129641598 | P50: 1391594103
B51: 022 | D51: 3056670 | E51: 2932880 | F51: 3805980 | G51: 4181870 | H51: 3941870 | I51: 3540120 | J51: 2751500 | K51: 2552560 | L51: 2353340 | M51: 2351160 | N51: 2745280 | O51: 2887620 | P51: 37100850
B52: 025 | D52: 90540039 | E52: 89392627 | F52: 90598623 | G52: 91489298 | H52: 94615706 | I52: 86450358 | J52: 94974601 | K52: 91311649 | L52: 91684982 | M52: 87883840 | N52: 94835244 | O52: 98265527 | P52: 1102042494
B53: 030 | D53: 1531125 | E53: 546245 | F53: 200526 | G53: 53385 | H53: 49166 | I53: -22095 | J53: 551346 | K53: 2409501 | L53: 4696731 | M53: 4735306 | N53: 4324189 | O53: 4478367 | P53: 23553792
B54: 031 | D54: 8300013 | E54: 4132558 | F54: 3822666 | G54: 4316187 | H54: 4361015 | I54: 3763044 | J54: 4540066 | K54: 7654647 | L54: 13426098 | M54: 15774603 | N54: 17684982 | O54: 16988388 | P54: 104764267
B55: 032 | D55: 703451 | E55: 282885 | F55: 262743 | G55: 303076 | H55: 282148 | I55: 277478 | J55: 425265 | K55: 694459 | L55: 945137 | M55: 1603650 | N55: 1794774 | O55: 1233179 | P55: 8808245
B56: 041 | D56: 8720 | E56: 8720 | F56: 8720 | G56: 8720 | H56: 8720 | I56: 8720 | J56: 8720 | K56: 8720 | L56: 8720 | M56: 8720 | N56: 8720 | O56: 8720 | P56: 104640
B57: 042 | D57: 1124112 | E57: 1124071 | F57: 1124468 | G57: 1124296 | H57: 1122896 | I57: 1123889 | J57: 1119903 | K57: 1120083 | L57: 1101978 | M57: 1121360 | N57: 1121235 | O57: 1121433 | P57: 13449724
B58: 044 | D58: 24502 | E58: 24502 | F58: 24519 | G58: 24587 | H58: 24587 | I58: 24587 | J58: 24587 | K58: 24587 | L58: 24587 | M58: 24587 | N58: 24587 | O58: 24587 | P58: 294806
B59: 044A | D59: 0 | E59: 0 | F59: 0 | G59: 0 | H59: 0 | I59: 0 | J59: 0 | K59: 0 | L59: 0 | M59: 0 | N59: 0 | O59: 0 | P59: 0
B60: 045 | D60: 89333 | E60: 89333 | F60: 89189 | G60: 89173 | H60: 89173 | I60: 89173 | J60: 89173 | K60: 89173 | L60: 89173 | M60: 89173 | N60: 89173 | O60: 89173 | P60: 1070412
B61: 046 | D61: 132913 | E61: 122779 | F61: 119779 | G61: 119454 | H61: 119122 | I61: 119464 | J61: 119065 | K61: 119235 | L61: 119235 | M61: 119235 | N61: 119235 | O61: 119095 | P61: 1448611
B62: 047 | D62: 467171 | E62: 466090 | F62: 466454 | G62: 467217 | H62: 464772 | I62: 467103 | J62: 464985 | K62: 458728 | L62: 464272 | M62: 465609 | N62: 464838 | O62: 462412 | P62: 5579651
B63: 048 | D63: 267355 | E63: 267915 | F63: 269072 | G63: 264844 | H63: 268478 | I63: 264148 | J63: 266484 | K63: 260141 | L63: 263705 | M63: 263228 | N63: 263527 | O63: 261024 | P63: 3179921
B64: 058 | D64: 0 | E64: 0 | F64: 0 | G64: 0 | H64: 0 | I64: 0 | J64: 0 | K64: 0 | L64: 0 | M64: 0 | N64: 0 | O64: 0 | P64: 0
B65: 058A | D65: 0 | E65: 0 | F65: 0 | G65: 0 | H65: 0 | I65: 0 | J65: 0 | K65: 0 | L65: 0 | M65: 0 | N65: 0 | O65: 0 | P65: 0
B66: 062 | D66: 0 | E66: 0 | F66: 0 | H66: 0 | I66: 0 | J66: 0 | K66: 0 | L66: 0 | M66: 0 | N66: 0 | O66: 0 | P66: 0
B67: 090 | D67: 0 | E67: 0 | F67: 0 | G67: 0 | H67: 0 | I67: 0 | J67: 0 | K67: 0 | L67: 0 | M67: 0 | N67: 0 | O67: 0 | P67: 0
B68: 095 | D68: 0 | E68: 0 | F68: 0 | G68: 0 | H68: 0 | I68: 0 | J68: 0 | K68: 0 | L68: 0 | M68: 0 | N68: 0 | O68: 0 | P68: 0
B69: 099 | D69: 0 | E69: 0 | F69: 0 | G69: 0 | H69: 0 | I69: 0 | J69: 0 | K69: 0 | L69: 0 | M69: 0 | N69: 0 | O69: 0 | P69: 0
B70: Total for WA | D70: 445833784 | E70: 433929463 | F70: 541631542 | G70: 573031742 | H70: 545716206 | I70: 506123067 | J70: 443610115 | K70: 428312473 | L70: 409626433 | M70: 427456803 | N70: 486326967 | O70: 491736363 | P70: 5733334958
B71: Sum | D71: 445833784 | E71: 433929463 | F71: 541631542 | G71: 573031742 | H71: 545716206 | I71: 506123067 | J71: 443610115 | K71: 428312473 | L71: 409626433 | M71: 427456803 | N71: 486326967 | O71: 491736363 | P71: 5733334958
A74: Jurisdiction:WA
D76: Unbilled Usage
C77: Period | D77: 201310 | E77: 201311 | F77: 201312 | G77: 201401 | H77: 201402 | I77: 201403 | J77: 201404 | K77: 201405 | L77: 201406 | M77: 201407 | N77: 201408 | O77: 201409 | P77: 12 Month Total
A78: Source Id | B78: Rate Schedule Num
A79: REVUNBL-E | B79: 001 | D79: 115153038 | E79: 146412487 | F79: 168288856 | G79: 159659843 | H79: 146410146 | I79: 131242422 | J79: 116222031 | K79: 107901181 | L79: 101611726 | M79: 133971474 | N79: 141847045 | O79: 106274602 | P79: 1574994851
B80: 011 | D80: 29202977 | E80: 32137313 | F80: 32304076 | G80: 29126864 | H80: 27774484 | I80: 25395206 | J80: 25372415 | K80: 25964832 | L80: 26103304 | M80: 34252854 | N80: 34488301 | O80: 27811391 | P80: 349934017
B81: 012 | D81: 2730219 | E81: 3506639 | F81: 3911650 | G81: 3785297 | H81: 3601771 | I81: 3250586 | J81: 2913735 | K81: 2651452 | L81: 2504863 | M81: 3125573 | N81: 2824104 | O81: 2436746 | P81: 37242635
B82: 021 | D82: 79003555 | E82: 85850770 | F82: 78145098 | G82: 66182930 | H82: 64460566 | I82: 60339008 | J82: 65640893 | K82: 71201197 | L82: 77222275 | M82: 96122071 | N82: 90884804 | O82: 74564418 | P82: 909617585
B83: 022 | D83: 2039024 | E83: 2351511 | F83: 2461263 | G83: 2311023 | H83: 2190768 | I83: 1896175 | J83: 1702407 | K83: 1649074 | L83: 1647936 | M83: 2012355 | N83: 2053894 | O83: 1656987 | P83: 23972417
B84: 025 | D84: 91858241 | E84: 90789289 | F84: 92260234 | G84: 94502093 | H84: 86431641 | I84: 95082095 | J84: 91276026 | K84: 91640677 | L84: 87808773 | M84: 94827476 | N84: 98329239 | O84: 93914752 | P84: 1108720536
B85: 031 | D85: 5529558 | E85: 3341620 | F85: 2417312 | G85: 2390714 | H85: 2376426 | I85: 2031616 | J85: 2815519 | K85: 4979557 | L85: 9492111 | M85: 13529877 | N85: 13179153 | O85: 9811963 | P85: 71895426
B86: 032 | D86: 345597 | E86: 206273 | F86: 175804 | G86: 159381 | H86: 148527 | I86: 135441 | J86: 163693 | K86: 291013 | L86: 428463 | M86: 856321 | N86: 941368 | O86: 487349 | P86: 4339230
B87: Total for REVUNBL-E | D87: 325862209 | E87: 364595902 | F87: 379964293 | G87: 358118145 | H87: 333394329 | I87: 319372549 | J87: 306106719 | K87: 306278983 | L87: 306819451 | M87: 378698001 | N87: 384547908 | O87: 316958208 | P87: 4080716697
A88: REVUNBL-ER | B88: 001 | D88: -109600645 | E88: -115153038 | F88: -146412487 | G88: -168288856 | H88: -159659843 | I88: -146410146 | J88: -131242422 | K88: -116222031 | L88: -107901181 | M88: -101611726 | N88: -133971474 | O88: -141847045 | P88: -1578320894 | S88: =P79+P88 -> -3326043
B89: 011 | D89: -27536142 | E89: -29202977 | F89: -32137313 | G89: -32304076 | H89: -29126864 | I89: -27774484 | J89: -25395206 | K89: -25372415 | L89: -25964832 | M89: -26103304 | N89: -34252854 | O89: -34488301 | P89: -349658768 | S89: =P80+P81+P89+P90 -> 230343
B90: 012 | D90: -2481652 | E90: -2730219 | F90: -3506639 | G90: -3911650 | H90: -3785297 | I90: -3601771 | J90: -3250586 | K90: -2913735 | L90: -2651452 | M90: -2504863 | N90: -3125573 | O90: -2824104 | P90: -37287541 | S90: =P82+P83+P91+P92 -> 208054
B91: 021 | D91: -74211603 | E91: -79003555 | F91: -85850770 | G91: -78145098 | H91: -66182930 | I91: -64460566 | J91: -60339008 | K91: -65640893 | L91: -71201197 | M91: -77222275 | N91: -96122071 | O91: -90884804 | P91: -909264770 | S91: =P85+P86+P94+P95 -> 100740
B92: 022 | D92: -1801748 | E92: -2039024 | F92: -2351511 | G92: -2461263 | H92: -2311023 | I92: -2190768 | J92: -1896175 | K92: -1702407 | L92: -1649074 | M92: -1647936 | N92: -2012355 | O92: -2053894 | P92: -24117178
B93: 025 | D93: -90506847 | E93: -91858241 | F93: -90789289 | G93: -92260234 | H93: -94502093 | I93: -86431641 | J93: -95082095 | K93: -91276026 | L93: -91640677 | M93: -87808773 | N93: -94827476 | O93: -98329239 | P93: -1105312631
B94: 031 | D94: -9552662 | E94: -5529558 | F94: -3341620 | G94: -2417312 | H94: -2390714 | I94: -2376426 | J94: -2031616 | K94: -2815519 | L94: -4979557 | M94: -9492111 | N94: -13529877 | O94: -13179153 | P94: -71636125
B95: 032 | D95: -645910 | E95: -345597 | F95: -206273 | G95: -175804 | H95: -159381 | I95: -148527 | J95: -135441 | K95: -163693 | L95: -291013 | M95: -428463 | N95: -856321 | O95: -941368 | P95: -4497791
B96: Total for REVUNBL-ER | D96: -316337209 | E96: -325862209 | F96: -364595902 | G96: -379964293 | H96: -358118145 | I96: -333394329 | J96: -319372549 | K96: -306106719 | L96: -306278983 | M96: -306819451 | N96: -378698001 | O96: -384547908 | P96: -4080095698
A97: Total for WA | D97: 9525000 | E97: 38733693 | F97: 15368391 | G97: -21846148 | H97: -24723816 | I97: -14021780 | J97: -13265830 | K97: 172264 | L97: 540468 | M97: 71878550 | N97: 5849907 | O97: -67589700 | P97: 620999
A98: Sum | D98: 9525000 | E98: 38733693 | F98: 15368391 | G98: -21846148 | H98: -24723816 | I98: -14021780 | J98: -13265830 | K98: 172264 | L98: 540468 | M98: 71878550 | N98: 5849907 | O98: -67589700 | P98: 620999
A100: Total Usage
B101: 001 | D101: =D47+D79+D88 -> 178068083 | E101: =E47+E79+E88 -> 213648663 | F101: 283954357 | G101: 281257467 | H101: 252271586 | I101: 228630515 | J101: 171696980 | K101: 158312099 | L101: 137639538 | M101: 188658285 | N101: 198038055 | O101: 148191511 | P101: 2440367139
B102: 011/012 | D102: =D48+D49+D80+D81+D89+D90 -> 49942664 | E102: =E48+E49+E80+E81+E89+E90 -> 48276627 | F102: 57117998 | G102: 56593950 | H102: 55654041 | I102: 50685568 | J102: 45155734 | K102: 44679343 | L102: 40544073 | M102: 52753118 | N102: 50150469 | O102: 45327018 | P102: 596880603
B103: 021/022 | D103: =D50+D51+D82+D83+D91+D92 -> 127131326 | E103: =E50+E51+E82+E83+E91+E92 -> 117676355 | F103: 118424651 | G103: 112875102 | H103: 119756574 | I103: 111926777 | J103: 113901290 | K103: 118686363 | L103: 118340572 | M103: 134350312 | N103: 120021760 | O103: 115811925 | P103: 1428903007
B104: 025 | D104: =D52+D84+D93 -> 91891433 | E104: =E52+E84+E93 -> 88323675 | F104: 92069568 | G104: 93731157 | H104: 86545254 | I104: 95100812 | J104: 91168532 | K104: 91676300 | L104: 87853078 | M104: 94902543 | N104: 98337007 | O104: 93851040 | P104: 1105450399
B105: 030/031/032 | D105: =D53+D54+D55+D85+D86+D94+D95 -> 6211172 | E105: =E53+E54+E55+E85+E86+E94+E95 -> 2634426 | F105: 3331158 | G105: 4629627 | H105: 4667187 | I105: 3660531 | J105: 6328832 | K105: 13049965 | L105: 23717970 | M105: 26579183 | N105: 23538268 | O105: 18878725 | P105: 137227044
B106: 04X | D106: =SUM(D56:D63) -> 2114106 | E106: =SUM(E56:E63) -> 2103410 | F106: 2102201 | G106: 2098291 | H106: 2097748 | I106: 2097084 | J106: 2092917 | K106: 2080667 | L106: 2071670 | M106: 2091912 | N106: 2091315 | O106: 2086444 | P106: 25127765
B107: Total | D107: =SUM(D101:D106) -> 455358784 | E107: =SUM(E101:E106) -> 472663156 | F107: 556999933 | G107: 551185594 | H107: 520992390 | I107: 492101287 | J107: 430344285 | K107: 428484737 | L107: 410166901 | M107: 499335353 | N107: 492176874 | O107: 424146663 | P107: 5733955957
D109: =D70+D87+D96-D107 -> 0 | E109: =E70+E87+E96-E107 -> 0 | F109: 0 | G109: 0 | H109: 0 | I109: 0 | J109: 0 | K109: 0 | L109: 0 | M109: 0 | N109: 0 | O109: 0 | P109: 0
